Workbook

Sheet SAPN Changes
A1: No. | B1: Sheet | C1: Cell | D1: Content | E1: Notes
A4: SAPN Amendments
B6: Proposed NW Projects (Reg Yr) | C6: Worksheet | D6: Updated 2020-25 capex forecasts
C7: Row 108 | D7: Added new project 'Substation Asbestos Removal' | E7: Incorrectly included in 'Circuit Breakers Planned Refurb' project in Original Proposal
C8: Rows 159/160 | D8: Added new Customer Contribution categories 'Recoverable Works Contribution' and 'Embedded Generation Contribution' | E8: Not separately identified in Original Proposal
C9: Row 118 | D9: Project renamed from 'Protection Compliance (Primary&Backup)' to 'Rural Protection' | E9: Better reflects definition of project
B11: Proposed NW Projects (Reg Yr) | C11: Row 108 | D11: Added new project 'Substation Asbestos Removal' | E11: Incorrectly included in 'Circuit Breakers Planned Refurb' project in Original Proposal
C12: Rows 159/160 | D12: Added new Customer Contribution categories 'Recoverable Works Contribution' and 'Embedded Generation Contribution' | E12: Not separately identified in Original Proposal
C13: Row 118 | D13: Project renamed from 'Protection Compliance (Primary&Backup)' to 'Rural Protection' | E13: Better reflects definition of project
B15: Misc Data | C15: Worksheet | D15: Updated RAB Capex Category Proportions and Immediate Expensing of Capex, linked to new worksheet RPCategorised
B17: Lives for Lines & Subs | C17: Worksheet | D17: Updated for revised Misc Data worksheet
B19: General Inputs | C19: E9 | D19: Updated 2019/20 forecast CPI | E19: Based on RBA, Statement on Monetary policy, November 2019, Appendix
C20: D34:J40 | D20: Updated Real Price Escalators
C21: Row 37 | D21: Added additional Real Price Escalator - All Industries - for ICT contracted services | E21: refer Attachment 5 - capex, section 5.2.7
C22: B55:F57 | D22: Updated 2020-25 Asset Disposals
B24: Network Projects Direct Costs | C24: Row 108 | D24: Added new project 'Substation Asbestos Removal' | E24: Incorrectly included in 'Circuit Breakers Planned Refurb' project in Original Proposal
C25: Rows 159/160 | D25: Added new Customer Contribution categories 'Recoverable Works Contribution' and 'Embedded Generation Contribution' | E25: Not separately identified in Original Proposal
C26: Row 118 | D26: Project renamed from 'Protection Compliance (Primary&Backup)' to 'Rural Protection' | E26: Better reflects definition of project
B28: Non Network Base Capex | C28: Worksheet | D28: Updated 2020-25 capex forecasts | E28: rows 58-84 not updated
C29: Rows 87/88 | D29: Updated with 2018/19 Superannuation adjustment, converted to $2017
B31: Direct Capex Plus Ohds | C31: K21:P23 | D31: ICT escalators updated to apply All Industries WPI for contracted services
B33: NW Projects Capex $June2020 | C33: Row 108 | D33: Added new project 'Substation Asbestos Removal' | E33: Incorrectly included in 'Circuit Breakers Planned Refurb' project in Original Proposal
C34: Rows 159/160 | D34: Added new Customer Contribution categories 'Recoverable Works Contribution' and 'Embedded Generation Contribution' | E34: Not separately identified in Original Proposal
C35: Row 118 | D35: Project renamed from 'Protection Compliance (Primary&Backup)' to 'Rural Protection' | E35: Better reflects definition of project
C36: Columns CE:CF | D36: Added Asset Class and Expenditure Category for each project
B38: RP Categorised | C38: New Worksheet | D38: Calculation of expenditure category proportions | E38: Used in Misc Data worksheet to calculate PTRM Inputs
B40: Project Capex - shorter life | C40: Rows 20, 34:36 | D40: Added additional projects assigned to short life asset categories | E40: Unable to reconcile to PTRM inputs
B42: Capex - shorter life activities | C42: Rows 16, 29:32 | D42: Added additional projects assigned to short life asset categories
C43: Rows 10, 25 | D43: Separated grouped projects to recognise different asset categorisation
C44: Rows 20-21, 28 | D44: Amended asset categorisation

Sheet Proposed NW Projects (Reg Yr)
A1: INCLUDES NETWORK BUSINESS OVERHEADS | D1: $2017-18 ($'000)
C3: AER RIN ref | D3: Doc/Plan ref | E3: 2020/21 | F3: 2021/22 | G3: 2022/23 | H3: 2023/24 | I3: 2024/25 | J3: Total
A4: Category / Description | C4: (Repex,Augex etc) | D4: (eg AP) | E4: Jul-Jun | F4: =E4 -> Jul-Jun | G4: =F4 -> Jul-Jun | H4: =G4 -> Jul-Jun | I4: =H4 -> Jul-Jun | K4: SEM Reference
A5: Capacity Upgrade
B6: Connection Point Capacity (ETC/NER Code) | C6: Augex | D6: AP.1.1.01 | E6: 4334.65995 | F6: 5263.828715 | G6: 1547.153652 | H6: 0 | I6: 0 | J6: =SUM(E6:I6) -> 11145.64232 | K6: C-2
B7: LV & Distribution Transformers (QoS BAU) | C7: Augex | D7: AP.1.1.01 | E7: 7617.613852 | F7: 7788.796186 | G7: 7959.97852 | H7: 7959.97852 | I7: 8131.160854 | J7: 39457.52793 | K7: C-2
B8: Distribution Feeders (11 & 7.6kV) | C8: Augex | D8: AP.1.1.01 | E8: 2410.579345 | F8: 289.2695214 | G8: 74.50881612 | H8: 547.8589421 | I8: 793.2997481 | J8: 4115.516373 | K8: C-2
B9: Strategic Network Capacity (Other) | C9: Augex | D9: AP.1.1.01 | E9: 3593.95466 | F9: 3593.95466 | G9: 3593.95466 | H9: 3593.95466 | I9: 3593.95466 | J9: 17969.7733 | K9: C-2
B10: Substation Capacity | C10: Augex | D10: AP.1.1.01 | E10: 3133.753149 | F10: 2138.84131 | G10: 2910.2267 | H10: 2108.161209 | I10: 701.2594458 | J10: 10992.24181 | K10: C-2
B11: Subtransmission Network | C11: Augex | D11: AP.1.1.01 | E11: 0 | F11: 499.6473552 | G11: 999.2947103 | H11: 4028.446683 | I11: 5768.68178 | J11: 11296.07053 | K11: C-2
B12: Distribution Line - SWER Replacements | C12: Augex | D12: AP.1.1.01 | E12: 613.6020151 | F12: 613.6020151 | G12: 613.6020151 | H12: 613.6020151 | I12: 613.6020151 | J12: 3068.010076 | K12: C-2
B13: Voltage Regulation | C13: Augex | D13: AP.1.1.01 | E13: 1385.324502 | F13: 1385.324502 | G13: 1385.324502 | H13: 1385.324502 | I13: 1385.324502 | J13: 6926.62251 | K13: C-2
B14: Land | C14: Augex | D14: AP.1.1.01 | E14: 0 | F14: 0 | G14: 0 | H14: 1358.690176 | I14: 1358.690176 | J14: 2717.380353 | K14: C-2
B15: LV Two Way Network (QoS) | C15: Augex | D15: AP.1.1.01 | E15: 607.6972849 | F15: 1651.909521 | G15: 1960.037722 | H15: 616.2564015 | I15: 0 | J15: 4835.900929 | K15: C-2
B17: Capacity Augmentation (Total) | D17: Total | E17: =SUM(E6:E16) -> 23697.18476 | F17: =SUM(F6:F16) -> 23225.17379 | G17: =SUM(G6:G16) -> 21044.0813 | H17: =SUM(H6:H16) -> 22212.27311 | I17: =SUM(I6:I16) -> 22345.97318 | J17: =SUM(E17:I17) -> 112524.6861
A18: Customer Connect (gross)
B19: Customer Connect < $30k | C19: Connections | D19: AP.7.1.01 | E19: 20425.63627 | F19: 22301.9918 | G19: 22829.78877 | H19: 21835.86829 | I19: 19867.80907 | J19: =E19+F19+G19+H19+I19 -> 107261.0942 | K19: C-3
B20: Customer Connect > $30k<$100k | C20: Connections | D20: AP.7.1.01 | E20: 27207.65959 | F20: 29050.61608 | G20: 29779.02233 | H20: 29193.43338 | I20: 28325.71488 | J20: =E20+F20+G20+H20+I20 -> 143556.4463 | K20: C-3
B21: Customer Connect > $100k | C21: Connections | D21: AP.7.1.01 | E21: 34200.28739 | F21: 32241.18697 | G21: 38066.21592 | H21: 33724.17487 | I21: 33008.55929 | J21: =E21+F21+G21+H21+I21 -> 171240.4244 | K21: C-3
B22: Gifting | C22: Connections | D22: NA | E22: 25993 | F22: 25993 | G22: 25993 | H22: 25993 | I22: 25993 | J22: =E22+F22+G22+H22+I22 -> 129965 | K22: C-3 | L22: Based on average 2015-2018 - note this nets out
B23: URDs | C23: Connections | D23: AP.7.1.01 | E23: 5586.385417 | F23: 6118.422123 | G23: 6473.11326 | H23: 6118.422123 | I23: 5521.172209 | J23: =E23+F23+G23+H23+I23 -> 29817.51513 | K23: C-3
B25: Gross Customer Connect (total, incl gifting) | D25: Total | E25: =SUM(E19:E24) -> 113412.9687 | F25: 115705.217 | G25: 123141.1403 | H25: 116864.8987 | I25: 112716.2554 | J25: 581840.48
A26: Reliability & Resilience
B27: Existing Network Protection Mgt - Planned | C27: Augex | D27: Historical | E27: 1344.080605 | F27: 1344.080605 | G27: 1344.080605 | H27: 1344.080605 | I27: 1344.080605 | J27: =SUM(E27:I27) -> 6720.403023 | K27: C-5
B28: Maintain Underlying Reliability Performance | C28: Augex | D28: AP.2.1.01 | E28: 4536.27204 | F28: 4536.27204 | G28: 4536.27204 | H28: 4536.27204 | I28: 4536.27204 | J28: =SUM(E28:I28) -> 22681.3602 | K28: C-5
B29: Air Conditioning Relay Rooms | C29: Augex | D29: AP.3.2.14 | E29: 168.0100756 | F29: 168.0100756 | G29: 168.0100756 | H29: 168.0100756 | I29: 168.0100756 | J29: =SUM(E29:I29) -> 840.0503778 | K29: C-5
B30: Network Hardening | C30: Augex | D30: AP.2.1.05 | E30: 2823.039463 | F30: 2823.039463 | G30: 2823.039463 | H30: 2823.039463 | I30: 2823.039463 | J30: =SUM(E30:I30) -> 14115.19731 | K30: C-5
B31: Low Reliability Feeders | C31: Augex | D31: AP.2.1.06 | E31: 2734.819479 | F31: 2734.819479 | G31: 2734.819479 | H31: 2734.819479 | I31: 2734.819479 | J31: =SUM(E31:I31) -> 13674.0974 | K31: C-5
B33: Reliability (total) | D33: total | E33: =SUM(E27:E32) -> 11606.22166 | F33: 11606.22166 | G33: 11606.22166 | H33: 11606.22166 | I33: 11606.22166 | J33: 58031.10831
A34: Asset Replace/Refurbish
B35: Line Repex/Refurb - Planned
B36: Cable replacement planned | C36: Repex | D36: AP.3.1.09 | E36: 961.6194899 | F36: 961.6194899 | G36: 961.6194899 | H36: 961.6194899 | I36: 961.6194899 | J36: =SUM(E36:I36) -> 4808.09745 | K36: C-1
B37: Conductor Replacement - Planned | C37: Repex | D37: AP.3.1.10 | E37: 2236.667263 | F37: 2236.667263 | G37: 2236.667263 | H37: 2236.667263 | I37: 2236.667263 | J37: 11183.33631 | K37: C-1
B38: Line Ancillary Equipment - Planned (incl LFIs, fences, gates, signs etc) | C38: Repex | D38: AP.3.1.20 | E38: 375.411379 | F38: 500.5485053 | G38: 500.5485053 | H38: 500.5485053 | I38: 500.5485053 | J38: 2377.6054 | K38: C-1
B39: Line Regulation - Planned (incl regulators, capacitors) | C39: Repex | D39: AP.3.1.19 | E39: 760.2528967 | F39: 1013.670529 | G39: 1013.670529 | H39: 1022.436272 | I39: 1031.202015 | J39: 4841.232242 | K39: C-1
B40: Overhead Line Components - Planned (incl insulators, crossarms, taps, pole earths) | C40: Repex | D40: AP.3.1.06 | E40: 13636.18887 | F40: 13636.18887 | G40: 13636.18887 | H40: 13636.18887 | I40: 13636.18887 | J40: 68180.94433 | K40: C-1
B41: Pole Replacement Maint. Tasks - Planned | C41: Repex | D41: AP.3.1.05 | E41: 21679.48402 | F41: 21791.63806 | G41: 21791.63806 | H41: 21791.63806 | I41: 21791.63806 | J41: 108846.0363 | K41: C-1
B42: Recloser Refurbishment - Planned | C42: Repex | D42: AP.3.1.13 | E42: 473.9597721 | F42: 473.9597721 | G42: 473.9597721 | H42: 473.9597721 | I42: 473.9597721 | J42: 2369.798861 | K42: C-1
B43: Recloser Replacement - Planned | C43: Repex | D43: AP.3.1.13 | E43: 1350.204655 | F43: 1350.204655 | G43: 1350.204655 | H43: 1350.204655 | I43: 1350.204655 | J43: 6751.023273 | K43: C-1
B44: Services Maintenance Tasks - Planned | C44: Repex | D44: AP.3.1.08 | E44: 3719.853642 | F44: 3719.853642 | G44: 3719.853642 | H44: 3719.853642 | I44: 3719.853642 | J44: 18599.26821 | K44: C-1
B45: Switchgear - Overhead - Planned | C45: Repex | D45: AP.3.1.07 | E45: 3055.147025 | F45: 3055.147025 | G45: 3055.147025 | H45: 3055.147025 | I45: 3055.147025 | J45: 15275.73512 | K45: C-1
B46: Transformers - Planned | C46: Repex | D46: AP.3.1.01 | E46: 2804.329889 | F46: 2804.329889 | G46: 2804.329889 | H46: 2804.329889 | I46: 2804.329889 | J46: 14021.64945 | K46: C-1
B47: Poles - Planned plating | C47: Repex | D47: AP.3.1.05 | E47: 6967.923126 | F47: 6962.792107 | G47: 6962.792107 | H47: 6962.792107 | I47: 6962.792107 | J47: 34819.09155 | K47: C-1
B48: CBD ducts & manholes | C48: Repex | D48: AP.2.1.07 | E48: 2534.166521 | F48: 2534.166521 | G48: 2534.166521 | H48: 2534.166521 | I48: 2534.166521 | J48: 12670.8326 | K48: C-1
B49: Cables - CBD 11kV PILC cable replacements | C49: Repex | D49: AP.2.1.07 | E49: 1329.176161 | F49: 1329.176161 | G49: 1329.176161 | H49: 1329.176161 | I49: 1329.176161 | J49: 6645.880806 | K49: C-1
B50: Services - Aluminium neutral screen service line replacements | C50: Repex | D50: AP.3.1.08 | E50: 553.2536623 | F50: 737.6715497 | G50: 737.6715497 | H50: 737.6715497 | I50: 737.6715497 | J50: 3503.939861 | K50: C-1
K51: C-1
B52: Line Repex/Refurb - Unplanned | K52: C-1
B53: (Distribution) Cable Replacement - Unplanned | C53: Repex | D53: AP.3.1.09 | E53: 452.5268188 | F53: 452.5268188 | G53: 452.5268188 | H53: 452.5268188 | I53: 452.5268188 | J53: =SUM(E53:I53) -> 2262.634094 | K53: C-1
B54: Line Regulation - Unplanned (incl regulators, capacitors) | C54: Repex | D54: AP.3.1.19 | E54: 118.3375315 | F54: 118.3375315 | G54: 138.0604534 | H54: 157.7833753 | I54: 157.7833753 | J54: 690.302267 | K54: C-1
B55: Overhead Line Components - Unplanned (incl insulators, X-arms, pole earths) | C55: Repex | D55: AP.3.1.06 | E55: 6716.331829 | F55: 6716.331829 | G55: 6716.331829 | H55: 6716.331829 | I55: 6716.331829 | J55: 33581.65915 | K55: C-1
B56: Poles - Unplanned | C56: Repex | D56: AP.3.1.05 | E56: 2067.865134 | F56: 2067.865134 | G56: 2067.865134 | H56: 2067.865134 | I56: 2067.865134 | J56: 10339.32567 | K56: C-1
B57: Recloser Replacement - Unplanned | C57: Repex | D57: AP.3.1.13 | E57: 714.563905 | F57: 714.563905 | G57: 714.563905 | H57: 714.563905 | I57: 714.563905 | J57: 3572.819525 | K57: C-1
B58: Services Replacement - Unplanned | C58: Repex | D58: AP.3.1.08 | E58: 4734.359181 | F58: 4734.359181 | G58: 4734.359181 | H58: 4734.359181 | I58: 4734.359181 | J58: 23671.7959 | K58: C-1
B59: Switchgear - Ground Level - Unplanned | C59: Repex | D59: AP.3.1.03 | E59: 427.339558 | F59: 427.339558 | G59: 427.339558 | H59: 427.339558 | I59: 427.339558 | J59: 2136.69779 | K59: C-1
B60: Switchgear - Overhead - Unplanned | C60: Repex | D60: AP.3.1.07 | E60: 3491.596599 | F60: 3491.596599 | G60: 3491.596599 | H60: 3491.596599 | I60: 3491.596599 | J60: 17457.983 | K60: C-1
B61: Transformers - Unplanned | C61: Repex | D61: AP.3.1.01 | E61: 4575.485609 | F61: 4575.485609 | G61: 4575.485609 | H61: 4575.485609 | I61: 4575.485609 | J61: 22877.42805 | K61: C-1
B63: Repex/Refurb - Lines (subtotal) | D63: subtotal | E63: =SUM(E36:E62) -> 85736.04454 | F63: 86406.0402 | G63: 86425.76312 | H63: 86454.25179 | I63: 86463.01753 | J63: 431485.1172
B64: Substations Repex/Refurb | K64: C-1
B65: Auxillary DC Supplies excl AC - Battery Banks & Chargers | C65: Repex | D65: AP.3.2.08 | E65: 569.9893115 | F65: 569.9893115 | G65: 569.9893115 | H65: 569.9893115 | I65: 321.1648489 | J65: =SUM(E65:I65) -> 2601.122095 | K65: C-1
B66: Circuit Breakers Planned Replacement | C66: Repex | D66: AP.3.2.05 | E66: 9760.445075 | F66: 9760.445075 | G66: 10697.3413 | H66: 10626.76531 | I66: 9689.869089 | J66: 50534.86585 | K66: C-1
B67: Circuit Breakers Planned Refurb | C67: Repex | D67: AP.3.2.02 | E67: 654.8328754 | F67: 244.6099534 | G67: 244.6099534 | H67: 244.6099534 | I67: 244.6099534 | J67: 1633.272689 | K67: C-1
B68: Mobile Substations | C68: Repex | D68: AP.3.2.13 | E68: 262.9722922 | F68: 262.9722922 | G68: 262.9722922 | H68: 262.9722922 | I68: 262.9722922 | J68: 1314.861461 | K68: C-1
B69: Substation Insurance Spares & Asset Mgt | C69: Repex | D69: Historical | E69: 1402.518892 | F69: 1402.518892 | G69: 1402.518892 | H69: 1402.518892 | I69: 1402.518892 | J69: 7012.594458 | K69: C-1
B70: Substation Infrastructure - Civil (incl buildings, structures) | C70: Repex | D70: AP3.2.16 | E70: 1314.861461 | F70: 1314.861461 | G70: 1314.861461 | H70: 1314.861461 | I70: 1314.861461 | J70: 6574.307305 | K70: C-1
B71: Substation Transformer Repl. | C71: Repex | D71: AP.3.2.01 | E71: 4748.197041 | F71: 4688.648553 | G71: 5359.120425 | H71: 4510.003087 | I71: 3720.434237 | J71: 23026.40334 | K71: C-1
B72: TF Refurb (18665 & 18977) | C72: Repex | D72: AP.3.2.01 | E72: 1380.604534 | F72: 1095.717884 | G72: 832.7455919 | H72: 832.7455919 | I72: 832.7455919 | J72: 4974.559194 | K72: C-1
B73: Surge Arrester | C73: Repex | D73: AP.3.2.03 | E73: 274.2046472 | F73: 300.9563201 | G73: 300.9563201 | H73: 294.2684019 | I73: 187.2617103 | J73: 1357.6474 | K73: C-1
B74: AC Panels + auxilary supply | C74: Repex | D74: AP 3.2.22 | E74: 631.1335013 | F74: 631.1335013 | G74: 631.1335013 | H74: 631.1335013 | I74: 523.7531486 | J74: 3048.287154 | K74: C-1
B75: Protection Asset Replacement | C75: Repex | D75: AP.3.2.14 | E75: 2470.15953 | F75: 2514.269521 | G75: 2337.829555 | H75: 2161.389589 | I75: 2205.49958 | J75: 11689.14777 | K75: C-1
B76: Unplanned CB Replacement | C76: Repex | D76: Historical | E76: 411.9873216 | F76: 411.9873216 | G76: 411.9873216 | H76: 411.9873216 | I76: 411.9873216 | J76: 2059.936608 | K76: C-1
B77: Unplanned Substation Asset Repl - PROTECTION | C77: Repex | D77: Historical | E77: 705.7598657 | F77: 705.7598657 | G77: 705.7598657 | H77: 705.7598657 | I77: 705.7598657 | J77: 3528.799328 | K77: C-1
B78: Other (sub cables) | C78: Repex | D78: AP 3.02.09 | E78: 626.2041296 | F78: 222.5416611 | G78: 231.7456913 | H78: 231.7456913 | I78: 194.9295704 | J78: 1507.166744 | K78: C-1
B79: Northfield 66kV GIS Switchboard replacement (1/3rd) | C79: Repex | D79: AP 3.02.06 | E79: 1102.74979 | F79: 3705.239295 | G79: 4410.99916 | H79: 1764.399664 | I79: 0 | J79: 10983.38791 | K79: C-1
B81: Repex/Refurb - Substations (subtotal) | D81: subtotal | E81: =SUM(E65:E80) -> 26316.62027 | F81: 27831.65091 | G81: 29714.57064 | H81: 25965.14993 | I81: 22018.36756 | J81: 131846.3593
B82: Telecom'n Repex/Refurb | K82: C-1
B83: 48V DC Systems | C83: Repex | D83: AP.3.3.02 | E83: 233.4560614 | F83: 217.1036994 | G83: 217.1036994 | H83: 217.1036994 | I83: 229.6289129 | J83: =SUM(E83:I83) -> 1114.396073 | K83: C-1
B84: UPAX/Business Telephone Network | C84: Non-network | D84: AP.3.3.07 | E84: 727.8148615 | F84: 132.3299748 | G84: 242.6049538 | H84: 529.3198992 | I84: 419.0449202 | J84: 2051.11461 | K84: C-1
B85: Data Network | C85: Repex | D85: AP.3.3.12 | E85: 1166.584462 | F85: 1166.584462 | G85: 816.9222536 | H85: 987.0564027 | I85: 987.0564027 | J85: 5124.203983 | K85: C-1
B86: Microwave Radio | C86: Repex | D86: AP.3.3.01 | E86: 100.8975526 | F86: 212.2327831 | G86: 222.670461 | H86: 222.670461 | I86: 222.670461 | J86: 981.1417186 | K86: C-1
B87: Minor Works - Unplanned | C87: Repex | D87: Historic | E87: 626.2606715 | F87: 626.2606715 | G87: 661.052931 | H87: 695.8451905 | I87: 695.8451905 | J87: 3305.264655 | K87: C-1
B88: Misc Radio Systems | C88: Repex | D88: AP.3.3.05 | E88: 505.8794535 | F88: 135.6898121 | G88: 135.6898121 | H88: 135.6898121 | I88: 135.6898121 | J88: 1048.638702 | K88: C-1
B89: Network Tel Planning Labour Capitalisation | C89: Repex | D89: Historic | E89: 487.0916334 | F89: 487.0916334 | G89: 487.0916334 | H89: 487.0916334 | I89: 487.0916334 | J89: 2435.458167 | K89: C-1
B90: Optical Fibre Network | C90: Repex | D90: AP.3.3.04 | E90: 347.9225953 | F90: 347.9225953 | G90: 347.9225953 | H90: 347.9225953 | I90: 347.9225953 | J90: 1739.612976 | K90: C-1
B91: Pilot Cable Network (incl CBD) stage 2 | C91: Repex | D91: AP.3.3.03 | E91: 34.79225953 | F91: 34.79225953 | G91: 34.79225953 | H91: 34.79225953 | I91: 34.79225953 | J91: 173.9612976 | K91: C-1
B92: SDH Network | C92: Repex | D92: AP.3.3.10 | E92: 46.62162776 | F92: 266.8566306 | G92: 266.8566306 | H92: 46.62162776 | I92: 46.62162776 | J92: 673.5781444 | K92: C-1
B93: TNOC Management Systems | C93: Non-network | D93: AP.3.3.08 | E93: 308.7699412 | F93: 749.8698573 | G93: 816.0348447 | H93: 374.9349286 | I93: 374.9349286 | J93: 2624.5445 | K93: C-1
B94: OT Cyber Security | C94: Non-network | D94: New | E94: 529.3198992 | F94: 1411.519731 | G94: 1455.629723 | H94: 661.6498741 | I94: 617.5398825 | J94: 4675.65911 | K94: C-1
B95: Other | C95: Repex | E95: 352.8799328 | F95: 352.8799328 | G95: 352.8799328 | H95: 352.8799328 | I95: 352.8799328 | J95: 1764.399664 | K95: C-1
D96: Non-network | E96: =-(E94+E93+E84) -> -1565.904702 | F96: =-(F94+F93+F84) -> -2293.719563 | G96: =-(G94+G93+G84) -> -2514.269521 | H96: =-(H94+H93+H84) -> -1565.904702 | I96: =-(I94+I93+I84) -> -1411.519731 | J96: -9351.31822 | K96: C-1
B97: Repex / Refurb - Telecom'n (subtotal) | D97: subtotal | E97: =SUM(E83:E96) -> 3902.38625 | F97: 3847.41448 | G97: 3542.982209 | H97: 3527.673614 | I97: 3540.198828 | J97: 18360.65538
B98: Replacement & Refurbishment (Total) | D98: Total | E98: =SUM(E63,E81,E97,) -> 115955.0511 | F98: 118085.1056 | G98: 119683.316 | H98: 115947.0753 | I98: 112021.5839 | J98: 581692.1319
A99: Environment
B100: Environmental Management - Lines (incl oil containment, EMF) | C100: Augex | D100: AP.4.1.03 | E100: 175.3148615 | F100: 175.3148615 | G100: 175.3148615 | H100: 175.3148615 | I100: 175.3148615 | J100: =SUM(E100:I100) -> 876.5743073 | K100: C-6
B101: Oil Containment - Substation | C101: Augex | D101: AP.4.1.01 | E101: 1490.176322 | F101: 1490.176322 | G101: 1490.176322 | H101: 1490.176322 | I101: 1490.176322 | J101: =SUM(E101:I101) -> 7450.881612 | K101: C-6
B102: Environmental Management - Subs (eg noise abatement) | C102: Augex | D102: AP.4.1.05 | E102: 149.8942065 | F102: 149.8942065 | G102: 149.8942065 | H102: 149.8942065 | I102: 149.8942065 | J102: =SUM(E102:I102) -> 749.4710327 | K102: C-6
B104: Environment (Total) | D104: Total | E104: =SUM(E100:E103) -> 1815.38539 | F104: 1815.38539 | G104: 1815.38539 | H104: 1815.38539 | I104: 1815.38539 | J104: 9076.926952
A105: Safety
B106: Elizabeth Transformer Stations | C106: Repex | D106: AP.5.1.02 | E106: 432.8085642 | F106: 438.2871537 | G106: 438.2871537 | H106: 438.2871537 | I106: 438.2871537 | J106: =SUM(E106:I106) -> 2185.957179 | K106: C-8
B107: Line Clearance Rectification - Distribution | C107: Repex | D107: AP.5.1.06 | E107: 2886.334364 | F107: 2886.334364 | G107: 2886.334364 | H107: 2886.334364 | I107: 2886.334364 | J107: 14431.67182 | K107: C-8
B108: Substation Asbestos Removal | C108: Repex | E108: 144.99873 | F108: 214.1178554 | G108: 214.1178554 | H108: 214.1178554 | I108: 214.1178554 | J108: =SUM(E108:I108) -> 1001.470152 | K108: C-8
B109: Substation Lighting | C109: Augex | D109: AP.5.1.05 | E109: 105.1889169 | F109: 105.1889169 | G109: 105.1889169 | H109: 105.1889169 | I109: 105.1889169 | J109: 525.9445844 | K109: C-7
B110: Substation Security & Fencing | C110: Augex | D110: AP.5.1.03 | E110: 2103.778338 | F110: 2103.778338 | G110: 2103.778338 | H110: 2103.778338 | I110: 2103.778338 | J110: 10518.89169 | K110: C-7
B111: CBD Maintenance Projects (CBD Safety) | C111: Repex | D111: AP.2.1.07 | E111: 372.4647691 | F111: 372.4647691 | G111: 372.4647691 | H111: 372.4647691 | I111: 372.4647691 | J111: 1862.323846 | K111: C-8
B112: Emergency Switching Communication (Mobile Radio) | C112: Repex | D112: AP.3.3.06 | E112: 608.8645417 | F112: 608.8645417 | G112: 260.9419464 | H112: 695.8451905 | I112: 626.2606715 | J112: 2800.776892 | K112: C-8
B113: Substation Infrastructure - Earth systems (Earth Grid Upgrades) | C113: Augex | D113: AP.3.2.10 | E113: 1078.186398 | F113: 1078.186398 | G113: 1078.186398 | H113: 1078.186398 | I113: 1078.186398 | J113: 5390.93199 | K113: C-7
B114: Distribution Earthing | C114: Repex | D114: AP.3.1.18 | E114: 79.06488663 | F114: 105.4198488 | G114: 105.4198488 | H114: 105.4198488 | I114: 105.4198488 | J114: 500.744282 | K114: C-8
B115: Telco Structures | C115: Repex | D115: AP.3.3.13 | E115: 291.1259446 | F115: 291.1259446 | G115: 291.1259446 | H115: 291.1259446 | I115: 807.2128463 | J115: 1971.716625 | K115: C-8
B116: Switchgear - Ground Level - Planned | C116: Repex | D116: AP.3.1.03 | E116: 3133.823425 | F116: 3133.823425 | G116: 3133.823425 | H116: 3133.823425 | I116: 3133.823425 | J116: 15669.11713 | K116: C-8
B117: Instrument Transformers (CTs & VTs) | C117: Repex | D117: AP.3.2.02 | E117: 512.3576826 | F117: 604.3979849 | G117: 568.8967254 | H117: 568.8967254 | I117: 568.8967254 | J117: 2823.445844 | K117: C-8
B118: Rural Protection | C118: Augex | D118: AP.3.2.14 | E118: 942.5423006 | F118: 1250.959362 | G118: 1250.959362 | H118: 1244.342863 | I118: 942.5423006 | J118: 5631.346188 | K118: C-7
B119: Network Protection Substation Audits | C119: Augex | D119: Historic | E119: 262.9722922 | F119: 262.9722922 | G119: 262.9722922 | H119: 262.9722922 | I119: 262.9722922 | J119: 1314.861461 | K119: C-7
B120: CBD 33kV Substation Migration to 11kV | C120: Augex | D120: AP.2.1.07 | E120: 1409.866667 | F120: 1409.866667 | G120: 1409.866667 | H120: 1409.866667 | I120: 1409.866667 | J120: 7049.333333 | K120: C-7
B121: Planned & Unplanned Disconnector Repl | C121: Repex | D121: AP.3.2.17 | E121: 403.2241814 | F121: 403.2241814 | G121: 391.3904282 | H121: 379.5566751 | I121: 379.5566751 | J121: 1956.952141 | K121: C-8
B122: Substations rebuilds at BHP Ardrossan, Quorn & Burra substations. Kleins Point & Walkers Flat substation rebuilds + Wilmington (19672) | C122: Repex | D122: AP.3.2.12 | E122: 1758.8201 | F122: 1758.8201 | G122: 1758.8201 | H122: 1758.8201 | I122: 1758.8201 | J122: 8794.100499 | K122: C-8
B123: CBD Pilot Cable replacement program | C123: Repex | E123: 524.0601929 | F123: 0 | G123: 0 | H123: 0 | I123: 0 | J123: 524.0601929 | K123: C-8
B125: Bushfire
B126: Bushfire Risk Reduction | C126: Augex | D126: B Case | E126: 2134.458438 | F126: 2101.586902 | G126: 2121.309824 | H126: 2095.012594 | I126: 2081.86398 | J126: =SUM(E126:I126) -> 10534.23174 | K126: C-18
B128: Repex Sub-total | C128: Repex | E128: =SUM(E106:E108,E111:E112,E114:E117,E121:E123) -> 11147.94738 | F128: =SUM(F106:F108,F111:F112,F114:F117,F121:F123) -> 10816.88017 | G128: 10421.62256 | H128: 10844.69205 | I128: 11291.19443 | J128: =SUM(E128:I128) -> 54522.3366
B129: Augex Sub-total | C129: Augex | E129: =SUM(E109:E110,E113,E118:E120,) -> 5902.534912 | F129: =SUM(F109:F110,F113,F118:F120,) -> 6210.951973 | G129: =SUM(G109:G110,G113,G118:G120,) -> 6210.951973 | H129: =SUM(H109:H110,H113,H118:H120,) -> 6204.335474 | I129: =SUM(I109:I110,I113,I118:I120,) -> 5902.534912 | J129: =SUM(E129:I129) -> 30431.30924
B131: Safety (Total) | D131: Total | E131: =E126+E128+E129+E130 -> 19184.94073 | F131: 19129.41904 | G131: 18753.88436 | H131: 19144.04012 | I131: 19275.59333 | J131: 95487.87758
A132: Network ("Strategic" category)
B133: Substations CM equip | C133: Augex | D133: AMP 3.0.01 | E133: 262.9722922 | F133: 262.9722922 | G133: 262.9722922 | H133: 262.9722922 | I133: 262.9722922 | J133: =SUM(E133:I133) -> 1314.861461 | K133: C-15
B135: Network - Strategic (Total) | D135: Total | E135: =SUM(E133:E134) -> 262.9722922 | F135: 262.9722922 | G135: 262.9722922 | H135: 262.9722922 | I135: 262.9722922 | J135: 1314.861461
A136: Network Control
B137: SCADA to remaining substations | C137: Augex | D137: AP.2.1.02 | E137: 0 | F137: 0 | G137: 0 | H137: 0 | I137: 0 | J137: =SUM(E137:I137) -> 0 | K137: C-15
B138: Network Data Capture | C138: Augex | D138: Historic | E138: 525.9445844 | F138: 525.9445844 | G138: 525.9445844 | H138: 525.9445844 | I138: 525.9445844 | J138: 2629.722922 | K138: C-15
B139: SCADA Improvement Project (inc TDU & RTU) | C139: Augex | D139: AP.2.1.02 | E139: 760.8664987 | F139: 760.8664987 | G139: 760.8664987 | H139: 760.8664987 | I139: 760.8664987 | J139: 3804.332494 | K139: C-15
B140: SCADA Data Concentrator | C140: Augex | D140: AP.2.1.02 | E140: 0 | F140: 234.4836272 | G140: 234.4836272 | H140: 0 | I140: 0 | J140: 468.9672544 | K140: C-15
B141: Low Voltage Management | C141: Augex | D141: B Case | E141: 5585.207137 | F141: 8352.22691 | G141: 6159.519228 | H141: 5623.58283 | I141: 3654.512804 | J141: 29375.04891 | K141: C-15
B142: OMS Replacement Project | C142: Non-network | D142: AP.2.1.02 | E142: 0 | F142: 0 | G142: 0 | H142: 0 | I142: 0 | J142: 0
B143: ADMS/OMS Hardware Upgrade | C143: Non-network | D143: AP.2.1.02 | E143: 1635.598489 | F143: 10.58639798 | G143: 10.58639798 | H143: 1635.598489 | I143: 1635.598489 | J143: 4927.968262
B144: ADMS/OMS Software Upgrade | C144: Non-network | D144: AP.2.1.02 | E144: 1470.18602 | F144: 0 | G144: 0 | H144: 1630.30529 | I144: 3260.610579 | J144: 6361.101889
D145: Non-network | E145: =-(E144+E143+E142) -> -3105.784509 | F145: -10.58639798 | G145: -10.58639798 | H145: -3265.903778 | I145: -4896.209068 | J145: -11289.07015
B147: Network Control (Total) | D147: Total | E147: =SUM(E137:E146) -> 6872.01822 | F147: 9873.52162 | G147: 7680.813938 | H147: 6910.393913 | I147: 4941.323887 | J147: 36278.07158
A148: PLEC
B149: PLEC - Non-Specific (gross) | C149: Augex | E149: 10080.60453 | F149: 10080.60453 | G149: 10080.60453 | H149: 10080.60453 | I149: 10080.60453 | J149: =SUM(E149:I149) -> 50403.02267 | K149: C-10
B151: PLEC (Total) | D151: Total | E151: =SUM(E149:E150) -> 10080.60453 | F151: 10080.60453 | G151: 10080.60453 | H151: 10080.60453 | I151: 10080.60453 | J151: 50403.02267
A152: Customer Contributions
B153: Customer Connect <$30k | C153: Connections | D153: AP.7.1.01 | E153: 5035.744982 | F153: 5498.342465 | G153: 5628.465753 | H153: 5383.424178 | I153: 4898.218027 | J153: =SUM(E153:I153) -> 26444.19541 | K153: C-4
B154: Customer Connect >$30k<$100k | C154: Connections | D154: AP.7.1.01 | E154: 6984.837227 | F154: 7457.966898 | G154: 7644.965678 | H154: 7494.631412 | I154: 7271.867948 | J154: 36854.26916 | K154: C-4
B155: Customer Projects >$100k | C155: Connections | D155: AP.7.1.01 | E155: 21501.06484 | F155: 20269.41598 | G155: 23931.49997 | H155: 21201.74203 | I155: 20751.84824 | J155: 107655.5711 | K155: C-4
B156: URDs | C156: Connections | D156: AP.7.1.01 | E156: -2571.363707 | F156: -1726.820897 | G156: -1163.792357 | H156: -1726.820897 | I156: -2674.881649 | J156: -9863.679505 | K156: C-4
B157: PLEC | C157: Augex | D157: AP.7.1.01 | E157: 2347.547559 | F157: 2347.547559 | G157: 2347.547559 | H157: 2347.547559 | I157: 2347.547559 | J157: 11737.73779 | K157: C-4
B158: Gifting | C158: Connections | D158: NA | E158: 25993 | F158: 25993 | G158: 25993 | H158: 25993 | I158: 25993 | J158: =SUM(E158:I158) -> 129965 | K158: C-4
B159: Recoverable Works Contribution | C159: Repex | D159: NA | E159: 3408.923293 | F159: 3408.923293 | G159: 3408.923293 | H159: 3408.923293 | I159: 3408.923293 | J159: 17044.61647 | K159: C-4
B160: Embedded Generation Contribution | C160: Connections | D160: NA | E160: 3643.485544 | F160: 3643.485544 | G160: 3643.485544 | H160: 3643.485544 | I160: 3643.485544 | J160: 18217.42772 | K160: C-4
B161: Customer Contributions (Total) | D161: Total | E161: =SUM(E153:E160) -> 66343.23974 | F161: 66891.86084 | G161: 71434.09544 | H161: 67745.93312 | I161: 65640.00896 | J161: 338055.1381
A162: Network
B163: Total (gross) - incl Gifting | E163: =SUM(E151,E147,E135,E131,E104,E98,E33,E25,E17) -> 302887.3473 | F163: 309783.6209 | G163: 314068.4197 | H163: 304843.865 | I163: 295065.9136 | J163: 1526649.167
B164: Total (net) | E164: =E163-E161 -> 236544.1076 | F164: =F163-F161 -> 242891.7601 | G164: =G163-G161 -> 242634.3243 | H164: =H163-H161 -> 237097.9319 | I164: =I163-I161 -> 229425.9047 | J164: =SUM(E164:I164) -> 1188594.028

Sheet Proposed NW Proj Direct Costs
A1: EXCLUDES OVERHEADS | C1: Direct Costs | D1: $2017-18 ($'000)
L2: Network Business Overheads Rate
C3: AER RIN ref | D3: Doc/Plan ref | E3: 2020/21 | F3: 2021/22 | G3: 2022/23 | H3: 2023/24 | I3: 2024/25 | J3: Total | L3: 0.05072810203
A4: Category / Description | C4: (Repex,Augex etc) | D4: (eg AP) | E4: Jul-Jun | F4: =E4 -> Jul-Jun | G4: Jul-Jun | H4: Jul-Jun | I4: Jul-Jun | K4: SEM Reference | M4: Based on average 2015-2018 - note this nets out
A5: Capacity Upgrade
B6: Connection Point Capacity (ETC/NER Code) | C6: Augex | D6: AP.1.1.01 | E6: ='Proposed NW Projects (Reg Yr)'!E6/(1+$L$3) -> 4125.386902 | F6: ='Proposed NW Projects (Reg Yr)'!F6/(1+$L$3) -> 5009.696329 | G6: ='Proposed NW Projects (Reg Yr)'!G6/(1+$L$3) -> 1472.458621 | H6: ='Proposed NW Projects (Reg Yr)'!H6/(1+$L$3) -> 0 | I6: ='Proposed NW Projects (Reg Yr)'!I6/(1+$L$3) -> 0 | J6: =SUM(E6:I6) -> 10607.54185 | K6: C-2 | L6: =IF('Proposed NW Projects (Reg Yr)'!J6="","",('Proposed NW Projects (Reg Yr)'!J6-'Proposed NW Proj Direct Costs'!J6)/J6) -> 0.05072810203
B7: LV & Distribution Transformers (QoS BAU) | C7: Augex | D7: AP.1.1.01 | E7: ='Proposed NW Projects (Reg Yr)'!E7/(1+$L$3) -> 7249.843073 | F7: ='Proposed NW Projects (Reg Yr)'!F7/(1+$L$3) -> 7412.760895 | G7: ='Proposed NW Projects (Reg Yr)'!G7/(1+$L$3) -> 7575.678717 | H7: ='Proposed NW Projects (Reg Yr)'!H7/(1+$L$3) -> 7575.678717 | I7: ='Proposed NW Projects (Reg Yr)'!I7/(1+$L$3) -> 7738.596539 | J7: 37552.55794 | K7: C-2 | L7: =IF('Proposed NW Projects (Reg Yr)'!J7="","",('Proposed NW Projects (Reg Yr)'!J7-'Proposed NW Proj Direct Costs'!J7)/J7) -> 0.05072810203
B8: Distribution Feeders (11 & 7.6kV) | C8: Augex | D8: AP.1.1.01 | E8: ='Proposed NW Projects (Reg Yr)'!E8/(1+$L$3) -> 2294.198985 | F8: ='Proposed NW Projects (Reg Yr)'!F8/(1+$L$3) -> 275.3038782 | G8: ='Proposed NW Projects (Reg Yr)'!G8/(1+$L$3) -> 70.91160499 | H8: ='Proposed NW Projects (Reg Yr)'!H8/(1+$L$3) -> 521.4088602 | I8: ='Proposed NW Projects (Reg Yr)'!I8/(1+$L$3) -> 755.0000296 | J8: 3916.823358 | K8: C-2 | L8: =IF('Proposed NW Projects (Reg Yr)'!J8="","",('Proposed NW Projects (Reg Yr)'!J8-'Proposed NW Proj Direct Costs'!J8)/J8) -> 0.05072810203
B9: Strategic Network Capacity (Other) | C9: Augex | D9: AP.1.1.01 | E9: ='Proposed NW Projects (Reg Yr)'!E9/(1+$L$3) -> 3420.442123 | F9: ='Proposed NW Projects (Reg Yr)'!F9/(1+$L$3) -> 3420.442123 | G9: ='Proposed NW Projects (Reg Yr)'!G9/(1+$L$3) -> 3420.442123 | H9: ='Proposed NW Projects (Reg Yr)'!H9/(1+$L$3) -> 3420.442123 | I9: ='Proposed NW Projects (Reg Yr)'!I9/(1+$L$3) -> 3420.442123 | J9: 17102.21061 | K9: C-2 | L9: =IF('Proposed NW Projects (Reg Yr)'!J9="","",('Proposed NW Projects (Reg Yr)'!J9-'Proposed NW Proj Direct Costs'!J9)/J9) -> 0.05072810203
B10: Substation Capacity | C10: Augex | D10: AP.1.1.01 | E10: ='Proposed NW Projects (Reg Yr)'!E10/(1+$L$3) -> 2982.45868 | F10: ='Proposed NW Projects (Reg Yr)'!F10/(1+$L$3) -> 2035.58019 | G10: ='Proposed NW Projects (Reg Yr)'!G10/(1+$L$3) -> 2769.723865 | H10: ='Proposed NW Projects (Reg Yr)'!H10/(1+$L$3) -> 2006.381294 | I10: ='Proposed NW Projects (Reg Yr)'!I10/(1+$L$3) -> 667.4033411 | J10: 10461.54737 | K10: C-2 | L10: =IF('Proposed NW Projects (Reg Yr)'!J10="","",('Proposed NW Projects (Reg Yr)'!J10-'Proposed NW Proj Direct Costs'!J10)/J10) -> 0.05072810203
B11: Subtransmission Network | C11: Augex | D11: AP.1.1.01 | E11: ='Proposed NW Projects (Reg Yr)'!E11/(1+$L$3) -> 0 | F11: ='Proposed NW Projects (Reg Yr)'!F11/(1+$L$3) -> 475.5248805 | G11: ='Proposed NW Projects (Reg Yr)'!G11/(1+$L$3) -> 951.049761 | H11: ='Proposed NW Projects (Reg Yr)'!H11/(1+$L$3) -> 3833.957306 | I11: ='Proposed NW Projects (Reg Yr)'!I11/(1+$L$3) -> 5490.175592 | J11: 10750.70754 | K11: C-2 | L11: =IF('Proposed NW Projects (Reg Yr)'!J11="","",('Proposed NW Projects (Reg Yr)'!J11-'Proposed NW Proj Direct Costs'!J11)/J11) -> 0.05072810203
B12: Distribution Line - SWER Replacements | C12: Augex | D12: AP.1.1.01 | E12: ='Proposed NW Projects (Reg Yr)'!E12/(1+$L$3) -> 583.9779234 | F12: ='Proposed NW Projects (Reg Yr)'!F12/(1+$L$3) -> 583.9779234 | G12: ='Proposed NW Projects (Reg Yr)'!G12/(1+$L$3) -> 583.9779234 | H12: ='Proposed NW Projects (Reg Yr)'!H12/(1+$L$3) -> 583.9779234 | I12: ='Proposed NW Projects (Reg Yr)'!I12/(1+$L$3) -> 583.9779234 | J12: 2919.889617 | K12: C-2 | L12: =IF('Proposed NW Projects (Reg Yr)'!J12="","",('Proposed NW Projects (Reg Yr)'!J12-'Proposed NW Proj Direct Costs'!J12)/J12) -> 0.05072810203
B13: Voltage Regulation | C13: Augex | D13: AP.1.1.01 | E13: ='Proposed NW Projects (Reg Yr)'!E13/(1+$L$3) -> 1318.44242 | F13: ='Proposed NW Projects (Reg Yr)'!F13/(1+$L$3) -> 1318.44242 | G13: ='Proposed NW Projects (Reg Yr)'!G13/(1+$L$3) -> 1318.44242 | H13: ='Proposed NW Projects (Reg Yr)'!H13/(1+$L$3) -> 1318.44242 | I13: ='Proposed NW Projects (Reg Yr)'!I13/(1+$L$3) -> 1318.44242 | J13: 6592.212102 | K13: C-2 | L13: =IF('Proposed NW Projects (Reg Yr)'!J13="","",('Proposed NW Projects (Reg Yr)'!J13-'Proposed NW Proj Direct Costs'!J13)/J13) -> 0.05072810203
B14: Land | C14: Augex | D14: AP.1.1.01 | E14: ='Proposed NW Projects (Reg Yr)'!E14/(1+$L$3) -> 0 | F14: ='Proposed NW Projects (Reg Yr)'!F14/(1+$L$3) -> 0 | G14: ='Proposed NW Projects (Reg Yr)'!G14/(1+$L$3) -> 0 | H14: ='Proposed NW Projects (Reg Yr)'!H14/(1+$L$3) -> 1293.093973 | I14: ='Proposed NW Projects (Reg Yr)'!I14/(1+$L$3) -> 1293.093973 | J14: =SUM(E14:I14) -> 2586.187947 | K14: C-2 | L14: =IF('Proposed NW Projects (Reg Yr)'!J14="","",('Proposed NW Projects (Reg Yr)'!J14-'Proposed NW Proj Direct Costs'!J14)/J14) -> 0.05072810203
B15: LV Two Way Network (QoS) | C15: Augex | D15: AP.1.1.01 | E15: ='Proposed NW Projects (Reg Yr)'!E15/(1+$L$3) -> 578.3582676 | F15: ='Proposed NW Projects (Reg Yr)'!F15/(1+$L$3) -> 1572.156981 | G15: ='Proposed NW Projects (Reg Yr)'!G15/(1+$L$3) -> 1865.40906 | H15: ='Proposed NW Projects (Reg Yr)'!H15/(1+$L$3) -> 586.5041587 | I15: ='Proposed NW Projects (Reg Yr)'!I15/(1+$L$3) -> 0 | J15: 4602.428468 | K15: C-2 | L15: =IF('Proposed NW Projects (Reg Yr)'!J15="","",('Proposed NW Projects (Reg Yr)'!J15-'Proposed NW Proj Direct Costs'!J15)/J15) -> 0.05072810203
L16: =IF('Proposed NW Projects (Reg Yr)'!J16="","",('Proposed NW Projects (Reg Yr)'!J16-'Proposed NW Proj Direct Costs'!J16)/J16) -> 
B17: Capacity Augmentation (Total) | D17: Total | E17: =SUM(E6:E16) -> 22553.10837 | F17: =SUM(F6:F16) -> 22103.88562 | G17: =SUM(G6:G16) -> 20028.0941 | H17: =SUM(H6:H16) -> 21139.88678 | I17: =SUM(I6:I16) -> 21267.13194 | J17: =SUM(E17:I17) -> 107092.1068 | K17: =K15 -> C-2 | L17: =IF('Proposed NW Projects (Reg Yr)'!J17="","",('Proposed NW Projects (Reg Yr)'!J17-'Proposed NW Proj Direct Costs'!J17)/J17) -> 0.05072810203
A18: Customer Connect (gross) | L18: =IF('Proposed NW Projects (Reg Yr)'!J18="","",('Proposed NW Projects (Reg Yr)'!J18-'Proposed NW Proj Direct Costs'!J18)/J18) -> 
B19: Customer Connect < $30k | C19: Connections | D19: AP.7.1.01 | E19: ='Proposed NW Projects (Reg Yr)'!E19/(1+$L$3) -> 19439.50698 | F19: ='Proposed NW Projects (Reg Yr)'!F19/(1+$L$3) -> 21225.27394 | G19: ='Proposed NW Projects (Reg Yr)'!G19/(1+$L$3) -> 21727.5894 | H19: ='Proposed NW Projects (Reg Yr)'!H19/(1+$L$3) -> 20781.6544 | I19: ='Proposed NW Projects (Reg Yr)'!I19/(1+$L$3) -> 18908.61111 | J19: =E19+F19+G19+H19+I19 -> 102082.6358 | K19: C-3 | L19: =IF('Proposed NW Projects (Reg Yr)'!J19="","",('Proposed NW Projects (Reg Yr)'!J19-'Proposed NW Proj Direct Costs'!J19)/J19) -> 0.05072810203
B20: Customer Connect > $30k<$100k | C20: Connections | D20: AP.7.1.01 | E20: ='Proposed NW Projects (Reg Yr)'!E20/(1+$L$3) -> 25894.101 | F20: ='Proposed NW Projects (Reg Yr)'!F20/(1+$L$3) -> 27648.08138 | G20: ='Proposed NW Projects (Reg Yr)'!G20/(1+$L$3) -> 28341.32091 | H20: ='Proposed NW Projects (Reg Yr)'!H20/(1+$L$3) -> 27784.00361 | I20: ='Proposed NW Projects (Reg Yr)'!I20/(1+$L$3) -> 26958.17769 | J20: =E20+F20+G20+H20+I20 -> 136625.6846 | K20: C-3 | L20: =IF('Proposed NW Projects (Reg Yr)'!J20="","",('Proposed NW Projects (Reg Yr)'!J20-'Proposed NW Proj Direct Costs'!J20)/J20) -> 0.05072810203
B21: Customer Connect > $100k | C21: Connections | D21: AP.7.1.01 | E21: ='Proposed NW Projects (Reg Yr)'!E21/(1+$L$3) -> 32549.13171 | F21: ='Proposed NW Projects (Reg Yr)'!F21/(1+$L$3) -> 30684.61471 | G21: ='Proposed NW Projects (Reg Yr)'!G21/(1+$L$3) -> 36228.41708 | H21: ='Proposed NW Projects (Reg Yr)'!H21/(1+$L$3) -> 32096.00544 | I21: ='Proposed NW Projects (Reg Yr)'!I21/(1+$L$3) -> 31414.93906 | J21: =E21+F21+G21+H21+I21 -> 162973.108 | K21: C-3 | L21: =IF('Proposed NW Projects (Reg Yr)'!J21="","",('Proposed NW Projects (Reg Yr)'!J21-'Proposed NW Proj Direct Costs'!J21)/J21) -> 0.05072810203
B22: Gifting | C22: Connections | D22: NA | E22: ='Proposed NW Projects (Reg Yr)'!E22/(1+$L$3) -> 24738.08395 | F22: ='Proposed NW Projects (Reg Yr)'!F22/(1+$L$3) -> 24738.08395 | G22: ='Proposed NW Projects (Reg Yr)'!G22/(1+$L$3) -> 24738.08395 | H22: ='Proposed NW Projects (Reg Yr)'!H22/(1+$L$3) -> 24738.08395 | I22: ='Proposed NW Projects (Reg Yr)'!I22/(1+$L$3) -> 24738.08395 | J22: =E22+F22+G22+H22+I22 -> 123690.4198 | K22: C-3 | L22: =IF('Proposed NW Projects (Reg Yr)'!J22="","",('Proposed NW Projects (Reg Yr)'!J22-'Proposed NW Proj Direct Costs'!J22)/J22) -> 0.05072810203
B23: URDs | C23: Connections | D23: AP.7.1.01 | E23: ='Proposed NW Projects (Reg Yr)'!E23/(1+$L$3) -> 5316.680315 | F23: ='Proposed NW Projects (Reg Yr)'!F23/(1+$L$3) -> 5823.030821 | G23: ='Proposed NW Projects (Reg Yr)'!G23/(1+$L$3) -> 6160.597825 | H23: ='Proposed NW Projects (Reg Yr)'!H23/(1+$L$3) -> 5823.030821 | I23: ='Proposed NW Projects (Reg Yr)'!I23/(1+$L$3) -> 5254.615536 | J23: =E23+F23+G23+H23+I23 -> 28377.95532 | K23: C-3 | L23: =IF('Proposed NW Projects (Reg Yr)'!J23="","",('Proposed NW Projects (Reg Yr)'!J23-'Proposed NW Proj Direct Costs'!J23)/J23) -> 0.05072810203
L24: =IF('Proposed NW Projects (Reg Yr)'!J24="","",('Proposed NW Projects (Reg Yr)'!J24-'Proposed NW Proj Direct Costs'!J24)/J24) -> 
B25: Gross Customer Connect (total, incl gifting) | D25: Total | E25: =SUM(E19:E24) -> 107937.504 | F25: 110119.0848 | G25: 117196.0092 | H25: 111222.7782 | I25: 107274.4273 | J25: =SUM(J19:J24) -> 553749.8035 | K25: =K23 -> C-3 | L25: =IF('Proposed NW Projects (Reg Yr)'!J25="","",('Proposed NW Projects (Reg Yr)'!J25-'Proposed NW Proj Direct Costs'!J25)/J25) -> 0.05072810203
A26: Reliability & Resilience | L26: =IF('Proposed NW Projects (Reg Yr)'!J26="","",('Proposed NW Projects (Reg Yr)'!J26-'Proposed NW Proj Direct Costs'!J26)/J26) -> 
B27: Existing Network Protection Mgt - Planned | C27: Augex | D27: Historical | E27: ='Proposed NW Projects (Reg Yr)'!E27/(1+$L$3) -> 1279.189737 | F27: ='Proposed NW Projects (Reg Yr)'!F27/(1+$L$3) -> 1279.189737 | G27: ='Proposed NW Projects (Reg Yr)'!G27/(1+$L$3) -> 1279.189737 | H27: ='Proposed NW Projects (Reg Yr)'!H27/(1+$L$3) -> 1279.189737 | I27: ='Proposed NW Projects (Reg Yr)'!I27/(1+$L$3) -> 1279.189737 | J27: =SUM(E27:I27) -> 6395.948685 | K27: C-5 | L27: =IF('Proposed NW Projects (Reg Yr)'!J27="","",('Proposed NW Projects (Reg Yr)'!J27-'Proposed NW Proj Direct Costs'!J27)/J27) -> 0.05072810203
B28: Maintain Underlying Reliability Performance | C28: Augex | D28: AP.2.1.01 | E28: ='Proposed NW Projects (Reg Yr)'!E28/(1+$L$3) -> 4317.265363 | F28: ='Proposed NW Projects (Reg Yr)'!F28/(1+$L$3) -> 4317.265363 | G28: ='Proposed NW Projects (Reg Yr)'!G28/(1+$L$3) -> 4317.265363 | H28: ='Proposed NW Projects (Reg Yr)'!H28/(1+$L$3) -> 4317.265363 | I28: ='Proposed NW Projects (Reg Yr)'!I28/(1+$L$3) -> 4317.265363 | J28: =SUM(E28:I28) -> 21586.32681 | K28: C-5 | L28: =IF('Proposed NW Projects (Reg Yr)'!J28="","",('Proposed NW Projects (Reg Yr)'!J28-'Proposed NW Proj Direct Costs'!J28)/J28) -> 0.05072810203
B29: Air Conditioning Relay Rooms | C29: Augex | D29: AP.3.2.14 | E29: ='Proposed NW Projects (Reg Yr)'!E29/(1+$L$3) -> 159.8987171 | F29: ='Proposed NW Projects (Reg Yr)'!F29/(1+$L$3) -> 159.8987171 | G29: ='Proposed NW Projects (Reg Yr)'!G29/(1+$L$3) -> 159.8987171 | H29: ='Proposed NW Projects (Reg Yr)'!H29/(1+$L$3) -> 159.8987171 | I29: ='Proposed NW Projects (Reg Yr)'!I29/(1+$L$3) -> 159.8987171 | J29: =SUM(E29:I29) -> 799.4935857 | K29: C-5 | L29: =IF('Proposed NW Projects (Reg Yr)'!J29="","",('Proposed NW Projects (Reg Yr)'!J29-'Proposed NW Proj Direct Costs'!J29)/J29) -> 0.05072810203
B30: Network Hardening | C30: Augex | D30: AP.2.1.05 | E30: ='Proposed NW Projects (Reg Yr)'!E30/(1+$L$3) -> 2686.74594 | F30: ='Proposed NW Projects (Reg Yr)'!F30/(1+$L$3) -> 2686.74594 | G30: ='Proposed NW Projects (Reg Yr)'!G30/(1+$L$3) -> 2686.74594 | H30: ='Proposed NW Projects (Reg Yr)'!H30/(1+$L$3) -> 2686.74594 | I30: ='Proposed NW Projects (Reg Yr)'!I30/(1+$L$3) -> 2686.74594 | J30: =SUM(E30:I30) -> 13433.7297 | K30: C-5 | L30: =IF('Proposed NW Projects (Reg Yr)'!J30="","",('Proposed NW Projects (Reg Yr)'!J30-'Proposed NW Proj Direct Costs'!J30)/J30) -> 0.05072810203
B31: Low Reliability Feeders | C31: Augex | D31: AP.2.1.06 | E31: ='Proposed NW Projects (Reg Yr)'!E31/(1+$L$3) -> 2602.78513 | F31: ='Proposed NW Projects (Reg Yr)'!F31/(1+$L$3) -> 2602.78513 | G31: ='Proposed NW Projects (Reg Yr)'!G31/(1+$L$3) -> 2602.78513 | H31: ='Proposed NW Projects (Reg Yr)'!H31/(1+$L$3) -> 2602.78513 | I31: ='Proposed NW Projects (Reg Yr)'!I31/(1+$L$3) -> 2602.78513 | J31: =SUM(E31:I31) -> 13013.92565 | K31: C-5 | L31: =IF('Proposed NW Projects (Reg Yr)'!J31="","",('Proposed NW Projects (Reg Yr)'!J31-'Proposed NW Proj Direct Costs'!J31)/J31) -> 0.05072810203
L32: =IF('Proposed NW Projects (Reg Yr)'!J32="","",('Proposed NW Projects (Reg Yr)'!J32-'Proposed NW Proj Direct Costs'!J32)/J32) -> 
B33: Reliability (total) | D33: total | E33: =SUM(E27:E32) -> 11045.88489 | F33: 11045.88489 | G33: 11045.88489 | H33: 11045.88489 | I33: 11045.88489 | J33: 55229.42443 | K33: =K31 -> C-5 | L33: =IF('Proposed NW Projects (Reg Yr)'!J33="","",('Proposed NW Projects (Reg Yr)'!J33-'Proposed NW Proj Direct Costs'!J33)/J33) -> 0.05072810203
A34: Asset Replace/Refurbish | L34: =IF('Proposed NW Projects (Reg Yr)'!J34="","",('Proposed NW Projects (Reg Yr)'!J34-'Proposed NW Proj Direct Costs'!J34)/J34) -> 
B35: Line Repex/Refurb - Planned | L35: =IF('Proposed NW Projects (Reg Yr)'!J35="","",('Proposed NW Projects (Reg Yr)'!J35-'Proposed NW Proj Direct Costs'!J35)/J35) -> 
B36: Cable replacement planned | C36: Repex | D36: AP.3.1.09 | E36: ='Proposed NW Projects (Reg Yr)'!E36/(1+$L$3) -> 915.1934626 | F36: ='Proposed NW Projects (Reg Yr)'!F36/(1+$L$3) -> 915.1934626 | G36: ='Proposed NW Projects (Reg Yr)'!G36/(1+$L$3) -> 915.1934626 | H36: ='Proposed NW Projects (Reg Yr)'!H36/(1+$L$3) -> 915.1934626 | I36: ='Proposed NW Projects (Reg Yr)'!I36/(1+$L$3) -> 915.1934626 | J36: =SUM(E36:I36) -> 4575.967313 | K36: C-1 | L36: =IF('Proposed NW Projects (Reg Yr)'!J36="","",('Proposed NW Projects (Reg Yr)'!J36-'Proposed NW Proj Direct Costs'!J36)/J36) -> 0.05072810203
B37: Conductor Replacement - Planned | C37: Repex | D37: AP.3.1.10 | E37: ='Proposed NW Projects (Reg Yr)'!E37/(1+$L$3) -> 2128.683204 | F37: ='Proposed NW Projects (Reg Yr)'!F37/(1+$L$3) -> 2128.683204 | G37: ='Proposed NW Projects (Reg Yr)'!G37/(1+$L$3) -> 2128.683204 | H37: ='Proposed NW Projects (Reg Yr)'!H37/(1+$L$3) -> 2128.683204 | I37: ='Proposed NW Projects (Reg Yr)'!I37/(1+$L$3) -> 2128.683204 | J37: 10643.41602 | K37: C-1 | L37: =IF('Proposed NW Projects (Reg Yr)'!J37="","",('Proposed NW Projects (Reg Yr)'!J37-'Proposed NW Proj Direct Costs'!J37)/J37) -> 0.05072810203
B38: Line Ancillary Equipment - Planned (incl LFIs, fences, gates, signs etc) | C38: Repex | D38: AP.3.1.20 | E38: ='Proposed NW Projects (Reg Yr)'!E38/(1+$L$3) -> 357.286893 | F38: ='Proposed NW Projects (Reg Yr)'!F38/(1+$L$3) -> 476.382524 | G38: ='Proposed NW Projects (Reg Yr)'!G38/(1+$L$3) -> 476.382524 | H38: ='Proposed NW Projects (Reg Yr)'!H38/(1+$L$3) -> 476.382524 | I38: ='Proposed NW Projects (Reg Yr)'!I38/(1+$L$3) -> 476.382524 | J38: 2262.816989 | K38: C-1 | L38: =IF('Proposed NW Projects (Reg Yr)'!J38="","",('Proposed NW Projects (Reg Yr)'!J38-'Proposed NW Proj Direct Costs'!J38)/J38) -> 0.05072810203
B39: Line Regulation - Planned (incl regulators, capacitors) | C39: Repex | D39: AP.3.1.19 | E39: ='Proposed NW Projects (Reg Yr)'!E39/(1+$L$3) -> 723.5486471 | F39: ='Proposed NW Projects (Reg Yr)'!F39/(1+$L$3) -> 964.7315295 | G39: ='Proposed NW Projects (Reg Yr)'!G39/(1+$L$3) -> 964.7315295 | H39: ='Proposed NW Projects (Reg Yr)'!H39/(1+$L$3) -> 973.0740713 | I39: ='Proposed NW Projects (Reg Yr)'!I39/(1+$L$3) -> 981.416613 | J39: 4607.50239 | K39: C-1 | L39: =IF('Proposed NW Projects (Reg Yr)'!J39="","",('Proposed NW Projects (Reg Yr)'!J39-'Proposed NW Proj Direct Costs'!J39)/J39) -> 0.05072810203
B40: Overhead Line Components - Planned (incl insulators, crossarms, taps, pole earths) | C40: Repex | D40: AP.3.1.06 | E40: ='Proposed NW Projects (Reg Yr)'!E40/(1+$L$3) -> 12977.8473 | F40: ='Proposed NW Projects (Reg Yr)'!F40/(1+$L$3) -> 12977.8473 | G40: ='Proposed NW Projects (Reg Yr)'!G40/(1+$L$3) -> 12977.8473 | H40: ='Proposed NW Projects (Reg Yr)'!H40/(1+$L$3) -> 12977.8473 | I40: ='Proposed NW Projects (Reg Yr)'!I40/(1+$L$3) -> 12977.8473 | J40: 64889.23652 | K40: C-1 | L40: =IF('Proposed NW Projects (Reg Yr)'!J40="","",('Proposed NW Projects (Reg Yr)'!J40-'Proposed NW Proj Direct Costs'!J40)/J40) -> 0.05072810203
B41: Pole Replacement Maint. Tasks - Planned | C41: Repex | D41: AP.3.1.05 | E41: ='Proposed NW Projects (Reg Yr)'!E41/(1+$L$3) -> 20632.82022 | F41: ='Proposed NW Projects (Reg Yr)'!F41/(1+$L$3) -> 20739.55957 | G41: ='Proposed NW Projects (Reg Yr)'!G41/(1+$L$3) -> 20739.55957 | H41: ='Proposed NW Projects (Reg Yr)'!H41/(1+$L$3) -> 20739.55957 | I41: ='Proposed NW Projects (Reg Yr)'!I41/(1+$L$3) -> 20739.55957 | J41: 103591.0585 | K41: C-1 | L41: =IF('Proposed NW Projects (Reg Yr)'!J41="","",('Proposed NW Projects (Reg Yr)'!J41-'Proposed NW Proj Direct Costs'!J41)/J41) -> 0.05072810203
B42: Recloser Refurbishment - Planned | C42: Repex | D42: AP.3.1.13 | E42: ='Proposed NW Projects (Reg Yr)'!E42/(1+$L$3) -> 451.0774683 | F42: ='Proposed NW Projects (Reg Yr)'!F42/(1+$L$3) -> 451.0774683 | G42: ='Proposed NW Projects (Reg Yr)'!G42/(1+$L$3) -> 451.0774683 | H42: ='Proposed NW Projects (Reg Yr)'!H42/(1+$L$3) -> 451.0774683 | I42: ='Proposed NW Projects (Reg Yr)'!I42/(1+$L$3) -> 451.0774683 | J42: 2255.387342 | K42: C-1 | L42: =IF('Proposed NW Projects (Reg Yr)'!J42="","",('Proposed NW Projects (Reg Yr)'!J42-'Proposed NW Proj Direct Costs'!J42)/J42) -> 0.05072810203
B43: Recloser Replacement - Planned | C43: Repex | D43: AP.3.1.13 | E43: ='Proposed NW Projects (Reg Yr)'!E43/(1+$L$3) -> 1285.018124 | F43: ='Proposed NW Projects (Reg Yr)'!F43/(1+$L$3) -> 1285.018124 | G43: ='Proposed NW Projects (Reg Yr)'!G43/(1+$L$3) -> 1285.018124 | H43: ='Proposed NW Projects (Reg Yr)'!H43/(1+$L$3) -> 1285.018124 | I43: ='Proposed NW Projects (Reg Yr)'!I43/(1+$L$3) -> 1285.018124 | J43: 6425.09062 | K43: C-1 | L43: =IF('Proposed NW Projects (Reg Yr)'!J43="","",('Proposed NW Projects (Reg Yr)'!J43-'Proposed NW Proj Direct Costs'!J43)/J43) -> 0.05072810203
B44: Services Maintenance Tasks - Planned | C44: Repex | D44: AP.3.1.08 | E44: ='Proposed NW Projects (Reg Yr)'!E44/(1+$L$3) -> 3540.262828 | F44: ='Proposed NW Projects (Reg Yr)'!F44/(1+$L$3) -> 3540.262828 | G44: ='Proposed NW Projects (Reg Yr)'!G44/(1+$L$3) -> 3540.262828 | H44: ='Proposed NW Projects (Reg Yr)'!H44/(1+$L$3) -> 3540.262828 | I44: ='Proposed NW Projects (Reg Yr)'!I44/(1+$L$3) -> 3540.262828 | J44: 17701.31414 | K44: C-1 | L44: =IF('Proposed NW Projects (Reg Yr)'!J44="","",('Proposed NW Projects (Reg Yr)'!J44-'Proposed NW Proj Direct Costs'!J44)/J44) -> 0.05072810203
B45: Switchgear - Overhead - Planned | C45: Repex | D45: AP.3.1.07 | E45: ='Proposed NW Projects (Reg Yr)'!E45/(1+$L$3) -> 2907.647581 | F45: ='Proposed NW Projects (Reg Yr)'!F45/(1+$L$3) -> 2907.647581 | G45: ='Proposed NW Projects (Reg Yr)'!G45/(1+$L$3) -> 2907.647581 | H45: ='Proposed NW Projects (Reg Yr)'!H45/(1+$L$3) -> 2907.647581 | I45: ='Proposed NW Projects (Reg Yr)'!I45/(1+$L$3) -> 2907.647581 | J45: 14538.23791 | K45: C-1 | L45: =IF('Proposed NW Projects (Reg Yr)'!J45="","",('Proposed NW Projects (Reg Yr)'!J45-'Proposed NW Proj Direct Costs'!J45)/J45) -> 0.05072810203
B46: Transformers - Planned | C46: Repex | D46: AP.3.1.01 | E46: ='Proposed NW Projects (Reg Yr)'!E46/(1+$L$3) -> 2668.939647 | F46: ='Proposed NW Projects (Reg Yr)'!F46/(1+$L$3) -> 2668.939647 | G46: ='Proposed NW Projects (Reg Yr)'!G46/(1+$L$3) -> 2668.939647 | H46: ='Proposed NW Projects (Reg Yr)'!H46/(1+$L$3) -> 2668.939647 | I46: ='Proposed NW Projects (Reg Yr)'!I46/(1+$L$3) -> 2668.939647 | J46: 13344.69823 | K46: C-1 | L46: =IF('Proposed NW Projects (Reg Yr)'!J46="","",('Proposed NW Projects (Reg Yr)'!J46-'Proposed NW Proj Direct Costs'!J46)/J46) -> 0.05072810203
B47: Poles - Planned plating | C47: Repex | D47: AP.3.1.05 | E47: ='Proposed NW Projects (Reg Yr)'!E47/(1+$L$3) -> 6631.518766 | F47: ='Proposed NW Projects (Reg Yr)'!F47/(1+$L$3) -> 6626.635467 | G47: ='Proposed NW Projects (Reg Yr)'!G47/(1+$L$3) -> 6626.635467 | H47: ='Proposed NW Projects (Reg Yr)'!H47/(1+$L$3) -> 6626.635467 | I47: ='Proposed NW Projects (Reg Yr)'!I47/(1+$L$3) -> 6626.635467 | J47: 33138.06063 | K47: C-1 | L47: =IF('Proposed NW Projects (Reg Yr)'!J47="","",('Proposed NW Projects (Reg Yr)'!J47-'Proposed NW Proj Direct Costs'!J47)/J47) -> 0.05072810203
B48: CBD ducts & manholes | C48: Repex | D48: AP.2.1.07 | E48: ='Proposed NW Projects (Reg Yr)'!E48/(1+$L$3) -> 2411.819495 | F48: ='Proposed NW Projects (Reg Yr)'!F48/(1+$L$3) -> 2411.819495 | G48: ='Proposed NW Projects (Reg Yr)'!G48/(1+$L$3) -> 2411.819495 | H48: ='Proposed NW Projects (Reg Yr)'!H48/(1+$L$3) -> 2411.819495 | I48: ='Proposed NW Projects (Reg Yr)'!I48/(1+$L$3) -> 2411.819495 | J48: 12059.09748 | K48: C-1 | L48: =IF('Proposed NW Projects (Reg Yr)'!J48="","",('Proposed NW Projects (Reg Yr)'!J48-'Proposed NW Proj Direct Costs'!J48)/J48) -> 0.05072810203
B49: Cables - CBD 11kV PILC cable replacements | C49: Repex | D49: AP.2.1.07 | E49: ='Proposed NW Projects (Reg Yr)'!E49/(1+$L$3) -> 1265.004865 | F49: ='Proposed NW Projects (Reg Yr)'!F49/(1+$L$3) -> 1265.004865 | G49: ='Proposed NW Projects (Reg Yr)'!G49/(1+$L$3) -> 1265.004865 | H49: ='Proposed NW Projects (Reg Yr)'!H49/(1+$L$3) -> 1265.004865 | I49: ='Proposed NW Projects (Reg Yr)'!I49/(1+$L$3) -> 1265.004865 | J49: 6325.024327 | K49: C-1 | L49: =IF('Proposed NW Projects (Reg Yr)'!J49="","",('Proposed NW Projects (Reg Yr)'!J49-'Proposed NW Proj Direct Costs'!J49)/J49) -> 0.05072810203
B50: Services - Aluminium neutral screen service line replacements | C50: Repex | D50: AP.3.1.08 | E50: ='Proposed NW Projects (Reg Yr)'!E50/(1+$L$3) -> 526.5431287 | F50: ='Proposed NW Projects (Reg Yr)'!F50/(1+$L$3) -> 702.057505 | G50: ='Proposed NW Projects (Reg Yr)'!G50/(1+$L$3) -> 702.057505 | H50: ='Proposed NW Projects (Reg Yr)'!H50/(1+$L$3) -> 702.057505 | I50: ='Proposed NW Projects (Reg Yr)'!I50/(1+$L$3) -> 702.057505 | J50: 3334.773149 | K50: C-1 | L50: =IF('Proposed NW Projects (Reg Yr)'!J50="","",('Proposed NW Projects (Reg Yr)'!J50-'Proposed NW Proj Direct Costs'!J50)/J50) -> 0.05072810203
L51: =IF('Proposed NW Projects (Reg Yr)'!J51="","",('Proposed NW Projects (Reg Yr)'!J51-'Proposed NW Proj Direct Costs'!J51)/J51) -> 
B52: Line Repex/Refurb - Unplanned | L52: =IF('Proposed NW Projects (Reg Yr)'!J52="","",('Proposed NW Projects (Reg Yr)'!J52-'Proposed NW Proj Direct Costs'!J52)/J52) -> 
B53: (Distribution) Cable Replacement - Unplanned | C53: Repex | D53: AP.3.1.09 | E53: ='Proposed NW Projects (Reg Yr)'!E53/(1+$L$3) -> 430.6792765 | F53: ='Proposed NW Projects (Reg Yr)'!F53/(1+$L$3) -> 430.6792765 | G53: ='Proposed NW Projects (Reg Yr)'!G53/(1+$L$3) -> 430.6792765 | H53: ='Proposed NW Projects (Reg Yr)'!H53/(1+$L$3) -> 430.6792765 | I53: ='Proposed NW Projects (Reg Yr)'!I53/(1+$L$3) -> 430.6792765 | J53: =SUM(E53:I53) -> 2153.396383 | K53: C-1 | L53: =IF('Proposed NW Projects (Reg Yr)'!J53="","",('Proposed NW Projects (Reg Yr)'!J53-'Proposed NW Proj Direct Costs'!J53)/J53) -> 0.05072810203
B54: Line Regulation - Unplanned (incl regulators, capacitors) | C54: Repex | D54: AP.3.1.19 | E54: ='Proposed NW Projects (Reg Yr)'!E54/(1+$L$3) -> 112.6243138 | F54: ='Proposed NW Projects (Reg Yr)'!F54/(1+$L$3) -> 112.6243138 | G54: ='Proposed NW Projects (Reg Yr)'!G54/(1+$L$3) -> 131.3950328 | H54: ='Proposed NW Projects (Reg Yr)'!H54/(1+$L$3) -> 150.1657517 | I54: ='Proposed NW Projects (Reg Yr)'!I54/(1+$L$3) -> 150.1657517 | J54: 656.9751639 | K54: C-1 | L54: =IF('Proposed NW Projects (Reg Yr)'!J54="","",('Proposed NW Projects (Reg Yr)'!J54-'Proposed NW Proj Direct Costs'!J54)/J54) -> 0.05072810203
B55: Overhead Line Components - Unplanned (incl insulators, X-arms, pole earths) | C55: Repex | D55: AP.3.1.06 | E55: ='Proposed NW Projects (Reg Yr)'!E55/(1+$L$3) -> 6392.074045 | F55: ='Proposed NW Projects (Reg Yr)'!F55/(1+$L$3) -> 6392.074045 | G55: ='Proposed NW Projects (Reg Yr)'!G55/(1+$L$3) -> 6392.074045 | H55: ='Proposed NW Projects (Reg Yr)'!H55/(1+$L$3) -> 6392.074045 | I55: ='Proposed NW Projects (Reg Yr)'!I55/(1+$L$3) -> 6392.074045 | J55: 31960.37022 | K55: C-1 | L55: =IF('Proposed NW Projects (Reg Yr)'!J55="","",('Proposed NW Projects (Reg Yr)'!J55-'Proposed NW Proj Direct Costs'!J55)/J55) -> 0.05072810203
B56: Poles - Unplanned | C56: Repex | D56: AP.3.1.05 | E56: ='Proposed NW Projects (Reg Yr)'!E56/(1+$L$3) -> 1968.030673 | F56: ='Proposed NW Projects (Reg Yr)'!F56/(1+$L$3) -> 1968.030673 | G56: ='Proposed NW Projects (Reg Yr)'!G56/(1+$L$3) -> 1968.030673 | H56: ='Proposed NW Projects (Reg Yr)'!H56/(1+$L$3) -> 1968.030673 | I56: ='Proposed NW Projects (Reg Yr)'!I56/(1+$L$3) -> 1968.030673 | J56: 9840.153365 | K56: C-1 | L56: =IF('Proposed NW Projects (Reg Yr)'!J56="","",('Proposed NW Projects (Reg Yr)'!J56-'Proposed NW Proj Direct Costs'!J56)/J56) -> 0.05072810203
B57: Recloser Replacement - Unplanned | C57: Repex | D57: AP.3.1.13 | E57: ='Proposed NW Projects (Reg Yr)'!E57/(1+$L$3) -> 680.0654742 | F57: ='Proposed NW Projects (Reg Yr)'!F57/(1+$L$3) -> 680.0654742 | G57: ='Proposed NW Projects (Reg Yr)'!G57/(1+$L$3) -> 680.0654742 | H57: ='Proposed NW Projects (Reg Yr)'!H57/(1+$L$3) -> 680.0654742 | I57: ='Proposed NW Projects (Reg Yr)'!I57/(1+$L$3) -> 680.0654742 | J57: 3400.327371 | K57: C-1 | L57: =IF('Proposed NW Projects (Reg Yr)'!J57="","",('Proposed NW Projects (Reg Yr)'!J57-'Proposed NW Proj Direct Costs'!J57)/J57) -> 0.05072810203
B58: Services Replacement - Unplanned | C58: Repex | D58: AP.3.1.08 | E58: ='Proposed NW Projects (Reg Yr)'!E58/(1+$L$3) -> 4505.789054 | F58: ='Proposed NW Projects (Reg Yr)'!F58/(1+$L$3) -> 4505.789054 | G58: ='Proposed NW Projects (Reg Yr)'!G58/(1+$L$3) -> 4505.789054 | H58: ='Proposed NW Projects (Reg Yr)'!H58/(1+$L$3) -> 4505.789054 | I58: ='Proposed NW Projects (Reg Yr)'!I58/(1+$L$3) -> 4505.789054 | J58: 22528.94527 | K58: C-1 | L58: =IF('Proposed NW Projects (Reg Yr)'!J58="","",('Proposed NW Projects (Reg Yr)'!J58-'Proposed NW Proj Direct Costs'!J58)/J58) -> 0.05072810203
B59: Switchgear - Ground Level - Unplanned | C59: Repex | D59: AP.3.1.03 | E59: ='Proposed NW Projects (Reg Yr)'!E59/(1+$L$3) -> 406.7080315 | F59: ='Proposed NW Projects (Reg Yr)'!F59/(1+$L$3) -> 406.7080315 | G59: ='Proposed NW Projects (Reg Yr)'!G59/(1+$L$3) -> 406.7080315 | H59: ='Proposed NW Projects (Reg Yr)'!H59/(1+$L$3) -> 406.7080315 | I59: ='Proposed NW Projects (Reg Yr)'!I59/(1+$L$3) -> 406.7080315 | J59: 2033.540157 | K59: C-1 | L59: =IF('Proposed NW Projects (Reg Yr)'!J59="","",('Proposed NW Projects (Reg Yr)'!J59-'Proposed NW Proj Direct Costs'!J59)/J59) -> 0.05072810203
B60: Switchgear - Overhead - Unplanned | C60: Repex | D60: AP.3.1.07 | E60: ='Proposed NW Projects (Reg Yr)'!E60/(1+$L$3) -> 3323.025807 | F60: ='Proposed NW Projects (Reg Yr)'!F60/(1+$L$3) -> 3323.025807 | G60: ='Proposed NW Projects (Reg Yr)'!G60/(1+$L$3) -> 3323.025807 | H60: ='Proposed NW Projects (Reg Yr)'!H60/(1+$L$3) -> 3323.025807 | I60: ='Proposed NW Projects (Reg Yr)'!I60/(1+$L$3) -> 3323.025807 | J60: 16615.12904 | K60: C-1 | L60: =IF('Proposed NW Projects (Reg Yr)'!J60="","",('Proposed NW Projects (Reg Yr)'!J60-'Proposed NW Proj Direct Costs'!J60)/J60) -> 0.05072810203
B61: Transformers - Unplanned | C61: Repex | D61: AP.3.1.01 | E61: ='Proposed NW Projects (Reg Yr)'!E61/(1+$L$3) -> 4354.585739 | F61: ='Proposed NW Projects (Reg Yr)'!F61/(1+$L$3) -> 4354.585739 | G61: ='Proposed NW Projects (Reg Yr)'!G61/(1+$L$3) -> 4354.585739 | H61: ='Proposed NW Projects (Reg Yr)'!H61/(1+$L$3) -> 4354.585739 | I61: ='Proposed NW Projects (Reg Yr)'!I61/(1+$L$3) -> 4354.585739 | J61: 21772.9287 | K61: C-1 | L61: =IF('Proposed NW Projects (Reg Yr)'!J61="","",('Proposed NW Projects (Reg Yr)'!J61-'Proposed NW Proj Direct Costs'!J61)/J61) -> 0.05072810203
L62: =IF('Proposed NW Projects (Reg Yr)'!J62="","",('Proposed NW Projects (Reg Yr)'!J62-'Proposed NW Proj Direct Costs'!J62)/J62) -> 
B63: Repex/Refurb - Lines (subtotal) | D63: subtotal | E63: =SUM(E36:E62) -> 81596.79404 | F63: 82234.44299 | G63: 82253.21371 | H63: 82280.32697 | I63: 82288.66951 | J63: 410653.4472 | K63: =K61 -> C-1 | L63: =IF('Proposed NW Projects (Reg Yr)'!J63="","",('Proposed NW Projects (Reg Yr)'!J63-'Proposed NW Proj Direct Costs'!J63)/J63) -> 0.05072810203
B64: Substations Repex/Refurb | L64: =IF('Proposed NW Projects (Reg Yr)'!J64="","",('Proposed NW Projects (Reg Yr)'!J64-'Proposed NW Proj Direct Costs'!J64)/J64) -> 
B65: Auxillary DC Supplies excl AC - Battery Banks & Chargers | C65: Repex | D65: AP.3.2.08 | E65: ='Proposed NW Projects (Reg Yr)'!E65/(1+$L$3) -> 542.4707975 | F65: ='Proposed NW Projects (Reg Yr)'!F65/(1+$L$3) -> 542.4707975 | G65: ='Proposed NW Projects (Reg Yr)'!G65/(1+$L$3) -> 542.4707975 | H65: ='Proposed NW Projects (Reg Yr)'!H65/(1+$L$3) -> 542.4707975 | I65: ='Proposed NW Projects (Reg Yr)'!I65/(1+$L$3) -> 305.6593311 | J65: =SUM(E65:I65) -> 2475.542521 | K65: C-1 | L65: =IF('Proposed NW Projects (Reg Yr)'!J65="","",('Proposed NW Projects (Reg Yr)'!J65-'Proposed NW Proj Direct Costs'!J65)/J65) -> 0.05072810203
B66: Circuit Breakers Planned Replacement | C66: Repex | D66: AP.3.2.05 | E66: ='Proposed NW Projects (Reg Yr)'!E66/(1+$L$3) -> 9289.220548 | F66: ='Proposed NW Projects (Reg Yr)'!F66/(1+$L$3) -> 9289.220548 | G66: ='Proposed NW Projects (Reg Yr)'!G66/(1+$L$3) -> 10180.88436 | H66: ='Proposed NW Projects (Reg Yr)'!H66/(1+$L$3) -> 10113.71571 | I66: ='Proposed NW Projects (Reg Yr)'!I66/(1+$L$3) -> 9222.051899 | J66: 48095.09306 | K66: C-1 | L66: =IF('Proposed NW Projects (Reg Yr)'!J66="","",('Proposed NW Projects (Reg Yr)'!J66-'Proposed NW Proj Direct Costs'!J66)/J66) -> 0.05072810203
B67: Circuit Breakers Planned Refurb | C67: Repex | D67: AP.3.2.02 | E67: ='Proposed NW Projects (Reg Yr)'!E67/(1+$L$3) -> 623.218199 | F67: ='Proposed NW Projects (Reg Yr)'!F67/(1+$L$3) -> 232.8004295 | G67: ='Proposed NW Projects (Reg Yr)'!G67/(1+$L$3) -> 232.8004295 | H67: ='Proposed NW Projects (Reg Yr)'!H67/(1+$L$3) -> 232.8004295 | I67: ='Proposed NW Projects (Reg Yr)'!I67/(1+$L$3) -> 232.8004295 | J67: 1554.419917 | K67: C-1 | L67: =IF('Proposed NW Projects (Reg Yr)'!J67="","",('Proposed NW Projects (Reg Yr)'!J67-'Proposed NW Proj Direct Costs'!J67)/J67) -> 0.05072810203
B68: Mobile Substations | C68: Repex | D68: AP.3.2.13 | E68: ='Proposed NW Projects (Reg Yr)'!E68/(1+$L$3) -> 250.2762529 | F68: ='Proposed NW Projects (Reg Yr)'!F68/(1+$L$3) -> 250.2762529 | G68: ='Proposed NW Projects (Reg Yr)'!G68/(1+$L$3) -> 250.2762529 | H68: ='Proposed NW Projects (Reg Yr)'!H68/(1+$L$3) -> 250.2762529 | I68: ='Proposed NW Projects (Reg Yr)'!I68/(1+$L$3) -> 250.2762529 | J68: 1251.381264 | K68: C-1 | L68: =IF('Proposed NW Projects (Reg Yr)'!J68="","",('Proposed NW Projects (Reg Yr)'!J68-'Proposed NW Proj Direct Costs'!J68)/J68) -> 0.05072810203
B69: Substation Insurance Spares & Asset Mgt | C69: Repex | D69: Historical | E69: ='Proposed NW Projects (Reg Yr)'!E69/(1+$L$3) -> 1334.806682 | F69: ='Proposed NW Projects (Reg Yr)'!F69/(1+$L$3) -> 1334.806682 | G69: ='Proposed NW Projects (Reg Yr)'!G69/(1+$L$3) -> 1334.806682 | H69: ='Proposed NW Projects (Reg Yr)'!H69/(1+$L$3) -> 1334.806682 | I69: ='Proposed NW Projects (Reg Yr)'!I69/(1+$L$3) -> 1334.806682 | J69: 6674.033411 | K69: C-1 | L69: =IF('Proposed NW Projects (Reg Yr)'!J69="","",('Proposed NW Projects (Reg Yr)'!J69-'Proposed NW Proj Direct Costs'!J69)/J69) -> 0.05072810203
B70: Substation Infrastructure - Civil (incl buildings, structures) | C70: Repex | D70: AP3.2.16 | E70: ='Proposed NW Projects (Reg Yr)'!E70/(1+$L$3) -> 1251.381264 | F70: ='Proposed NW Projects (Reg Yr)'!F70/(1+$L$3) -> 1251.381264 | G70: ='Proposed NW Projects (Reg Yr)'!G70/(1+$L$3) -> 1251.381264 | H70: ='Proposed NW Projects (Reg Yr)'!H70/(1+$L$3) -> 1251.381264 | I70: ='Proposed NW Projects (Reg Yr)'!I70/(1+$L$3) -> 1251.381264 | J70: 6256.906322 | K70: C-1 | L70: =IF('Proposed NW Projects (Reg Yr)'!J70="","",('Proposed NW Projects (Reg Yr)'!J70-'Proposed NW Proj Direct Costs'!J70)/J70) -> 0.05072810203
B71: Substation Transformer Repl. | C71: Repex | D71: AP.3.2.01 | E71: ='Proposed NW Projects (Reg Yr)'!E71/(1+$L$3) -> 4518.958837 | F71: ='Proposed NW Projects (Reg Yr)'!F71/(1+$L$3) -> 4462.285289 | G71: ='Proposed NW Projects (Reg Yr)'!G71/(1+$L$3) -> 5100.38745 | H71: ='Proposed NW Projects (Reg Yr)'!H71/(1+$L$3) -> 4292.264648 | I71: ='Proposed NW Projects (Reg Yr)'!I71/(1+$L$3) -> 3540.815393 | J71: 21914.71162 | K71: C-1 | L71: =IF('Proposed NW Projects (Reg Yr)'!J71="","",('Proposed NW Projects (Reg Yr)'!J71-'Proposed NW Proj Direct Costs'!J71)/J71) -> 0.05072810203
B72: TF Refurb (18665 & 18977) | C72: Repex | D72: AP.3.2.01 | E72: ='Proposed NW Projects (Reg Yr)'!E72/(1+$L$3) -> 1313.950328 | F72: ='Proposed NW Projects (Reg Yr)'!F72/(1+$L$3) -> 1042.81772 | G72: ='Proposed NW Projects (Reg Yr)'!G72/(1+$L$3) -> 792.5414675 | H72: ='Proposed NW Projects (Reg Yr)'!H72/(1+$L$3) -> 792.5414675 | I72: ='Proposed NW Projects (Reg Yr)'!I72/(1+$L$3) -> 792.5414675 | J72: 4734.392451 | K72: C-1 | L72: =IF('Proposed NW Projects (Reg Yr)'!J72="","",('Proposed NW Projects (Reg Yr)'!J72-'Proposed NW Proj Direct Costs'!J72)/J72) -> 0.05072810203
B73: Surge Arrester | C73: Repex | D73: AP.3.2.03 | E73: ='Proposed NW Projects (Reg Yr)'!E73/(1+$L$3) -> 260.966321 | F73: ='Proposed NW Projects (Reg Yr)'!F73/(1+$L$3) -> 286.4264499 | G73: ='Proposed NW Projects (Reg Yr)'!G73/(1+$L$3) -> 286.4264499 | H73: ='Proposed NW Projects (Reg Yr)'!H73/(1+$L$3) -> 280.0614177 | I73: ='Proposed NW Projects (Reg Yr)'!I73/(1+$L$3) -> 178.2209022 | J73: 1292.101541 | K73: C-1 | L73: =IF('Proposed NW Projects (Reg Yr)'!J73="","",('Proposed NW Projects (Reg Yr)'!J73-'Proposed NW Proj Direct Costs'!J73)/J73) -> 0.05072810203
B74: AC Panels + auxilary supply | C74: Repex | D74: AP 3.2.22 | E74: ='Proposed NW Projects (Reg Yr)'!E74/(1+$L$3) -> 600.663007 | F74: ='Proposed NW Projects (Reg Yr)'!F74/(1+$L$3) -> 600.663007 | G74: ='Proposed NW Projects (Reg Yr)'!G74/(1+$L$3) -> 600.663007 | H74: ='Proposed NW Projects (Reg Yr)'!H74/(1+$L$3) -> 600.663007 | I74: ='Proposed NW Projects (Reg Yr)'!I74/(1+$L$3) -> 498.4668704 | J74: 2901.118898 | K74: C-1 | L74: =IF('Proposed NW Projects (Reg Yr)'!J74="","",('Proposed NW Projects (Reg Yr)'!J74-'Proposed NW Proj Direct Costs'!J74)/J74) -> 0.05072810203
B75: Protection Asset Replacement | C75: Repex | D75: AP.3.2.14 | E75: ='Proposed NW Projects (Reg Yr)'!E75/(1+$L$3) -> 2350.902698 | F75: ='Proposed NW Projects (Reg Yr)'!F75/(1+$L$3) -> 2392.883103 | G75: ='Proposed NW Projects (Reg Yr)'!G75/(1+$L$3) -> 2224.961482 | H75: ='Proposed NW Projects (Reg Yr)'!H75/(1+$L$3) -> 2057.039861 | I75: ='Proposed NW Projects (Reg Yr)'!I75/(1+$L$3) -> 2099.020266 | J75: 11124.80741 | K75: C-1 | L75: =IF('Proposed NW Projects (Reg Yr)'!J75="","",('Proposed NW Projects (Reg Yr)'!J75-'Proposed NW Proj Direct Costs'!J75)/J75) -> 0.05072810203
B76: Unplanned CB Replacement | C76: Repex | D76: Historical | E76: ='Proposed NW Projects (Reg Yr)'!E76/(1+$L$3) -> 392.0969857 | F76: ='Proposed NW Projects (Reg Yr)'!F76/(1+$L$3) -> 392.0969857 | G76: ='Proposed NW Projects (Reg Yr)'!G76/(1+$L$3) -> 392.0969857 | H76: ='Proposed NW Projects (Reg Yr)'!H76/(1+$L$3) -> 392.0969857 | I76: ='Proposed NW Projects (Reg Yr)'!I76/(1+$L$3) -> 392.0969857 | J76: 1960.484928 | K76: C-1 | L76: =IF('Proposed NW Projects (Reg Yr)'!J76="","",('Proposed NW Projects (Reg Yr)'!J76-'Proposed NW Proj Direct Costs'!J76)/J76) -> 0.05072810203
B77: Unplanned Substation Asset Repl - PROTECTION | C77: Repex | D77: Historical | E77: ='Proposed NW Projects (Reg Yr)'!E77/(1+$L$3) -> 671.6864851 | F77: ='Proposed NW Projects (Reg Yr)'!F77/(1+$L$3) -> 671.6864851 | G77: ='Proposed NW Projects (Reg Yr)'!G77/(1+$L$3) -> 671.6864851 | H77: ='Proposed NW Projects (Reg Yr)'!H77/(1+$L$3) -> 671.6864851 | I77: ='Proposed NW Projects (Reg Yr)'!I77/(1+$L$3) -> 671.6864851 | J77: 3358.432426 | K77: C-1 | L77: =IF('Proposed NW Projects (Reg Yr)'!J77="","",('Proposed NW Projects (Reg Yr)'!J77-'Proposed NW Proj Direct Costs'!J77)/J77) -> 0.05072810203
B78: Other (sub cables) | C78: Repex | D78: AP 3.02.09 | E78: ='Proposed NW Projects (Reg Yr)'!E78/(1+$L$3) -> 595.9716204 | F78: ='Proposed NW Projects (Reg Yr)'!F78/(1+$L$3) -> 211.7975722 | G78: ='Proposed NW Projects (Reg Yr)'!G78/(1+$L$3) -> 220.5572411 | H78: ='Proposed NW Projects (Reg Yr)'!H78/(1+$L$3) -> 220.5572411 | I78: ='Proposed NW Projects (Reg Yr)'!I78/(1+$L$3) -> 185.5185657 | J78: 1434.402241 | K78: C-1 | L78: =IF('Proposed NW Projects (Reg Yr)'!J78="","",('Proposed NW Projects (Reg Yr)'!J78-'Proposed NW Proj Direct Costs'!J78)/J78) -> 0.05072810203
B79: Northfield 66kV GIS Switchboard replacement (1/3rd) | C79: Repex | D79: AP 3.02.06 | E79: ='Proposed NW Projects (Reg Yr)'!E79/(1+$L$3) -> 1049.510133 | F79: ='Proposed NW Projects (Reg Yr)'!F79/(1+$L$3) -> 3526.354047 | G79: ='Proposed NW Projects (Reg Yr)'!G79/(1+$L$3) -> 4198.040532 | H79: ='Proposed NW Projects (Reg Yr)'!H79/(1+$L$3) -> 1679.216213 | I79: ='Proposed NW Projects (Reg Yr)'!I79/(1+$L$3) -> 0 | J79: 10453.12092 | K79: C-1 | L79: =IF('Proposed NW Projects (Reg Yr)'!J79="","",('Proposed NW Projects (Reg Yr)'!J79-'Proposed NW Proj Direct Costs'!J79)/J79) -> 0.05072810203
L80: =IF('Proposed NW Projects (Reg Yr)'!J80="","",('Proposed NW Projects (Reg Yr)'!J80-'Proposed NW Proj Direct Costs'!J80)/J80) -> 
B81: Repex/Refurb - Substations (subtotal) | D81: subtotal | E81: =SUM(E65:E80) -> 25046.08016 | F81: 26487.96663 | G81: 28279.98088 | H81: 24711.57846 | I81: 20955.34279 | J81: 125480.9489 | K81: =K79 -> C-1 | L81: =IF('Proposed NW Projects (Reg Yr)'!J81="","",('Proposed NW Projects (Reg Yr)'!J81-'Proposed NW Proj Direct Costs'!J81)/J81) -> 0.05072810203
B82: Telecom'n Repex/Refurb | K82: C-1 | L82: =IF('Proposed NW Projects (Reg Yr)'!J82="","",('Proposed NW Projects (Reg Yr)'!J82-'Proposed NW Proj Direct Costs'!J82)/J82) -> 
B83: 48V DC Systems | C83: Repex | D83: AP.3.3.02 | E83: ='Proposed NW Projects (Reg Yr)'!E83/(1+$L$3) -> 222.1850362 | F83: ='Proposed NW Projects (Reg Yr)'!F83/(1+$L$3) -> 206.6221499 | G83: ='Proposed NW Projects (Reg Yr)'!G83/(1+$L$3) -> 206.6221499 | H83: ='Proposed NW Projects (Reg Yr)'!H83/(1+$L$3) -> 206.6221499 | I83: ='Proposed NW Projects (Reg Yr)'!I83/(1+$L$3) -> 218.5426586 | J83: =SUM(E83:I83) -> 1060.594145 | K83: C-1 | L83: =IF('Proposed NW Projects (Reg Yr)'!J83="","",('Proposed NW Projects (Reg Yr)'!J83-'Proposed NW Proj Direct Costs'!J83)/J83) -> 0.05072810203
B84: UPAX/Business Telephone Network | C84: Non-network | D84: AP.3.3.07 | E84: ='Proposed NW Projects (Reg Yr)'!E84/(1+$L$3) -> 692.6766878 | F84: ='Proposed NW Projects (Reg Yr)'!F84/(1+$L$3) -> 125.941216 | G84: ='Proposed NW Projects (Reg Yr)'!G84/(1+$L$3) -> 230.8922293 | H84: ='Proposed NW Projects (Reg Yr)'!H84/(1+$L$3) -> 503.7648638 | I84: ='Proposed NW Projects (Reg Yr)'!I84/(1+$L$3) -> 398.8138505 | J84: 1952.088847 | K84: C-1 | L84: =IF('Proposed NW Projects (Reg Yr)'!J84="","",('Proposed NW Projects (Reg Yr)'!J84-'Proposed NW Proj Direct Costs'!J84)/J84) -> 0.05072810203
B85: Data Network | C85: Repex | D85: AP.3.3.12 | E85: ='Proposed NW Projects (Reg Yr)'!E85/(1+$L$3) -> 1110.262931 | F85: ='Proposed NW Projects (Reg Yr)'!F85/(1+$L$3) -> 1110.262931 | G85: ='Proposed NW Projects (Reg Yr)'!G85/(1+$L$3) -> 777.4820642 | H85: ='Proposed NW Projects (Reg Yr)'!H85/(1+$L$3) -> 939.4023067 | I85: ='Proposed NW Projects (Reg Yr)'!I85/(1+$L$3) -> 939.4023067 | J85: 4876.812539 | K85: C-1 | L85: =IF('Proposed NW Projects (Reg Yr)'!J85="","",('Proposed NW Projects (Reg Yr)'!J85-'Proposed NW Proj Direct Costs'!J85)/J85) -> 0.05072810203
B86: Microwave Radio | C86: Repex | D86: AP.3.3.01 | E86: ='Proposed NW Projects (Reg Yr)'!E86/(1+$L$3) -> 96.02631968 | F86: ='Proposed NW Projects (Reg Yr)'!F86/(1+$L$3) -> 201.9863966 | G86: ='Proposed NW Projects (Reg Yr)'!G86/(1+$L$3) -> 211.9201538 | H86: ='Proposed NW Projects (Reg Yr)'!H86/(1+$L$3) -> 211.9201538 | I86: ='Proposed NW Projects (Reg Yr)'!I86/(1+$L$3) -> 211.9201538 | J86: 933.7731776 | K86: C-1 | L86: =IF('Proposed NW Projects (Reg Yr)'!J86="","",('Proposed NW Projects (Reg Yr)'!J86-'Proposed NW Proj Direct Costs'!J86)/J86) -> 0.05072810203
B87: Minor Works - Unplanned | C87: Repex | D87: Historic | E87: ='Proposed NW Projects (Reg Yr)'!E87/(1+$L$3) -> 596.0254325 | F87: ='Proposed NW Projects (Reg Yr)'!F87/(1+$L$3) -> 596.0254325 | G87: ='Proposed NW Projects (Reg Yr)'!G87/(1+$L$3) -> 629.1379565 | H87: ='Proposed NW Projects (Reg Yr)'!H87/(1+$L$3) -> 662.2504806 | I87: ='Proposed NW Projects (Reg Yr)'!I87/(1+$L$3) -> 662.2504806 | J87: 3145.689783 | K87: C-1 | L87: =IF('Proposed NW Projects (Reg Yr)'!J87="","",('Proposed NW Projects (Reg Yr)'!J87-'Proposed NW Proj Direct Costs'!J87)/J87) -> 0.05072810203
B88: Misc Radio Systems | C88: Repex | D88: AP.3.3.05 | E88: ='Proposed NW Projects (Reg Yr)'!E88/(1+$L$3) -> 481.4560994 | F88: ='Proposed NW Projects (Reg Yr)'!F88/(1+$L$3) -> 129.1388437 | G88: ='Proposed NW Projects (Reg Yr)'!G88/(1+$L$3) -> 129.1388437 | H88: ='Proposed NW Projects (Reg Yr)'!H88/(1+$L$3) -> 129.1388437 | I88: ='Proposed NW Projects (Reg Yr)'!I88/(1+$L$3) -> 129.1388437 | J88: 998.0114742 | K88: C-1 | L88: =IF('Proposed NW Projects (Reg Yr)'!J88="","",('Proposed NW Projects (Reg Yr)'!J88-'Proposed NW Proj Direct Costs'!J88)/J88) -> 0.05072810203
B89: Network Tel Planning Labour Capitalisation | C89: Repex | D89: Historic | E89: ='Proposed NW Projects (Reg Yr)'!E89/(1+$L$3) -> 463.5753364 | F89: ='Proposed NW Projects (Reg Yr)'!F89/(1+$L$3) -> 463.5753364 | G89: ='Proposed NW Projects (Reg Yr)'!G89/(1+$L$3) -> 463.5753364 | H89: ='Proposed NW Projects (Reg Yr)'!H89/(1+$L$3) -> 463.5753364 | I89: ='Proposed NW Projects (Reg Yr)'!I89/(1+$L$3) -> 463.5753364 | J89: 2317.876682 | K89: C-1 | L89: =IF('Proposed NW Projects (Reg Yr)'!J89="","",('Proposed NW Projects (Reg Yr)'!J89-'Proposed NW Proj Direct Costs'!J89)/J89) -> 0.05072810203
B90: Optical Fibre Network | C90: Repex | D90: AP.3.3.04 | E90: ='Proposed NW Projects (Reg Yr)'!E90/(1+$L$3) -> 331.1252403 | F90: ='Proposed NW Projects (Reg Yr)'!F90/(1+$L$3) -> 331.1252403 | G90: ='Proposed NW Projects (Reg Yr)'!G90/(1+$L$3) -> 331.1252403 | H90: ='Proposed NW Projects (Reg Yr)'!H90/(1+$L$3) -> 331.1252403 | I90: ='Proposed NW Projects (Reg Yr)'!I90/(1+$L$3) -> 331.1252403 | J90: 1655.626201 | K90: C-1 | L90: =IF('Proposed NW Projects (Reg Yr)'!J90="","",('Proposed NW Projects (Reg Yr)'!J90-'Proposed NW Proj Direct Costs'!J90)/J90) -> 0.05072810203
B91: Pilot Cable Network (incl CBD) stage 2 | C91: Repex | D91: AP.3.3.03 | E91: ='Proposed NW Projects (Reg Yr)'!E91/(1+$L$3) -> 33.11252403 | F91: ='Proposed NW Projects (Reg Yr)'!F91/(1+$L$3) -> 33.11252403 | G91: ='Proposed NW Projects (Reg Yr)'!G91/(1+$L$3) -> 33.11252403 | H91: ='Proposed NW Projects (Reg Yr)'!H91/(1+$L$3) -> 33.11252403 | I91: ='Proposed NW Projects (Reg Yr)'!I91/(1+$L$3) -> 33.11252403 | J91: 165.5626201 | K91: C-1 | L91: =IF('Proposed NW Projects (Reg Yr)'!J91="","",('Proposed NW Projects (Reg Yr)'!J91-'Proposed NW Proj Direct Costs'!J91)/J91) -> 0.05072810203
B92: SDH Network | C92: Repex | D92: AP.3.3.10 | E92: ='Proposed NW Projects (Reg Yr)'!E92/(1+$L$3) -> 44.3707822 | F92: ='Proposed NW Projects (Reg Yr)'!F92/(1+$L$3) -> 253.9730593 | G92: ='Proposed NW Projects (Reg Yr)'!G92/(1+$L$3) -> 253.9730593 | H92: ='Proposed NW Projects (Reg Yr)'!H92/(1+$L$3) -> 44.3707822 | I92: ='Proposed NW Projects (Reg Yr)'!I92/(1+$L$3) -> 44.3707822 | J92: 641.0584652 | K92: C-1 | L92: =IF('Proposed NW Projects (Reg Yr)'!J92="","",('Proposed NW Projects (Reg Yr)'!J92-'Proposed NW Proj Direct Costs'!J92)/J92) -> 0.05072810203
B93: TNOC Management Systems | C93: Non-network | D93: AP.3.3.08 | E93: ='Proposed NW Projects (Reg Yr)'!E93/(1+$L$3) -> 293.8628372 | F93: ='Proposed NW Projects (Reg Yr)'!F93/(1+$L$3) -> 713.6668904 | G93: ='Proposed NW Projects (Reg Yr)'!G93/(1+$L$3) -> 776.6374984 | H93: ='Proposed NW Projects (Reg Yr)'!H93/(1+$L$3) -> 356.8334452 | I93: ='Proposed NW Projects (Reg Yr)'!I93/(1+$L$3) -> 356.8334452 | J93: 2497.834117 | K93: C-1 | L93: =IF('Proposed NW Projects (Reg Yr)'!J93="","",('Proposed NW Projects (Reg Yr)'!J93-'Proposed NW Proj Direct Costs'!J93)/J93) -> 0.05072810203
B94: OT Cyber Security | C94: Non-network | D94: New | E94: ='Proposed NW Projects (Reg Yr)'!E94/(1+$L$3) -> 503.7648638 | F94: ='Proposed NW Projects (Reg Yr)'!F94/(1+$L$3) -> 1343.37297 | G94: ='Proposed NW Projects (Reg Yr)'!G94/(1+$L$3) -> 1385.353376 | H94: ='Proposed NW Projects (Reg Yr)'!H94/(1+$L$3) -> 629.7060798 | I94: ='Proposed NW Projects (Reg Yr)'!I94/(1+$L$3) -> 587.7256745 | J94: 4449.922964 | K94: C-1 | L94: =IF('Proposed NW Projects (Reg Yr)'!J94="","",('Proposed NW Projects (Reg Yr)'!J94-'Proposed NW Proj Direct Costs'!J94)/J94) -> 0.05072810203
B95: Other | C95: Repex | E95: ='Proposed NW Projects (Reg Yr)'!E95/(1+$L$3) -> 335.8432426 | F95: ='Proposed NW Projects (Reg Yr)'!F95/(1+$L$3) -> 335.8432426 | G95: ='Proposed NW Projects (Reg Yr)'!G95/(1+$L$3) -> 335.8432426 | H95: ='Proposed NW Projects (Reg Yr)'!H95/(1+$L$3) -> 335.8432426 | I95: ='Proposed NW Projects (Reg Yr)'!I95/(1+$L$3) -> 335.8432426 | J95: 1679.216213 | K95: C-1 | L95: =IF('Proposed NW Projects (Reg Yr)'!J95="","",('Proposed NW Projects (Reg Yr)'!J95-'Proposed NW Proj Direct Costs'!J95)/J95) -> 0.05072810203
D96: Non-network | E96: =-(E94+E93+E84) -> -1490.304389 | F96: =-(F94+F93+F84) -> -2182.981077 | G96: =-(G94+G93+G84) -> -2392.883103 | H96: =-(H94+H93+H84) -> -1490.304389 | I96: =-(I94+I93+I84) -> -1343.37297 | J96: -8899.845928 | K96: C-1 | L96: =IF('Proposed NW Projects (Reg Yr)'!J96="","",('Proposed NW Projects (Reg Yr)'!J96-'Proposed NW Proj Direct Costs'!J96)/J96) -> 0.05072810203
B97: Repex / Refurb - Telecom'n (subtotal) | D97: subtotal | E97: =SUM(E83:E96) -> 3713.982944 | F97: 3661.665156 | G97: 3371.930571 | H97: 3357.36106 | I97: 3369.281569 | J97: 17474.2213 | L97: =IF('Proposed NW Projects (Reg Yr)'!J97="","",('Proposed NW Projects (Reg Yr)'!J97-'Proposed NW Proj Direct Costs'!J97)/J97) -> 0.05072810203
B98: Replacement & Refurbishment (Total) | D98: Total | E98: =SUM(E63,E81,E97,) -> 110356.8571 | F98: 112384.0748 | G98: 113905.1252 | H98: 110349.2665 | I98: 106613.2939 | J98: 553608.6174 | K98: =K96 -> C-1 | L98: =IF('Proposed NW Projects (Reg Yr)'!J98="","",('Proposed NW Projects (Reg Yr)'!J98-'Proposed NW Proj Direct Costs'!J98)/J98) -> 0.05072810203
A99: Environment | L99: =IF('Proposed NW Projects (Reg Yr)'!J99="","",('Proposed NW Projects (Reg Yr)'!J99-'Proposed NW Proj Direct Costs'!J99)/J99) -> 
B100: Environmental Management - Lines (incl oil containment, EMF) | C100: Augex | D100: AP.4.1.03 | E100: ='Proposed NW Projects (Reg Yr)'!E100/(1+$L$3) -> 166.8508353 | F100: ='Proposed NW Projects (Reg Yr)'!F100/(1+$L$3) -> 166.8508353 | G100: ='Proposed NW Projects (Reg Yr)'!G100/(1+$L$3) -> 166.8508353 | H100: ='Proposed NW Projects (Reg Yr)'!H100/(1+$L$3) -> 166.8508353 | I100: ='Proposed NW Projects (Reg Yr)'!I100/(1+$L$3) -> 166.8508353 | J100: =SUM(E100:I100) -> 834.2541763 | K100: C-6 | L100: =IF('Proposed NW Projects (Reg Yr)'!J100="","",('Proposed NW Projects (Reg Yr)'!J100-'Proposed NW Proj Direct Costs'!J100)/J100) -> 0.05072810203
B101: Oil Containment - Substation | C101: Augex | D101: AP.4.1.01 | E101: ='Proposed NW Projects (Reg Yr)'!E101/(1+$L$3) -> 1418.2321 | F101: ='Proposed NW Projects (Reg Yr)'!F101/(1+$L$3) -> 1418.2321 | G101: ='Proposed NW Projects (Reg Yr)'!G101/(1+$L$3) -> 1418.2321 | H101: ='Proposed NW Projects (Reg Yr)'!H101/(1+$L$3) -> 1418.2321 | I101: ='Proposed NW Projects (Reg Yr)'!I101/(1+$L$3) -> 1418.2321 | J101: =SUM(E101:I101) -> 7091.160499 | K101: C-6 | L101: =IF('Proposed NW Projects (Reg Yr)'!J101="","",('Proposed NW Projects (Reg Yr)'!J101-'Proposed NW Proj Direct Costs'!J101)/J101) -> 0.05072810203
B102: Environmental Management - Subs (eg noise abatement) | C102: Augex | D102: AP.4.1.05 | E102: ='Proposed NW Projects (Reg Yr)'!E102/(1+$L$3) -> 142.6574642 | F102: ='Proposed NW Projects (Reg Yr)'!F102/(1+$L$3) -> 142.6574642 | G102: ='Proposed NW Projects (Reg Yr)'!G102/(1+$L$3) -> 142.6574642 | H102: ='Proposed NW Projects (Reg Yr)'!H102/(1+$L$3) -> 142.6574642 | I102: ='Proposed NW Projects (Reg Yr)'!I102/(1+$L$3) -> 142.6574642 | J102: =SUM(E102:I102) -> 713.2873208 | K102: C-6 | L102: =IF('Proposed NW Projects (Reg Yr)'!J102="","",('Proposed NW Projects (Reg Yr)'!J102-'Proposed NW Proj Direct Costs'!J102)/J102) -> 0.05072810203
L103: =IF('Proposed NW Projects (Reg Yr)'!J103="","",('Proposed NW Projects (Reg Yr)'!J103-'Proposed NW Proj Direct Costs'!J103)/J103) -> 
B104: Environment (Total) | D104: Total | E104: =SUM(E100:E103) -> 1727.740399 | F104: 1727.740399 | G104: 1727.740399 | H104: 1727.740399 | I104: 1727.740399 | J104: 8638.701996 | K104: =K102 -> C-6 | L104: =IF('Proposed NW Projects (Reg Yr)'!J104="","",('Proposed NW Projects (Reg Yr)'!J104-'Proposed NW Proj Direct Costs'!J104)/J104) -> 0.05072810203
A105: Safety | L105: =IF('Proposed NW Projects (Reg Yr)'!J105="","",('Proposed NW Projects (Reg Yr)'!J105-'Proposed NW Proj Direct Costs'!J105)/J105) -> 
B106: Elizabeth Transformer Stations | C106: Repex | D106: AP.5.1.02 | E106: ='Proposed NW Projects (Reg Yr)'!E106/(1+$L$3) -> 411.9129996 | F106: ='Proposed NW Projects (Reg Yr)'!F106/(1+$L$3) -> 417.1270882 | G106: ='Proposed NW Projects (Reg Yr)'!G106/(1+$L$3) -> 417.1270882 | H106: ='Proposed NW Projects (Reg Yr)'!H106/(1+$L$3) -> 417.1270882 | I106: ='Proposed NW Projects (Reg Yr)'!I106/(1+$L$3) -> 417.1270882 | J106: =SUM(E106:I106) -> 2080.421352 | K106: C-8 | L106: =IF('Proposed NW Projects (Reg Yr)'!J106="","",('Proposed NW Projects (Reg Yr)'!J106-'Proposed NW Proj Direct Costs'!J106)/J106) -> 0.05072810203
B107: Line Clearance Rectification - Distribution | C107: Repex | D107: AP.5.1.06 | E107: ='Proposed NW Projects (Reg Yr)'!E107/(1+$L$3) -> 2746.985027 | F107: ='Proposed NW Projects (Reg Yr)'!F107/(1+$L$3) -> 2746.985027 | G107: ='Proposed NW Projects (Reg Yr)'!G107/(1+$L$3) -> 2746.985027 | H107: ='Proposed NW Projects (Reg Yr)'!H107/(1+$L$3) -> 2746.985027 | I107: ='Proposed NW Projects (Reg Yr)'!I107/(1+$L$3) -> 2746.985027 | J107: 13734.92514 | K107: C-8 | L107: =IF('Proposed NW Projects (Reg Yr)'!J107="","",('Proposed NW Projects (Reg Yr)'!J107-'Proposed NW Proj Direct Costs'!J107)/J107) -> 0.05072810203
B108: Substation Asbestos Removal | C108: Repex | E108: ='Proposed NW Projects (Reg Yr)'!E108/(1+$L$3) -> 137.9983363 | F108: ='Proposed NW Projects (Reg Yr)'!F108/(1+$L$3) -> 203.7804595 | G108: ='Proposed NW Projects (Reg Yr)'!G108/(1+$L$3) -> 203.7804595 | H108: ='Proposed NW Projects (Reg Yr)'!H108/(1+$L$3) -> 203.7804595 | I108: ='Proposed NW Projects (Reg Yr)'!I108/(1+$L$3) -> 203.7804595 | J108: =SUM(E108:I108) -> 953.1201742 | K108: C-8 | L108: =IF('Proposed NW Projects (Reg Yr)'!J108="","",('Proposed NW Projects (Reg Yr)'!J108-'Proposed NW Proj Direct Costs'!J108)/J108) -> 0.05072810203
B109: Substation Lighting | C109: Augex | D109: AP.5.1.05 | E109: ='Proposed NW Projects (Reg Yr)'!E109/(1+$L$3) -> 100.1105012 | F109: ='Proposed NW Projects (Reg Yr)'!F109/(1+$L$3) -> 100.1105012 | G109: ='Proposed NW Projects (Reg Yr)'!G109/(1+$L$3) -> 100.1105012 | H109: ='Proposed NW Projects (Reg Yr)'!H109/(1+$L$3) -> 100.1105012 | I109: ='Proposed NW Projects (Reg Yr)'!I109/(1+$L$3) -> 100.1105012 | J109: 500.5525058 | K109: C-7 | L109: =IF('Proposed NW Projects (Reg Yr)'!J109="","",('Proposed NW Projects (Reg Yr)'!J109-'Proposed NW Proj Direct Costs'!J109)/J109) -> 0.05072810203
B110: Substation Security & Fencing | C110: Augex | D110: AP.5.1.03 | E110: ='Proposed NW Projects (Reg Yr)'!E110/(1+$L$3) -> 2002.210023 | F110: ='Proposed NW Projects (Reg Yr)'!F110/(1+$L$3) -> 2002.210023 | G110: ='Proposed NW Projects (Reg Yr)'!G110/(1+$L$3) -> 2002.210023 | H110: ='Proposed NW Projects (Reg Yr)'!H110/(1+$L$3) -> 2002.210023 | I110: ='Proposed NW Projects (Reg Yr)'!I110/(1+$L$3) -> 2002.210023 | J110: 10011.05012 | K110: C-7 | L110: =IF('Proposed NW Projects (Reg Yr)'!J110="","",('Proposed NW Projects (Reg Yr)'!J110-'Proposed NW Proj Direct Costs'!J110)/J110) -> 0.05072810203
B111: CBD Maintenance Projects (CBD Safety) | C111: Repex | D111: AP.2.1.07 | E111: ='Proposed NW Projects (Reg Yr)'!E111/(1+$L$3) -> 354.4825425 | F111: ='Proposed NW Projects (Reg Yr)'!F111/(1+$L$3) -> 354.4825425 | G111: ='Proposed NW Projects (Reg Yr)'!G111/(1+$L$3) -> 354.4825425 | H111: ='Proposed NW Projects (Reg Yr)'!H111/(1+$L$3) -> 354.4825425 | I111: ='Proposed NW Projects (Reg Yr)'!I111/(1+$L$3) -> 354.4825425 | J111: 1772.412713 | K111: C-8 | L111: =IF('Proposed NW Projects (Reg Yr)'!J111="","",('Proposed NW Projects (Reg Yr)'!J111-'Proposed NW Proj Direct Costs'!J111)/J111) -> 0.05072810203
B112: Emergency Switching Communication (Mobile Radio) | C112: Repex | D112: AP.3.3.06 | E112: ='Proposed NW Projects (Reg Yr)'!E112/(1+$L$3) -> 579.4691705 | F112: ='Proposed NW Projects (Reg Yr)'!F112/(1+$L$3) -> 579.4691705 | G112: ='Proposed NW Projects (Reg Yr)'!G112/(1+$L$3) -> 248.3439302 | H112: ='Proposed NW Projects (Reg Yr)'!H112/(1+$L$3) -> 662.2504806 | I112: ='Proposed NW Projects (Reg Yr)'!I112/(1+$L$3) -> 596.0254325 | J112: 2665.558184 | K112: C-8 | L112: =IF('Proposed NW Projects (Reg Yr)'!J112="","",('Proposed NW Projects (Reg Yr)'!J112-'Proposed NW Proj Direct Costs'!J112)/J112) -> 0.05072810203
B113: Substation Infrastructure - Earth systems (Earth Grid Upgrades) | C113: Augex | D113: AP.3.2.10 | E113: ='Proposed NW Projects (Reg Yr)'!E113/(1+$L$3) -> 1026.132637 | F113: ='Proposed NW Projects (Reg Yr)'!F113/(1+$L$3) -> 1026.132637 | G113: ='Proposed NW Projects (Reg Yr)'!G113/(1+$L$3) -> 1026.132637 | H113: ='Proposed NW Projects (Reg Yr)'!H113/(1+$L$3) -> 1026.132637 | I113: ='Proposed NW Projects (Reg Yr)'!I113/(1+$L$3) -> 1026.132637 | J113: 5130.663184 | K113: C-7 | L113: =IF('Proposed NW Projects (Reg Yr)'!J113="","",('Proposed NW Projects (Reg Yr)'!J113-'Proposed NW Proj Direct Costs'!J113)/J113) -> 0.05072810203
B114: Distribution Earthing | C114: Repex | D114: AP.3.1.18 | E114: ='Proposed NW Projects (Reg Yr)'!E114/(1+$L$3) -> 75.24771297 | F114: ='Proposed NW Projects (Reg Yr)'!F114/(1+$L$3) -> 100.330284 | G114: ='Proposed NW Projects (Reg Yr)'!G114/(1+$L$3) -> 100.330284 | H114: ='Proposed NW Projects (Reg Yr)'!H114/(1+$L$3) -> 100.330284 | I114: ='Proposed NW Projects (Reg Yr)'!I114/(1+$L$3) -> 100.330284 | J114: 476.5688488 | K114: C-8 | L114: =IF('Proposed NW Projects (Reg Yr)'!J114="","",('Proposed NW Projects (Reg Yr)'!J114-'Proposed NW Proj Direct Costs'!J114)/J114) -> 0.05072810203
B115: Telco Structures | C115: Repex | D115: AP.3.3.13 | E115: ='Proposed NW Projects (Reg Yr)'!E115/(1+$L$3) -> 277.0706751 | F115: ='Proposed NW Projects (Reg Yr)'!F115/(1+$L$3) -> 277.0706751 | G115: ='Proposed NW Projects (Reg Yr)'!G115/(1+$L$3) -> 277.0706751 | H115: ='Proposed NW Projects (Reg Yr)'!H115/(1+$L$3) -> 277.0706751 | I115: ='Proposed NW Projects (Reg Yr)'!I115/(1+$L$3) -> 768.2414173 | J115: 1876.524118 | K115: C-8 | L115: =IF('Proposed NW Projects (Reg Yr)'!J115="","",('Proposed NW Projects (Reg Yr)'!J115-'Proposed NW Proj Direct Costs'!J115)/J115) -> 0.05072810203
B116: Switchgear - Ground Level - Planned | C116: Repex | D116: AP.3.1.03 | E116: ='Proposed NW Projects (Reg Yr)'!E116/(1+$L$3) -> 2982.525564 | F116: ='Proposed NW Projects (Reg Yr)'!F116/(1+$L$3) -> 2982.525564 | G116: ='Proposed NW Projects (Reg Yr)'!G116/(1+$L$3) -> 2982.525564 | H116: ='Proposed NW Projects (Reg Yr)'!H116/(1+$L$3) -> 2982.525564 | I116: ='Proposed NW Projects (Reg Yr)'!I116/(1+$L$3) -> 2982.525564 | J116: 14912.62782 | K116: C-8 | L116: =IF('Proposed NW Projects (Reg Yr)'!J116="","",('Proposed NW Projects (Reg Yr)'!J116-'Proposed NW Proj Direct Costs'!J116)/J116) -> 0.05072810203
B117: Instrument Transformers (CTs & VTs) | C117: Repex | D117: AP.3.2.02 | E117: ='Proposed NW Projects (Reg Yr)'!E117/(1+$L$3) -> 487.6215661 | F117: ='Proposed NW Projects (Reg Yr)'!F117/(1+$L$3) -> 575.2182546 | G117: ='Proposed NW Projects (Reg Yr)'!G117/(1+$L$3) -> 541.4309604 | H117: ='Proposed NW Projects (Reg Yr)'!H117/(1+$L$3) -> 541.4309604 | I117: ='Proposed NW Projects (Reg Yr)'!I117/(1+$L$3) -> 541.4309604 | J117: 2687.132702 | K117: C-8 | L117: =IF('Proposed NW Projects (Reg Yr)'!J117="","",('Proposed NW Projects (Reg Yr)'!J117-'Proposed NW Proj Direct Costs'!J117)/J117) -> 0.05072810203
B118: Rural Protection | C118: Augex | D118: AP.3.2.14 | E118: ='Proposed NW Projects (Reg Yr)'!E118/(1+$L$3) -> 897.0373009 | F118: ='Proposed NW Projects (Reg Yr)'!F118/(1+$L$3) -> 1190.564295 | G118: ='Proposed NW Projects (Reg Yr)'!G118/(1+$L$3) -> 1190.564295 | H118: ='Proposed NW Projects (Reg Yr)'!H118/(1+$L$3) -> 1184.267234 | I118: ='Proposed NW Projects (Reg Yr)'!I118/(1+$L$3) -> 897.0373009 | J118: 5359.470426 | K118: C-7 | L118: =IF('Proposed NW Projects (Reg Yr)'!J118="","",('Proposed NW Projects (Reg Yr)'!J118-'Proposed NW Proj Direct Costs'!J118)/J118) -> 0.05072810203
B119: Network Protection Substation Audits | C119: Augex | D119: Historic | E119: ='Proposed NW Projects (Reg Yr)'!E119/(1+$L$3) -> 250.2762529 | F119: ='Proposed NW Projects (Reg Yr)'!F119/(1+$L$3) -> 250.2762529 | G119: ='Proposed NW Projects (Reg Yr)'!G119/(1+$L$3) -> 250.2762529 | H119: ='Proposed NW Projects (Reg Yr)'!H119/(1+$L$3) -> 250.2762529 | I119: ='Proposed NW Projects (Reg Yr)'!I119/(1+$L$3) -> 250.2762529 | J119: 1251.381264 | K119: C-7 | L119: =IF('Proposed NW Projects (Reg Yr)'!J119="","",('Proposed NW Projects (Reg Yr)'!J119-'Proposed NW Proj Direct Costs'!J119)/J119) -> 0.05072810203
B120: CBD 33kV Substation Migration to 11kV | C120: Augex | D120: AP.2.1.07 | E120: ='Proposed NW Projects (Reg Yr)'!E120/(1+$L$3) -> 1341.799714 | F120: ='Proposed NW Projects (Reg Yr)'!F120/(1+$L$3) -> 1341.799714 | G120: ='Proposed NW Projects (Reg Yr)'!G120/(1+$L$3) -> 1341.799714 | H120: ='Proposed NW Projects (Reg Yr)'!H120/(1+$L$3) -> 1341.799714 | I120: ='Proposed NW Projects (Reg Yr)'!I120/(1+$L$3) -> 1341.799714 | J120: 6708.998569 | K120: C-7 | L120: =IF('Proposed NW Projects (Reg Yr)'!J120="","",('Proposed NW Projects (Reg Yr)'!J120-'Proposed NW Proj Direct Costs'!J120)/J120) -> 0.05072810203
B121: Planned & Unplanned Disconnector Repl | C121: Repex | D121: AP.3.2.17 | E121: ='Proposed NW Projects (Reg Yr)'!E121/(1+$L$3) -> 383.7569211 | F121: ='Proposed NW Projects (Reg Yr)'!F121/(1+$L$3) -> 383.7569211 | G121: ='Proposed NW Projects (Reg Yr)'!G121/(1+$L$3) -> 372.4944897 | H121: ='Proposed NW Projects (Reg Yr)'!H121/(1+$L$3) -> 361.2320584 | I121: ='Proposed NW Projects (Reg Yr)'!I121/(1+$L$3) -> 361.2320584 | J121: 1862.472449 | K121: C-8 | L121: =IF('Proposed NW Projects (Reg Yr)'!J121="","",('Proposed NW Projects (Reg Yr)'!J121-'Proposed NW Proj Direct Costs'!J121)/J121) -> 0.05072810203
B122: Substations rebuilds at BHP Ardrossan, Quorn & Burra substations. Kleins Point & Walkers Flat substation rebuilds + Wilmington (19672) | C122: Repex | D122: AP.3.2.12 | E122: ='Proposed NW Projects (Reg Yr)'!E122/(1+$L$3) -> 1673.906024 | F122: ='Proposed NW Projects (Reg Yr)'!F122/(1+$L$3) -> 1673.906024 | G122: ='Proposed NW Projects (Reg Yr)'!G122/(1+$L$3) -> 1673.906024 | H122: ='Proposed NW Projects (Reg Yr)'!H122/(1+$L$3) -> 1673.906024 | I122: ='Proposed NW Projects (Reg Yr)'!I122/(1+$L$3) -> 1673.906024 | J122: 8369.530121 | K122: C-8 | L122: =IF('Proposed NW Projects (Reg Yr)'!J122="","",('Proposed NW Projects (Reg Yr)'!J122-'Proposed NW Proj Direct Costs'!J122)/J122) -> 0.05072810203
B123: CBD Pilot Cable replacement program | C123: Repex | E123: ='Proposed NW Projects (Reg Yr)'!E123/(1+$L$3) -> 498.7590909 | F123: ='Proposed NW Projects (Reg Yr)'!F123/(1+$L$3) -> 0 | G123: ='Proposed NW Projects (Reg Yr)'!G123/(1+$L$3) -> 0 | H123: ='Proposed NW Projects (Reg Yr)'!H123/(1+$L$3) -> 0 | I123: ='Proposed NW Projects (Reg Yr)'!I123/(1+$L$3) -> 0 | J123: 498.7590909 | K123: C-8 | L123: =IF('Proposed NW Projects (Reg Yr)'!J123="","",('Proposed NW Projects (Reg Yr)'!J123-'Proposed NW Proj Direct Costs'!J123)/J123) -> 0.05072810203
L124: =IF('Proposed NW Projects (Reg Yr)'!J124="","",('Proposed NW Projects (Reg Yr)'!J124-'Proposed NW Proj Direct Costs'!J124)/J124) -> 
B125: Bushfire | L125: =IF('Proposed NW Projects (Reg Yr)'!J125="","",('Proposed NW Projects (Reg Yr)'!J125-'Proposed NW Proj Direct Costs'!J125)/J125) -> 
B126: Bushfire Risk Reduction | C126: Augex | D126: B Case | E126: ='Proposed NW Projects (Reg Yr)'!E126/(1+$L$3) -> 2031.408919 | F126: ='Proposed NW Projects (Reg Yr)'!F126/(1+$L$3) -> 2000.124388 | G126: ='Proposed NW Projects (Reg Yr)'!G126/(1+$L$3) -> 2018.895107 | H126: ='Proposed NW Projects (Reg Yr)'!H126/(1+$L$3) -> 1993.867481 | I126: ='Proposed NW Projects (Reg Yr)'!I126/(1+$L$3) -> 1981.353669 | J126: =SUM(E126:I126) -> 10025.64956 | K126: C-18 | L126: =IF('Proposed NW Projects (Reg Yr)'!J126="","",('Proposed NW Projects (Reg Yr)'!J126-'Proposed NW Proj Direct Costs'!J126)/J126) -> 0.05072810203
L127: =IF('Proposed NW Projects (Reg Yr)'!J127="","",('Proposed NW Projects (Reg Yr)'!J127-'Proposed NW Proj Direct Costs'!J127)/J127) -> 
B128: Repex Sub-total | C128: Repex | E128: =SUM(E106:E108,E111:E112,E114:E117,E121:E123) -> 10609.73563 | F128: =SUM(F106:F108,F111:F112,F114:F117,F121:F123) -> 10294.65201 | G128: 9918.477045 | H128: 10321.12116 | I128: 10746.06686 | J128: 51890.05271 | K128: =K123 -> C-8 | L128: =IF('Proposed NW Projects (Reg Yr)'!J128="","",('Proposed NW Projects (Reg Yr)'!J128-'Proposed NW Proj Direct Costs'!J128)/J128) -> 0.05072810203
B129: Augex Sub-total | C129: Augex | E129: =SUM(E109:E110,E113,E118:E120,) -> 5617.566429 | F129: =SUM(F109:F110,F113,F118:F120,) -> 5911.093423 | G129: =SUM(G109:G110,G113,G118:G120,) -> 5911.093423 | H129: =SUM(H109:H110,H113,H118:H120,) -> 5904.796362 | I129: =SUM(I109:I110,I113,I118:I120,) -> 5617.566429 | J129: 28962.11607 | K129: =K120 -> C-7 | L129: =IF('Proposed NW Projects (Reg Yr)'!J129="","",('Proposed NW Projects (Reg Yr)'!J129-'Proposed NW Proj Direct Costs'!J129)/J129) -> 0.05072810203
L130: =IF('Proposed NW Projects (Reg Yr)'!J130="","",('Proposed NW Projects (Reg Yr)'!J130-'Proposed NW Proj Direct Costs'!J130)/J130) -> 
B131: Safety (Total) | D131: Total | E131: =E126+E128+E129+E130 -> 18258.71098 | F131: 18205.86982 | G131: 17848.46557 | H131: 18219.78501 | I131: 18344.98696 | J131: 90877.81834 | L131: =IF('Proposed NW Projects (Reg Yr)'!J131="","",('Proposed NW Projects (Reg Yr)'!J131-'Proposed NW Proj Direct Costs'!J131)/J131) -> 0.05072810203
A132: Network ("Strategic" category) | L132: =IF('Proposed NW Projects (Reg Yr)'!J132="","",('Proposed NW Projects (Reg Yr)'!J132-'Proposed NW Proj Direct Costs'!J132)/J132) -> 
B133: Substations CM equip | C133: Augex | D133: AMP 3.0.01 | E133: ='Proposed NW Projects (Reg Yr)'!E133/(1+$L$3) -> 250.2762529 | F133: ='Proposed NW Projects (Reg Yr)'!F133/(1+$L$3) -> 250.2762529 | G133: ='Proposed NW Projects (Reg Yr)'!G133/(1+$L$3) -> 250.2762529 | H133: ='Proposed NW Projects (Reg Yr)'!H133/(1+$L$3) -> 250.2762529 | I133: ='Proposed NW Projects (Reg Yr)'!I133/(1+$L$3) -> 250.2762529 | J133: =SUM(E133:I133) -> 1251.381264 | K133: C-15 | L133: =IF('Proposed NW Projects (Reg Yr)'!J133="","",('Proposed NW Projects (Reg Yr)'!J133-'Proposed NW Proj Direct Costs'!J133)/J133) -> 0.05072810203
L134: =IF('Proposed NW Projects (Reg Yr)'!J134="","",('Proposed NW Projects (Reg Yr)'!J134-'Proposed NW Proj Direct Costs'!J134)/J134) -> 
B135: Network - Strategic (Total) | D135: Total | E135: =SUM(E133:E134) -> 250.2762529 | F135: 250.2762529 | G135: 250.2762529 | H135: 250.2762529 | I135: 250.2762529 | J135: 1251.381264 | K135: =K133 -> C-15 | L135: =IF('Proposed NW Projects (Reg Yr)'!J135="","",('Proposed NW Projects (Reg Yr)'!J135-'Proposed NW Proj Direct Costs'!J135)/J135) -> 0.05072810203
A136: Network Control | L136: =IF('Proposed NW Projects (Reg Yr)'!J136="","",('Proposed NW Projects (Reg Yr)'!J136-'Proposed NW Proj Direct Costs'!J136)/J136) -> 
B137: SCADA to remaining substations | C137: Augex | D137: AP.2.1.02 | E137: ='Proposed NW Projects (Reg Yr)'!E137/(1+$L$3) -> 0 | F137: ='Proposed NW Projects (Reg Yr)'!F137/(1+$L$3) -> 0 | G137: ='Proposed NW Projects (Reg Yr)'!G137/(1+$L$3) -> 0 | H137: ='Proposed NW Projects (Reg Yr)'!H137/(1+$L$3) -> 0 | I137: ='Proposed NW Projects (Reg Yr)'!I137/(1+$L$3) -> 0 | J137: =SUM(E137:I137) -> 0 | K137: C-15 | L137: =IF('Proposed NW Projects (Reg Yr)'!J137=0,0,('Proposed NW Projects (Reg Yr)'!J137-'Proposed NW Proj Direct Costs'!J137)/J137) -> 0
B138: Network Data Capture | C138: Augex | D138: Historic | E138: ='Proposed NW Projects (Reg Yr)'!E138/(1+$L$3) -> 500.5525058 | F138: ='Proposed NW Projects (Reg Yr)'!F138/(1+$L$3) -> 500.5525058 | G138: ='Proposed NW Projects (Reg Yr)'!G138/(1+$L$3) -> 500.5525058 | H138: ='Proposed NW Projects (Reg Yr)'!H138/(1+$L$3) -> 500.5525058 | I138: ='Proposed NW Projects (Reg Yr)'!I138/(1+$L$3) -> 500.5525058 | J138: 2502.762529 | K138: C-15 | L138: =IF('Proposed NW Projects (Reg Yr)'!J138="","",('Proposed NW Projects (Reg Yr)'!J138-'Proposed NW Proj Direct Costs'!J138)/J138) -> 0.05072810203
B139: SCADA Improvement Project (inc TDU & RTU) | C139: Augex | D139: AP.2.1.02 | E139: ='Proposed NW Projects (Reg Yr)'!E139/(1+$L$3) -> 724.1326251 | F139: ='Proposed NW Projects (Reg Yr)'!F139/(1+$L$3) -> 724.1326251 | G139: ='Proposed NW Projects (Reg Yr)'!G139/(1+$L$3) -> 724.1326251 | H139: ='Proposed NW Projects (Reg Yr)'!H139/(1+$L$3) -> 724.1326251 | I139: ='Proposed NW Projects (Reg Yr)'!I139/(1+$L$3) -> 724.1326251 | J139: 3620.663125 | K139: C-15 | L139: =IF('Proposed NW Projects (Reg Yr)'!J139="","",('Proposed NW Projects (Reg Yr)'!J139-'Proposed NW Proj Direct Costs'!J139)/J139) -> 0.05072810203
B140: SCADA Data Concentrator | C140: Augex | D140: AP.2.1.02 | E140: ='Proposed NW Projects (Reg Yr)'!E140/(1+$L$3) -> 0 | F140: ='Proposed NW Projects (Reg Yr)'!F140/(1+$L$3) -> 223.1629922 | G140: ='Proposed NW Projects (Reg Yr)'!G140/(1+$L$3) -> 223.1629922 | H140: ='Proposed NW Projects (Reg Yr)'!H140/(1+$L$3) -> 0 | I140: ='Proposed NW Projects (Reg Yr)'!I140/(1+$L$3) -> 0 | J140: 446.3259843 | K140: C-15 | L140: =IF('Proposed NW Projects (Reg Yr)'!J140="","",('Proposed NW Projects (Reg Yr)'!J140-'Proposed NW Proj Direct Costs'!J140)/J140) -> 0.05072810203
B141: Low Voltage Management | C141: Augex | D141: B Case | E141: ='Proposed NW Projects (Reg Yr)'!E141/(1+$L$3) -> 5315.558922 | F141: ='Proposed NW Projects (Reg Yr)'!F141/(1+$L$3) -> 7948.989747 | G141: ='Proposed NW Projects (Reg Yr)'!G141/(1+$L$3) -> 5862.143799 | H141: ='Proposed NW Projects (Reg Yr)'!H141/(1+$L$3) -> 5352.081874 | I141: ='Proposed NW Projects (Reg Yr)'!I141/(1+$L$3) -> 3478.076581 | J141: 27956.85092 | K141: C-15 | L141: =IF('Proposed NW Projects (Reg Yr)'!J141="","",('Proposed NW Projects (Reg Yr)'!J141-'Proposed NW Proj Direct Costs'!J141)/J141) -> 0.05072810203
B142: OMS Replacement Project | C142: Non-network | D142: AP.2.1.02 | E142: ='Proposed NW Projects (Reg Yr)'!E142/(1+$L$3) -> 0 | F142: ='Proposed NW Projects (Reg Yr)'!F142/(1+$L$3) -> 0 | G142: ='Proposed NW Projects (Reg Yr)'!G142/(1+$L$3) -> 0 | H142: ='Proposed NW Projects (Reg Yr)'!H142/(1+$L$3) -> 0 | I142: ='Proposed NW Projects (Reg Yr)'!I142/(1+$L$3) -> 0 | J142: 0 | L142: =IF('Proposed NW Projects (Reg Yr)'!J142=0,0,('Proposed NW Projects (Reg Yr)'!J142-'Proposed NW Proj Direct Costs'!J142)/J142) -> 0
B143: ADMS/OMS Hardware Upgrade | C143: Non-network | D143: AP.2.1.02 | E143: ='Proposed NW Projects (Reg Yr)'!E143/(1+$L$3) -> 1556.633429 | F143: ='Proposed NW Projects (Reg Yr)'!F143/(1+$L$3) -> 10.07529728 | G143: ='Proposed NW Projects (Reg Yr)'!G143/(1+$L$3) -> 10.07529728 | H143: ='Proposed NW Projects (Reg Yr)'!H143/(1+$L$3) -> 1556.633429 | I143: ='Proposed NW Projects (Reg Yr)'!I143/(1+$L$3) -> 1556.633429 | J143: 4690.050882 | L143: =IF('Proposed NW Projects (Reg Yr)'!J143="","",('Proposed NW Projects (Reg Yr)'!J143-'Proposed NW Proj Direct Costs'!J143)/J143) -> 0.05072810203
B144: ADMS/OMS Software Upgrade | C144: Non-network | D144: AP.2.1.02 | E144: ='Proposed NW Projects (Reg Yr)'!E144/(1+$L$3) -> 1399.206909 | F144: ='Proposed NW Projects (Reg Yr)'!F144/(1+$L$3) -> 0 | G144: ='Proposed NW Projects (Reg Yr)'!G144/(1+$L$3) -> 0 | H144: ='Proposed NW Projects (Reg Yr)'!H144/(1+$L$3) -> 1551.595781 | I144: ='Proposed NW Projects (Reg Yr)'!I144/(1+$L$3) -> 3103.191561 | J144: 6053.994251 | L144: =IF('Proposed NW Projects (Reg Yr)'!J144="","",('Proposed NW Projects (Reg Yr)'!J144-'Proposed NW Proj Direct Costs'!J144)/J144) -> 0.05072810203
D145: Non-network | E145: =-(E144+E143+E142) -> -2955.840339 | F145: -10.07529728 | G145: -10.07529728 | H145: -3108.22921 | I145: -4659.82499 | J145: -10744.04513 | L145: =IF('Proposed NW Projects (Reg Yr)'!J145="","",('Proposed NW Projects (Reg Yr)'!J145-'Proposed NW Proj Direct Costs'!J145)/J145) -> 0.05072810203
L146: =IF('Proposed NW Projects (Reg Yr)'!J146="","",('Proposed NW Projects (Reg Yr)'!J146-'Proposed NW Proj Direct Costs'!J146)/J146) -> 
B147: Network Control (Total) | D147: Total | E147: =SUM(E137:E146) -> 6540.244052 | F147: 9396.83787 | G147: 7309.991922 | H147: 6576.767005 | I147: 4702.761712 | J147: 34526.60256 | K147: =K141 -> C-15 | L147: =IF('Proposed NW Projects (Reg Yr)'!J147="","",('Proposed NW Projects (Reg Yr)'!J147-'Proposed NW Proj Direct Costs'!J147)/J147) -> 0.05072810203
A148: PLEC | L148: =IF('Proposed NW Projects (Reg Yr)'!J148="","",('Proposed NW Projects (Reg Yr)'!J148-'Proposed NW Proj Direct Costs'!J148)/J148) -> 
B149: PLEC - Non-Specific (gross) | C149: Augex | E149: ='Proposed NW Projects (Reg Yr)'!E149/(1+$L$3) -> 9593.923028 | F149: ='Proposed NW Projects (Reg Yr)'!F149/(1+$L$3) -> 9593.923028 | G149: ='Proposed NW Projects (Reg Yr)'!G149/(1+$L$3) -> 9593.923028 | H149: ='Proposed NW Projects (Reg Yr)'!H149/(1+$L$3) -> 9593.923028 | I149: ='Proposed NW Projects (Reg Yr)'!I149/(1+$L$3) -> 9593.923028 | J149: =SUM(E149:I149) -> 47969.61514 | K149: C-10 | L149: =IF('Proposed NW Projects (Reg Yr)'!J149="","",('Proposed NW Projects (Reg Yr)'!J149-'Proposed NW Proj Direct Costs'!J149)/J149) -> 0.05072810203
L150: =IF('Proposed NW Projects (Reg Yr)'!J150="","",('Proposed NW Projects (Reg Yr)'!J150-'Proposed NW Proj Direct Costs'!J150)/J150) -> 
B151: PLEC (Total) | D151: Total | E151: =SUM(E149:E150) -> 9593.923028 | F151: 9593.923028 | G151: 9593.923028 | H151: 9593.923028 | I151: 9593.923028 | J151: =SUM(J149:J150) -> 47969.61514 | K151: =K149 -> C-10 | L151: =IF('Proposed NW Projects (Reg Yr)'!J151="","",('Proposed NW Projects (Reg Yr)'!J151-'Proposed NW Proj Direct Costs'!J151)/J151) -> 0.05072810203
A152: Customer Contributions | L152: =IF('Proposed NW Projects (Reg Yr)'!J152="","",('Proposed NW Projects (Reg Yr)'!J152-'Proposed NW Proj Direct Costs'!J152)/J152) -> 
B153: Customer Connect <$30k | C153: Connections | D153: AP.7.1.01 | E153: ='Proposed NW Projects (Reg Yr)'!E153/(1+$L$3) -> 4792.62425 | F153: ='Proposed NW Projects (Reg Yr)'!F153/(1+$L$3) -> 5232.88799 | G153: ='Proposed NW Projects (Reg Yr)'!G153/(1+$L$3) -> 5356.729055 | H153: ='Proposed NW Projects (Reg Yr)'!H153/(1+$L$3) -> 5123.517842 | I153: ='Proposed NW Projects (Reg Yr)'!I153/(1+$L$3) -> 4661.736959 | J153: =SUM(E153:I153) -> 25167.4961 | K153: C-4 | L153: =IF('Proposed NW Projects (Reg Yr)'!J153="","",('Proposed NW Projects (Reg Yr)'!J153-'Proposed NW Proj Direct Costs'!J153)/J153) -> 0.05072810203
B154: Customer Connect >$30k<$100k | C154: Connections | D154: AP.7.1.01 | E154: ='Proposed NW Projects (Reg Yr)'!E154/(1+$L$3) -> 6647.616271 | F154: ='Proposed NW Projects (Reg Yr)'!F154/(1+$L$3) -> 7097.903715 | G154: ='Proposed NW Projects (Reg Yr)'!G154/(1+$L$3) -> 7275.87438 | H154: ='Proposed NW Projects (Reg Yr)'!H154/(1+$L$3) -> 7132.798102 | I154: ='Proposed NW Projects (Reg Yr)'!I154/(1+$L$3) -> 6920.789436 | J154: 35074.9819 | K154: C-4 | L154: =IF('Proposed NW Projects (Reg Yr)'!J154="","",('Proposed NW Projects (Reg Yr)'!J154-'Proposed NW Proj Direct Costs'!J154)/J154) -> 0.05072810203
B155: Customer Projects >$100k | C155: Connections | D155: AP.7.1.01 | E155: ='Proposed NW Projects (Reg Yr)'!E155/(1+$L$3) -> 20463.01493 | F155: ='Proposed NW Projects (Reg Yr)'!F155/(1+$L$3) -> 19290.82884 | G155: ='Proposed NW Projects (Reg Yr)'!G155/(1+$L$3) -> 22776.11108 | H155: ='Proposed NW Projects (Reg Yr)'!H155/(1+$L$3) -> 20178.14313 | I155: ='Proposed NW Projects (Reg Yr)'!I155/(1+$L$3) -> 19749.96976 | J155: 102458.0677 | K155: C-4 | L155: =IF('Proposed NW Projects (Reg Yr)'!J155="","",('Proposed NW Projects (Reg Yr)'!J155-'Proposed NW Proj Direct Costs'!J155)/J155) -> 0.05072810203
B156: URDs | C156: Connections | D156: AP.7.1.01 | E156: ='Proposed NW Projects (Reg Yr)'!E156/(1+$L$3) -> -2447.220838 | F156: ='Proposed NW Projects (Reg Yr)'!F156/(1+$L$3) -> -1643.45171 | G156: ='Proposed NW Projects (Reg Yr)'!G156/(1+$L$3) -> -1107.605625 | H156: ='Proposed NW Projects (Reg Yr)'!H156/(1+$L$3) -> -1643.45171 | I156: ='Proposed NW Projects (Reg Yr)'!I156/(1+$L$3) -> -2545.741038 | J156: -9387.470923 | K156: C-4 | L156: =IF('Proposed NW Projects (Reg Yr)'!J156="","",('Proposed NW Projects (Reg Yr)'!J156-'Proposed NW Proj Direct Costs'!J156)/J156) -> 0.05072810203
B157: PLEC | C157: Augex | D157: AP.7.1.01 | E157: ='Proposed NW Projects (Reg Yr)'!E157/(1+$L$3) -> 2234.21031 | F157: ='Proposed NW Projects (Reg Yr)'!F157/(1+$L$3) -> 2234.21031 | G157: ='Proposed NW Projects (Reg Yr)'!G157/(1+$L$3) -> 2234.21031 | H157: ='Proposed NW Projects (Reg Yr)'!H157/(1+$L$3) -> 2234.21031 | I157: ='Proposed NW Projects (Reg Yr)'!I157/(1+$L$3) -> 2234.21031 | J157: 11171.05155 | K157: C-4 | L157: =IF('Proposed NW Projects (Reg Yr)'!J157="","",('Proposed NW Projects (Reg Yr)'!J157-'Proposed NW Proj Direct Costs'!J157)/J157) -> 0.05072810203
B158: Gifting | C158: Connections | D158: NA | E158: ='Proposed NW Projects (Reg Yr)'!E158/(1+$L$3) -> 24738.08395 | F158: ='Proposed NW Projects (Reg Yr)'!F158/(1+$L$3) -> 24738.08395 | G158: ='Proposed NW Projects (Reg Yr)'!G158/(1+$L$3) -> 24738.08395 | H158: ='Proposed NW Projects (Reg Yr)'!H158/(1+$L$3) -> 24738.08395 | I158: ='Proposed NW Projects (Reg Yr)'!I158/(1+$L$3) -> 24738.08395 | J158: =SUM(E158:I158) -> 123690.4198 | K158: C-4 | L158: =IF('Proposed NW Projects (Reg Yr)'!J158="","",('Proposed NW Projects (Reg Yr)'!J158-'Proposed NW Proj Direct Costs'!J158)/J158) -> 0.05072810203
B159: Recoverable Works Contribution | C159: Repex | D159: NA | E159: ='Proposed NW Projects (Reg Yr)'!E159/(1+$L$3) -> 3244.343886 | F159: ='Proposed NW Projects (Reg Yr)'!F159/(1+$L$3) -> 3244.343886 | G159: ='Proposed NW Projects (Reg Yr)'!G159/(1+$L$3) -> 3244.343886 | H159: ='Proposed NW Projects (Reg Yr)'!H159/(1+$L$3) -> 3244.343886 | I159: ='Proposed NW Projects (Reg Yr)'!I159/(1+$L$3) -> 3244.343886 | J159: 16221.71943 | K159: C-4 | L159: =IF('Proposed NW Projects (Reg Yr)'!J159="","",('Proposed NW Projects (Reg Yr)'!J159-'Proposed NW Proj Direct Costs'!J159)/J159) -> 0.05072810203
B160: Embedded Generation Contribution | C160: Connections | D160: NA | E160: ='Proposed NW Projects (Reg Yr)'!E160/(1+$L$3) -> 3467.581705 | F160: ='Proposed NW Projects (Reg Yr)'!F160/(1+$L$3) -> 3467.581705 | G160: ='Proposed NW Projects (Reg Yr)'!G160/(1+$L$3) -> 3467.581705 | H160: ='Proposed NW Projects (Reg Yr)'!H160/(1+$L$3) -> 3467.581705 | I160: ='Proposed NW Projects (Reg Yr)'!I160/(1+$L$3) -> 3467.581705 | J160: 17337.90853 | K160: C-4 | L160: =IF('Proposed NW Projects (Reg Yr)'!J160="","",('Proposed NW Projects (Reg Yr)'!J160-'Proposed NW Proj Direct Costs'!J160)/J160) -> 0.05072810203
B161: Customer Contributions (Total) | D161: Total | E161: =SUM(E153:E160) -> 63140.25447 | F161: 63662.38869 | G161: 67985.32875 | H161: 64475.22722 | I161: 62470.97497 | J161: 321734.1741 | K161: =K160 -> C-4 | L161: =IF('Proposed NW Projects (Reg Yr)'!J161="","",('Proposed NW Projects (Reg Yr)'!J161-'Proposed NW Proj Direct Costs'!J161)/J161) -> 0.05072810203
A162: Network | L162: =IF('Proposed NW Projects (Reg Yr)'!J162="","",('Proposed NW Projects (Reg Yr)'!J162-'Proposed NW Proj Direct Costs'!J162)/J162) -> 
B163: Total (gross) - incl Gifting | E163: =SUM(E151,E147,E135,E131,E104,E98,E33,E25,E17) -> 288264.2491 | F163: 294827.5775 | G163: 298905.5105 | H163: 290126.3081 | I163: 280820.4264 | J163: 1452944.071 | K163: =('Proposed NW Projects (Reg Yr)'!J163-'Proposed NW Proj Direct Costs'!J163)/J163 -> 0.05072810203 | L163: =IF('Proposed NW Projects (Reg Yr)'!J163="","",('Proposed NW Projects (Reg Yr)'!J163-'Proposed NW Proj Direct Costs'!J163)/J163) -> 0.05072810203
B164: Total (net) | E164: =E163-E161 -> 225123.9946 | F164: 231165.1888 | G164: =G163-G161 -> 230920.1817 | H164: 225651.0808 | I164: =I163-I161 -> 218349.4514 | J164: =SUM(E164:I164) -> 1131209.897 | K164: =('Proposed NW Projects (Reg Yr)'!J164-'Proposed NW Proj Direct Costs'!J164)/J164 -> 0.05072810203 | L164: =IF('Proposed NW Projects (Reg Yr)'!J164="","",('Proposed NW Projects (Reg Yr)'!J164-'Proposed NW Proj Direct Costs'!J164)/J164) -> 0.05072810203
H167: =B163 -> Total (gross) - incl Gifting | I167: Check | J167: 0
H168: =B164 -> Total (net) | I168: Check | J168: 2.220446049e-16

Sheet Misc Data
AF1: =AH2 -> RAB Capex Category Proportions
K2: RAB Capex Category Proportions | AH2: =$K$2 -> RAB Capex Category Proportions | BE2: =$K$2 -> RAB Capex Category Proportions | CB2: =$K$2 -> RAB Capex Category Proportions | CY2: =$K$2 -> RAB Capex Category Proportions
D3: Direct Base Costs Split | K3: 2020/21 | L3: =K3 -> 2020/21 | M3: =L3 -> 2020/21 | N3: 2020/21 | O3: 2020/21 | P3: 2020/21 | Q3: 2020/21 | R3: 2020/21 | S3: 2020/21 | T3: 2020/21 | U3: 2020/21 | V3: 2020/21 | W3: 2020/21 | X3: 2020/21 | Y3: 2020/21 | Z3: 2020/21 | AA3: 2020/21 | AB3: 2020/21 | AC3: 2020/21 | AD3: 2020/21 | AE3: 2020/21 | AF3: 2020/21 | AH3: 2021/22 | AI3: =AH3 -> 2021/22 | AJ3: =AI3 -> 2021/22 | AK3: 2021/22 | AL3: 2021/22 | AM3: 2021/22 | AN3: 2021/22 | AO3: 2021/22 | AP3: 2021/22 | AQ3: 2021/22 | AR3: 2021/22 | AS3: 2021/22 | AT3: 2021/22 | AU3: 2021/22 | AV3: 2021/22 | AW3: 2021/22 | AX3: 2021/22 | AY3: 2021/22 | AZ3: 2021/22 | BA3: 2021/22 | BB3: 2021/22 | BC3: 2021/22 | BE3: 2022/23 | BF3: =BE3 -> 2022/23 | BG3: =BF3 -> 2022/23 | BH3: 2022/23 | BI3: 2022/23 | BJ3: 2022/23 | BK3: 2022/23 | BL3: 2022/23 | BM3: 2022/23 | BN3: 2022/23 | BO3: 2022/23 | BP3: 2022/23 | BQ3: 2022/23 | BR3: 2022/23 | BS3: 2022/23 | BT3: 2022/23 | BU3: 2022/23 | BV3: 2022/23 | BW3: 2022/23 | BX3: 2022/23 | BY3: 2022/23 | BZ3: 2022/23 | CB3: 2023/24 | CC3: =CB3 -> 2023/24 | CD3: =CC3 -> 2023/24 | CE3: 2023/24 | CF3: 2023/24 | CG3: 2023/24 | CH3: 2023/24 | CI3: 2023/24 | CJ3: 2023/24 | CK3: 2023/24 | CL3: 2023/24 | CM3: 2023/24 | CN3: 2023/24 | CO3: 2023/24 | CP3: 2023/24 | CQ3: 2023/24 | CR3: 2023/24 | CS3: 2023/24 | CT3: 2023/24 | CU3: 2023/24 | CV3: 2023/24 | CW3: 2023/24 | CY3: 2024/25 | CZ3: =CY3 -> 2024/25 | DA3: =CZ3 -> 2024/25 | DB3: 2024/25 | DC3: 2024/25 | DD3: 2024/25 | DE3: 2024/25 | DF3: 2024/25 | DG3: 2024/25 | DH3: 2024/25 | DI3: 2024/25 | DJ3: 2024/25 | DK3: 2024/25 | DL3: 2024/25 | DM3: 2024/25 | DN3: 2024/25 | DO3: 2024/25 | DP3: 2024/25 | DQ3: 2024/25 | DR3: 2024/25 | DS3: 2024/25 | DT3: 2024/25
D4: Labour | E4: Materials | F4: Contracts | G4: Services Other | H4: Business Overheads | I4: Other | J4: Check | K4: Sub-transmission lines | L4: Distribution Lines | M4: Substations | N4: Distribution Transformers | O4: LVS | P4: Communications | Q4: Contributions | R4: Land | S4: Substation Land | T4: Easements | U4: Buildings | V4: Heavy Vehicles - 15 year | W4: Heavy Vehicles - 10 year | X4: Light Vehicles | Y4: IT Assets | Z4: Plant & Tools/Office Furniture | AA4: Distribution Lines-Refurbish and Shorter Life | AB4: Substations-Refurbish and Shorter Life | AC4: Network Electronics | AD4: in-house software | AE4: Buildings | AF4: Check | AH4: =$K$4 -> Sub-transmission lines | AI4: =$L$4 -> Distribution Lines | AJ4: =$M$4 -> Substations | AK4: =$N$4 -> Distribution Transformers | AL4: =$O$4 -> LVS | AM4: =$P$4 -> Communications | AN4: =$Q$4 -> Contributions | AO4: =$R$4 -> Land | AP4: =$S$4 -> Substation Land | AQ4: =$T$4 -> Easements | AR4: =$U$4 -> Buildings | AS4: =$V$4 -> Heavy Vehicles - 15 year | AT4: =$W$4 -> Heavy Vehicles - 10 year | AU4: =$X$4 -> Light Vehicles | AV4: =$Y$4 -> IT Assets | AW4: =$Z$4 -> Plant & Tools/Office Furniture | AX4: =$AA$4 -> Distribution Lines-Refurbish and Shorter Life | AY4: =$AB$4 -> Substations-Refurbish and Shorter Life | AZ4: =$AC$4 -> Network Electronics | BA4: =$AD$4 -> in-house software | BB4: =$AE$4 -> Buildings | BC4: Check | BE4: =$K$4 -> Sub-transmission lines | BF4: =$L$4 -> Distribution Lines | BG4: =$M$4 -> Substations | BH4: =$N$4 -> Distribution Transformers | BI4: =$O$4 -> LVS | BJ4: =$P$4 -> Communications | BK4: =$Q$4 -> Contributions | BL4: =$R$4 -> Land | BM4: =$S$4 -> Substation Land | BN4: =$T$4 -> Easements | BO4: =$U$4 -> Buildings | BP4: =$V$4 -> Heavy Vehicles - 15 year | BQ4: =$W$4 -> Heavy Vehicles - 10 year | BR4: =$X$4 -> Light Vehicles | BS4: =$Y$4 -> IT Assets | BT4: =$Z$4 -> Plant & Tools/Office Furniture | BU4: =$AA$4 -> Distribution Lines-Refurbish and Shorter Life | BV4: =$AB$4 -> Substations-Refurbish and Shorter Life | BW4: =$AC$4 -> Network Electronics | BX4: =$AD$4 -> in-house software | BY4: =$AE$4 -> Buildings | BZ4: Check | CB4: =$K$4 -> Sub-transmission lines | CC4: =$L$4 -> Distribution Lines | CD4: =$M$4 -> Substations | CE4: =$N$4 -> Distribution Transformers | CF4: =$O$4 -> LVS | CG4: =$P$4 -> Communications | CH4: =$Q$4 -> Contributions | CI4: =$R$4 -> Land | CJ4: =$S$4 -> Substation Land | CK4: =$T$4 -> Easements | CL4: =$U$4 -> Buildings | CM4: =$V$4 -> Heavy Vehicles - 15 year | CN4: =$W$4 -> Heavy Vehicles - 10 year | CO4: =$X$4 -> Light Vehicles | CP4: =$Y$4 -> IT Assets | CQ4: =$Z$4 -> Plant & Tools/Office Furniture | CR4: =$AA$4 -> Distribution Lines-Refurbish and Shorter Life | CS4: =$AB$4 -> Substations-Refurbish and Shorter Life | CT4: =$AC$4 -> Network Electronics | CU4: =$AD$4 -> in-house software | CV4: =$AE$4 -> Buildings | CW4: Check | CY4: =$K$4 -> Sub-transmission lines | CZ4: =$L$4 -> Distribution Lines | DA4: =$M$4 -> Substations | DB4: =$N$4 -> Distribution Transformers | DC4: =$O$4 -> LVS | DD4: =$P$4 -> Communications | DE4: =$Q$4 -> Contributions | DF4: =$R$4 -> Land | DG4: =$S$4 -> Substation Land | DH4: =$T$4 -> Easements | DI4: =$U$4 -> Buildings | DJ4: =$V$4 -> Heavy Vehicles - 15 year | DK4: =$W$4 -> Heavy Vehicles - 10 year | DL4: =$X$4 -> Light Vehicles | DM4: =$Y$4 -> IT Assets | DN4: =$Z$4 -> Plant & Tools/Office Furniture | DO4: =$AA$4 -> Distribution Lines-Refurbish and Shorter Life | DP4: =$AB$4 -> Substations-Refurbish and Shorter Life | DQ4: =$AC$4 -> Network Electronics | DR4: =$AD$4 -> in-house software | DS4: =$AE$4 -> Buildings | DT4: Check
D5: % | E5: % | F5: % | G5: % | H5: % | I5: % | J5: =IF(SUM(J6:J24)>0.00001,"Error","Ok") -> Ok | AF5: =IF(SUM(AF6:AF24)>0.00001,"Error","Ok") -> Ok | BC5: =IF(SUM(BC6:BC24)>0.00001,"Error","Ok") -> Ok | BZ5: =IF(SUM(BZ6:BZ24)>0.00001,"Error","Ok") -> Ok | CW5: =IF(SUM(CW6:CW24)>0.00001,"Error","Ok") -> Ok | DT5: =IF(SUM(DT6:DT24)>0.00001,"Error","Ok") -> Ok
A6: C-1 | B6: Repex | C6: Asset Replacement and Refurbishment | D6: 0.41 | E6: 0.25 | F6: 0.12 | G6: 0.17 | H6: 0.05 | I6: 0 | J6: =ABS(1-SUM(D6:I6)) -> 0 | K6: =SUM(RPCategorised!$I7:$I8) -> 0 | L6: =SUM(RPCategorised!$I9:$I10) -> 0.5898921657 | M6: =SUM(RPCategorised!$I11:$I12) -> 0.1866865183 | N6: =RPCategorised!$I13 -> 0 | O6: =RPCategorised!$I14 -> 0 | P6: =RPCategorised!$I15 -> 0.04653034785 | Q6: =RPCategorised!$I16 -> 0 | R6: =RPCategorised!$I17 -> 0 | S6: =RPCategorised!$I18 -> 0 | T6: =RPCategorised!$I19 -> 0 | U6: =RPCategorised!$I20 -> 0 | AA6: =RPCategorised!$I21 -> 0.1396461875 | AB6: =RPCategorised!$I22 -> 0.01137578705 | AC6: =RPCategorised!$I23 -> 0.02586899351 | AF6: =ABS(1-SUM(K6:AE6)) -> 2.220446049e-16 | AH6: =SUM(RPCategorised!$J7:$J8) -> 0 | AI6: =SUM(RPCategorised!$J9:$J10) -> 0.5783514081 | AJ6: =SUM(RPCategorised!$J11:$J12) -> 0.1944735603 | AK6: =RPCategorised!$J13 -> 0 | AL6: =RPCategorised!$J14 -> 0 | AM6: =RPCategorised!$J15 -> 0.05101506876 | AN6: =RPCategorised!$J16 -> 0 | AO6: =RPCategorised!$J17 -> 0 | AP6: =RPCategorised!$J18 -> 0 | AQ6: =RPCategorised!$J19 -> 0 | AR6: =RPCategorised!$J20 -> 0 | AX6: =RPCategorised!$J21 -> 0.1394329704 | AY6: =RPCategorised!$J22 -> 0.01110571868 | AZ6: =RPCategorised!$J23 -> 0.02562127375 | BC6: =ABS(1-SUM(AH6:BB6)) -> 0 | BE6: =SUM(RPCategorised!$K7:$K8) -> 0 | BF6: =SUM(RPCategorised!$K9:$K10) -> 0.5697433608 | BG6: =SUM(RPCategorised!$K11:$K12) -> 0.2084317649 | BH6: =RPCategorised!$K13 -> 0 | BI6: =RPCategorised!$K14 -> 0 | BJ6: =RPCategorised!$K15 -> 0.04956932419 | BK6: =RPCategorised!$K16 -> 0 | BL6: =RPCategorised!$K17 -> 0 | BM6: =RPCategorised!$K18 -> 0 | BN6: =RPCategorised!$K19 -> 0 | BO6: =RPCategorised!$K20 -> 0 | BU6: =RPCategorised!$K21 -> 0.1375190845 | BV6: =RPCategorised!$K22 -> 0.01094042375 | BW6: =RPCategorised!$K23 -> 0.02379604192 | BZ6: =ABS(1-SUM(BE6:BY6)) -> 0 | CB6: =SUM(RPCategorised!$L7:$L8) -> 0 | CC6: =SUM(RPCategorised!$L9:$L10) -> 0.5924559399 | CD6: =SUM(RPCategorised!$L11:$L12) -> 0.1863358214 | CE6: =RPCategorised!$L13 -> 0 | CF6: =RPCategorised!$L14 -> 0 | CG6: =RPCategorised!$L15 -> 0.04334481446 | CH6: =RPCategorised!$L16 -> 0 | CI6: =RPCategorised!$L17 -> 0 | CJ6: =RPCategorised!$L18 -> 0 | CK6: =RPCategorised!$L19 -> 0 | CL6: =RPCategorised!$L20 -> 0 | CR6: =RPCategorised!$L21 -> 0.1432436548 | CS6: =RPCategorised!$L22 -> 0.01137655914 | CT6: =RPCategorised!$L23 -> 0.02324321023 | CW6: =ABS(1-SUM(CB6:CV6)) -> 2.220446049e-16 | CY6: =SUM(RPCategorised!$M7:$M8) -> 0 | CZ6: =SUM(RPCategorised!$M9:$M10) -> 0.6137649486 | DA6: =SUM(RPCategorised!$M11:$M12) -> 0.1609952433 | DB6: =RPCategorised!$M13 -> 0 | DC6: =RPCategorised!$M14 -> 0 | DD6: =RPCategorised!$M15 -> 0.04365320528 | DE6: =RPCategorised!$M16 -> 0 | DF6: =RPCategorised!$M17 -> 0 | DG6: =RPCategorised!$M18 -> 0 | DH6: =RPCategorised!$M19 -> 0 | DI6: =RPCategorised!$M20 -> 0 | DO6: =RPCategorised!$M21 -> 0.1484730114 | DP6: =RPCategorised!$M22 -> 0.0108391023 | DQ6: =RPCategorised!$M23 -> 0.02227448908 | DT6: =ABS(1-SUM(CY6:DS6)) -> 0
A7: C-2 | B7: Augex | C7: Augmentation/Capacity | D7: 0.4 | E7: 0.2 | F7: 0.03 | G7: 0.34 | H7: 0.03 | I7: 0 | J7: =ABS(1-SUM(D7:I7)) -> 0 | K7: =SUM(RPCategorised!$I32:$I33) -> 0 | L7: =SUM(RPCategorised!$I34:$I35) -> 0.2792794202 | M7: =SUM(RPCategorised!$I36:$I37) -> 0.3151603524 | N7: =RPCategorised!$I38 -> 0.3214564907 | O7: =RPCategorised!$I39 -> 0 | P7: =RPCategorised!$I40 -> 0 | Q7: =RPCategorised!$I41 -> 0 | R7: =RPCategorised!$I42 -> 0 | S7: =RPCategorised!$I43 -> 0 | T7: =RPCategorised!$I44 -> 0 | U7: =RPCategorised!$I45 -> 0 | AA7: =RPCategorised!$I46 -> 0 | AB7: =RPCategorised!$I47 -> 0.05845945483 | AC7: =RPCategorised!$I48 -> 0.02564428184 | AF7: =ABS(1-SUM(K7:AE7)) -> 0 | AH7: =SUM(RPCategorised!$J32:$J33) -> 0.02151318047 | AI7: =SUM(RPCategorised!$J34:$J35) -> 0.1936186243 | AJ7: =SUM(RPCategorised!$J36:$J37) -> 0.3187347528 | AK7: =RPCategorised!$J38 -> 0.335360082 | AL7: =RPCategorised!$J39 -> 0 | AM7: =RPCategorised!$J40 -> 0 | AN7: =RPCategorised!$J41 -> 0 | AO7: =RPCategorised!$J42 -> 0 | AP7: =RPCategorised!$J43 -> 0 | AQ7: =RPCategorised!$J44 -> 0 | AR7: =RPCategorised!$J45 -> 0 | AX7: =RPCategorised!$J46 -> 0 | AY7: =RPCategorised!$J47 -> 0.05964754084 | AZ7: =RPCategorised!$J48 -> 0.0711258196 | BC7: =ABS(1-SUM(AH7:BB7)) -> 1.110223025e-16 | BE7: =SUM(RPCategorised!$K32:$K33) -> 0.04748578454 | BF7: =SUM(RPCategorised!$K34:$K35) -> 0.2034807522 | BG7: =SUM(RPCategorised!$K36:$K37) -> 0.2118115916 | BH7: =RPCategorised!$K38 -> 0.3782526026 | BI7: =RPCategorised!$K39 -> 0 | BJ7: =RPCategorised!$K40 -> 0 | BK7: =RPCategorised!$K41 -> 0 | BL7: =RPCategorised!$K42 -> 0 | BM7: =RPCategorised!$K43 -> 0 | BN7: =RPCategorised!$K44 -> 0 | BO7: =RPCategorised!$K45 -> 0 | BU7: =RPCategorised!$K46 -> 0 | BV7: =RPCategorised!$K47 -> 0.06582964979 | BW7: =RPCategorised!$K48 -> 0.09313961935 | BZ7: =ABS(1-SUM(BE7:BY7)) -> 0 | CB7: =SUM(RPCategorised!$L32:$L33) -> 0.181361298 | CC7: =SUM(RPCategorised!$L34:$L35) -> 0.2140895528 | CD7: =SUM(RPCategorised!$L36:$L37) -> 0.09490974646 | CE7: =RPCategorised!$L38 -> 0.3583594745 | CF7: =RPCategorised!$L39 -> 0 | CG7: =RPCategorised!$L40 -> 0 | CH7: =RPCategorised!$L41 -> 0 | CI7: =RPCategorised!$L42 -> 0 | CJ7: =RPCategorised!$L43 -> 0.06116844366 | CK7: =RPCategorised!$L44 -> 0 | CL7: =RPCategorised!$L45 -> 0 | CR7: =RPCategorised!$L46 -> 0 | CS7: =RPCategorised!$L47 -> 0.06236752516 | CT7: =RPCategorised!$L48 -> 0.02774395932 | CW7: =ABS(1-SUM(CB7:CV7)) -> 2.220446049e-16 | CY7: =SUM(RPCategorised!$M32:$M33) -> 0.258153079 | CZ7: =SUM(RPCategorised!$M34:$M35) -> 0.2237922861 | DA7: =SUM(RPCategorised!$M36:$M37) -> 0.03138191567 | DB7: =RPCategorised!$M38 -> 0.3638758889 | DC7: =RPCategorised!$M39 -> 0 | DD7: =RPCategorised!$M40 -> 0 | DE7: =RPCategorised!$M41 -> 0 | DF7: =RPCategorised!$M42 -> 0 | DG7: =RPCategorised!$M43 -> 0.0608024616 | DH7: =RPCategorised!$M44 -> 0 | DI7: =RPCategorised!$M45 -> 0 | DO7: =RPCategorised!$M46 -> 0 | DP7: =RPCategorised!$M47 -> 0.06199436877 | DQ7: =RPCategorised!$M48 -> 0 | DT7: =ABS(1-SUM(CY7:DS7)) -> 0
A8: C-3 | B8: Connections | C8: Connections | D8: 0.47 | E8: 0.24 | F8: 0.03 | G8: 0.21 | H8: 0.05 | I8: 0 | J8: 0 | K8: =SUM(RPCategorised!$I56:$I57) -> 0 | L8: =SUM(RPCategorised!$I58:$I59) -> 0.8199003473 | M8: =SUM(RPCategorised!$I60:$I61) -> 0 | N8: =RPCategorised!$I62 -> 0 | O8: =RPCategorised!$I63 -> 0.1800996527 | P8: =RPCategorised!$I64 -> 0 | Q8: =RPCategorised!$I65 -> 0 | R8: =RPCategorised!$I66 -> 0 | S8: =RPCategorised!$I67 -> 0 | T8: =RPCategorised!$I68 -> 0 | U8: =RPCategorised!$I69 -> 0 | AA8: =RPCategorised!$I70 -> 0 | AB8: =RPCategorised!$I71 -> 0 | AC8: =RPCategorised!$I72 -> 0 | AF8: 1.110223025e-16 | AH8: =SUM(RPCategorised!$J56:$J57) -> 0 | AI8: =SUM(RPCategorised!$J58:$J59) -> 0.8072516315 | AJ8: =SUM(RPCategorised!$J60:$J61) -> 0 | AK8: =RPCategorised!$J62 -> 0 | AL8: =RPCategorised!$J63 -> 0.1927483685 | AM8: =RPCategorised!$J64 -> 0 | AN8: =RPCategorised!$J65 -> 0 | AO8: =RPCategorised!$J66 -> 0 | AP8: =RPCategorised!$J67 -> 0 | AQ8: =RPCategorised!$J68 -> 0 | AR8: =RPCategorised!$J69 -> 0 | AX8: =RPCategorised!$J70 -> 0 | AY8: =RPCategorised!$J71 -> 0 | AZ8: =RPCategorised!$J72 -> 0 | BC8: 0 | BE8: =SUM(RPCategorised!$K56:$K57) -> 0 | BF8: =SUM(RPCategorised!$K58:$K59) -> 0.814604699 | BG8: =SUM(RPCategorised!$K60:$K61) -> 0 | BH8: =RPCategorised!$K62 -> 0 | BI8: =RPCategorised!$K63 -> 0.185395301 | BJ8: =RPCategorised!$K64 -> 0 | BK8: =RPCategorised!$K65 -> 0 | BL8: =RPCategorised!$K66 -> 0 | BM8: =RPCategorised!$K67 -> 0 | BN8: =RPCategorised!$K68 -> 0 | BO8: =RPCategorised!$K69 -> 0 | BU8: =RPCategorised!$K70 -> 0 | BV8: =RPCategorised!$K71 -> 0 | BW8: =RPCategorised!$K72 -> 0 | BZ8: 0 | CB8: =SUM(RPCategorised!$L56:$L57) -> 0 | CC8: =SUM(RPCategorised!$L58:$L59) -> 0.8131528925 | CD8: =SUM(RPCategorised!$L60:$L61) -> 0 | CE8: =RPCategorised!$L62 -> 0 | CF8: =RPCategorised!$L63 -> 0.1868471075 | CG8: =RPCategorised!$L64 -> 0 | CH8: =RPCategorised!$L65 -> 0 | CI8: =RPCategorised!$L66 -> 0 | CJ8: =RPCategorised!$L67 -> 0 | CK8: =RPCategorised!$L68 -> 0 | CL8: =RPCategorised!$L69 -> 0 | CR8: =RPCategorised!$L70 -> 0 | CS8: =RPCategorised!$L71 -> 0 | CT8: =RPCategorised!$L72 -> 0 | CW8: 0 | CY8: =SUM(RPCategorised!$M56:$M57) -> 0 | CZ8: =SUM(RPCategorised!$M58:$M59) -> 0.8237360797 | DA8: =SUM(RPCategorised!$M60:$M61) -> 0 | DB8: =RPCategorised!$M62 -> 0 | DC8: =RPCategorised!$M63 -> 0.1762639203 | DD8: =RPCategorised!$M64 -> 0 | DE8: =RPCategorised!$M65 -> 0 | DF8: =RPCategorised!$M66 -> 0 | DG8: =RPCategorised!$M67 -> 0 | DH8: =RPCategorised!$M68 -> 0 | DI8: =RPCategorised!$M69 -> 0 | DO8: =RPCategorised!$M70 -> 0 | DP8: =RPCategorised!$M71 -> 0 | DQ8: =RPCategorised!$M72 -> 0 | DT8: 0
A9: C-4 | B9: Connections | C9: Contributions | D9: 0.5 | E9: 0.25 | F9: 0.03 | G9: 0.22 | H9: 0 | I9: 0 | J9: 0 | K9: =SUM(RPCategorised!$I80:$I81) -> 0 | L9: =SUM(RPCategorised!$I82:$I83) -> 0.9240955823 | M9: =SUM(RPCategorised!$I84:$I85) -> 0 | N9: =RPCategorised!$I86 -> 0 | O9: =RPCategorised!$I87 -> 0.07590441772 | P9: =RPCategorised!$I88 -> 0 | Q9: =RPCategorised!$I89 -> 0 | R9: =RPCategorised!$I90 -> 0 | S9: =RPCategorised!$I91 -> 0 | T9: =RPCategorised!$I92 -> 0 | U9: =RPCategorised!$I93 -> 0 | AA9: =RPCategorised!$I94 -> 0 | AB9: =RPCategorised!$I95 -> 0 | AC9: =RPCategorised!$I96 -> 0 | AF9: 0 | AH9: =SUM(RPCategorised!$J80:$J81) -> 0 | AI9: =SUM(RPCategorised!$J82:$J83) -> 0.9178025189 | AJ9: =SUM(RPCategorised!$J84:$J85) -> 0 | AK9: =RPCategorised!$J86 -> 0 | AL9: =RPCategorised!$J87 -> 0.08219748107 | AM9: =RPCategorised!$J88 -> 0 | AN9: =RPCategorised!$J89 -> 0 | AO9: =RPCategorised!$J90 -> 0 | AP9: =RPCategorised!$J91 -> 0 | AQ9: =RPCategorised!$J92 -> 0 | AR9: =RPCategorised!$J93 -> 0 | AX9: =RPCategorised!$J94 -> 0 | AY9: =RPCategorised!$J95 -> 0 | AZ9: =RPCategorised!$J96 -> 0 | BC9: 0 | BE9: =SUM(RPCategorised!$K80:$K81) -> 0 | BF9: =SUM(RPCategorised!$K82:$K83) -> 0.921207573 | BG9: =SUM(RPCategorised!$K84:$K85) -> 0 | BH9: =RPCategorised!$K86 -> 0 | BI9: =RPCategorised!$K87 -> 0.07879242704 | BJ9: =RPCategorised!$K88 -> 0 | BK9: =RPCategorised!$K89 -> 0 | BL9: =RPCategorised!$K90 -> 0 | BM9: =RPCategorised!$K91 -> 0 | BN9: =RPCategorised!$K92 -> 0 | BO9: =RPCategorised!$K93 -> 0 | BU9: =RPCategorised!$K94 -> 0 | BV9: =RPCategorised!$K95 -> 0 | BW9: =RPCategorised!$K96 -> 0 | BZ9: 1.110223025e-16 | CB9: =SUM(RPCategorised!$L80:$L81) -> 0 | CC9: =SUM(RPCategorised!$L82:$L83) -> 0.9205350944 | CD9: =SUM(RPCategorised!$L84:$L85) -> 0 | CE9: =RPCategorised!$L86 -> 0 | CF9: =RPCategorised!$L87 -> 0.07946490556 | CG9: =RPCategorised!$L88 -> 0 | CH9: =RPCategorised!$L89 -> 0 | CI9: =RPCategorised!$L90 -> 0 | CJ9: =RPCategorised!$L91 -> 0 | CK9: =RPCategorised!$L92 -> 0 | CL9: =RPCategorised!$L93 -> 0 | CR9: =RPCategorised!$L94 -> 0 | CS9: =RPCategorised!$L95 -> 0 | CT9: =RPCategorised!$L96 -> 0 | CW9: 0 | CY9: =SUM(RPCategorised!$M80:$M81) -> 0 | CZ9: =SUM(RPCategorised!$M82:$M83) -> 0.925377554 | DA9: =SUM(RPCategorised!$M84:$M85) -> 0 | DB9: =RPCategorised!$M86 -> 0 | DC9: =RPCategorised!$M87 -> 0.07462244605 | DD9: =RPCategorised!$M88 -> 0 | DE9: =RPCategorised!$M89 -> 0 | DF9: =RPCategorised!$M90 -> 0 | DG9: =RPCategorised!$M91 -> 0 | DH9: =RPCategorised!$M92 -> 0 | DI9: =RPCategorised!$M93 -> 0 | DO9: =RPCategorised!$M94 -> 0 | DP9: =RPCategorised!$M95 -> 0 | DQ9: =RPCategorised!$M96 -> 0 | DT9: 0
A10: C-5 | B10: Augex | C10: Reliability | D10: 0.46 | E10: 0.06 | F10: 0.1 | G10: 0.08 | H10: 0.3 | I10: 0 | J10: 0 | K10: =SUM(RPCategorised!$I104:$I105) -> 0.6340833147 | L10: =SUM(RPCategorised!$I106:$I107) -> 0.2356339176 | M10: =SUM(RPCategorised!$I108:$I109) -> 0 | N10: =RPCategorised!$I110 -> 0 | O10: =RPCategorised!$I111 -> 0 | P10: =RPCategorised!$I112 -> 0 | Q10: =RPCategorised!$I113 -> 0 | R10: =RPCategorised!$I114 -> 0 | S10: =RPCategorised!$I115 -> 0 | T10: =RPCategorised!$I116 -> 0 | U10: =RPCategorised!$I117 -> 0 | AA10: =RPCategorised!$I118 -> 0.1158069046 | AB10: =RPCategorised!$I119 -> 0 | AC10: =RPCategorised!$I120 -> 0.01447586307 | AF10: 2.220446049e-16 | AH10: =SUM(RPCategorised!$J104:$J105) -> 0.6340833147 | AI10: =SUM(RPCategorised!$J106:$J107) -> 0.2356339176 | AJ10: =SUM(RPCategorised!$J108:$J109) -> 0 | AK10: =RPCategorised!$J110 -> 0 | AL10: =RPCategorised!$J111 -> 0 | AM10: =RPCategorised!$J112 -> 0 | AN10: =RPCategorised!$J113 -> 0 | AO10: =RPCategorised!$J114 -> 0 | AP10: =RPCategorised!$J115 -> 0 | AQ10: =RPCategorised!$J116 -> 0 | AR10: =RPCategorised!$J117 -> 0 | AX10: =RPCategorised!$J118 -> 0.1158069046 | AY10: =RPCategorised!$J119 -> 0 | AZ10: =RPCategorised!$J120 -> 0.01447586307 | BC10: 2.220446049e-16 | BE10: =SUM(RPCategorised!$K104:$K105) -> 0.6340833147 | BF10: =SUM(RPCategorised!$K106:$K107) -> 0.2356339176 | BG10: =SUM(RPCategorised!$K108:$K109) -> 0 | BH10: =RPCategorised!$K110 -> 0 | BI10: =RPCategorised!$K111 -> 0 | BJ10: =RPCategorised!$K112 -> 0 | BK10: =RPCategorised!$K113 -> 0 | BL10: =RPCategorised!$K114 -> 0 | BM10: =RPCategorised!$K115 -> 0 | BN10: =RPCategorised!$K116 -> 0 | BO10: =RPCategorised!$K117 -> 0 | BU10: =RPCategorised!$K118 -> 0.1158069046 | BV10: =RPCategorised!$K119 -> 0 | BW10: =RPCategorised!$K120 -> 0.01447586307 | BZ10: 2.220446049e-16 | CB10: =SUM(RPCategorised!$L104:$L105) -> 0.6340833147 | CC10: =SUM(RPCategorised!$L106:$L107) -> 0.2356339176 | CD10: =SUM(RPCategorised!$L108:$L109) -> 0 | CE10: =RPCategorised!$L110 -> 0 | CF10: =RPCategorised!$L111 -> 0 | CG10: =RPCategorised!$L112 -> 0 | CH10: =RPCategorised!$L113 -> 0 | CI10: =RPCategorised!$L114 -> 0 | CJ10: =RPCategorised!$L115 -> 0 | CK10: =RPCategorised!$L116 -> 0 | CL10: =RPCategorised!$L117 -> 0 | CR10: =RPCategorised!$L118 -> 0.1158069046 | CS10: =RPCategorised!$L119 -> 0 | CT10: =RPCategorised!$L120 -> 0.01447586307 | CW10: 2.220446049e-16 | CY10: =SUM(RPCategorised!$M104:$M105) -> 0.6340833147 | CZ10: =SUM(RPCategorised!$M106:$M107) -> 0.2356339176 | DA10: =SUM(RPCategorised!$M108:$M109) -> 0 | DB10: =RPCategorised!$M110 -> 0 | DC10: =RPCategorised!$M111 -> 0 | DD10: =RPCategorised!$M112 -> 0 | DE10: =RPCategorised!$M113 -> 0 | DF10: =RPCategorised!$M114 -> 0 | DG10: =RPCategorised!$M115 -> 0 | DH10: =RPCategorised!$M116 -> 0 | DI10: =RPCategorised!$M117 -> 0 | DO10: =RPCategorised!$M118 -> 0.1158069046 | DP10: =RPCategorised!$M119 -> 0 | DQ10: =RPCategorised!$M120 -> 0.01447586307 | DT10: 2.220446049e-16
A11: C-6 | B11: Augex | C11: Environmental | D11: 0.33 | E11: 0.1 | F11: 0 | G11: 0.52 | H11: 0.05 | I11: 0 | J11: 0 | K11: =SUM(RPCategorised!$I128:$I129) -> 0 | L11: =SUM(RPCategorised!$I130:$I131) -> 0 | M11: =SUM(RPCategorised!$I132:$I133) -> 1 | N11: =RPCategorised!$I134 -> 0 | O11: =RPCategorised!$I135 -> 0 | P11: =RPCategorised!$I136 -> 0 | Q11: =RPCategorised!$I137 -> 0 | R11: =RPCategorised!$I138 -> 0 | S11: =RPCategorised!$I139 -> 0 | T11: =RPCategorised!$I140 -> 0 | U11: =RPCategorised!$I141 -> 0 | AA11: =RPCategorised!$I142 -> 0 | AB11: =RPCategorised!$I143 -> 0 | AC11: =RPCategorised!$I144 -> 0 | AF11: 0 | AH11: =SUM(RPCategorised!$J128:$J129) -> 0 | AI11: =SUM(RPCategorised!$J130:$J131) -> 0 | AJ11: =SUM(RPCategorised!$J132:$J133) -> 1 | AK11: =RPCategorised!$J134 -> 0 | AL11: =RPCategorised!$J135 -> 0 | AM11: =RPCategorised!$J136 -> 0 | AN11: =RPCategorised!$J137 -> 0 | AO11: =RPCategorised!$J138 -> 0 | AP11: =RPCategorised!$J139 -> 0 | AQ11: =RPCategorised!$J140 -> 0 | AR11: =RPCategorised!$J141 -> 0 | AX11: =RPCategorised!$J142 -> 0 | AY11: =RPCategorised!$J143 -> 0 | AZ11: =RPCategorised!$J144 -> 0 | BC11: 0 | BE11: =SUM(RPCategorised!$K128:$K129) -> 0 | BF11: =SUM(RPCategorised!$K130:$K131) -> 0 | BG11: =SUM(RPCategorised!$K132:$K133) -> 1 | BH11: =RPCategorised!$K134 -> 0 | BI11: =RPCategorised!$K135 -> 0 | BJ11: =RPCategorised!$K136 -> 0 | BK11: =RPCategorised!$K137 -> 0 | BL11: =RPCategorised!$K138 -> 0 | BM11: =RPCategorised!$K139 -> 0 | BN11: =RPCategorised!$K140 -> 0 | BO11: =RPCategorised!$K141 -> 0 | BU11: =RPCategorised!$K142 -> 0 | BV11: =RPCategorised!$K143 -> 0 | BW11: =RPCategorised!$K144 -> 0 | BZ11: 0 | CB11: =SUM(RPCategorised!$L128:$L129) -> 0 | CC11: =SUM(RPCategorised!$L130:$L131) -> 0 | CD11: =SUM(RPCategorised!$L132:$L133) -> 1 | CE11: =RPCategorised!$L134 -> 0 | CF11: =RPCategorised!$L135 -> 0 | CG11: =RPCategorised!$L136 -> 0 | CH11: =RPCategorised!$L137 -> 0 | CI11: =RPCategorised!$L138 -> 0 | CJ11: =RPCategorised!$L139 -> 0 | CK11: =RPCategorised!$L140 -> 0 | CL11: =RPCategorised!$L141 -> 0 | CR11: =RPCategorised!$L142 -> 0 | CS11: =RPCategorised!$L143 -> 0 | CT11: =RPCategorised!$L144 -> 0 | CW11: 0 | CY11: =SUM(RPCategorised!$M128:$M129) -> 0 | CZ11: =SUM(RPCategorised!$M130:$M131) -> 0 | DA11: =SUM(RPCategorised!$M132:$M133) -> 1 | DB11: =RPCategorised!$M134 -> 0 | DC11: =RPCategorised!$M135 -> 0 | DD11: =RPCategorised!$M136 -> 0 | DE11: =RPCategorised!$M137 -> 0 | DF11: =RPCategorised!$M138 -> 0 | DG11: =RPCategorised!$M139 -> 0 | DH11: =RPCategorised!$M140 -> 0 | DI11: =RPCategorised!$M141 -> 0 | DO11: =RPCategorised!$M142 -> 0 | DP11: =RPCategorised!$M143 -> 0 | DQ11: =RPCategorised!$M144 -> 0 | DT11: 0
A12: C-7 | B12: Augex | C12: Safety Augex | D12: 0.53 | E12: 0.3 | F12: 0.05 | G12: 0.05 | H12: 0.07 | I12: 0 | J12: 2.220446049e-16 | K12: =SUM(RPCategorised!$I152:$I153) -> 0 | L12: =SUM(RPCategorised!$I154:$I155) -> 0.102368637 | M12: =SUM(RPCategorised!$I156:$I157) -> 0.6567705542 | N12: =RPCategorised!$I168 -> 0 | O12: =RPCategorised!$I159 -> 0 | P12: =RPCategorised!$I160 -> 0 | Q12: =RPCategorised!$I161 -> 0 | R12: =RPCategorised!$I162 -> 0 | S12: =RPCategorised!$I163 -> 0 | T12: =RPCategorised!$I164 -> 0 | U12: =RPCategorised!$I165 -> 0 | AA12: =RPCategorised!$I166 -> 0.2408608087 | AB12: =RPCategorised!$I167 -> 0 | AC12: =RPCategorised!$I168 -> 0 | AF12: 0 | AH12: =SUM(RPCategorised!$J152:$J153) -> 0 | AI12: =SUM(RPCategorised!$J154:$J155) -> 0.1118120161 | AJ12: =SUM(RPCategorised!$J156:$J157) -> 0.6081146634 | AK12: =RPCategorised!$J168 -> 0 | AL12: =RPCategorised!$J159 -> 0 | AM12: =RPCategorised!$J160 -> 0 | AN12: =RPCategorised!$J161 -> 0 | AO12: =RPCategorised!$J162 -> 0 | AP12: =RPCategorised!$J163 -> 0 | AQ12: =RPCategorised!$J164 -> 0 | AR12: =RPCategorised!$J165 -> 0 | AX12: =RPCategorised!$J166 -> 0.2800733205 | AY12: =RPCategorised!$J167 -> 0 | AZ12: =RPCategorised!$J168 -> 0 | BC12: 0 | BE12: =SUM(RPCategorised!$K152:$K153) -> 0 | BF12: =SUM(RPCategorised!$K154:$K155) -> 0.1059401544 | BG12: =SUM(RPCategorised!$K156:$K157) -> 0.6121349444 | BH12: =RPCategorised!$K168 -> 0 | BI12: =RPCategorised!$K159 -> 0 | BJ12: =RPCategorised!$K160 -> 0 | BK12: =RPCategorised!$K161 -> 0 | BL12: =RPCategorised!$K162 -> 0 | BM12: =RPCategorised!$K163 -> 0 | BN12: =RPCategorised!$K164 -> 0 | BO12: =RPCategorised!$K165 -> 0 | BU12: =RPCategorised!$K166 -> 0.2819249013 | BV12: =RPCategorised!$K167 -> 0 | BW12: =RPCategorised!$K168 -> 0 | BZ12: 0 | CB12: =SUM(RPCategorised!$L152:$L153) -> 0 | CC12: =SUM(RPCategorised!$L154:$L155) -> 0.1060708471 | CD12: =SUM(RPCategorised!$L156:$L157) -> 0.6128901027 | CE12: =RPCategorised!$L168 -> 0 | CF12: =RPCategorised!$L159 -> 0 | CG12: =RPCategorised!$L160 -> 0 | CH12: =RPCategorised!$L161 -> 0 | CI12: =RPCategorised!$L162 -> 0 | CJ12: =RPCategorised!$L163 -> 0 | CK12: =RPCategorised!$L164 -> 0 | CL12: =RPCategorised!$L165 -> 0 | CR12: =RPCategorised!$L166 -> 0.2810390502 | CS12: =RPCategorised!$L167 -> 0 | CT12: =RPCategorised!$L168 -> 0 | CW12: 0 | CY12: =SUM(RPCategorised!$M152:$M153) -> 0 | CZ12: =SUM(RPCategorised!$M154:$M155) -> 0.1123954209 | DA12: =SUM(RPCategorised!$M156:$M157) -> 0.6494342504 | DB12: =RPCategorised!$M168 -> 0 | DC12: =RPCategorised!$M159 -> 0 | DD12: =RPCategorised!$M160 -> 0 | DE12: =RPCategorised!$M161 -> 0 | DF12: =RPCategorised!$M162 -> 0 | DG12: =RPCategorised!$M163 -> 0 | DH12: =RPCategorised!$M164 -> 0 | DI12: =RPCategorised!$M165 -> 0 | DO12: =RPCategorised!$M166 -> 0.2381703287 | DP12: =RPCategorised!$M167 -> 0 | DQ12: =RPCategorised!$M168 -> 0 | DT12: 0
A13: C-8 | B13: Repex | C13: Safety Repex | D13: 0.53 | E13: 0.3 | F13: 0.05 | G13: 0.05 | H13: 0.07 | I13: 0 | J13: 2.220446049e-16 | K13: =SUM(RPCategorised!$I176:$I177) -> 0.2396201751 | L13: =SUM(RPCategorised!$I178:$I179) -> 0.320266648 | M13: =SUM(RPCategorised!$I180:$I181) -> 0.308573587 | N13: =RPCategorised!$I182 -> 0 | O13: =RPCategorised!$I183 -> 0 | P13: =RPCategorised!$I184 -> 0.09405411469 | Q13: =RPCategorised!$I185 -> 0 | R13: =RPCategorised!$I186 -> 0 | S13: =RPCategorised!$I187 -> 0 | T13: =RPCategorised!$I188 -> 0 | U13: =RPCategorised!$I189 -> 0 | AA13: =RPCategorised!$I190 -> 0.03748547519 | AB13: =RPCategorised!$I191 -> 0 | AC13: =RPCategorised!$I192 -> 0 | AF13: 1.110223025e-16 | AH13: =SUM(RPCategorised!$J176:$J177) -> 0.2483434632 | AI13: =SUM(RPCategorised!$J178:$J179) -> 0.3323972265 | AJ13: =SUM(RPCategorised!$J180:$J181) -> 0.3257541872 | AK13: =RPCategorised!$J182 -> 0 | AL13: =RPCategorised!$J183 -> 0 | AM13: =RPCategorised!$J184 -> 0.0523873917 | AN13: =RPCategorised!$J185 -> 0 | AO13: =RPCategorised!$J186 -> 0 | AP13: =RPCategorised!$J187 -> 0 | AQ13: =RPCategorised!$J188 -> 0 | AR13: =RPCategorised!$J189 -> 0 | AX13: =RPCategorised!$J190 -> 0.04111773137 | AY13: =RPCategorised!$J191 -> 0 | AZ13: =RPCategorised!$J192 -> 0 | BC13: 0 | BE13: =SUM(RPCategorised!$K176:$K177) -> 0.256276196 | BF13: =SUM(RPCategorised!$K178:$K179) -> 0.3430148541 | BG13: =SUM(RPCategorised!$K180:$K181) -> 0.3351089058 | BH13: =RPCategorised!$K182 -> 0 | BI13: =RPCategorised!$K183 -> 0 | BJ13: =RPCategorised!$K184 -> 0.02316890595 | BK13: =RPCategorised!$K185 -> 0 | BL13: =RPCategorised!$K186 -> 0 | BM13: =RPCategorised!$K187 -> 0 | BN13: =RPCategorised!$K188 -> 0 | BO13: =RPCategorised!$K189 -> 0 | BU13: =RPCategorised!$K190 -> 0.04243113811 | BV13: =RPCategorised!$K191 -> 0 | BW13: =RPCategorised!$K192 -> 0 | BZ13: 0 | CB13: =SUM(RPCategorised!$L176:$L177) -> 0.2469979335 | CC13: =SUM(RPCategorised!$L178:$L179) -> 0.3305962919 | CD13: =SUM(RPCategorised!$L180:$L181) -> 0.3219638989 | CE13: =RPCategorised!$L182 -> 0 | CF13: =RPCategorised!$L183 -> 0 | CG13: =RPCategorised!$L184 -> 0.05954692091 | CH13: =RPCategorised!$L185 -> 0 | CI13: =RPCategorised!$L186 -> 0 | CJ13: =RPCategorised!$L187 -> 0 | CK13: =RPCategorised!$L188 -> 0 | CL13: =RPCategorised!$L189 -> 0 | CR13: =RPCategorised!$L190 -> 0.04089495471 | CS13: =RPCategorised!$L191 -> 0 | CT13: =RPCategorised!$L192 -> 0 | CW13: 0 | CY13: =SUM(RPCategorised!$M176:$M177) -> 0.237907621 | CZ13: =SUM(RPCategorised!$M178:$M179) -> 0.360968026 | DA13: =SUM(RPCategorised!$M180:$M181) -> 0.3101145995 | DB13: =RPCategorised!$M182 -> 0 | DC13: =RPCategorised!$M183 -> 0 | DD13: =RPCategorised!$M184 -> 0.0516198637 | DE13: =RPCategorised!$M185 -> 0 | DF13: =RPCategorised!$M186 -> 0 | DG13: =RPCategorised!$M187 -> 0 | DH13: =RPCategorised!$M188 -> 0 | DI13: =RPCategorised!$M189 -> 0 | DO13: =RPCategorised!$M190 -> 0.03938988981 | DP13: =RPCategorised!$M191 -> 0 | DQ13: =RPCategorised!$M192 -> 0 | DT13: 1.110223025e-16
A14: C-10 | B14: Augex | C14: PLEC (Undergrounding) | D14: 0.11 | E14: 0.07 | F14: 0.74 | G14: 0.03 | H14: 0.05 | I14: 0 | J14: 0 | K14: =SUM(RPCategorised!$I200:$I201) -> 0 | L14: =SUM(RPCategorised!$I202:$I203) -> 1 | M14: =SUM(RPCategorised!$I204:$I205) -> 0 | N14: =RPCategorised!$I206 -> 0 | O14: =RPCategorised!$I207 -> 0 | P14: =RPCategorised!$I208 -> 0 | Q14: =RPCategorised!$I209 -> 0 | R14: =RPCategorised!$I210 -> 0 | S14: =RPCategorised!$I211 -> 0 | T14: =RPCategorised!$I212 -> 0 | U14: =RPCategorised!$I213 -> 0 | AA14: =RPCategorised!$I214 -> 0 | AB14: =RPCategorised!$I215 -> 0 | AC14: =RPCategorised!$I216 -> 0 | AF14: 0 | AH14: =SUM(RPCategorised!$J200:$J201) -> 0 | AI14: =SUM(RPCategorised!$J202:$J203) -> 1 | AJ14: =SUM(RPCategorised!$J204:$J205) -> 0 | AK14: =RPCategorised!$J206 -> 0 | AL14: =RPCategorised!$J207 -> 0 | AM14: =RPCategorised!$J208 -> 0 | AN14: =RPCategorised!$J209 -> 0 | AO14: =RPCategorised!$J210 -> 0 | AP14: =RPCategorised!$J211 -> 0 | AQ14: =RPCategorised!$J212 -> 0 | AR14: =RPCategorised!$J213 -> 0 | AX14: =RPCategorised!$J214 -> 0 | AY14: =RPCategorised!$J215 -> 0 | AZ14: =RPCategorised!$J216 -> 0 | BC14: 0 | BE14: =SUM(RPCategorised!$K200:$K201) -> 0 | BF14: =SUM(RPCategorised!$K202:$K203) -> 1 | BG14: =SUM(RPCategorised!$K204:$K205) -> 0 | BH14: =RPCategorised!$K206 -> 0 | BI14: =RPCategorised!$K207 -> 0 | BJ14: =RPCategorised!$K208 -> 0 | BK14: =RPCategorised!$K209 -> 0 | BL14: =RPCategorised!$K210 -> 0 | BM14: =RPCategorised!$K211 -> 0 | BN14: =RPCategorised!$K212 -> 0 | BO14: =RPCategorised!$K213 -> 0 | BU14: =RPCategorised!$K214 -> 0 | BV14: =RPCategorised!$K215 -> 0 | BW14: =RPCategorised!$K216 -> 0 | BZ14: 0 | CB14: =SUM(RPCategorised!$L200:$L201) -> 0 | CC14: =SUM(RPCategorised!$L202:$L203) -> 1 | CD14: =SUM(RPCategorised!$L204:$L205) -> 0 | CE14: =RPCategorised!$L206 -> 0 | CF14: =RPCategorised!$L207 -> 0 | CG14: =RPCategorised!$L208 -> 0 | CH14: =RPCategorised!$L209 -> 0 | CI14: =RPCategorised!$L210 -> 0 | CJ14: =RPCategorised!$L211 -> 0 | CK14: =RPCategorised!$L212 -> 0 | CL14: =RPCategorised!$L213 -> 0 | CR14: =RPCategorised!$L214 -> 0 | CS14: =RPCategorised!$L215 -> 0 | CT14: =RPCategorised!$L216 -> 0 | CW14: 0 | CY14: =SUM(RPCategorised!$M200:$M201) -> 0 | CZ14: =SUM(RPCategorised!$M202:$M203) -> 1 | DA14: =SUM(RPCategorised!$M204:$M205) -> 0 | DB14: =RPCategorised!$M206 -> 0 | DC14: =RPCategorised!$M207 -> 0 | DD14: =RPCategorised!$M208 -> 0 | DE14: =RPCategorised!$M209 -> 0 | DF14: =RPCategorised!$M210 -> 0 | DG14: =RPCategorised!$M211 -> 0 | DH14: =RPCategorised!$M212 -> 0 | DI14: =RPCategorised!$M213 -> 0 | DO14: =RPCategorised!$M214 -> 0 | DP14: =RPCategorised!$M215 -> 0 | DQ14: =RPCategorised!$M216 -> 0 | DT14: 0
A15: C-15 | B15: Augex | C15: Strategic - Network Security | D15: 0.48 | E15: 0.12 | F15: 0.29 | G15: 0.07 | H15: 0.04 | I15: 0 | J15: 0 | K15: =SUM(RPCategorised!$I248:$I249) -> 0 | L15: =SUM(RPCategorised!$I250:$I251) -> 0 | M15: =SUM(RPCategorised!$I252:$I253) -> 0.07703683315 | N15: =RPCategorised!$I254 -> 0 | O15: =RPCategorised!$I255 -> 0 | P15: =RPCategorised!$I256 -> 0.3032763148 | Q15: =RPCategorised!$I257 -> 0 | R15: =RPCategorised!$I258 -> 0 | S15: =RPCategorised!$I259 -> 0 | T15: =RPCategorised!$I260 -> 0 | U15: =RPCategorised!$I261 -> 0 | AA15: =RPCategorised!$I262 -> 0 | AB15: =RPCategorised!$I263 -> 0 | AC15: =RPCategorised!$I264 -> 0.6196868521 | AF15: 0 | AH15: =SUM(RPCategorised!$J248:$J249) -> 0 | AI15: =SUM(RPCategorised!$J250:$J251) -> 0 | AJ15: =SUM(RPCategorised!$J252:$J253) -> 0.07774816523 | AK15: =RPCategorised!$J254 -> 0 | AL15: =RPCategorised!$J255 -> 0 | AM15: =RPCategorised!$J256 -> 0.001043294983 | AN15: =RPCategorised!$J257 -> 0 | AO15: =RPCategorised!$J258 -> 0 | AP15: =RPCategorised!$J259 -> 0 | AQ15: =RPCategorised!$J260 -> 0 | AR15: =RPCategorised!$J261 -> 0 | AX15: =RPCategorised!$J262 -> 0 | AY15: =RPCategorised!$J263 -> 0 | AZ15: =RPCategorised!$J264 -> 0.9212085398 | BC15: 0 | BE15: =SUM(RPCategorised!$K248:$K249) -> 0 | BF15: =SUM(RPCategorised!$K250:$K251) -> 0 | BG15: =SUM(RPCategorised!$K252:$K253) -> 0.09918027649 | BH15: =RPCategorised!$K254 -> 0 | BI15: =RPCategorised!$K255 -> 0 | BJ15: =RPCategorised!$K256 -> 0.001330890377 | BK15: =RPCategorised!$K257 -> 0 | BL15: =RPCategorised!$K258 -> 0 | BM15: =RPCategorised!$K259 -> 0 | BN15: =RPCategorised!$K260 -> 0 | BO15: =RPCategorised!$K261 -> 0 | BU15: =RPCategorised!$K262 -> 0 | BV15: =RPCategorised!$K263 -> 0 | BW15: =RPCategorised!$K264 -> 0.8994888331 | BZ15: 0 | CB15: =SUM(RPCategorised!$L248:$L249) -> 0 | CC15: =SUM(RPCategorised!$L250:$L251) -> 0 | CD15: =SUM(RPCategorised!$L252:$L253) -> 0.075572035 | CE15: =RPCategorised!$L254 -> 0 | CF15: =RPCategorised!$L255 -> 0 | CG15: =RPCategorised!$L256 -> 0.3128479083 | CH15: =RPCategorised!$L257 -> 0 | CI15: =RPCategorised!$L258 -> 0 | CJ15: =RPCategorised!$L259 -> 0 | CK15: =RPCategorised!$L260 -> 0 | CL15: =RPCategorised!$L261 -> 0 | CR15: =RPCategorised!$L262 -> 0 | CS15: =RPCategorised!$L263 -> 0 | CT15: =RPCategorised!$L264 -> 0.6115800567 | CW15: 0 | CY15: =SUM(RPCategorised!$M248:$M249) -> 0 | CZ15: =SUM(RPCategorised!$M250:$M251) -> 0 | DA15: =SUM(RPCategorised!$M252:$M253) -> 0.07810667459 | DB15: =RPCategorised!$M254 -> 0 | DC15: =RPCategorised!$M255 -> 0 | DD15: =RPCategorised!$M256 -> 0.4847489257 | DE15: =RPCategorised!$M257 -> 0 | DF15: =RPCategorised!$M258 -> 0 | DG15: =RPCategorised!$M259 -> 0 | DH15: =RPCategorised!$M260 -> 0 | DI15: =RPCategorised!$M261 -> 0 | DO15: =RPCategorised!$M262 -> 0 | DP15: =RPCategorised!$M263 -> 0 | DQ15: =RPCategorised!$M264 -> 0.4371443997 | DT15: 0
A16: C-18 | B16: Augex | C16: Safety (Bushfire) | D16: 0.53 | E16: 0.3 | F16: 0.05 | G16: 0.05 | H16: 0.07 | I16: 0 | J16: 2.220446049e-16 | K16: =SUM(RPCategorised!$I272:$I273) -> 0 | L16: =SUM(RPCategorised!$I274:$I275) -> 0 | M16: =SUM(RPCategorised!$I276:$I277) -> 0 | N16: =RPCategorised!$I278 -> 0 | O16: =RPCategorised!$I279 -> 0 | P16: =RPCategorised!$I280 -> 0 | Q16: =RPCategorised!$I281 -> 0 | R16: =RPCategorised!$I282 -> 0 | S16: =RPCategorised!$I283 -> 0 | T16: =RPCategorised!$I284 -> 0 | U16: =RPCategorised!$I285 -> 0 | AA16: =RPCategorised!$I286 -> 1 | AB16: =RPCategorised!$I287 -> 0 | AC16: =RPCategorised!$I288 -> 0 | AF16: 0 | AX16: 1 | BC16: 0 | BU16: 1 | BZ16: 0 | CR16: 1 | CW16: 0 | DO16: 1 | DT16: 0
A17: C-19 | B17: Non-network | C17: Heavy Vehicle Fleet - 15yrs | D17: 0 | E17: 1 | F17: 0 | G17: 0 | H17: 0 | I17: 0 | J17: 0 | V17: 1 | AF17: 0 | AS17: 1 | BC17: 0 | BP17: 1 | BZ17: 0 | CM17: 1 | CW17: 0 | DJ17: 1 | DT17: 0
A18: C-20 | B18: Non-network | C18: Heavy Vehicle Fleet - 10yrs | D18: 0 | E18: 1 | F18: 0 | G18: 0 | H18: 0 | I18: 0 | J18: 0 | W18: 1 | AF18: 0 | AT18: 1 | BC18: 0 | BQ18: 1 | BZ18: 0 | CN18: 1 | CW18: 0 | DK18: 1 | DT18: 0
A19: C-21 | B19: Non-network | C19: Light Vehicle Fleet | D19: 0 | E19: 1 | F19: 0 | G19: 0 | H19: 0 | I19: 0 | J19: 0 | X19: 1 | AF19: 0 | AU19: 1 | BC19: 0 | BR19: 1 | BZ19: 0 | CO19: 1 | CW19: 0 | DL19: 1 | DT19: 0
A20: C-22 | B20: Non-network | C20: Plant and Tools | D20: 0 | E20: 1 | F20: 0 | G20: 0 | H20: 0 | I20: 0 | J20: 0 | Z20: 1 | AF20: 0 | AW20: 1 | BC20: 0 | BT20: 1 | BZ20: 0 | CQ20: 1 | CW20: 0 | DN20: 1 | DT20: 0
A21: C-24 | B21: Non-network | C21: Property | D21: 0 | E21: 0 | F21: 0 | G21: 1 | H21: 0 | I21: 0 | J21: 0 | Z21: 0.1 | AE21: 0.9 | AF21: 0 | AW21: 0.1 | BB21: 0.9 | BC21: 0 | BT21: 0.1 | BY21: 0.9 | BZ21: 0 | CQ21: 0.1 | CV21: 0.9 | CW21: 0 | DN21: 0.1 | DS21: 0.9 | DT21: 0
A22: C-25 | B22: Non-network | C22: Information Technology | D22: 0.169 | E22: 0.07 | F22: 0.649 | G22: 0 | H22: 0.112 | I22: 0 | J22: 2.220446049e-16 | Y22: 0.1499676699 | AD22: 0.8500323301 | AF22: 0 | AV22: 0.2633969286 | BA22: 0.7366030714 | BC22: 0 | BS22: 0.1780098699 | BX22: 0.8219901301 | BZ22: 0 | CP22: 0.1654927128 | CU22: 0.8345072872 | CW22: 0 | DM22: 0.1514060828 | DR22: 0.8485939172 | DT22: 0
A23: C-28 | B23: Non-network | C23: Superannuation | D23: 1 | E23: 0 | F23: 0 | G23: 0 | H23: 0 | I23: 0 | J23: 0 | K23: 0.004087548568 | L23: 0.08962876097 | M23: 0.1747954997 | N23: 0.01565508064 | O23: 0.4264891882 | P23: 0.09807088226 | V23: 0.00671926512 | W23: 0.0190281823 | Y23: 0.02482348736 | AD23: 0.1407021048 | AF23: 0 | AH23: 0.004087548568 | AI23: 0.08962876097 | AJ23: 0.1747954997 | AK23: 0.01565508064 | AL23: 0.4264891882 | AM23: 0.09807088226 | AS23: 0.00671926512 | AT23: 0.0190281823 | AV23: 0.02482348736 | BA23: 0.1407021048 | BC23: 0 | BE23: 0.004087548568 | BF23: 0.08962876097 | BG23: 0.1747954997 | BH23: 0.01565508064 | BI23: 0.4264891882 | BJ23: 0.09807088226 | BP23: 0.00671926512 | BQ23: 0.0190281823 | BS23: 0.02482348736 | BX23: 0.1407021048 | BZ23: 0 | CB23: 0.004087548568 | CC23: 0.08962876097 | CD23: 0.1747954997 | CE23: 0.01565508064 | CF23: 0.4264891882 | CG23: 0.09807088226 | CM23: 0.00671926512 | CN23: 0.0190281823 | CP23: 0.02482348736 | CU23: 0.1407021048 | CW23: 0 | CY23: 0.004087548568 | CZ23: 0.08962876097 | DA23: 0.1747954997 | DB23: 0.01565508064 | DC23: 0.4264891882 | DD23: 0.09807088226 | DJ23: 0.00671926512 | DK23: 0.0190281823 | DM23: 0.02482348736 | DR23: 0.1407021048 | DT23: 0
A24: C-29 | B24: Non-network | C24: Operational Information Technology | D24: 0.2860111839 | E24: 0.1724767712 | F24: 0.0295138293 | G24: 0.4238561208 | H24: 0.08814209473 | I24: 0 | J24: 2.220446049e-16 | P24: 1 | AF24: 0 | AM24: 1 | BC24: 0 | BJ24: 1 | BZ24: 0 | CG24: 1 | CW24: 0 | DD24: 1 | DT24: 0
J26: =SUM(D26:G26) -> 0
AF28: =AH29 -> Immediate Expensing of Capex
K29: Immediate Expensing of Capex | AH29: =$K$29 -> Immediate Expensing of Capex | BE29: =$K$29 -> Immediate Expensing of Capex | CB29: =$K$29 -> Immediate Expensing of Capex | CY29: =$K$29 -> Immediate Expensing of Capex
K30: 2020/21 | L30: =K30 -> 2020/21 | M30: =L30 -> 2020/21 | N30: =M30 -> 2020/21 | O30: =N30 -> 2020/21 | P30: =O30 -> 2020/21 | Q30: =P30 -> 2020/21 | R30: =Q30 -> 2020/21 | S30: =R30 -> 2020/21 | T30: =S30 -> 2020/21 | U30: =T30 -> 2020/21 | V30: =U30 -> 2020/21 | W30: =V30 -> 2020/21 | X30: =W30 -> 2020/21 | Y30: =X30 -> 2020/21 | Z30: =Y30 -> 2020/21 | AA30: =Z30 -> 2020/21 | AB30: =AA30 -> 2020/21 | AC30: =AB30 -> 2020/21 | AD30: =AC30 -> 2020/21 | AE30: =AD30 -> 2020/21 | AF30: =AE30 -> 2020/21 | AH30: 2021/22 | AI30: =AH30 -> 2021/22 | AJ30: =AI30 -> 2021/22 | AK30: =AJ30 -> 2021/22 | AL30: =AK30 -> 2021/22 | AM30: =AL30 -> 2021/22 | AN30: =AM30 -> 2021/22 | AO30: =AN30 -> 2021/22 | AP30: =AO30 -> 2021/22 | AQ30: =AP30 -> 2021/22 | AR30: =AQ30 -> 2021/22 | AS30: =AR30 -> 2021/22 | AT30: =AS30 -> 2021/22 | AU30: =AT30 -> 2021/22 | AV30: =AU30 -> 2021/22 | AW30: =AV30 -> 2021/22 | AX30: =AW30 -> 2021/22 | AY30: =AX30 -> 2021/22 | AZ30: =AY30 -> 2021/22 | BA30: =AZ30 -> 2021/22 | BB30: =BA30 -> 2021/22 | BC30: =BB30 -> 2021/22 | BE30: 2022/23 | BF30: =BE30 -> 2022/23 | BG30: =BF30 -> 2022/23 | BH30: =BG30 -> 2022/23 | BI30: =BH30 -> 2022/23 | BJ30: =BI30 -> 2022/23 | BK30: =BJ30 -> 2022/23 | BL30: =BK30 -> 2022/23 | BM30: =BL30 -> 2022/23 | BN30: =BM30 -> 2022/23 | BO30: =BN30 -> 2022/23 | BP30: =BO30 -> 2022/23 | BQ30: =BP30 -> 2022/23 | BR30: =BQ30 -> 2022/23 | BS30: =BR30 -> 2022/23 | BT30: =BS30 -> 2022/23 | BU30: =BT30 -> 2022/23 | BV30: =BU30 -> 2022/23 | BW30: =BV30 -> 2022/23 | BX30: =BW30 -> 2022/23 | BY30: =BX30 -> 2022/23 | BZ30: =BY30 -> 2022/23 | CB30: 2023/24 | CC30: =CB30 -> 2023/24 | CD30: =CC30 -> 2023/24 | CE30: =CD30 -> 2023/24 | CF30: =CE30 -> 2023/24 | CG30: =CF30 -> 2023/24 | CH30: =CG30 -> 2023/24 | CI30: =CH30 -> 2023/24 | CJ30: =CI30 -> 2023/24 | CK30: =CJ30 -> 2023/24 | CL30: =CK30 -> 2023/24 | CM30: =CL30 -> 2023/24 | CN30: =CM30 -> 2023/24 | CO30: =CN30 -> 2023/24 | CP30: =CO30 -> 2023/24 | CQ30: =CP30 -> 2023/24 | CR30: =CQ30 -> 2023/24 | CS30: =CR30 -> 2023/24 | CT30: =CS30 -> 2023/24 | CU30: =CT30 -> 2023/24 | CV30: =CU30 -> 2023/24 | CW30: =CV30 -> 2023/24 | CY30: 2024/25 | CZ30: =CY30 -> 2024/25 | DA30: =CZ30 -> 2024/25 | DB30: =DA30 -> 2024/25 | DC30: =DB30 -> 2024/25 | DD30: =DC30 -> 2024/25 | DE30: =DD30 -> 2024/25 | DF30: =DE30 -> 2024/25 | DG30: =DF30 -> 2024/25 | DH30: =DG30 -> 2024/25 | DI30: =DH30 -> 2024/25 | DJ30: =DI30 -> 2024/25 | DK30: =DJ30 -> 2024/25 | DL30: =DK30 -> 2024/25 | DM30: =DL30 -> 2024/25 | DN30: =DM30 -> 2024/25 | DO30: =DN30 -> 2024/25 | DP30: =DO30 -> 2024/25 | DQ30: =DP30 -> 2024/25 | DR30: =DQ30 -> 2024/25 | DS30: =DR30 -> 2024/25 | DT30: =DS30 -> 2024/25
K31: Sub-transmission lines | L31: Distribution Lines | M31: Substations | N31: Distribution Transformers | O31: LVS | P31: Communications | Q31: Contributions | R31: Land | S31: Substation Land | T31: Easements | U31: Buildings | V31: Heavy Vehicles - 15 year | W31: Heavy Vehicles - 10 year | X31: Light Vehicles | Y31: IT Assets | Z31: Plant & Tools/Office Furniture | AA31: Distribution Lines-Refurbish and Shorter Life | AB31: Substations-Refurbish and Shorter Life | AC31: Network Electronics | AD31: in-house software | AE31: Buildings | AF31: Check | AH31: =$K$4 -> Sub-transmission lines | AI31: =$L$4 -> Distribution Lines | AJ31: =$M$4 -> Substations | AK31: =$N$4 -> Distribution Transformers | AL31: =$O$4 -> LVS | AM31: =$P$4 -> Communications | AN31: =$Q$4 -> Contributions | AO31: =$R$4 -> Land | AP31: =$S$4 -> Substation Land | AQ31: =$T$4 -> Easements | AR31: =$U$4 -> Buildings | AS31: =$V$4 -> Heavy Vehicles - 15 year | AT31: =$W$4 -> Heavy Vehicles - 10 year | AU31: =$X$4 -> Light Vehicles | AV31: =$Y$4 -> IT Assets | AW31: =$Z$4 -> Plant & Tools/Office Furniture | AX31: =$AA$4 -> Distribution Lines-Refurbish and Shorter Life | AY31: =$AB$4 -> Substations-Refurbish and Shorter Life | AZ31: =$AC$4 -> Network Electronics | BA31: =$AD$4 -> in-house software | BB31: =$AE$4 -> Buildings | BC31: Check | BE31: =$K$4 -> Sub-transmission lines | BF31: =$L$4 -> Distribution Lines | BG31: =$M$4 -> Substations | BH31: =$N$4 -> Distribution Transformers | BI31: =$O$4 -> LVS | BJ31: =$P$4 -> Communications | BK31: =$Q$4 -> Contributions | BL31: =$R$4 -> Land | BM31: =$S$4 -> Substation Land | BN31: =$T$4 -> Easements | BO31: =$U$4 -> Buildings | BP31: =$V$4 -> Heavy Vehicles - 15 year | BQ31: =$W$4 -> Heavy Vehicles - 10 year | BR31: =$X$4 -> Light Vehicles | BS31: =$Y$4 -> IT Assets | BT31: =$Z$4 -> Plant & Tools/Office Furniture | BU31: =$AA$4 -> Distribution Lines-Refurbish and Shorter Life | BV31: =$AB$4 -> Substations-Refurbish and Shorter Life | BW31: =$AC$4 -> Network Electronics | BX31: =$AD$4 -> in-house software | BY31: =$AE$4 -> Buildings | BZ31: Check | CB31: =$K$4 -> Sub-transmission lines | CC31: =$L$4 -> Distribution Lines | CD31: =$M$4 -> Substations | CE31: =$N$4 -> Distribution Transformers | CF31: =$O$4 -> LVS | CG31: =$P$4 -> Communications | CH31: =$Q$4 -> Contributions | CI31: =$R$4 -> Land | CJ31: =$S$4 -> Substation Land | CK31: =$T$4 -> Easements | CL31: =$U$4 -> Buildings | CM31: =$V$4 -> Heavy Vehicles - 15 year | CN31: =$W$4 -> Heavy Vehicles - 10 year | CO31: =$X$4 -> Light Vehicles | CP31: =$Y$4 -> IT Assets | CQ31: =$Z$4 -> Plant & Tools/Office Furniture | CR31: =$AA$4 -> Distribution Lines-Refurbish and Shorter Life | CS31: =$AB$4 -> Substations-Refurbish and Shorter Life | CT31: =$AC$4 -> Network Electronics | CU31: =$AD$4 -> in-house software | CV31: =$AE$4 -> Buildings | CW31: Check | CY31: =$K$4 -> Sub-transmission lines | CZ31: =$L$4 -> Distribution Lines | DA31: =$M$4 -> Substations | DB31: =$N$4 -> Distribution Transformers | DC31: =$O$4 -> LVS | DD31: =$P$4 -> Communications | DE31: =$Q$4 -> Contributions | DF31: =$R$4 -> Land | DG31: =$S$4 -> Substation Land | DH31: =$T$4 -> Easements | DI31: =$U$4 -> Buildings | DJ31: =$V$4 -> Heavy Vehicles - 15 year | DK31: =$W$4 -> Heavy Vehicles - 10 year | DL31: =$X$4 -> Light Vehicles | DM31: =$Y$4 -> IT Assets | DN31: =$Z$4 -> Plant & Tools/Office Furniture | DO31: =$AA$4 -> Distribution Lines-Refurbish and Shorter Life | DP31: =$AB$4 -> Substations-Refurbish and Shorter Life | DQ31: =$AC$4 -> Network Electronics | DR31: =$AD$4 -> in-house software | DS31: =$AE$4 -> Buildings | DT31: Check
AF32: =IF(SUM(AF33:AF51)>0.00001,"Error","Ok") -> Ok | BC32: =IF(SUM(BC33:BC51)>0.00001,"Error","Ok") -> Ok | BZ32: =IF(SUM(BZ33:BZ51)>0.00001,"Error","Ok") -> Ok | CW32: =IF(SUM(CW33:CW51)>0.00001,"Error","Ok") -> Ok | DT32: =IF(SUM(DT33:DT51)>0.00001,"Error","Ok") -> Ok
A33: =A6 -> C-1 | B33: =B6 -> Repex | C33: Asset Replacement and Refurbishment | K33: =IF(K6="","",K6) -> 0 | L33: =IF(L6="","",L6) -> 0.5898921657 | M33: 0.1866865183 | N33: 0 | O33: 0 | P33: 0.04653034785 | Q33: 0 | R33: 0 | S33: 0 | T33: 0 | U33: 0 | AA33: 0.1396461875 | AB33: 0.01137578705 | AC33: 0.02586899351 | AF33: =ABS(1-SUM(K33:AE33)) -> 2.220446049e-16 | AH33: =IF(AH6="","",AH6) -> 0 | AI33: =IF(AI6="","",AI6) -> 0.5783514081 | AJ33: 0.1944735603 | AK33: 0 | AL33: 0 | AM33: 0.05101506876 | AN33: 0 | AO33: 0 | AP33: 0 | AQ33: 0 | AR33: 0 | AX33: 0.1394329704 | AY33: 0.01110571868 | AZ33: 0.02562127375 | BC33: =ABS(1-SUM(AH33:BB33)) -> 0 | BE33: =IF(BE6="","",BE6) -> 0 | BF33: =IF(BF6="","",BF6) -> 0.5697433608 | BG33: 0.2084317649 | BH33: 0 | BI33: 0 | BJ33: 0.04956932419 | BK33: 0 | BL33: 0 | BM33: 0 | BN33: 0 | BO33: 0 | BU33: 0.1375190845 | BV33: 0.01094042375 | BW33: 0.02379604192 | BZ33: =ABS(1-SUM(BE33:BY33)) -> 0 | CB33: =IF(CB6="","",CB6) -> 0 | CC33: =IF(CC6="","",CC6) -> 0.5924559399 | CD33: 0.1863358214 | CE33: 0 | CF33: 0 | CG33: 0.04334481446 | CH33: 0 | CI33: 0 | CJ33: 0 | CK33: 0 | CL33: 0 | CR33: 0.1432436548 | CS33: 0.01137655914 | CT33: 0.02324321023 | CW33: =ABS(1-SUM(CB33:CV33)) -> 2.220446049e-16 | CY33: =IF(CY6="","",CY6) -> 0 | CZ33: =IF(CZ6="","",CZ6) -> 0.6137649486 | DA33: 0.1609952433 | DB33: 0 | DC33: 0 | DD33: 0.04365320528 | DE33: 0 | DF33: 0 | DG33: 0 | DH33: 0 | DI33: 0 | DO33: 0.1484730114 | DP33: 0.0108391023 | DQ33: 0.02227448908 | DT33: =ABS(1-SUM(CY33:DS33)) -> 0
A34: =A7 -> C-2 | B34: Augex | C34: Augmentation/Capacity | K34: =IF(K7="","",K7) -> 0 | L34: 0.2792794202 | M34: 0.3151603524 | N34: 0.3214564907 | O34: 0 | P34: 0 | Q34: 0 | R34: 0 | S34: 0 | T34: 0 | U34: 0 | AA34: 0 | AB34: 0.05845945483 | AC34: 0.02564428184 | AF34: =ABS(1-SUM(K34:AE34)) -> 0 | AH34: =IF(AH7="","",AH7) -> 0.02151318047 | AI34: 0.1936186243 | AJ34: 0.3187347528 | AK34: 0.335360082 | AL34: 0 | AM34: 0 | AN34: 0 | AO34: 0 | AP34: 0 | AQ34: 0 | AR34: 0 | AX34: 0 | AY34: 0.05964754084 | AZ34: 0.0711258196 | BC34: =ABS(1-SUM(AH34:BB34)) -> 1.110223025e-16 | BE34: =IF(BE7="","",BE7) -> 0.04748578454 | BF34: 0.2034807522 | BG34: 0.2118115916 | BH34: 0.3782526026 | BI34: 0 | BJ34: 0 | BK34: 0 | BL34: 0 | BM34: 0 | BN34: 0 | BO34: 0 | BU34: 0 | BV34: 0.06582964979 | BW34: 0.09313961935 | BZ34: =ABS(1-SUM(BE34:BY34)) -> 0 | CB34: =IF(CB7="","",CB7) -> 0.181361298 | CC34: 0.2140895528 | CD34: 0.09490974646 | CE34: 0.3583594745 | CF34: 0 | CG34: 0 | CH34: 0 | CI34: 0 | CJ34: 0.06116844366 | CK34: 0 | CL34: 0 | CR34: 0 | CS34: 0.06236752516 | CT34: 0.02774395932 | CW34: =ABS(1-SUM(CB34:CV34)) -> 2.220446049e-16 | CY34: =IF(CY7="","",CY7) -> 0.258153079 | CZ34: 0.2237922861 | DA34: 0.03138191567 | DB34: 0.3638758889 | DC34: 0 | DD34: 0 | DE34: 0 | DF34: 0 | DG34: 0.0608024616 | DH34: 0 | DI34: 0 | DO34: 0 | DP34: 0.06199436877 | DQ34: 0 | DT34: =ABS(1-SUM(CY34:DS34)) -> 0
A35: =A8 -> C-3 | B35: Connections | C35: Connections | K35: =IF(K8="","",K8) -> 0 | L35: 0.8199003473 | M35: 0 | N35: 0 | O35: 0.1800996527 | P35: 0 | Q35: 0 | R35: 0 | S35: 0 | T35: 0 | U35: 0 | AA35: 0 | AB35: 0 | AC35: 0 | AF35: 1.110223025e-16 | AH35: =IF(AH8="","",AH8) -> 0 | AI35: 0.8072516315 | AJ35: 0 | AK35: 0 | AL35: 0.1927483685 | AM35: 0 | AN35: 0 | AO35: 0 | AP35: 0 | AQ35: 0 | AR35: 0 | AX35: 0 | AY35: 0 | AZ35: 0 | BC35: 0 | BE35: =IF(BE8="","",BE8) -> 0 | BF35: 0.814604699 | BG35: 0 | BH35: 0 | BI35: 0.185395301 | BJ35: 0 | BK35: 0 | BL35: 0 | BM35: 0 | BN35: 0 | BO35: 0 | BU35: 0 | BV35: 0 | BW35: 0 | BZ35: 0 | CB35: =IF(CB8="","",CB8) -> 0 | CC35: 0.8131528925 | CD35: 0 | CE35: 0 | CF35: 0.1868471075 | CG35: 0 | CH35: 0 | CI35: 0 | CJ35: 0 | CK35: 0 | CL35: 0 | CR35: 0 | CS35: 0 | CT35: 0 | CW35: 0 | CY35: =IF(CY8="","",CY8) -> 0 | CZ35: 0.8237360797 | DA35: 0 | DB35: 0 | DC35: 0.1762639203 | DD35: 0 | DE35: 0 | DF35: 0 | DG35: 0 | DH35: 0 | DI35: 0 | DO35: 0 | DP35: 0 | DQ35: 0 | DT35: 0
A36: =A9 -> C-4 | B36: Connections | C36: Contributions | K36: =IF(K9="","",K9) -> 0 | L36: 0.9240955823 | M36: 0 | N36: 0 | O36: 0.07590441772 | P36: 0 | Q36: 0 | R36: 0 | S36: 0 | T36: 0 | U36: 0 | AA36: 0 | AB36: 0 | AC36: 0 | AF36: 0 | AH36: =IF(AH9="","",AH9) -> 0 | AI36: 0.9178025189 | AJ36: 0 | AK36: 0 | AL36: 0.08219748107 | AM36: 0 | AN36: 0 | AO36: 0 | AP36: 0 | AQ36: 0 | AR36: 0 | AX36: 0 | AY36: 0 | AZ36: 0 | BC36: 0 | BE36: =IF(BE9="","",BE9) -> 0 | BF36: 0.921207573 | BG36: 0 | BH36: 0 | BI36: 0.07879242704 | BJ36: 0 | BK36: 0 | BL36: 0 | BM36: 0 | BN36: 0 | BO36: 0 | BU36: 0 | BV36: 0 | BW36: 0 | BZ36: 1.110223025e-16 | CB36: =IF(CB9="","",CB9) -> 0 | CC36: 0.9205350944 | CD36: 0 | CE36: 0 | CF36: 0.07946490556 | CG36: 0 | CH36: 0 | CI36: 0 | CJ36: 0 | CK36: 0 | CL36: 0 | CR36: 0 | CS36: 0 | CT36: 0 | CW36: 0 | CY36: =IF(CY9="","",CY9) -> 0 | CZ36: 0.925377554 | DA36: 0 | DB36: 0 | DC36: 0.07462244605 | DD36: 0 | DE36: 0 | DF36: 0 | DG36: 0 | DH36: 0 | DI36: 0 | DO36: 0 | DP36: 0 | DQ36: 0 | DT36: 0
A37: =A10 -> C-5 | B37: Augex | C37: Reliability | K37: =IF(K10="","",K10) -> 0.6340833147 | L37: 0.2356339176 | M37: 0 | N37: 0 | O37: 0 | P37: 0 | Q37: 0 | R37: 0 | S37: 0 | T37: 0 | U37: 0 | AA37: 0.1158069046 | AB37: 0 | AC37: 0.01447586307 | AF37: 2.220446049e-16 | AH37: =IF(AH10="","",AH10) -> 0.6340833147 | AI37: 0.2356339176 | AJ37: 0 | AK37: 0 | AL37: 0 | AM37: 0 | AN37: 0 | AO37: 0 | AP37: 0 | AQ37: 0 | AR37: 0 | AX37: 0.1158069046 | AY37: 0 | AZ37: 0.01447586307 | BC37: 2.220446049e-16 | BE37: =IF(BE10="","",BE10) -> 0.6340833147 | BF37: 0.2356339176 | BG37: 0 | BH37: 0 | BI37: 0 | BJ37: 0 | BK37: 0 | BL37: 0 | BM37: 0 | BN37: 0 | BO37: 0 | BU37: 0.1158069046 | BV37: 0 | BW37: 0.01447586307 | BZ37: 2.220446049e-16 | CB37: =IF(CB10="","",CB10) -> 0.6340833147 | CC37: 0.2356339176 | CD37: 0 | CE37: 0 | CF37: 0 | CG37: 0 | CH37: 0 | CI37: 0 | CJ37: 0 | CK37: 0 | CL37: 0 | CR37: 0.1158069046 | CS37: 0 | CT37: 0.01447586307 | CW37: 2.220446049e-16 | CY37: =IF(CY10="","",CY10) -> 0.6340833147 | CZ37: 0.2356339176 | DA37: 0 | DB37: 0 | DC37: 0 | DD37: 0 | DE37: 0 | DF37: 0 | DG37: 0 | DH37: 0 | DI37: 0 | DO37: 0.1158069046 | DP37: 0 | DQ37: 0.01447586307 | DT37: 2.220446049e-16
A38: =A11 -> C-6 | B38: Augex | C38: Environmental | K38: =IF(K11="","",K11) -> 0 | L38: 0 | M38: 1 | N38: 0 | O38: 0 | P38: 0 | Q38: 0 | R38: 0 | S38: 0 | T38: 0 | U38: 0 | AA38: 0 | AB38: 0 | AC38: 0 | AF38: 0 | AH38: =IF(AH11="","",AH11) -> 0 | AI38: 0 | AJ38: 1 | AK38: 0 | AL38: 0 | AM38: 0 | AN38: 0 | AO38: 0 | AP38: 0 | AQ38: 0 | AR38: 0 | AX38: 0 | AY38: 0 | AZ38: 0 | BC38: 0 | BE38: =IF(BE11="","",BE11) -> 0 | BF38: 0 | BG38: 1 | BH38: 0 | BI38: 0 | BJ38: 0 | BK38: 0 | BL38: 0 | BM38: 0 | BN38: 0 | BO38: 0 | BU38: 0 | BV38: 0 | BW38: 0 | BZ38: 0 | CB38: =IF(CB11="","",CB11) -> 0 | CC38: 0 | CD38: 1 | CE38: 0 | CF38: 0 | CG38: 0 | CH38: 0 | CI38: 0 | CJ38: 0 | CK38: 0 | CL38: 0 | CR38: 0 | CS38: 0 | CT38: 0 | CW38: 0 | CY38: =IF(CY11="","",CY11) -> 0 | CZ38: 0 | DA38: 1 | DB38: 0 | DC38: 0 | DD38: 0 | DE38: 0 | DF38: 0 | DG38: 0 | DH38: 0 | DI38: 0 | DO38: 0 | DP38: 0 | DQ38: 0 | DT38: 0
A39: =A12 -> C-7 | B39: Augex | C39: Safety Augex | K39: =IF(K12="","",K12) -> 0 | L39: 0.102368637 | M39: 0.6567705542 | N39: 0 | O39: 0 | P39: 0 | Q39: 0 | R39: 0 | S39: 0 | T39: 0 | U39: 0 | AA39: 0.2408608087 | AB39: 0 | AC39: 0 | AF39: 0 | AH39: =IF(AH12="","",AH12) -> 0 | AI39: 0.1118120161 | AJ39: 0.6081146634 | AK39: 0 | AL39: 0 | AM39: 0 | AN39: 0 | AO39: 0 | AP39: 0 | AQ39: 0 | AR39: 0 | AX39: 0.2800733205 | AY39: 0 | AZ39: 0 | BC39: 0 | BE39: =IF(BE12="","",BE12) -> 0 | BF39: 0.1059401544 | BG39: 0.6121349444 | BH39: 0 | BI39: 0 | BJ39: 0 | BK39: 0 | BL39: 0 | BM39: 0 | BN39: 0 | BO39: 0 | BU39: 0.2819249013 | BV39: 0 | BW39: 0 | BZ39: 0 | CB39: =IF(CB12="","",CB12) -> 0 | CC39: 0.1060708471 | CD39: 0.6128901027 | CE39: 0 | CF39: 0 | CG39: 0 | CH39: 0 | CI39: 0 | CJ39: 0 | CK39: 0 | CL39: 0 | CR39: 0.2810390502 | CS39: 0 | CT39: 0 | CW39: 0 | CY39: =IF(CY12="","",CY12) -> 0 | CZ39: 0.1123954209 | DA39: 0.6494342504 | DB39: 0 | DC39: 0 | DD39: 0 | DE39: 0 | DF39: 0 | DG39: 0 | DH39: 0 | DI39: 0 | DO39: 0.2381703287 | DP39: 0 | DQ39: 0 | DT39: 0
A40: =A13 -> C-8 | B40: Repex | C40: Safety Repex | K40: =IF(K13="","",K13) -> 0.2396201751 | L40: 0.320266648 | M40: 0.308573587 | N40: 0 | O40: 0 | P40: 0.09405411469 | Q40: 0 | R40: 0 | S40: 0 | T40: 0 | U40: 0 | AA40: 0.03748547519 | AB40: 0 | AC40: 0 | AF40: 1.110223025e-16 | AH40: =IF(AH13="","",AH13) -> 0.2483434632 | AI40: 0.3323972265 | AJ40: 0.3257541872 | AK40: 0 | AL40: 0 | AM40: 0.0523873917 | AN40: 0 | AO40: 0 | AP40: 0 | AQ40: 0 | AR40: 0 | AX40: 0.04111773137 | AY40: 0 | AZ40: 0 | BC40: 0 | BE40: =IF(BE13="","",BE13) -> 0.256276196 | BF40: 0.3430148541 | BG40: 0.3351089058 | BH40: 0 | BI40: 0 | BJ40: 0.02316890595 | BK40: 0 | BL40: 0 | BM40: 0 | BN40: 0 | BO40: 0 | BU40: 0.04243113811 | BV40: 0 | BW40: 0 | BZ40: 0 | CB40: =IF(CB13="","",CB13) -> 0.2469979335 | CC40: 0.3305962919 | CD40: 0.3219638989 | CE40: 0 | CF40: 0 | CG40: 0.05954692091 | CH40: 0 | CI40: 0 | CJ40: 0 | CK40: 0 | CL40: 0 | CR40: 0.04089495471 | CS40: 0 | CT40: 0 | CW40: 0 | CY40: =IF(CY13="","",CY13) -> 0.237907621 | CZ40: 0.360968026 | DA40: 0.3101145995 | DB40: 0 | DC40: 0 | DD40: 0.0516198637 | DE40: 0 | DF40: 0 | DG40: 0 | DH40: 0 | DI40: 0 | DO40: 0.03938988981 | DP40: 0 | DQ40: 0 | DT40: 1.110223025e-16
A41: =A14 -> C-10 | B41: Augex | C41: PLEC (Undergrounding) | K41: =IF(K14="","",K14) -> 0 | L41: 1 | M41: 0 | N41: 0 | O41: 0 | P41: 0 | Q41: 0 | R41: 0 | S41: 0 | T41: 0 | U41: 0 | AA41: 0 | AB41: 0 | AC41: 0 | AF41: 0 | AH41: =IF(AH14="","",AH14) -> 0 | AI41: 1 | AJ41: 0 | AK41: 0 | AL41: 0 | AM41: 0 | AN41: 0 | AO41: 0 | AP41: 0 | AQ41: 0 | AR41: 0 | AX41: 0 | AY41: 0 | AZ41: 0 | BC41: 0 | BE41: =IF(BE14="","",BE14) -> 0 | BF41: 1 | BG41: 0 | BH41: 0 | BI41: 0 | BJ41: 0 | BK41: 0 | BL41: 0 | BM41: 0 | BN41: 0 | BO41: 0 | BU41: 0 | BV41: 0 | BW41: 0 | BZ41: 0 | CB41: =IF(CB14="","",CB14) -> 0 | CC41: 1 | CD41: 0 | CE41: 0 | CF41: 0 | CG41: 0 | CH41: 0 | CI41: 0 | CJ41: 0 | CK41: 0 | CL41: 0 | CR41: 0 | CS41: 0 | CT41: 0 | CW41: 0 | CY41: =IF(CY14="","",CY14) -> 0 | CZ41: 1 | DA41: 0 | DB41: 0 | DC41: 0 | DD41: 0 | DE41: 0 | DF41: 0 | DG41: 0 | DH41: 0 | DI41: 0 | DO41: 0 | DP41: 0 | DQ41: 0 | DT41: 0
A42: =A15 -> C-15 | B42: Augex | C42: Strategic - Network Security | K42: =IF(K15="","",K15) -> 0 | L42: 0 | M42: 0.07703683315 | N42: 0 | O42: 0 | P42: 0.3032763148 | Q42: 0 | R42: 0 | S42: 0 | T42: 0 | U42: 0 | AA42: 0 | AB42: 0 | AC42: 0.6196868521 | AF42: 0 | AH42: =IF(AH15="","",AH15) -> 0 | AI42: 0 | AJ42: 0.07774816523 | AK42: 0 | AL42: 0 | AM42: 0.001043294983 | AN42: 0 | AO42: 0 | AP42: 0 | AQ42: 0 | AR42: 0 | AX42: 0 | AY42: 0 | AZ42: 0.9212085398 | BC42: 0 | BE42: =IF(BE15="","",BE15) -> 0 | BF42: 0 | BG42: 0.09918027649 | BH42: 0 | BI42: 0 | BJ42: 0.001330890377 | BK42: 0 | BL42: 0 | BM42: 0 | BN42: 0 | BO42: 0 | BU42: 0 | BV42: 0 | BW42: 0.8994888331 | BZ42: 0 | CB42: =IF(CB15="","",CB15) -> 0 | CC42: 0 | CD42: 0.075572035 | CE42: 0 | CF42: 0 | CG42: 0.3128479083 | CH42: 0 | CI42: 0 | CJ42: 0 | CK42: 0 | CL42: 0 | CR42: 0 | CS42: 0 | CT42: 0.6115800567 | CW42: 0 | CY42: =IF(CY15="","",CY15) -> 0 | CZ42: 0 | DA42: 0.07810667459 | DB42: 0 | DC42: 0 | DD42: 0.4847489257 | DE42: 0 | DF42: 0 | DG42: 0 | DH42: 0 | DI42: 0 | DO42: 0 | DP42: 0 | DQ42: 0.4371443997 | DT42: 0
A43: =A16 -> C-18 | B43: Augex | C43: Safety (Bushfire) | K43: =IF(K16="","",K16) -> 0 | L43: 0 | M43: 0 | N43: 0 | O43: 0 | P43: 0 | Q43: 0 | R43: 0 | S43: 0 | T43: 0 | U43: 0 | AA43: 1 | AB43: 0 | AC43: 0 | AF43: 0 | AH43: =IF(AH16="","",AH16) ->  | AX43: 1 | BC43: 0 | BE43: =IF(BE16="","",BE16) ->  | BU43: 1 | BZ43: 0 | CB43: =IF(CB16="","",CB16) ->  | CR43: 1 | CW43: 0 | CY43: =IF(CY16="","",CY16) ->  | DO43: 1 | DT43: 0
A44: =A17 -> C-19 | B44: Non-network | C44: Heavy Vehicle Fleet - 15yrs | K44: =IF(K17="","",K17) ->  | V44: 1 | AF44: 0 | AH44: =IF(AH17="","",AH17) ->  | AS44: 1 | BC44: 0 | BE44: =IF(BE17="","",BE17) ->  | BP44: 1 | BZ44: 0 | CB44: =IF(CB17="","",CB17) ->  | CM44: 1 | CW44: 0 | CY44: =IF(CY17="","",CY17) ->  | DJ44: 1 | DT44: 0
A45: =A18 -> C-20 | B45: Non-network | C45: Heavy Vehicle Fleet - 10yrs | K45: =IF(K18="","",K18) ->  | W45: 1 | AF45: 0 | AH45: =IF(AH18="","",AH18) ->  | AT45: 1 | BC45: 0 | BE45: =IF(BE18="","",BE18) ->  | BQ45: 1 | BZ45: 0 | CB45: =IF(CB18="","",CB18) ->  | CN45: 1 | CW45: 0 | CY45: =IF(CY18="","",CY18) ->  | DK45: 1 | DT45: 0
A46: =A19 -> C-21 | B46: Non-network | C46: Light Vehicle Fleet | K46: =IF(K19="","",K19) ->  | X46: 1 | AF46: 0 | AH46: =IF(AH19="","",AH19) ->  | AU46: 1 | BC46: 0 | BE46: =IF(BE19="","",BE19) ->  | BR46: 1 | BZ46: 0 | CB46: =IF(CB19="","",CB19) ->  | CO46: 1 | CW46: 0 | CY46: =IF(CY19="","",CY19) ->  | DL46: 1 | DT46: 0
A47: =A20 -> C-22 | B47: Non-network | C47: Plant and Tools | K47: =IF(K20="","",K20) ->  | Z47: 1 | AF47: 0 | AH47: =IF(AH20="","",AH20) ->  | AW47: 1 | BC47: 0 | BE47: =IF(BE20="","",BE20) ->  | BT47: 1 | BZ47: 0 | CB47: =IF(CB20="","",CB20) ->  | CQ47: 1 | CW47: 0 | CY47: =IF(CY20="","",CY20) ->  | DN47: 1 | DT47: 0
A48: =A21 -> C-24 | B48: Non-network | C48: Property | K48: =IF(K21="","",K21) ->  | Z48: 0.1 | AE48: 0.9 | AF48: 0 | AH48: =IF(AH21="","",AH21) ->  | AW48: 0.1 | BB48: 0.9 | BC48: 0 | BE48: =IF(BE21="","",BE21) ->  | BT48: 0.1 | BY48: 0.9 | BZ48: 0 | CB48: =IF(CB21="","",CB21) ->  | CQ48: 0.1 | CV48: 0.9 | CW48: 0 | CY48: =IF(CY21="","",CY21) ->  | DN48: 0.1 | DS48: 0.9 | DT48: 0
A49: =A22 -> C-25 | B49: Non-network | C49: Information Technology | K49: =IF(K22="","",K22) ->  | Y49: 0.1499676699 | AD49: 0.8500323301 | AF49: 0 | AH49: =IF(AH22="","",AH22) ->  | AV49: 0.2633969286 | BA49: 0.7366030714 | BC49: 0 | BE49: =IF(BE22="","",BE22) ->  | BS49: 0.1780098699 | BX49: 0.8219901301 | BZ49: 0 | CB49: =IF(CB22="","",CB22) ->  | CP49: 0.1654927128 | CU49: 0.8345072872 | CW49: 0 | CY49: =IF(CY22="","",CY22) ->  | DM49: 0.1514060828 | DR49: 0.8485939172 | DT49: 0
A50: =A23 -> C-28 | B50: Non-network | C50: Superannuation | K50: =IF(K23="","",K23) -> 0.004087548568 | L50: 0.08962876097 | M50: 0.1747954997 | N50: 0.01565508064 | O50: 0.4264891882 | P50: 0.09807088226 | V50: 0.00671926512 | W50: 0.0190281823 | Y50: 0.02482348736 | AD50: 0.1407021048 | AF50: 0 | AH50: =IF(AH23="","",AH23) -> 0.004087548568 | AI50: 0.08962876097 | AJ50: 0.1747954997 | AK50: 0.01565508064 | AL50: 0.4264891882 | AM50: 0.09807088226 | AS50: 0.00671926512 | AT50: 0.0190281823 | AV50: 0.02482348736 | BA50: 0.1407021048 | BC50: 0 | BE50: =IF(BE23="","",BE23) -> 0.004087548568 | BF50: 0.08962876097 | BG50: 0.1747954997 | BH50: 0.01565508064 | BI50: 0.4264891882 | BJ50: 0.09807088226 | BP50: 0.00671926512 | BQ50: 0.0190281823 | BS50: 0.02482348736 | BX50: 0.1407021048 | BZ50: 0 | CB50: =IF(CB23="","",CB23) -> 0.004087548568 | CC50: 0.08962876097 | CD50: 0.1747954997 | CE50: 0.01565508064 | CF50: 0.4264891882 | CG50: 0.09807088226 | CM50: 0.00671926512 | CN50: 0.0190281823 | CP50: 0.02482348736 | CU50: 0.1407021048 | CW50: 0 | CY50: =IF(CY23="","",CY23) -> 0.004087548568 | CZ50: 0.08962876097 | DA50: 0.1747954997 | DB50: 0.01565508064 | DC50: 0.4264891882 | DD50: 0.09807088226 | DJ50: 0.00671926512 | DK50: 0.0190281823 | DM50: 0.02482348736 | DR50: 0.1407021048 | DT50: 0
A51: =A24 -> C-29 | B51: Non-network | C51: Operational Information Technology | K51: =IF(K24="","",K24) ->  | P51: 1 | AF51: 0 | AH51: =IF(AH24="","",AH24) ->  | AM51: 1 | BC51: 0 | BE51: =IF(BE24="","",BE24) ->  | BJ51: 1 | BZ51: 0 | CB51: =IF(CB24="","",CB24) ->  | CG51: 1 | CW51: 0 | CY51: =IF(CY24="","",CY24) ->  | DD51: 1 | DT51: 0
CE54: =CH54+CF54 -> 63.15789474 | CF54: =5*CG54 -> 3.157894737 | CG54: =CH54/CH$57 -> 0.6315789474 | CH54: 60 | CI54: 5 | CJ54: =60+60/100*5 -> 63
CE55: =CH55+CF55 -> 15.78947368 | CF55: =5*CG55 -> 0.7894736842 | CG55: =CH55/CH$57 -> 0.1578947368 | CH55: 15 | CI55: 5 | CJ55: =15+15/100*5 -> 15.75 | CM55: =100%-5% -> 0.95 | CN55: =CH54/CM55 -> 63.15789474
CE56: 21.05263158 | CF56: 1.052631579 | CG56: 0.2105263158 | CH56: 20 | CI56: 5 | CJ56: =20+20/100*5 -> 21
CE57: =SUM(CE54:CE56) -> 100 | CF57: =SUM(CF54:CF56) -> 5 | CG57: =SUM(CG54:CG56) -> 1 | CH57: =SUM(CH54:CH56) -> 95 | CI57: =SUMPRODUCT(CH54:CH56,CI54:CI56)/CH57 -> 5 | CJ57: =SUM(CJ54:CJ56) -> 99.75

Sheet Lives for Lines & Subs
D2: Revised Proposal | J2: AER Draft Decision
C3: ='Direct Capex Plus Ohds'!AF$2 -> Base Capex Including Overheads | D3: 2020/21 | E3: 2021/22 | F3: 2022/23 | G3: 2023/24 | H3: 2024/25 | J3: 2020/21 | K3: 2021/22 | L3: 2022/23 | M3: 2023/24 | N3: 2024/25
A5: C-1 | B5: Repex | C5: Asset Replacement and Refurbishment | D5: ='Direct Capex Plus Ohds'!AF7 -> 115976.7208 | E5: ='Direct Capex Plus Ohds'!AG7 -> 118088.8943 | F5: ='Direct Capex Plus Ohds'!AH7 -> 119573.2645 | G5: ='Direct Capex Plus Ohds'!AI7 -> 115861.9946 | H5: ='Direct Capex Plus Ohds'!AJ7 -> 111986.3247 | J5: 89024.93982 | K5: 91478.81195 | L5: 91848.12093 | M5: 91065.99882 | N5: 89485.88583
C7: ='PTRM Inputs'!A$7 -> Distribution Lines | D7: ='Misc Data'!L6 -> 0.5898921657 | E7: ='Misc Data'!AI6 -> 0.5783514081 | F7: ='Misc Data'!BF6 -> 0.5697433608 | G7: ='Misc Data'!CC6 -> 0.5924559399 | H7: ='Misc Data'!CZ6 -> 0.6137649486 | J7: 0.6426247974 | K7: 0.6413763796 | L7: 0.6334140249 | M7: 0.6550581589 | N7: 0.6788321969
C8: ='PTRM Inputs'!A$22 -> Distribution Lines-Refurbish and Shorter Life | D8: ='Misc Data'!AA6 -> 0.1396461875 | E8: ='Misc Data'!AX6 -> 0.1394329704 | F8: ='Misc Data'!BU6 -> 0.1375190845 | G8: ='Misc Data'!CR6 -> 0.1432436548 | H8: ='Misc Data'!DO6 -> 0.1484730114 | J8: 0.07166040826 | K8: 0.0735373214 | L8: 0.07279520661 | M8: 0.07553821963 | N8: 0.07836056175
B10: Project | C10: ='Proposed NW Projects (Reg Yr)'!B36 -> Cable replacement planned | D10: ='NW Projects Capex $June2020'!AH36 -> 961.7991978 | E10: ='NW Projects Capex $June2020'!AI36 -> 961.6503434 | F10: ='NW Projects Capex $June2020'!AJ36 -> 960.7352592 | G10: ='NW Projects Capex $June2020'!AK36 -> 960.9138634 | H10: ='NW Projects Capex $June2020'!AL36 -> 961.3168162
B11: Project | C11: ='Proposed NW Projects (Reg Yr)'!B37 -> Conductor Replacement - Planned | D11: ='NW Projects Capex $June2020'!AH37 -> 2237.085252 | E11: ='NW Projects Capex $June2020'!AI37 -> 2236.739026 | F11: ='NW Projects Capex $June2020'!AJ37 -> 2234.610597 | G11: ='NW Projects Capex $June2020'!AK37 -> 2235.026019 | H11: ='NW Projects Capex $June2020'!AL37 -> 2235.963263
B12: Project | C12: ='Proposed NW Projects (Reg Yr)'!B38 -> Line Ancillary Equipment - Planned (incl LFIs, fences, gates, signs etc) | D12: ='NW Projects Capex $June2020'!AH38 -> 375.481536 | E12: ='NW Projects Capex $June2020'!AI38 -> 500.5645653 | F12: ='NW Projects Capex $June2020'!AJ38 -> 500.0882397 | G12: ='NW Projects Capex $June2020'!AK38 -> 500.1812079 | H12: ='NW Projects Capex $June2020'!AL38 -> 500.3909556
B13: Project | C13: ='Proposed NW Projects (Reg Yr)'!B43 -> Recloser Replacement - Planned | D13: ='NW Projects Capex $June2020'!AH43 -> 1350.456981 | E13: ='NW Projects Capex $June2020'!AI43 -> 1350.247976 | F13: ='NW Projects Capex $June2020'!AJ43 -> 1348.963111 | G13: ='NW Projects Capex $June2020'!AK43 -> 1349.213888 | H13: ='NW Projects Capex $June2020'!AL43 -> 1349.779672
B14: Project | C14: ='Proposed NW Projects (Reg Yr)'!B48 -> CBD ducts & manholes | D14: ='NW Projects Capex $June2020'!AH48 -> 2534.640107 | E14: ='NW Projects Capex $June2020'!AI48 -> 2534.247829 | F14: ='NW Projects Capex $June2020'!AJ48 -> 2531.836298 | G14: ='NW Projects Capex $June2020'!AK48 -> 2532.306975 | H14: ='NW Projects Capex $June2020'!AL48 -> 2533.368881
B15: Project | C15: ='Proposed NW Projects (Reg Yr)'!B53 -> (Distribution) Cable Replacement - Unplanned | D15: ='NW Projects Capex $June2020'!AH53 -> 452.6113872 | E15: ='NW Projects Capex $June2020'!AI53 -> 452.5413381 | F15: ='NW Projects Capex $June2020'!AJ53 -> 452.1107102 | G15: ='NW Projects Capex $June2020'!AK53 -> 452.1947593 | H15: ='NW Projects Capex $June2020'!AL53 -> 452.3843841
B16: Project | C16: ='Proposed NW Projects (Reg Yr)'!B57 -> Recloser Replacement - Unplanned | D16: ='NW Projects Capex $June2020'!AH57 -> 714.697443 | E16: ='NW Projects Capex $June2020'!AI57 -> 714.5868317 | F16: ='NW Projects Capex $June2020'!AJ57 -> 713.9068474 | G16: ='NW Projects Capex $June2020'!AK57 -> 714.0395653 | H16: ='NW Projects Capex $June2020'!AL57 -> 714.3389931
B17: Proposed | C17: =C8 -> Distribution Lines-Refurbish and Shorter Life | D17: =SUM(D10:D16) -> 8626.771904 | E17: =SUM(E10:E16) -> 8750.577909 | F17: =SUM(F10:F16) -> 8742.251062 | G17: =SUM(G10:G16) -> 8743.876279 | H17: =SUM(H10:H16) -> 8747.542965
B18: AER | C18: =C7 -> Distribution Lines | D18: =D17/D5 -> 0.07438365084 | E18: =E17/E5 -> 0.07410161606 | F18: =F17/F5 -> 0.07311208823 | G18: =G17/G5 -> 0.07546802825 | H18: =H17/H5 -> 0.07811259983 | J18: 0.09554919746 | K18: 0.09029014745 | L18: 0.08917579853 | M18: 0.09222976885 | N18: 0.09558409172
D22: Revised Proposal | J22: AER Draft Decision
C23: ='Direct Capex Plus Ohds'!AF$2 -> Base Capex Including Overheads | D23: 2020/21 | E23: 2021/22 | F23: 2022/23 | G23: 2023/24 | H23: 2024/25 | J23: 2020/21 | K23: 2021/22 | L23: 2022/23 | M23: 2023/24 | N23: 2024/25
A25: C-2 | B25: Augex | C25: Augmentation/Capacity | D25: ='Direct Capex Plus Ohds'!AF8 -> 23701.6133 | E25: ='Direct Capex Plus Ohds'!AG8 -> 23225.91896 | F25: ='Direct Capex Plus Ohds'!AH8 -> 21024.73079 | G25: ='Direct Capex Plus Ohds'!AI8 -> 22195.97397 | H25: ='Direct Capex Plus Ohds'!AJ8 -> 22338.93969
C27: ='PTRM Inputs'!A$8 -> Substations | D27: ='Misc Data'!M7 -> 0.3151603524 | E27: ='Misc Data'!AJ7 -> 0.3187347528 | F27: ='Misc Data'!BG7 -> 0.2118115916 | G27: ='Misc Data'!CD7 -> 0.09490974646 | H27: ='Misc Data'!DA7 -> 0.03138191567 | J27: 0.1581990405 | K27: 0.1532339748 | L27: 0.2224023051 | M27: 0.2103346627 | N27: 0.1398776854
C28: ='PTRM Inputs'!A$23 -> Substations-Refurbish and Shorter Life | D28: ='Misc Data'!AB7 -> 0.05845945483 | E28: ='Misc Data'!AY7 -> 0.05964754084 | F28: ='Misc Data'!BV7 -> 0.06582964979 | G28: ='Misc Data'!CS7 -> 0.06236752516 | H28: ='Misc Data'!AB7 -> 0.05845945483 | J28: 0 | K28: 0 | L28: 0 | M28: 0 | N28: 0
B30: Project | C30: ='Proposed NW Projects (Reg Yr)'!B13 -> Voltage Regulation | D30: ='NW Projects Capex $June2020'!AH13 -> 1385.583392 | E30: ='NW Projects Capex $June2020'!AI13 -> 1385.36895 | F30: ='NW Projects Capex $June2020'!AJ13 -> 1384.050665 | G30: ='NW Projects Capex $June2020'!AK13 -> 1384.307965 | H30: ='NW Projects Capex $June2020'!AL13 -> 1384.888465
B31: Proposed | C31: =C28 -> Substations-Refurbish and Shorter Life | D31: =SUM(D30) -> 1385.583392 | E31: =SUM(E30) -> 1385.36895 | F31: 1384.050665 | G31: 1384.307965 | H31: 1384.888465
B32: AER | C32: =C27 -> Substations | D32: =D31/D25 -> 0.05845945483 | E32: =E31/E25 -> 0.05964754084 | F32: =F31/F25 -> 0.06582964979 | G32: =G31/G25 -> 0.06236752516 | H32: =H31/H25 -> 0.06199436877 | J32: 0.07024234223 | K32: 0.0826219071 | L32: 0.1028273006 | M32: 0.1269290792 | N32: 0.1147875176
D36: Revised Proposal | J36: AER Draft Decision
C37: ='Direct Capex Plus Ohds'!AF$2 -> Base Capex Including Overheads | D37: 2020/21 | E37: 2021/22 | F37: 2022/23 | G37: 2023/24 | H37: 2024/25 | J37: 2020/21 | K37: 2021/22 | L37: 2022/23 | M37: 2023/24 | N37: 2024/25
A39: C-7 | B39: Augex | C39: Safety Augex | D39: ='Direct Capex Plus Ohds'!AF13 -> 5903.63798 | E39: ='Direct Capex Plus Ohds'!AG13 -> 6211.151251 | F39: ='Direct Capex Plus Ohds'!AH13 -> 6205.240863 | G39: ='Direct Capex Plus Ohds'!AI13 -> 6199.782797 | H39: ='Direct Capex Plus Ohds'!AJ13 -> 5900.677065
C41: ='PTRM Inputs'!A$8 -> Substations | D41: ='Misc Data'!M12 -> 0.6567705542 | E41: ='Misc Data'!AJ12 -> 0.6081146634 | F41: ='Misc Data'!BG12 -> 0.6121349444 | G41: ='Misc Data'!CD12 -> 0.6128901027 | H41: ='Misc Data'!DA12 -> 0.6494342504 | J41: 0.9715882186 | K41: 0.9716151008 | L41: 0.9669567133 | M41: 0.9669567133 | N41: 0.96694397
C42: ='PTRM Inputs'!A$23 -> Substations-Refurbish and Shorter Life | D42: ='Misc Data'!AB12 -> 0 | E42: ='Misc Data'!AY12 -> 0 | F42: ='Misc Data'!BV12 -> 0 | G42: ='Misc Data'!CS12 -> 0 | H42: ='Misc Data'!AB12 -> 0 | J42: 0.02841178142 | K42: 0.02838489923 | L42: 0.03304328671 | M42: 0.03304328671 | N42: 0.03305602997
B44: Project | C44: ='Proposed NW Projects (Reg Yr)'!B118 -> Rural Protection | D44: ='NW Projects Capex $June2020'!AH118 -> 942.7184433 | E44: ='NW Projects Capex $June2020'!AI118 -> 1250.999499 | F44: ='NW Projects Capex $June2020'!AJ118 -> 1249.809077 | G44: ='NW Projects Capex $June2020'!AK118 -> 1243.429777 | H44: ='NW Projects Capex $June2020'!AL118 -> 942.2456315
B45: Proposed | C45: =C42 -> Substations-Refurbish and Shorter Life | D45: =SUM(D44) -> 942.7184433 | E45: =SUM(E44) -> 1250.999499 | F45: 1249.809077 | G45: 1243.429777 | H45: 942.2456315
B46: AER | C46: =C41 -> Substations | D46: =D45/D39 -> 0.1596843246 | E46: =E45/E39 -> 0.2014118556 | F46: 0.2014118556 | G46: 0.200560216 | H46: 0.1596843246 | J46: 0.2657448622 | K46: 0.2654934242 | L46: 0.309064875 | M46: 0.309064875 | N46: 0.309184067
D50: Revised Proposal | J50: AER Draft Decision
C51: ='Direct Capex Plus Ohds'!AF$2 -> Base Capex Including Overheads | D51: 2020/21 | E51: 2021/22 | F51: 2022/23 | G51: 2023/24 | H51: 2024/25 | J51: 2020/21 | K51: 2021/22 | L51: 2022/23 | M51: 2023/24 | N51: 2024/25
A53: C-8 | B53: Repex | C53: Safety Repex | D53: ='Direct Capex Plus Ohds'!AF14 -> 11150.03072 | E53: ='Direct Capex Plus Ohds'!AG14 -> 10817.22723 | F53: ='Direct Capex Plus Ohds'!AH14 -> 10412.03964 | G53: ='Direct Capex Plus Ohds'!AI14 -> 10836.73433 | H53: ='Direct Capex Plus Ohds'!AJ14 -> 11287.64048
C55: ='PTRM Inputs'!A$7 -> Distribution Lines | D55: ='Misc Data'!L13 -> 0.320266648 | E55: ='Misc Data'!AI13 -> 0.3323972265 | F55: ='Misc Data'!BF13 -> 0.3430148541 | G55: ='Misc Data'!CC13 -> 0.3305962919 | H55: ='Misc Data'!CZ13 -> 0.360968026 | J55: 0.5578694741 | K55: 0.5843627565 | L55: 0.6074250808 | M55: 0.5897177714 | N55: 0.5870785741
C56: ='PTRM Inputs'!A$22 -> Distribution Lines-Refurbish and Shorter Life | D56: ='Misc Data'!AA13 -> 0.03748547519 | E56: ='Misc Data'!AX13 -> 0.04111773137 | F56: ='Misc Data'!BU13 -> 0.04243113811 | G56: ='Misc Data'!CR13 -> 0.04089495471 | H56: ='Misc Data'!DO13 -> 0.03938988981 | J56: 0.005972988444 | K56: 0.008242030962 | L56: 0.008567309034 | M56: 0.00831755973 | N56: 0.008280335684
B58: Project | C58: ='Proposed NW Projects (Reg Yr)'!B107 -> Line Clearance Rectification - Distribution | D58: ='NW Projects Capex $June2020'!AH107 -> 2886.873763 | E58: ='NW Projects Capex $June2020'!AI107 -> 2886.426972 | F58: ='NW Projects Capex $June2020'!AJ107 -> 2883.680315 | G58: ='NW Projects Capex $June2020'!AK107 -> 2884.216402 | H58: ='NW Projects Capex $June2020'!AL107 -> 2885.425878
B59: Project | C59: ='Proposed NW Projects (Reg Yr)'!B111 -> CBD Maintenance Projects (CBD Safety) | D59: ='NW Projects Capex $June2020'!AH111 -> 372.5343755 | E59: ='NW Projects Capex $June2020'!AI111 -> 372.4767196 | F59: ='NW Projects Capex $June2020'!AJ111 -> 372.1222794 | G59: ='NW Projects Capex $June2020'!AK111 -> 372.1914583 | H59: ='NW Projects Capex $June2020'!AL111 -> 372.3475343
B60: Proposed | C60: =C56 -> Distribution Lines-Refurbish and Shorter Life | D60: =SUM(D58:D59) -> 3259.408139 | E60: =SUM(E58:E59) -> 3258.903691 | F60: 3255.802594 | G60: 3256.40786 | H60: 3257.773413
B61: AER | C61: =C55 -> Distribution Lines | D61: =D60/D53 -> 0.2923227946 | E61: =E60/E53 -> 0.3012697823 | F61: 0.3126959467 | G61: 0.3004971573 | H61: 0.2886142075 | J61: 0.275377367 | K61: 0.3030672233 | L61: 0.3150280036 | M61: 0.305844487 | N61: 0.3044757239
D65: Revised Proposal | J65: AER Draft Decision
C66: ='Direct Capex Plus Ohds'!AF$2 -> Base Capex Including Overheads | D66: 2020/21 | E66: 2021/22 | F66: 2022/23 | G66: 2023/24 | H66: 2024/25 | J66: 2020/21 | K66: 2021/22 | L66: 2022/23 | M66: 2023/24 | N66: 2024/25
A68: C-18 | B68: Augex | C68: Bushfire | D68: ='Direct Capex Plus Ohds'!AF17 -> 2134.857327 | E68: ='Direct Capex Plus Ohds'!AG17 -> 2101.654331 | F68: ='Direct Capex Plus Ohds'!AH17 -> 2119.359232 | G68: ='Direct Capex Plus Ohds'!AI17 -> 2093.475296 | H68: ='Direct Capex Plus Ohds'!AJ17 -> 2081.208705
C70: ='PTRM Inputs'!A$7 -> Distribution Lines | D70: ='Misc Data'!L16 -> 0 | E70: ='Misc Data'!AI16 -> 0 | F70: ='Misc Data'!BF16 -> 0 | G70: ='Misc Data'!CC16 -> 0 | H70: ='Misc Data'!CZ16 -> 0 | J70: 1 | K70: 1 | L70: 1 | M70: 1 | N70: 1
C71: ='PTRM Inputs'!A$22 -> Distribution Lines-Refurbish and Shorter Life | D71: ='Misc Data'!AA16 -> 1 | E71: ='Misc Data'!AX16 -> 1 | F71: ='Misc Data'!BU16 -> 1 | G71: ='Misc Data'!CR16 -> 1 | H71: ='Misc Data'!DO16 -> 1 | J71: 0 | K71: 0 | L71: 0 | M71: 0 | N71: 0
B73: Project | C73: ='Proposed NW Projects (Reg Yr)'!B126 -> Bushfire Risk Reduction | D73: ='NW Projects Capex $June2020'!AH126 -> 2134.857327 | E73: ='NW Projects Capex $June2020'!AI126 -> 2101.654331 | F73: ='NW Projects Capex $June2020'!AJ126 -> 2119.359232 | G73: ='NW Projects Capex $June2020'!AK126 -> 2093.475296 | H73: ='NW Projects Capex $June2020'!AL126 -> 2081.208705
B74: Proposed | C74: =C71 -> Distribution Lines-Refurbish and Shorter Life | D74: =SUM(D73:D73) -> 2134.857327 | E74: =SUM(E73:E73) -> 2101.654331 | F74: =SUM(F73:F73) -> 2119.359232 | G74: =SUM(G73:G73) -> 2093.475296 | H74: =SUM(H73:H73) -> 2081.208705
B75: AER | C75: =C70 -> Distribution Lines | D75: =D74/D68 -> 1 | E75: =E74/E68 -> 1 | F75: =F74/F68 -> 1 | G75: =G74/G68 -> 1 | H75: =H74/H68 -> 1 | J75: 1 | K75: 1 | L75: 1 | M75: 1 | N75: 1

Sheet General Inputs
A2: CPI
A3: CPI Index June 2017 | B3: Actual | C3: 110.7 | I3: =A7 -> CPI Index Dec 2018
I4: Actual | J4: 114.1 | K4: AER Draft
A5: CPI Index Dec 2017 | B5: Actual | C5: 112.1 | I5: Actual | J5: =C7 -> 114.1 | K5: SAPN Revised
A7: CPI Index Dec 2018 | B7: Actual | C7: 114.1 | D7: AER | E7: =C7/C5-1 -> 0.0178412132 | I7: CPI Forecast 2019-20
I8: Forecast | J8: 0.02 | K8: AER Draft
A9: CPI Index Dec 2019 | B9: Forecast | C9: =C7*(1+E9) -> 116.09675 | D9: RBA | E9: 0.0175 | I9: Forecast | J9: =E9 -> 0.0175 | K9: SAPN Revised
A11: Escalation Factor from Dec 2017 to June 2020 | C11: =C9/C3 -> 1.048751129
A14: Overheads
B15: Revised Proposal | H15: Draft Decision
A16: Fixed Overheads ($000 2017-18) | B16: 2020/21 | C16: 2021/22 | D16: 2022/23 | E16: 2023/24 | F16: 2024/25 | H16: 2020/21 | I16: 2021/22 | J16: 2022/23 | K16: 2023/24 | L16: 2024/25
A17: Network Capex | B17: =B19-B18 -> 6751.250655 | C17: =C19-C18 -> 6813.06529 | D17: =D19-D18 -> 6805.63762 | E17: =E19-E18 -> 6746.857221 | F17: =F19-F18 -> 6707.587408 | H17: =H19-H18 -> 6751.250655 | I17: =I19-I18 -> 6813.06529 | J17: 6805.63762 | K17: 6746.857221 | L17: 6707.587408
A18: Non-network - Operational Information Technology | B18: =IF('Non Network Base Capex'!D56>0,B19*H18/H19,0) -> 117.7062884 | C18: =IF('Non Network Base Capex'!E56>0,C19*I18/I19,0) -> 55.89165298 | D18: =IF('Non Network Base Capex'!F56>0,D19*J18/J19,0) -> 63.31932343 | E18: =IF('Non Network Base Capex'!G56>0,E19*K18/K19,0) -> 122.0997227 | F18: =IF('Non Network Base Capex'!H56>0,F19*L18/L19,0) -> 161.3695351 | H18: 117.7062884 | I18: 55.89165298 | J18: 63.31932343 | K18: 122.0997227 | L18: 161.3695351
A19: Total Fixed Overheads | B19: 6868.956943 | C19: 6868.956943 | D19: 6868.956943 | E19: 6868.956943 | F19: 6868.956943 | H19: 6868.956943 | I19: 6868.956943 | J19: 6868.956943 | K19: 6868.956943 | L19: 6868.956943
A21: Total Fixed Overheads ($000 2019-20) | B21: =B19*$C$11 -> 7203.826351 | C21: =C19*$C$11 -> 7203.826351 | D21: 7203.826351 | E21: 7203.826351 | F21: 7203.826351 | H21: 7221.52617 | I21: 7221.52617 | J21: 7221.52617 | K21: 7221.52617 | L21: 7221.52617
B24: Revised Proposal | H24: Draft Decision
A25: Variable Overheads Rate | B25: 2020/21 | C25: 2021/22 | D25: 2022/23 | E25: 2023/24 | F25: 2024/25 | H25: 2020/21 | I25: 2021/22 | J25: 2022/23 | K25: 2023/24 | L25: 2024/25
A26: Network Capex | B26: 0.02093543062 | C26: 0.02128910141 | D26: 0.02029011569 | E26: 0.02005757647 | F26: 0.01967787447 | H26: 0.02093543062 | I26: 0.02128910141 | J26: 0.02029011569 | K26: 0.02005757647 | L26: 0.01967787447
A27: Non-network - Operational Information Technology | B27: 0.01812205258 | C27: 0.01842819583 | D27: 0.01756345738 | E27: 0.01736216761 | F27: 0.01703349132 | H27: 0.01812205258 | I27: 0.01842819583 | J27: 0.01756345738 | K27: 0.01736216761 | L27: 0.01703349132
A31: Real Price Escalators
A32: Annual Escalators | D32: Revised Proposal | L32: Cumulative Escalators
A33: Real Price Escalation | B33: Cost allocators | D33: 2018/19 | E33: 2019/20 | F33: 2020/21 | G33: 2021/22 | H33: 2022/23 | I33: 2023/24 | J33: 2024/25 | L33: =D33 -> 2018/19 | M33: 2019/20 | N33: 2020/21 | O33: 2021/22 | P33: 2022/23 | Q33: 2023/24 | R33: 2024/25
A34: Labour | B34: ='Misc Data'!D4 -> Labour | D34: 0.00734358128 | E34: 0.008472911583 | F34: 0.007618995461 | G34: 0.008266947083 | H34: 0.00892284899 | I34: 0.01024962951 | J34: 0.008868445241 | L34: =D34 -> 0.00734358128 | M34: =(1+L34)*(1+E34)-1 -> 0.01587871438 | N34: 0.02361868969 | O34: 0.03208089123 | P34: 0.04128999317 | Q34: 0.05196282981 | R34: 0.06129210456
A35: Materials | B35: ='Misc Data'!E4 -> Materials | D35: 0 | E35: 0 | F35: 0 | G35: 0 | H35: 0 | I35: 0 | J35: 0 | L35: =D35 -> 0 | M35: =(1+L35)*(1+E35)-1 -> 0 | N35: =(1+M35)*(1+F35)-1 -> 0 | O35: =(1+N35)*(1+G35)-1 -> 0 | P35: =(1+O35)*(1+H35)-1 -> 0 | Q35: =(1+P35)*(1+I35)-1 -> 0 | R35: =(1+Q35)*(1+J35)-1 -> 0
A36: Services-construction | B36: ='Misc Data'!F4 -> Contracts | D36: 0.001102690724 | E36: 0.002521687551 | F36: 0.002966710957 | G36: 0.006798814797 | H36: 0.01263511294 | I36: 0.01371344333 | J36: 0.007527979203 | L36: 0.001102690724 | M36: 0.003627158916 | N36: 0.006604630605 | O36: 0.01344834906 | P36: 0.02625338341 | Q36: 0.04032685103 | R36: 0.04815840992
A37: Services- all industries - ICT only | B37: ='Misc Data'!F4 -> Contracts | D37: 0.006158362064 | E37: 0.005239076132 | F37: 0.005611416961 | G37: 0.007582307859 | H37: 0.009526800421 | I37: 0.01035549122 | J37: 0.007479507234 | L37: 0.006158362064 | M37: 0.01142970232 | N37: 0.01710525611 | O37: 0.02481726129 | P37: 0.0345804908 | Q37: 0.04529408 | R37: 0.05311236463
A38: Services-general | B38: ='Misc Data'!G4 -> Services Other | D38: 0 | E38: 0 | F38: 0 | G38: 0 | H38: 0 | I38: 0 | J38: 0 | L38: 0 | M38: 0 | N38: 0 | O38: 0 | P38: 0 | Q38: 0 | R38: 0
A39: Materials - Land | B39: ='Misc Data'!I4 -> Other | D39: 0 | E39: 0 | F39: 0 | G39: 0 | H39: 0 | I39: 0 | J39: 0 | L39: 0 | M39: 0 | N39: 0 | O39: 0 | P39: 0 | Q39: 0 | R39: 0
A40: =A34 -> Labour | B40: ='Misc Data'!H4 -> Business Overheads | D40: =D34 -> 0.00734358128 | E40: =E34 -> 0.008472911583 | F40: 0.007618995461 | G40: 0.008266947083 | H40: 0.00892284899 | I40: 0.01024962951 | J40: 0.008868445241 | L40: 0.00734358128 | M40: 0.01587871438 | N40: 0.02361868969 | O40: 0.03208089123 | P40: 0.04128999317 | Q40: 0.05196282981 | R40: 0.06129210456
A42: Annual Escalators | D42: Draft Decision
A43: Real Price Escalation | B43: Cost allocators | D43: 2018/19 | E43: 2019/20 | F43: 2020/21 | G43: 2021/22 | H43: 2022/23 | I43: 2023/24 | J43: 2024/25
A44: Labour | B44: =B34 -> Labour | D44: 0.005912191601 | E44: 0.006065312974 | F44: 0.004111026271 | G44: 0.003735613692 | H44: 0.003420324504 | I44: 0.00452776989 | J44: 0.004410518495
A45: Materials | B45: =B35 -> Materials | D45: 0 | E45: 0 | F45: 0 | G45: 0 | H45: 0 | I45: 0 | J45: 0
A46: Services-construction | B46: =B36 -> Contracts
A47: Services-general | B47: =B38 -> Services Other | D47: 0 | E47: 0 | F47: 0 | G47: 0 | H47: 0 | I47: 0 | J47: 0
A48: Materials - Land | B48: =B39 -> Other | D48: 0 | E48: 0 | F48: 0 | G48: 0 | H48: 0 | I48: 0 | J48: 0
A49: =A44 -> Labour | B49: =B40 -> Business Overheads | D49: =D44 -> 0.005912191601 | E49: 0.006065312974 | F49: 0.004111026271 | G49: 0.003735613692 | H49: 0.003420324504 | I49: 0.00452776989 | J49: 0.004410518495
B53: Revised Proposal | I53: Draft Decision
A54: Asset Disposals ($m 2019-20) | B54: 2020/21 | C54: 2021/22 | D54: 2022/23 | E54: 2023/24 | F54: 2024/25 | G54: TOTAL | I54: 2020/21 | J54: 2021/22 | K54: 2022/23 | L54: 2023/24 | M54: 2024/25 | N54: TOTAL
A55: Heavy Vehicles - 15 year | B55: 0.334 | C55: 0.754 | D55: 0.456 | E55: 0.332 | F55: 0.32 | G55: =SUM(B55:F55) -> 2.196 | I55: 0.441755102 | J55: 0.8437959184 | K55: 0.6317142857 | L55: 0.6513877551 | M55: 0.4816326531 | N55: =SUM(I55:M55) -> 3.050285714
A56: Heavy Vehicles - 10 year | B56: 0.28 | C56: 0.28 | D56: 0.44 | E56: 1.04 | F56: 0.56 | G56: 2.6 | I56: 0.132244898 | J56: 0.1102040816 | K56: 0.1542857143 | L56: 0.3306122449 | M56: 0.1983673469 | N56: 0.9257142857
A57: Light Vehicles | B57: 1.7235 | C57: 2.229 | D57: 4.5595 | E57: 3.099 | F57: 2.2515 | G57: 13.8625 | I57: 1.8375 | J57: 2.1816 | K57: 3.5395 | L57: 2.7204 | M57: 1.4063 | N57: 11.6853
A58: Total | B58: =SUM(B55:B57) -> 2.3375 | C58: =SUM(C55:C57) -> 3.263 | D58: 5.4555 | E58: 4.471 | F58: 3.1315 | G58: 18.6585 | I58: =SUM(I55:I57) -> 2.4115 | J58: =SUM(J55:J57) -> 3.1356 | K58: =SUM(K55:K57) -> 4.3255 | L58: =SUM(L55:L57) -> 3.7024 | M58: =SUM(M55:M57) -> 2.0863 | N58: =SUM(N55:N57) -> 15.6613

Sheet Network Projects Direct Costs
A1: Network Projects | C1: Direct Costs | D1: $2017-18 ($'000)
C3: AER RIN ref | D3: Doc/Plan ref | E3: 2020/21 | F3: 2021/22 | G3: 2022/23 | H3: 2023/24 | I3: 2024/25 | J3: Total
A4: Category / Description | C4: (Repex,Augex etc) | D4: (eg AP) | E4: Jul-Jun | F4: =E4 -> Jul-Jun | G4: Jul-Jun | H4: Jul-Jun | I4: Jul-Jun | K4: SEM Reference
A5: Capacity Upgrade
B6: Connection Point Capacity (ETC/NER Code) | C6: Augex | D6: AP.1.1.01 | E6: ='Proposed NW Proj Direct Costs'!E6 -> 4125.386902 | F6: ='Proposed NW Proj Direct Costs'!F6 -> 5009.696329 | G6: ='Proposed NW Proj Direct Costs'!G6 -> 1472.458621 | H6: ='Proposed NW Proj Direct Costs'!H6 -> 0 | I6: ='Proposed NW Proj Direct Costs'!I6 -> 0 | J6: =SUM(E6:I6) -> 10607.54185 | K6: C-2
B7: LV & Distribution Transformers (QoS BAU) | C7: Augex | D7: AP.1.1.01 | E7: ='Proposed NW Proj Direct Costs'!E7 -> 7249.843073 | F7: ='Proposed NW Proj Direct Costs'!F7 -> 7412.760895 | G7: ='Proposed NW Proj Direct Costs'!G7 -> 7575.678717 | H7: ='Proposed NW Proj Direct Costs'!H7 -> 7575.678717 | I7: ='Proposed NW Proj Direct Costs'!I7 -> 7738.596539 | J7: 37552.55794 | K7: C-2
B8: Distribution Feeders (11 & 7.6kV) | C8: Augex | D8: AP.1.1.01 | E8: ='Proposed NW Proj Direct Costs'!E8 -> 2294.198985 | F8: ='Proposed NW Proj Direct Costs'!F8 -> 275.3038782 | G8: ='Proposed NW Proj Direct Costs'!G8 -> 70.91160499 | H8: ='Proposed NW Proj Direct Costs'!H8 -> 521.4088602 | I8: ='Proposed NW Proj Direct Costs'!I8 -> 755.0000296 | J8: 3916.823358 | K8: C-2
B9: Strategic Network Capacity (Other) | C9: Augex | D9: AP.1.1.01 | E9: ='Proposed NW Proj Direct Costs'!E9 -> 3420.442123 | F9: ='Proposed NW Proj Direct Costs'!F9 -> 3420.442123 | G9: ='Proposed NW Proj Direct Costs'!G9 -> 3420.442123 | H9: ='Proposed NW Proj Direct Costs'!H9 -> 3420.442123 | I9: ='Proposed NW Proj Direct Costs'!I9 -> 3420.442123 | J9: 17102.21061 | K9: C-2
B10: Substation Capacity | C10: Augex | D10: AP.1.1.01 | E10: ='Proposed NW Proj Direct Costs'!E10 -> 2982.45868 | F10: ='Proposed NW Proj Direct Costs'!F10 -> 2035.58019 | G10: ='Proposed NW Proj Direct Costs'!G10 -> 2769.723865 | H10: ='Proposed NW Proj Direct Costs'!H10 -> 2006.381294 | I10: ='Proposed NW Proj Direct Costs'!I10 -> 667.4033411 | J10: 10461.54737 | K10: C-2
B11: Subtransmission Network | C11: Augex | D11: AP.1.1.01 | E11: ='Proposed NW Proj Direct Costs'!E11 -> 0 | F11: ='Proposed NW Proj Direct Costs'!F11 -> 475.5248805 | G11: ='Proposed NW Proj Direct Costs'!G11 -> 951.049761 | H11: ='Proposed NW Proj Direct Costs'!H11 -> 3833.957306 | I11: ='Proposed NW Proj Direct Costs'!I11 -> 5490.175592 | J11: 10750.70754 | K11: C-2
B12: Distribution Line - SWER Replacements | C12: Augex | D12: AP.1.1.01 | E12: ='Proposed NW Proj Direct Costs'!E12 -> 583.9779234 | F12: ='Proposed NW Proj Direct Costs'!F12 -> 583.9779234 | G12: ='Proposed NW Proj Direct Costs'!G12 -> 583.9779234 | H12: ='Proposed NW Proj Direct Costs'!H12 -> 583.9779234 | I12: ='Proposed NW Proj Direct Costs'!I12 -> 583.9779234 | J12: 2919.889617 | K12: C-2
B13: Voltage Regulation | C13: Augex | D13: AP.1.1.01 | E13: ='Proposed NW Proj Direct Costs'!E13 -> 1318.44242 | F13: ='Proposed NW Proj Direct Costs'!F13 -> 1318.44242 | G13: ='Proposed NW Proj Direct Costs'!G13 -> 1318.44242 | H13: ='Proposed NW Proj Direct Costs'!H13 -> 1318.44242 | I13: ='Proposed NW Proj Direct Costs'!I13 -> 1318.44242 | J13: 6592.212102 | K13: C-2
B14: Land | C14: Augex | D14: AP.1.1.01 | E14: ='Proposed NW Proj Direct Costs'!E14 -> 0 | F14: ='Proposed NW Proj Direct Costs'!F14 -> 0 | G14: ='Proposed NW Proj Direct Costs'!G14 -> 0 | H14: ='Proposed NW Proj Direct Costs'!H14 -> 1293.093973 | I14: ='Proposed NW Proj Direct Costs'!I14 -> 1293.093973 | J14: =SUM(E14:I14) -> 2586.187947 | K14: C-2
B15: LV Two Way Network (QoS) | C15: Augex | D15: AP.1.1.01 | E15: ='Proposed NW Proj Direct Costs'!E15 -> 578.3582676 | F15: ='Proposed NW Proj Direct Costs'!F15 -> 1572.156981 | G15: ='Proposed NW Proj Direct Costs'!G15 -> 1865.40906 | H15: ='Proposed NW Proj Direct Costs'!H15 -> 586.5041587 | I15: ='Proposed NW Proj Direct Costs'!I15 -> 0 | J15: 4602.428468 | K15: C-2
B17: Capacity Augmentation (Total) | D17: Total | E17: =SUM(E6:E16) -> 22553.10837 | F17: =SUM(F6:F16) -> 22103.88562 | G17: =SUM(G6:G16) -> 20028.0941 | H17: =SUM(H6:H16) -> 21139.88678 | I17: =SUM(I6:I16) -> 21267.13194 | J17: =SUM(E17:I17) -> 107092.1068 | K17: =K15 -> C-2
A18: Customer Connect (gross)
B19: Customer Connect < $30k | C19: Connections | D19: AP.7.1.01 | E19: ='Proposed NW Proj Direct Costs'!E19 -> 19439.50698 | F19: ='Proposed NW Proj Direct Costs'!F19 -> 21225.27394 | G19: ='Proposed NW Proj Direct Costs'!G19 -> 21727.5894 | H19: ='Proposed NW Proj Direct Costs'!H19 -> 20781.6544 | I19: ='Proposed NW Proj Direct Costs'!I19 -> 18908.61111 | J19: =E19+F19+G19+H19+I19 -> 102082.6358 | K19: C-3
B20: Customer Connect > $30k<$100k | C20: Connections | D20: AP.7.1.01 | E20: ='Proposed NW Proj Direct Costs'!E20 -> 25894.101 | F20: ='Proposed NW Proj Direct Costs'!F20 -> 27648.08138 | G20: ='Proposed NW Proj Direct Costs'!G20 -> 28341.32091 | H20: ='Proposed NW Proj Direct Costs'!H20 -> 27784.00361 | I20: ='Proposed NW Proj Direct Costs'!I20 -> 26958.17769 | J20: =E20+F20+G20+H20+I20 -> 136625.6846 | K20: C-3
B21: Customer Connect > $100k | C21: Connections | D21: AP.7.1.01 | E21: ='Proposed NW Proj Direct Costs'!E21 -> 32549.13171 | F21: ='Proposed NW Proj Direct Costs'!F21 -> 30684.61471 | G21: ='Proposed NW Proj Direct Costs'!G21 -> 36228.41708 | H21: ='Proposed NW Proj Direct Costs'!H21 -> 32096.00544 | I21: ='Proposed NW Proj Direct Costs'!I21 -> 31414.93906 | J21: =E21+F21+G21+H21+I21 -> 162973.108 | K21: C-3
B22: Gifting | C22: Connections | D22: NA | E22: ='Proposed NW Proj Direct Costs'!E22 -> 24738.08395 | F22: ='Proposed NW Proj Direct Costs'!F22 -> 24738.08395 | G22: ='Proposed NW Proj Direct Costs'!G22 -> 24738.08395 | H22: ='Proposed NW Proj Direct Costs'!H22 -> 24738.08395 | I22: ='Proposed NW Proj Direct Costs'!I22 -> 24738.08395 | J22: =E22+F22+G22+H22+I22 -> 123690.4198 | K22: C-3
B23: URDs | C23: Connections | D23: AP.7.1.01 | E23: ='Proposed NW Proj Direct Costs'!E23 -> 5316.680315 | F23: ='Proposed NW Proj Direct Costs'!F23 -> 5823.030821 | G23: ='Proposed NW Proj Direct Costs'!G23 -> 6160.597825 | H23: ='Proposed NW Proj Direct Costs'!H23 -> 5823.030821 | I23: ='Proposed NW Proj Direct Costs'!I23 -> 5254.615536 | J23: =E23+F23+G23+H23+I23 -> 28377.95532 | K23: C-3
B25: Gross Customer Connect (total, incl gifting) | D25: Total | E25: =SUM(E19:E24) -> 107937.504 | F25: 110119.0848 | G25: 117196.0092 | H25: 111222.7782 | I25: 107274.4273 | J25: =SUM(J19:J24) -> 553749.8035 | K25: =K23 -> C-3
A26: Reliability & Resilience
B27: Existing Network Protection Mgt - Planned | C27: Augex | D27: Historical | E27: ='Proposed NW Proj Direct Costs'!E27 -> 1279.189737 | F27: ='Proposed NW Proj Direct Costs'!F27 -> 1279.189737 | G27: ='Proposed NW Proj Direct Costs'!G27 -> 1279.189737 | H27: ='Proposed NW Proj Direct Costs'!H27 -> 1279.189737 | I27: ='Proposed NW Proj Direct Costs'!I27 -> 1279.189737 | J27: =SUM(E27:I27) -> 6395.948685 | K27: C-5
B28: Maintain Underlying Reliability Performance | C28: Augex | D28: AP.2.1.01 | E28: ='Proposed NW Proj Direct Costs'!E28 -> 4317.265363 | F28: ='Proposed NW Proj Direct Costs'!F28 -> 4317.265363 | G28: ='Proposed NW Proj Direct Costs'!G28 -> 4317.265363 | H28: ='Proposed NW Proj Direct Costs'!H28 -> 4317.265363 | I28: ='Proposed NW Proj Direct Costs'!I28 -> 4317.265363 | J28: =SUM(E28:I28) -> 21586.32681 | K28: C-5
B29: Air Conditioning Relay Rooms | C29: Augex | D29: AP.3.2.14 | E29: ='Proposed NW Proj Direct Costs'!E29 -> 159.8987171 | F29: ='Proposed NW Proj Direct Costs'!F29 -> 159.8987171 | G29: ='Proposed NW Proj Direct Costs'!G29 -> 159.8987171 | H29: ='Proposed NW Proj Direct Costs'!H29 -> 159.8987171 | I29: ='Proposed NW Proj Direct Costs'!I29 -> 159.8987171 | J29: =SUM(E29:I29) -> 799.4935857 | K29: C-5
B30: Network Hardening | C30: Augex | D30: AP.2.1.05 | E30: ='Proposed NW Proj Direct Costs'!E30 -> 2686.74594 | F30: ='Proposed NW Proj Direct Costs'!F30 -> 2686.74594 | G30: ='Proposed NW Proj Direct Costs'!G30 -> 2686.74594 | H30: ='Proposed NW Proj Direct Costs'!H30 -> 2686.74594 | I30: ='Proposed NW Proj Direct Costs'!I30 -> 2686.74594 | J30: =SUM(E30:I30) -> 13433.7297 | K30: C-5
B31: Low Reliability Feeders | C31: Augex | D31: AP.2.1.06 | E31: ='Proposed NW Proj Direct Costs'!E31 -> 2602.78513 | F31: ='Proposed NW Proj Direct Costs'!F31 -> 2602.78513 | G31: ='Proposed NW Proj Direct Costs'!G31 -> 2602.78513 | H31: ='Proposed NW Proj Direct Costs'!H31 -> 2602.78513 | I31: ='Proposed NW Proj Direct Costs'!I31 -> 2602.78513 | J31: =SUM(E31:I31) -> 13013.92565 | K31: C-5
B33: Reliability (total) | D33: total | E33: =SUM(E27:E32) -> 11045.88489 | F33: 11045.88489 | G33: 11045.88489 | H33: 11045.88489 | I33: 11045.88489 | J33: 55229.42443 | K33: =K31 -> C-5
A34: Asset Replace/Refurbish
B35: Line Repex/Refurb - Planned
B36: Cable replacement planned | C36: Repex | D36: AP.3.1.09 | E36: ='Proposed NW Proj Direct Costs'!E36 -> 915.1934626 | F36: ='Proposed NW Proj Direct Costs'!F36 -> 915.1934626 | G36: ='Proposed NW Proj Direct Costs'!G36 -> 915.1934626 | H36: ='Proposed NW Proj Direct Costs'!H36 -> 915.1934626 | I36: ='Proposed NW Proj Direct Costs'!I36 -> 915.1934626 | J36: =SUM(E36:I36) -> 4575.967313 | K36: C-1
B37: Conductor Replacement - Planned | C37: Repex | D37: AP.3.1.10 | E37: ='Proposed NW Proj Direct Costs'!E37 -> 2128.683204 | F37: ='Proposed NW Proj Direct Costs'!F37 -> 2128.683204 | G37: ='Proposed NW Proj Direct Costs'!G37 -> 2128.683204 | H37: ='Proposed NW Proj Direct Costs'!H37 -> 2128.683204 | I37: ='Proposed NW Proj Direct Costs'!I37 -> 2128.683204 | J37: 10643.41602 | K37: C-1
B38: Line Ancillary Equipment - Planned (incl LFIs, fences, gates, signs etc) | C38: Repex | D38: AP.3.1.20 | E38: ='Proposed NW Proj Direct Costs'!E38 -> 357.286893 | F38: ='Proposed NW Proj Direct Costs'!F38 -> 476.382524 | G38: ='Proposed NW Proj Direct Costs'!G38 -> 476.382524 | H38: ='Proposed NW Proj Direct Costs'!H38 -> 476.382524 | I38: ='Proposed NW Proj Direct Costs'!I38 -> 476.382524 | J38: 2262.816989 | K38: C-1
B39: Line Regulation - Planned (incl regulators, capacitors) | C39: Repex | D39: AP.3.1.19 | E39: ='Proposed NW Proj Direct Costs'!E39 -> 723.5486471 | F39: ='Proposed NW Proj Direct Costs'!F39 -> 964.7315295 | G39: ='Proposed NW Proj Direct Costs'!G39 -> 964.7315295 | H39: ='Proposed NW Proj Direct Costs'!H39 -> 973.0740713 | I39: ='Proposed NW Proj Direct Costs'!I39 -> 981.416613 | J39: 4607.50239 | K39: C-1
B40: Overhead Line Components - Planned (incl insulators, crossarms, taps, pole earths) | C40: Repex | D40: AP.3.1.06 | E40: ='Proposed NW Proj Direct Costs'!E40 -> 12977.8473 | F40: ='Proposed NW Proj Direct Costs'!F40 -> 12977.8473 | G40: ='Proposed NW Proj Direct Costs'!G40 -> 12977.8473 | H40: ='Proposed NW Proj Direct Costs'!H40 -> 12977.8473 | I40: ='Proposed NW Proj Direct Costs'!I40 -> 12977.8473 | J40: 64889.23652 | K40: C-1
B41: Pole Replacement Maint. Tasks - Planned | C41: Repex | D41: AP.3.1.05 | E41: ='Proposed NW Proj Direct Costs'!E41 -> 20632.82022 | F41: ='Proposed NW Proj Direct Costs'!F41 -> 20739.55957 | G41: ='Proposed NW Proj Direct Costs'!G41 -> 20739.55957 | H41: ='Proposed NW Proj Direct Costs'!H41 -> 20739.55957 | I41: ='Proposed NW Proj Direct Costs'!I41 -> 20739.55957 | J41: 103591.0585 | K41: C-1
B42: Recloser Refurbishment - Planned | C42: Repex | D42: AP.3.1.13 | E42: ='Proposed NW Proj Direct Costs'!E42 -> 451.0774683 | F42: ='Proposed NW Proj Direct Costs'!F42 -> 451.0774683 | G42: ='Proposed NW Proj Direct Costs'!G42 -> 451.0774683 | H42: ='Proposed NW Proj Direct Costs'!H42 -> 451.0774683 | I42: ='Proposed NW Proj Direct Costs'!I42 -> 451.0774683 | J42: 2255.387342 | K42: C-1
B43: Recloser Replacement - Planned | C43: Repex | D43: AP.3.1.13 | E43: ='Proposed NW Proj Direct Costs'!E43 -> 1285.018124 | F43: ='Proposed NW Proj Direct Costs'!F43 -> 1285.018124 | G43: ='Proposed NW Proj Direct Costs'!G43 -> 1285.018124 | H43: ='Proposed NW Proj Direct Costs'!H43 -> 1285.018124 | I43: ='Proposed NW Proj Direct Costs'!I43 -> 1285.018124 | J43: 6425.09062 | K43: C-1
B44: Services Maintenance Tasks - Planned | C44: Repex | D44: AP.3.1.08 | E44: ='Proposed NW Proj Direct Costs'!E44 -> 3540.262828 | F44: ='Proposed NW Proj Direct Costs'!F44 -> 3540.262828 | G44: ='Proposed NW Proj Direct Costs'!G44 -> 3540.262828 | H44: ='Proposed NW Proj Direct Costs'!H44 -> 3540.262828 | I44: ='Proposed NW Proj Direct Costs'!I44 -> 3540.262828 | J44: 17701.31414 | K44: C-1
B45: Switchgear - Overhead - Planned | C45: Repex | D45: AP.3.1.07 | E45: ='Proposed NW Proj Direct Costs'!E45 -> 2907.647581 | F45: ='Proposed NW Proj Direct Costs'!F45 -> 2907.647581 | G45: ='Proposed NW Proj Direct Costs'!G45 -> 2907.647581 | H45: ='Proposed NW Proj Direct Costs'!H45 -> 2907.647581 | I45: ='Proposed NW Proj Direct Costs'!I45 -> 2907.647581 | J45: 14538.23791 | K45: C-1
B46: Transformers - Planned | C46: Repex | D46: AP.3.1.01 | E46: ='Proposed NW Proj Direct Costs'!E46 -> 2668.939647 | F46: ='Proposed NW Proj Direct Costs'!F46 -> 2668.939647 | G46: ='Proposed NW Proj Direct Costs'!G46 -> 2668.939647 | H46: ='Proposed NW Proj Direct Costs'!H46 -> 2668.939647 | I46: ='Proposed NW Proj Direct Costs'!I46 -> 2668.939647 | J46: 13344.69823 | K46: C-1
B47: Poles - Planned plating | C47: Repex | D47: AP.3.1.05 | E47: ='Proposed NW Proj Direct Costs'!E47 -> 6631.518766 | F47: ='Proposed NW Proj Direct Costs'!F47 -> 6626.635467 | G47: ='Proposed NW Proj Direct Costs'!G47 -> 6626.635467 | H47: ='Proposed NW Proj Direct Costs'!H47 -> 6626.635467 | I47: ='Proposed NW Proj Direct Costs'!I47 -> 6626.635467 | J47: 33138.06063 | K47: C-1
B48: CBD ducts & manholes | C48: Repex | D48: AP.2.1.07 | E48: ='Proposed NW Proj Direct Costs'!E48 -> 2411.819495 | F48: ='Proposed NW Proj Direct Costs'!F48 -> 2411.819495 | G48: ='Proposed NW Proj Direct Costs'!G48 -> 2411.819495 | H48: ='Proposed NW Proj Direct Costs'!H48 -> 2411.819495 | I48: ='Proposed NW Proj Direct Costs'!I48 -> 2411.819495 | J48: =SUM(E48:I48) -> 12059.09748 | K48: C-1
B49: Cables - CBD 11kV PILC cable replacements | C49: Repex | D49: AP.2.1.07 | E49: ='Proposed NW Proj Direct Costs'!E49 -> 1265.004865 | F49: ='Proposed NW Proj Direct Costs'!F49 -> 1265.004865 | G49: ='Proposed NW Proj Direct Costs'!G49 -> 1265.004865 | H49: ='Proposed NW Proj Direct Costs'!H49 -> 1265.004865 | I49: ='Proposed NW Proj Direct Costs'!I49 -> 1265.004865 | J49: =SUM(E49:I49) -> 6325.024327 | K49: C-1
B50: Services - Aluminium neutral screen service line replacements | C50: Repex | D50: AP.3.1.08 | E50: ='Proposed NW Proj Direct Costs'!E50 -> 526.5431287 | F50: ='Proposed NW Proj Direct Costs'!F50 -> 702.057505 | G50: ='Proposed NW Proj Direct Costs'!G50 -> 702.057505 | H50: ='Proposed NW Proj Direct Costs'!H50 -> 702.057505 | I50: ='Proposed NW Proj Direct Costs'!I50 -> 702.057505 | J50: 3334.773149 | K50: C-1
B52: Line Repex/Refurb - Unplanned
B53: (Distribution) Cable Replacement - Unplanned | C53: Repex | D53: AP.3.1.09 | E53: ='Proposed NW Proj Direct Costs'!E53 -> 430.6792765 | F53: ='Proposed NW Proj Direct Costs'!F53 -> 430.6792765 | G53: ='Proposed NW Proj Direct Costs'!G53 -> 430.6792765 | H53: ='Proposed NW Proj Direct Costs'!H53 -> 430.6792765 | I53: ='Proposed NW Proj Direct Costs'!I53 -> 430.6792765 | J53: =SUM(E53:I53) -> 2153.396383 | K53: C-1
B54: Line Regulation - Unplanned (incl regulators, capacitors) | C54: Repex | D54: AP.3.1.19 | E54: ='Proposed NW Proj Direct Costs'!E54 -> 112.6243138 | F54: ='Proposed NW Proj Direct Costs'!F54 -> 112.6243138 | G54: ='Proposed NW Proj Direct Costs'!G54 -> 131.3950328 | H54: ='Proposed NW Proj Direct Costs'!H54 -> 150.1657517 | I54: ='Proposed NW Proj Direct Costs'!I54 -> 150.1657517 | J54: 656.9751639 | K54: C-1
B55: Overhead Line Components - Unplanned (incl insulators, X-arms, pole earths) | C55: Repex | D55: AP.3.1.06 | E55: ='Proposed NW Proj Direct Costs'!E55 -> 6392.074045 | F55: ='Proposed NW Proj Direct Costs'!F55 -> 6392.074045 | G55: ='Proposed NW Proj Direct Costs'!G55 -> 6392.074045 | H55: ='Proposed NW Proj Direct Costs'!H55 -> 6392.074045 | I55: ='Proposed NW Proj Direct Costs'!I55 -> 6392.074045 | J55: 31960.37022 | K55: C-1
B56: Poles - Unplanned | C56: Repex | D56: AP.3.1.05 | E56: ='Proposed NW Proj Direct Costs'!E56 -> 1968.030673 | F56: ='Proposed NW Proj Direct Costs'!F56 -> 1968.030673 | G56: ='Proposed NW Proj Direct Costs'!G56 -> 1968.030673 | H56: ='Proposed NW Proj Direct Costs'!H56 -> 1968.030673 | I56: ='Proposed NW Proj Direct Costs'!I56 -> 1968.030673 | J56: 9840.153365 | K56: C-1
B57: Recloser Replacement - Unplanned | C57: Repex | D57: AP.3.1.13 | E57: ='Proposed NW Proj Direct Costs'!E57 -> 680.0654742 | F57: ='Proposed NW Proj Direct Costs'!F57 -> 680.0654742 | G57: ='Proposed NW Proj Direct Costs'!G57 -> 680.0654742 | H57: ='Proposed NW Proj Direct Costs'!H57 -> 680.0654742 | I57: ='Proposed NW Proj Direct Costs'!I57 -> 680.0654742 | J57: 3400.327371 | K57: C-1
B58: Services Replacement - Unplanned | C58: Repex | D58: AP.3.1.08 | E58: ='Proposed NW Proj Direct Costs'!E58 -> 4505.789054 | F58: ='Proposed NW Proj Direct Costs'!F58 -> 4505.789054 | G58: ='Proposed NW Proj Direct Costs'!G58 -> 4505.789054 | H58: ='Proposed NW Proj Direct Costs'!H58 -> 4505.789054 | I58: ='Proposed NW Proj Direct Costs'!I58 -> 4505.789054 | J58: 22528.94527 | K58: C-1
B59: Switchgear - Ground Level - Unplanned | C59: Repex | D59: AP.3.1.03 | E59: ='Proposed NW Proj Direct Costs'!E59 -> 406.7080315 | F59: ='Proposed NW Proj Direct Costs'!F59 -> 406.7080315 | G59: ='Proposed NW Proj Direct Costs'!G59 -> 406.7080315 | H59: ='Proposed NW Proj Direct Costs'!H59 -> 406.7080315 | I59: ='Proposed NW Proj Direct Costs'!I59 -> 406.7080315 | J59: 2033.540157 | K59: C-1
B60: Switchgear - Overhead - Unplanned | C60: Repex | D60: AP.3.1.07 | E60: ='Proposed NW Proj Direct Costs'!E60 -> 3323.025807 | F60: ='Proposed NW Proj Direct Costs'!F60 -> 3323.025807 | G60: ='Proposed NW Proj Direct Costs'!G60 -> 3323.025807 | H60: ='Proposed NW Proj Direct Costs'!H60 -> 3323.025807 | I60: ='Proposed NW Proj Direct Costs'!I60 -> 3323.025807 | J60: 16615.12904 | K60: C-1
B61: Transformers - Unplanned | C61: Repex | D61: AP.3.1.01 | E61: ='Proposed NW Proj Direct Costs'!E61 -> 4354.585739 | F61: ='Proposed NW Proj Direct Costs'!F61 -> 4354.585739 | G61: ='Proposed NW Proj Direct Costs'!G61 -> 4354.585739 | H61: ='Proposed NW Proj Direct Costs'!H61 -> 4354.585739 | I61: ='Proposed NW Proj Direct Costs'!I61 -> 4354.585739 | J61: 21772.9287 | K61: C-1
B63: Repex/Refurb - Lines (subtotal) | D63: subtotal | E63: =SUM(E36:E62) -> 81596.79404 | F63: 82234.44299 | G63: 82253.21371 | H63: 82280.32697 | I63: 82288.66951 | J63: 410653.4472 | K63: =K61 -> C-1
B64: Substations Repex/Refurb
B65: Auxillary DC Supplies excl AC - Battery Banks & Chargers | C65: Repex | D65: AP.3.2.08 | E65: ='Proposed NW Proj Direct Costs'!E65 -> 542.4707975 | F65: ='Proposed NW Proj Direct Costs'!F65 -> 542.4707975 | G65: ='Proposed NW Proj Direct Costs'!G65 -> 542.4707975 | H65: ='Proposed NW Proj Direct Costs'!H65 -> 542.4707975 | I65: ='Proposed NW Proj Direct Costs'!I65 -> 305.6593311 | J65: =SUM(E65:I65) -> 2475.542521 | K65: C-1
B66: Circuit Breakers Planned Replacement | C66: Repex | D66: AP.3.2.05 | E66: ='Proposed NW Proj Direct Costs'!E66 -> 9289.220548 | F66: ='Proposed NW Proj Direct Costs'!F66 -> 9289.220548 | G66: ='Proposed NW Proj Direct Costs'!G66 -> 10180.88436 | H66: ='Proposed NW Proj Direct Costs'!H66 -> 10113.71571 | I66: ='Proposed NW Proj Direct Costs'!I66 -> 9222.051899 | J66: 48095.09306 | K66: C-1
B67: Circuit Breakers Planned Refurb | C67: Repex | D67: AP.3.2.02 | E67: ='Proposed NW Proj Direct Costs'!E67 -> 623.218199 | F67: ='Proposed NW Proj Direct Costs'!F67 -> 232.8004295 | G67: ='Proposed NW Proj Direct Costs'!G67 -> 232.8004295 | H67: ='Proposed NW Proj Direct Costs'!H67 -> 232.8004295 | I67: ='Proposed NW Proj Direct Costs'!I67 -> 232.8004295 | J67: 1554.419917 | K67: C-1
B68: Mobile Substations | C68: Repex | D68: AP.3.2.13 | E68: ='Proposed NW Proj Direct Costs'!E68 -> 250.2762529 | F68: ='Proposed NW Proj Direct Costs'!F68 -> 250.2762529 | G68: ='Proposed NW Proj Direct Costs'!G68 -> 250.2762529 | H68: ='Proposed NW Proj Direct Costs'!H68 -> 250.2762529 | I68: ='Proposed NW Proj Direct Costs'!I68 -> 250.2762529 | J68: 1251.381264 | K68: C-1
B69: Substation Insurance Spares & Asset Mgt | C69: Repex | D69: Historical | E69: ='Proposed NW Proj Direct Costs'!E69 -> 1334.806682 | F69: ='Proposed NW Proj Direct Costs'!F69 -> 1334.806682 | G69: ='Proposed NW Proj Direct Costs'!G69 -> 1334.806682 | H69: ='Proposed NW Proj Direct Costs'!H69 -> 1334.806682 | I69: ='Proposed NW Proj Direct Costs'!I69 -> 1334.806682 | J69: 6674.033411 | K69: C-1
B70: Substation Infrastructure - Civil (incl buildings, structures) | C70: Repex | D70: AP3.2.16 | E70: ='Proposed NW Proj Direct Costs'!E70 -> 1251.381264 | F70: ='Proposed NW Proj Direct Costs'!F70 -> 1251.381264 | G70: ='Proposed NW Proj Direct Costs'!G70 -> 1251.381264 | H70: ='Proposed NW Proj Direct Costs'!H70 -> 1251.381264 | I70: ='Proposed NW Proj Direct Costs'!I70 -> 1251.381264 | J70: 6256.906322 | K70: C-1
B71: Substation Transformer Repl. | C71: Repex | D71: AP.3.2.01 | E71: ='Proposed NW Proj Direct Costs'!E71 -> 4518.958837 | F71: ='Proposed NW Proj Direct Costs'!F71 -> 4462.285289 | G71: ='Proposed NW Proj Direct Costs'!G71 -> 5100.38745 | H71: ='Proposed NW Proj Direct Costs'!H71 -> 4292.264648 | I71: ='Proposed NW Proj Direct Costs'!I71 -> 3540.815393 | J71: 21914.71162 | K71: C-1
B72: TF Refurb (18665 & 18977) | C72: Repex | D72: AP.3.2.01 | E72: ='Proposed NW Proj Direct Costs'!E72 -> 1313.950328 | F72: ='Proposed NW Proj Direct Costs'!F72 -> 1042.81772 | G72: ='Proposed NW Proj Direct Costs'!G72 -> 792.5414675 | H72: ='Proposed NW Proj Direct Costs'!H72 -> 792.5414675 | I72: ='Proposed NW Proj Direct Costs'!I72 -> 792.5414675 | J72: 4734.392451 | K72: C-1
B73: Surge Arrester | C73: Repex | D73: AP.3.2.03 | E73: ='Proposed NW Proj Direct Costs'!E73 -> 260.966321 | F73: ='Proposed NW Proj Direct Costs'!F73 -> 286.4264499 | G73: ='Proposed NW Proj Direct Costs'!G73 -> 286.4264499 | H73: ='Proposed NW Proj Direct Costs'!H73 -> 280.0614177 | I73: ='Proposed NW Proj Direct Costs'!I73 -> 178.2209022 | J73: 1292.101541 | K73: C-1
B74: AC Panels + auxilary supply | C74: Repex | D74: AP 3.2.22 | E74: ='Proposed NW Proj Direct Costs'!E74 -> 600.663007 | F74: ='Proposed NW Proj Direct Costs'!F74 -> 600.663007 | G74: ='Proposed NW Proj Direct Costs'!G74 -> 600.663007 | H74: ='Proposed NW Proj Direct Costs'!H74 -> 600.663007 | I74: ='Proposed NW Proj Direct Costs'!I74 -> 498.4668704 | J74: 2901.118898 | K74: C-1
B75: Protection Asset Replacement | C75: Repex | D75: AP.3.2.14 | E75: ='Proposed NW Proj Direct Costs'!E75 -> 2350.902698 | F75: ='Proposed NW Proj Direct Costs'!F75 -> 2392.883103 | G75: ='Proposed NW Proj Direct Costs'!G75 -> 2224.961482 | H75: ='Proposed NW Proj Direct Costs'!H75 -> 2057.039861 | I75: ='Proposed NW Proj Direct Costs'!I75 -> 2099.020266 | J75: 11124.80741 | K75: C-1
B76: Unplanned CB Replacement | C76: Repex | D76: Historical | E76: ='Proposed NW Proj Direct Costs'!E76 -> 392.0969857 | F76: ='Proposed NW Proj Direct Costs'!F76 -> 392.0969857 | G76: ='Proposed NW Proj Direct Costs'!G76 -> 392.0969857 | H76: ='Proposed NW Proj Direct Costs'!H76 -> 392.0969857 | I76: ='Proposed NW Proj Direct Costs'!I76 -> 392.0969857 | J76: 1960.484928 | K76: C-1
B77: Unplanned Substation Asset Repl - PROTECTION | C77: Repex | D77: Historical | E77: ='Proposed NW Proj Direct Costs'!E77 -> 671.6864851 | F77: ='Proposed NW Proj Direct Costs'!F77 -> 671.6864851 | G77: ='Proposed NW Proj Direct Costs'!G77 -> 671.6864851 | H77: ='Proposed NW Proj Direct Costs'!H77 -> 671.6864851 | I77: ='Proposed NW Proj Direct Costs'!I77 -> 671.6864851 | J77: 3358.432426 | K77: C-1
B78: Other (sub cables) | C78: Repex | D78: AP 3.02.09 | E78: ='Proposed NW Proj Direct Costs'!E78 -> 595.9716204 | F78: ='Proposed NW Proj Direct Costs'!F78 -> 211.7975722 | G78: ='Proposed NW Proj Direct Costs'!G78 -> 220.5572411 | H78: ='Proposed NW Proj Direct Costs'!H78 -> 220.5572411 | I78: ='Proposed NW Proj Direct Costs'!I78 -> 185.5185657 | J78: 1434.402241 | K78: C-1
B79: Northfield 66kV GIS Switchboard replacement (1/3rd) | C79: Repex | D79: AP 3.02.06 | E79: ='Proposed NW Proj Direct Costs'!E79 -> 1049.510133 | F79: ='Proposed NW Proj Direct Costs'!F79 -> 3526.354047 | G79: ='Proposed NW Proj Direct Costs'!G79 -> 4198.040532 | H79: ='Proposed NW Proj Direct Costs'!H79 -> 1679.216213 | I79: ='Proposed NW Proj Direct Costs'!I79 -> 0 | J79: 10453.12092 | K79: C-1
B81: Repex/Refurb - Substations (subtotal) | D81: subtotal | E81: =SUM(E65:E80) -> 25046.08016 | F81: 26487.96663 | G81: 28279.98088 | H81: 24711.57846 | I81: 20955.34279 | J81: 125480.9489 | K81: =K79 -> C-1
B82: Telecom'n Repex/Refurb | K82: C-1
B83: 48V DC Systems | C83: Repex | D83: AP.3.3.02 | E83: ='Proposed NW Proj Direct Costs'!E83 -> 222.1850362 | F83: ='Proposed NW Proj Direct Costs'!F83 -> 206.6221499 | G83: ='Proposed NW Proj Direct Costs'!G83 -> 206.6221499 | H83: ='Proposed NW Proj Direct Costs'!H83 -> 206.6221499 | I83: ='Proposed NW Proj Direct Costs'!I83 -> 218.5426586 | J83: =SUM(E83:I83) -> 1060.594145 | K83: C-1
B84: UPAX/Business Telephone Network | C84: Non-network | D84: AP.3.3.07 | E84: ='Proposed NW Proj Direct Costs'!E84 -> 692.6766878 | F84: ='Proposed NW Proj Direct Costs'!F84 -> 125.941216 | G84: ='Proposed NW Proj Direct Costs'!G84 -> 230.8922293 | H84: ='Proposed NW Proj Direct Costs'!H84 -> 503.7648638 | I84: ='Proposed NW Proj Direct Costs'!I84 -> 398.8138505 | J84: 1952.088847 | K84: C-1
B85: Data Network | C85: Repex | D85: AP.3.3.12 | E85: ='Proposed NW Proj Direct Costs'!E85 -> 1110.262931 | F85: ='Proposed NW Proj Direct Costs'!F85 -> 1110.262931 | G85: ='Proposed NW Proj Direct Costs'!G85 -> 777.4820642 | H85: ='Proposed NW Proj Direct Costs'!H85 -> 939.4023067 | I85: ='Proposed NW Proj Direct Costs'!I85 -> 939.4023067 | J85: 4876.812539 | K85: C-1
B86: Microwave Radio | C86: Repex | D86: AP.3.3.01 | E86: ='Proposed NW Proj Direct Costs'!E86 -> 96.02631968 | F86: ='Proposed NW Proj Direct Costs'!F86 -> 201.9863966 | G86: ='Proposed NW Proj Direct Costs'!G86 -> 211.9201538 | H86: ='Proposed NW Proj Direct Costs'!H86 -> 211.9201538 | I86: ='Proposed NW Proj Direct Costs'!I86 -> 211.9201538 | J86: 933.7731776 | K86: C-1
B87: Minor Works - Unplanned | C87: Repex | D87: Historic | E87: ='Proposed NW Proj Direct Costs'!E87 -> 596.0254325 | F87: ='Proposed NW Proj Direct Costs'!F87 -> 596.0254325 | G87: ='Proposed NW Proj Direct Costs'!G87 -> 629.1379565 | H87: ='Proposed NW Proj Direct Costs'!H87 -> 662.2504806 | I87: ='Proposed NW Proj Direct Costs'!I87 -> 662.2504806 | J87: 3145.689783 | K87: C-1
B88: Misc Radio Systems | C88: Repex | D88: AP.3.3.05 | E88: ='Proposed NW Proj Direct Costs'!E88 -> 481.4560994 | F88: ='Proposed NW Proj Direct Costs'!F88 -> 129.1388437 | G88: ='Proposed NW Proj Direct Costs'!G88 -> 129.1388437 | H88: ='Proposed NW Proj Direct Costs'!H88 -> 129.1388437 | I88: ='Proposed NW Proj Direct Costs'!I88 -> 129.1388437 | J88: 998.0114742 | K88: C-1
B89: Network Tel Planning Labour Capitalisation | C89: Repex | D89: Historic | E89: ='Proposed NW Proj Direct Costs'!E89 -> 463.5753364 | F89: ='Proposed NW Proj Direct Costs'!F89 -> 463.5753364 | G89: ='Proposed NW Proj Direct Costs'!G89 -> 463.5753364 | H89: ='Proposed NW Proj Direct Costs'!H89 -> 463.5753364 | I89: ='Proposed NW Proj Direct Costs'!I89 -> 463.5753364 | J89: 2317.876682 | K89: C-1
B90: Optical Fibre Network | C90: Repex | D90: AP.3.3.04 | E90: ='Proposed NW Proj Direct Costs'!E90 -> 331.1252403 | F90: ='Proposed NW Proj Direct Costs'!F90 -> 331.1252403 | G90: ='Proposed NW Proj Direct Costs'!G90 -> 331.1252403 | H90: ='Proposed NW Proj Direct Costs'!H90 -> 331.1252403 | I90: ='Proposed NW Proj Direct Costs'!I90 -> 331.1252403 | J90: 1655.626201 | K90: C-1
B91: Pilot Cable Network (incl CBD) stage 2 | C91: Repex | D91: AP.3.3.03 | E91: ='Proposed NW Proj Direct Costs'!E91 -> 33.11252403 | F91: ='Proposed NW Proj Direct Costs'!F91 -> 33.11252403 | G91: ='Proposed NW Proj Direct Costs'!G91 -> 33.11252403 | H91: ='Proposed NW Proj Direct Costs'!H91 -> 33.11252403 | I91: ='Proposed NW Proj Direct Costs'!I91 -> 33.11252403 | J91: 165.5626201 | K91: C-1
B92: SDH Network | C92: Repex | D92: AP.3.3.10 | E92: ='Proposed NW Proj Direct Costs'!E92 -> 44.3707822 | F92: ='Proposed NW Proj Direct Costs'!F92 -> 253.9730593 | G92: ='Proposed NW Proj Direct Costs'!G92 -> 253.9730593 | H92: ='Proposed NW Proj Direct Costs'!H92 -> 44.3707822 | I92: ='Proposed NW Proj Direct Costs'!I92 -> 44.3707822 | J92: 641.0584652 | K92: C-1
B93: TNOC Management Systems | C93: Non-network | D93: AP.3.3.08 | E93: ='Proposed NW Proj Direct Costs'!E93 -> 293.8628372 | F93: ='Proposed NW Proj Direct Costs'!F93 -> 713.6668904 | G93: ='Proposed NW Proj Direct Costs'!G93 -> 776.6374984 | H93: ='Proposed NW Proj Direct Costs'!H93 -> 356.8334452 | I93: ='Proposed NW Proj Direct Costs'!I93 -> 356.8334452 | J93: 2497.834117 | K93: C-1
B94: OT Cyber Security | C94: Non-network | D94: New | E94: ='Proposed NW Proj Direct Costs'!E94 -> 503.7648638 | F94: ='Proposed NW Proj Direct Costs'!F94 -> 1343.37297 | G94: ='Proposed NW Proj Direct Costs'!G94 -> 1385.353376 | H94: ='Proposed NW Proj Direct Costs'!H94 -> 629.7060798 | I94: ='Proposed NW Proj Direct Costs'!I94 -> 587.7256745 | J94: 4449.922964 | K94: C-1
B95: Other | C95: Repex | E95: ='Proposed NW Proj Direct Costs'!E95 -> 335.8432426 | F95: ='Proposed NW Proj Direct Costs'!F95 -> 335.8432426 | G95: ='Proposed NW Proj Direct Costs'!G95 -> 335.8432426 | H95: ='Proposed NW Proj Direct Costs'!H95 -> 335.8432426 | I95: ='Proposed NW Proj Direct Costs'!I95 -> 335.8432426 | J95: 1679.216213 | K95: C-1
C96: Non-network | D96: Non-network | E96: =-(E94+E93+E84) -> -1490.304389 | F96: =-(F94+F93+F84) -> -2182.981077 | G96: =-(G94+G93+G84) -> -2392.883103 | H96: =-(H94+H93+H84) -> -1490.304389 | I96: =-(I94+I93+I84) -> -1343.37297 | J96: =SUM(E96:I96) -> -8899.845928
B97: Repex / Refurb - Telecom'n (subtotal) | D97: subtotal | E97: =SUM(E83:E96) -> 3713.982944 | F97: 3661.665156 | G97: 3371.930571 | H97: 3357.36106 | I97: 3369.281569 | J97: 17474.2213
B98: Replacement & Refurbishment (Total) | D98: Total | E98: =SUM(E63,E81,E97,) -> 110356.8571 | F98: 112384.0748 | G98: 113905.1252 | H98: 110349.2665 | I98: 106613.2939 | J98: 553608.6174 | K98: =K96 -> 0
A99: Environment
B100: Environmental Management - Lines (incl oil containment, EMF) | C100: Augex | D100: AP.4.1.03 | E100: ='Proposed NW Proj Direct Costs'!E100 -> 166.8508353 | F100: ='Proposed NW Proj Direct Costs'!F100 -> 166.8508353 | G100: ='Proposed NW Proj Direct Costs'!G100 -> 166.8508353 | H100: ='Proposed NW Proj Direct Costs'!H100 -> 166.8508353 | I100: ='Proposed NW Proj Direct Costs'!I100 -> 166.8508353 | J100: =SUM(E100:I100) -> 834.2541763 | K100: C-6
B101: Oil Containment - Substation | C101: Augex | D101: AP.4.1.01 | E101: ='Proposed NW Proj Direct Costs'!E101 -> 1418.2321 | F101: ='Proposed NW Proj Direct Costs'!F101 -> 1418.2321 | G101: ='Proposed NW Proj Direct Costs'!G101 -> 1418.2321 | H101: ='Proposed NW Proj Direct Costs'!H101 -> 1418.2321 | I101: ='Proposed NW Proj Direct Costs'!I101 -> 1418.2321 | J101: =SUM(E101:I101) -> 7091.160499 | K101: C-6
B102: Environmental Management - Subs (eg noise abatement) | C102: Augex | D102: AP.4.1.05 | E102: ='Proposed NW Proj Direct Costs'!E102 -> 142.6574642 | F102: ='Proposed NW Proj Direct Costs'!F102 -> 142.6574642 | G102: ='Proposed NW Proj Direct Costs'!G102 -> 142.6574642 | H102: ='Proposed NW Proj Direct Costs'!H102 -> 142.6574642 | I102: ='Proposed NW Proj Direct Costs'!I102 -> 142.6574642 | J102: =SUM(E102:I102) -> 713.2873208 | K102: C-6
B104: Environment (Total) | D104: Total | E104: =SUM(E100:E103) -> 1727.740399 | F104: 1727.740399 | G104: 1727.740399 | H104: 1727.740399 | I104: 1727.740399 | J104: 8638.701996 | K104: =K102 -> C-6
A105: Safety
B106: Elizabeth Transformer Stations | C106: Repex | D106: AP.5.1.02 | E106: ='Proposed NW Proj Direct Costs'!E106 -> 411.9129996 | F106: ='Proposed NW Proj Direct Costs'!F106 -> 417.1270882 | G106: ='Proposed NW Proj Direct Costs'!G106 -> 417.1270882 | H106: ='Proposed NW Proj Direct Costs'!H106 -> 417.1270882 | I106: ='Proposed NW Proj Direct Costs'!I106 -> 417.1270882 | J106: =SUM(E106:I106) -> 2080.421352 | K106: C-8
B107: Line Clearance Rectification - Distribution | C107: Repex | D107: AP.5.1.06 | E107: ='Proposed NW Proj Direct Costs'!E107 -> 2746.985027 | F107: ='Proposed NW Proj Direct Costs'!F107 -> 2746.985027 | G107: ='Proposed NW Proj Direct Costs'!G107 -> 2746.985027 | H107: ='Proposed NW Proj Direct Costs'!H107 -> 2746.985027 | I107: ='Proposed NW Proj Direct Costs'!I107 -> 2746.985027 | J107: 13734.92514 | K107: C-8
B108: Substation Asbestos Removal | C108: Repex | E108: ='Proposed NW Proj Direct Costs'!E108 -> 137.9983363 | F108: ='Proposed NW Proj Direct Costs'!F108 -> 203.7804595 | G108: ='Proposed NW Proj Direct Costs'!G108 -> 203.7804595 | H108: ='Proposed NW Proj Direct Costs'!H108 -> 203.7804595 | I108: ='Proposed NW Proj Direct Costs'!I108 -> 203.7804595 | J108: =SUM(E108:I108) -> 953.1201742 | K108: C-8
B109: Substation Lighting | C109: Augex | D109: AP.5.1.05 | E109: ='Proposed NW Proj Direct Costs'!E109 -> 100.1105012 | F109: ='Proposed NW Proj Direct Costs'!F109 -> 100.1105012 | G109: ='Proposed NW Proj Direct Costs'!G109 -> 100.1105012 | H109: ='Proposed NW Proj Direct Costs'!H109 -> 100.1105012 | I109: ='Proposed NW Proj Direct Costs'!I109 -> 100.1105012 | J109: 500.5525058 | K109: C-7
B110: Substation Security & Fencing | C110: Augex | D110: AP.5.1.03 | E110: ='Proposed NW Proj Direct Costs'!E110 -> 2002.210023 | F110: ='Proposed NW Proj Direct Costs'!F110 -> 2002.210023 | G110: ='Proposed NW Proj Direct Costs'!G110 -> 2002.210023 | H110: ='Proposed NW Proj Direct Costs'!H110 -> 2002.210023 | I110: ='Proposed NW Proj Direct Costs'!I110 -> 2002.210023 | J110: 10011.05012 | K110: C-7
B111: CBD Maintenance Projects (CBD Safety) | C111: Repex | D111: AP.2.1.07 | E111: ='Proposed NW Proj Direct Costs'!E111 -> 354.4825425 | F111: ='Proposed NW Proj Direct Costs'!F111 -> 354.4825425 | G111: ='Proposed NW Proj Direct Costs'!G111 -> 354.4825425 | H111: ='Proposed NW Proj Direct Costs'!H111 -> 354.4825425 | I111: ='Proposed NW Proj Direct Costs'!I111 -> 354.4825425 | J111: 1772.412713 | K111: C-8
B112: Emergency Switching Communication (Mobile Radio) | C112: Repex | D112: AP.3.3.06 | E112: ='Proposed NW Proj Direct Costs'!E112 -> 579.4691705 | F112: ='Proposed NW Proj Direct Costs'!F112 -> 579.4691705 | G112: ='Proposed NW Proj Direct Costs'!G112 -> 248.3439302 | H112: ='Proposed NW Proj Direct Costs'!H112 -> 662.2504806 | I112: ='Proposed NW Proj Direct Costs'!I112 -> 596.0254325 | J112: 2665.558184 | K112: C-8
B113: Substation Infrastructure - Earth systems (Earth Grid Upgrades) | C113: Augex | D113: AP.3.2.10 | E113: ='Proposed NW Proj Direct Costs'!E113 -> 1026.132637 | F113: ='Proposed NW Proj Direct Costs'!F113 -> 1026.132637 | G113: ='Proposed NW Proj Direct Costs'!G113 -> 1026.132637 | H113: ='Proposed NW Proj Direct Costs'!H113 -> 1026.132637 | I113: ='Proposed NW Proj Direct Costs'!I113 -> 1026.132637 | J113: 5130.663184 | K113: C-7
B114: Distribution Earthing | C114: Repex | D114: AP.3.1.18 | E114: ='Proposed NW Proj Direct Costs'!E114 -> 75.24771297 | F114: ='Proposed NW Proj Direct Costs'!F114 -> 100.330284 | G114: ='Proposed NW Proj Direct Costs'!G114 -> 100.330284 | H114: ='Proposed NW Proj Direct Costs'!H114 -> 100.330284 | I114: ='Proposed NW Proj Direct Costs'!I114 -> 100.330284 | J114: 476.5688488 | K114: C-8
B115: Telco Structures | C115: Repex | D115: AP.3.3.13 | E115: ='Proposed NW Proj Direct Costs'!E115 -> 277.0706751 | F115: ='Proposed NW Proj Direct Costs'!F115 -> 277.0706751 | G115: ='Proposed NW Proj Direct Costs'!G115 -> 277.0706751 | H115: ='Proposed NW Proj Direct Costs'!H115 -> 277.0706751 | I115: ='Proposed NW Proj Direct Costs'!I115 -> 768.2414173 | J115: 1876.524118 | K115: C-8
B116: Switchgear - Ground Level - Planned | C116: Repex | D116: AP.3.1.03 | E116: ='Proposed NW Proj Direct Costs'!E116 -> 2982.525564 | F116: ='Proposed NW Proj Direct Costs'!F116 -> 2982.525564 | G116: ='Proposed NW Proj Direct Costs'!G116 -> 2982.525564 | H116: ='Proposed NW Proj Direct Costs'!H116 -> 2982.525564 | I116: ='Proposed NW Proj Direct Costs'!I116 -> 2982.525564 | J116: 14912.62782 | K116: C-8
B117: Instrument Transformers (CTs & VTs) | C117: Repex | D117: AP.3.2.02 | E117: ='Proposed NW Proj Direct Costs'!E117 -> 487.6215661 | F117: ='Proposed NW Proj Direct Costs'!F117 -> 575.2182546 | G117: ='Proposed NW Proj Direct Costs'!G117 -> 541.4309604 | H117: ='Proposed NW Proj Direct Costs'!H117 -> 541.4309604 | I117: ='Proposed NW Proj Direct Costs'!I117 -> 541.4309604 | J117: 2687.132702 | K117: C-8
B118: Protection Compliance (Primary&Backup) | C118: Augex | D118: AP.3.2.14 | E118: ='Proposed NW Proj Direct Costs'!E118 -> 897.0373009 | F118: ='Proposed NW Proj Direct Costs'!F118 -> 1190.564295 | G118: ='Proposed NW Proj Direct Costs'!G118 -> 1190.564295 | H118: ='Proposed NW Proj Direct Costs'!H118 -> 1184.267234 | I118: ='Proposed NW Proj Direct Costs'!I118 -> 897.0373009 | J118: 5359.470426 | K118: C-7
B119: Network Protection Substation Audits | C119: Augex | D119: Historic | E119: ='Proposed NW Proj Direct Costs'!E119 -> 250.2762529 | F119: ='Proposed NW Proj Direct Costs'!F119 -> 250.2762529 | G119: ='Proposed NW Proj Direct Costs'!G119 -> 250.2762529 | H119: ='Proposed NW Proj Direct Costs'!H119 -> 250.2762529 | I119: ='Proposed NW Proj Direct Costs'!I119 -> 250.2762529 | J119: 1251.381264 | K119: C-7
B120: CBD 33kV Substation Migration to 11kV | C120: Augex | D120: AP.2.1.07 | E120: ='Proposed NW Proj Direct Costs'!E120 -> 1341.799714 | F120: ='Proposed NW Proj Direct Costs'!F120 -> 1341.799714 | G120: ='Proposed NW Proj Direct Costs'!G120 -> 1341.799714 | H120: ='Proposed NW Proj Direct Costs'!H120 -> 1341.799714 | I120: ='Proposed NW Proj Direct Costs'!I120 -> 1341.799714 | J120: 6708.998569 | K120: C-7
B121: Planned & Unplanned Disconnector Repl | C121: Repex | D121: AP.3.2.17 | E121: ='Proposed NW Proj Direct Costs'!E121 -> 383.7569211 | F121: ='Proposed NW Proj Direct Costs'!F121 -> 383.7569211 | G121: ='Proposed NW Proj Direct Costs'!G121 -> 372.4944897 | H121: ='Proposed NW Proj Direct Costs'!H121 -> 361.2320584 | I121: ='Proposed NW Proj Direct Costs'!I121 -> 361.2320584 | J121: 1862.472449 | K121: C-8
B122: Substations rebuilds at BHP Ardrossan, Quorn & Burra substations. Kleins Point & Walkers Flat substation rebuilds + Wilmington (19672) | C122: Repex | D122: AP.3.2.12 | E122: ='Proposed NW Proj Direct Costs'!E122 -> 1673.906024 | F122: ='Proposed NW Proj Direct Costs'!F122 -> 1673.906024 | G122: ='Proposed NW Proj Direct Costs'!G122 -> 1673.906024 | H122: ='Proposed NW Proj Direct Costs'!H122 -> 1673.906024 | I122: ='Proposed NW Proj Direct Costs'!I122 -> 1673.906024 | J122: 8369.530121 | K122: C-8
B123: CBD Pilot Cable replacement program | C123: Repex | E123: ='Proposed NW Proj Direct Costs'!E123 -> 498.7590909 | F123: ='Proposed NW Proj Direct Costs'!F123 -> 0 | G123: ='Proposed NW Proj Direct Costs'!G123 -> 0 | H123: ='Proposed NW Proj Direct Costs'!H123 -> 0 | I123: ='Proposed NW Proj Direct Costs'!I123 -> 0 | J123: 498.7590909 | K123: C-8
B125: Bushfire
B126: Bushfire Risk Reduction | C126: Augex | D126: B Case | E126: ='Proposed NW Proj Direct Costs'!E126 -> 2031.408919 | F126: ='Proposed NW Proj Direct Costs'!F126 -> 2000.124388 | G126: ='Proposed NW Proj Direct Costs'!G126 -> 2018.895107 | H126: ='Proposed NW Proj Direct Costs'!H126 -> 1993.867481 | I126: ='Proposed NW Proj Direct Costs'!I126 -> 1981.353669 | J126: =SUM(E126:I126) -> 10025.64956 | K126: C-18
B128: Repex Sub-total | C128: Repex | E128: =SUM(E106:E108,E111:E112,E114:E117,E121:E123) -> 10609.73563 | F128: =SUM(F106:F108,F111:F112,F114:F117,F121:F123) -> 10294.65201 | G128: 9918.477045 | H128: 10321.12116 | I128: 10746.06686 | J128: 51890.05271 | K128: =K123 -> C-8
B129: Augex Sub-total | C129: Augex | E129: =SUM(E109:E110,E113,E118:E120,) -> 5617.566429 | F129: =SUM(F109:F110,F113,F118:F120,) -> 5911.093423 | G129: =SUM(G109:G110,G113,G118:G120,) -> 5911.093423 | H129: =SUM(H109:H110,H113,H118:H120,) -> 5904.796362 | I129: =SUM(I109:I110,I113,I118:I120,) -> 5617.566429 | J129: 28962.11607 | K129: =K120 -> C-7
B131: Safety (Total) | D131: Total | E131: =E126+E128+E129+E130 -> 18258.71098 | F131: 18205.86982 | G131: 17848.46557 | H131: 18219.78501 | I131: 18344.98696 | J131: 90877.81834
A132: Network ("Strategic" category)
B133: Substations CM equip | C133: Augex | D133: AMP 3.0.01 | E133: ='Proposed NW Proj Direct Costs'!E133 -> 250.2762529 | F133: ='Proposed NW Proj Direct Costs'!F133 -> 250.2762529 | G133: ='Proposed NW Proj Direct Costs'!G133 -> 250.2762529 | H133: ='Proposed NW Proj Direct Costs'!H133 -> 250.2762529 | I133: ='Proposed NW Proj Direct Costs'!I133 -> 250.2762529 | J133: =SUM(E133:I133) -> 1251.381264 | K133: C-15
B135: Network - Strategic (Total) | D135: Total | E135: =SUM(E133:E134) -> 250.2762529 | F135: 250.2762529 | G135: 250.2762529 | H135: 250.2762529 | I135: 250.2762529 | J135: 1251.381264 | K135: =K133 -> C-15
A136: Network Control
B137: SCADA to remaining substations | C137: Augex | D137: AP.2.1.02 | E137: ='Proposed NW Proj Direct Costs'!E137 -> 0 | F137: ='Proposed NW Proj Direct Costs'!F137 -> 0 | G137: ='Proposed NW Proj Direct Costs'!G137 -> 0 | H137: ='Proposed NW Proj Direct Costs'!H137 -> 0 | I137: ='Proposed NW Proj Direct Costs'!I137 -> 0 | J137: =SUM(E137:I137) -> 0 | K137: C-15
B138: Network Data Capture | C138: Augex | D138: Historic | E138: ='Proposed NW Proj Direct Costs'!E138 -> 500.5525058 | F138: ='Proposed NW Proj Direct Costs'!F138 -> 500.5525058 | G138: ='Proposed NW Proj Direct Costs'!G138 -> 500.5525058 | H138: ='Proposed NW Proj Direct Costs'!H138 -> 500.5525058 | I138: ='Proposed NW Proj Direct Costs'!I138 -> 500.5525058 | J138: 2502.762529 | K138: C-15
B139: SCADA Improvement Project (inc TDU & RTU) | C139: Augex | D139: AP.2.1.02 | E139: ='Proposed NW Proj Direct Costs'!E139 -> 724.1326251 | F139: ='Proposed NW Proj Direct Costs'!F139 -> 724.1326251 | G139: ='Proposed NW Proj Direct Costs'!G139 -> 724.1326251 | H139: ='Proposed NW Proj Direct Costs'!H139 -> 724.1326251 | I139: ='Proposed NW Proj Direct Costs'!I139 -> 724.1326251 | J139: 3620.663125 | K139: C-15
B140: SCADA Data Concentrator | C140: Augex | D140: AP.2.1.02 | E140: ='Proposed NW Proj Direct Costs'!E140 -> 0 | F140: ='Proposed NW Proj Direct Costs'!F140 -> 223.1629922 | G140: ='Proposed NW Proj Direct Costs'!G140 -> 223.1629922 | H140: ='Proposed NW Proj Direct Costs'!H140 -> 0 | I140: ='Proposed NW Proj Direct Costs'!I140 -> 0 | J140: 446.3259843 | K140: C-15
B141: Low Voltage Management | C141: Augex | D141: B Case | E141: ='Proposed NW Proj Direct Costs'!E141 -> 5315.558922 | F141: ='Proposed NW Proj Direct Costs'!F141 -> 7948.989747 | G141: ='Proposed NW Proj Direct Costs'!G141 -> 5862.143799 | H141: ='Proposed NW Proj Direct Costs'!H141 -> 5352.081874 | I141: ='Proposed NW Proj Direct Costs'!I141 -> 3478.076581 | J141: 27956.85092 | K141: C-15
B142: OMS Replacement Project | C142: Non-network | D142: AP.2.1.02 | E142: ='Proposed NW Proj Direct Costs'!E142 -> 0 | F142: ='Proposed NW Proj Direct Costs'!F142 -> 0 | G142: ='Proposed NW Proj Direct Costs'!G142 -> 0 | H142: ='Proposed NW Proj Direct Costs'!H142 -> 0 | I142: ='Proposed NW Proj Direct Costs'!I142 -> 0 | J142: 0 | K142: C-15
B143: ADMS/OMS Hardware Upgrade | C143: Non-network | D143: AP.2.1.02 | E143: ='Proposed NW Proj Direct Costs'!E143 -> 1556.633429 | F143: ='Proposed NW Proj Direct Costs'!F143 -> 10.07529728 | G143: ='Proposed NW Proj Direct Costs'!G143 -> 10.07529728 | H143: ='Proposed NW Proj Direct Costs'!H143 -> 1556.633429 | I143: ='Proposed NW Proj Direct Costs'!I143 -> 1556.633429 | J143: 4690.050882 | K143: C-15
B144: ADMS/OMS Software Upgrade | C144: Non-network | D144: AP.2.1.02 | E144: ='Proposed NW Proj Direct Costs'!E144 -> 1399.206909 | F144: ='Proposed NW Proj Direct Costs'!F144 -> 0 | G144: ='Proposed NW Proj Direct Costs'!G144 -> 0 | H144: ='Proposed NW Proj Direct Costs'!H144 -> 1551.595781 | I144: ='Proposed NW Proj Direct Costs'!I144 -> 3103.191561 | J144: 6053.994251 | K144: C-15
C145: Non-network | E145: ='Proposed NW Proj Direct Costs'!E145 -> -2955.840339 | F145: ='Proposed NW Proj Direct Costs'!F145 -> -10.07529728 | G145: ='Proposed NW Proj Direct Costs'!G145 -> -10.07529728 | H145: ='Proposed NW Proj Direct Costs'!H145 -> -3108.22921 | I145: ='Proposed NW Proj Direct Costs'!I145 -> -4659.82499 | J145: -10744.04513 | K145: C-15
B147: Network Control (Total) | D147: Total | E147: =SUM(E137:E146) -> 6540.244052 | F147: 9396.83787 | G147: 7309.991922 | H147: 6576.767005 | I147: 4702.761712 | J147: 34526.60256 | K147: =K141 -> C-15
A148: PLEC
B149: PLEC - Non-Specific (gross) | C149: Augex | E149: ='Proposed NW Proj Direct Costs'!E149 -> 9593.923028 | F149: ='Proposed NW Proj Direct Costs'!F149 -> 9593.923028 | G149: ='Proposed NW Proj Direct Costs'!G149 -> 9593.923028 | H149: ='Proposed NW Proj Direct Costs'!H149 -> 9593.923028 | I149: ='Proposed NW Proj Direct Costs'!I149 -> 9593.923028 | J149: =SUM(E149:I149) -> 47969.61514 | K149: C-10
B151: PLEC (Total) | D151: Total | E151: =SUM(E149:E150) -> 9593.923028 | F151: 9593.923028 | G151: 9593.923028 | H151: 9593.923028 | I151: 9593.923028 | J151: =SUM(J149:J150) -> 47969.61514 | K151: =K149 -> C-10
A152: Customer Contributions
B153: Customer Connect <$30k | C153: Connections | D153: AP.7.1.01 | E153: ='Proposed NW Proj Direct Costs'!E153 -> 4792.62425 | F153: ='Proposed NW Proj Direct Costs'!F153 -> 5232.88799 | G153: ='Proposed NW Proj Direct Costs'!G153 -> 5356.729055 | H153: ='Proposed NW Proj Direct Costs'!H153 -> 5123.517842 | I153: ='Proposed NW Proj Direct Costs'!I153 -> 4661.736959 | J153: =SUM(E153:I153) -> 25167.4961 | K153: C-4
B154: Customer Connect >$30k<$100k | C154: Connections | D154: AP.7.1.01 | E154: ='Proposed NW Proj Direct Costs'!E154 -> 6647.616271 | F154: ='Proposed NW Proj Direct Costs'!F154 -> 7097.903715 | G154: ='Proposed NW Proj Direct Costs'!G154 -> 7275.87438 | H154: ='Proposed NW Proj Direct Costs'!H154 -> 7132.798102 | I154: ='Proposed NW Proj Direct Costs'!I154 -> 6920.789436 | J154: 35074.9819 | K154: C-4
B155: Customer Projects >$100k | C155: Connections | D155: AP.7.1.01 | E155: ='Proposed NW Proj Direct Costs'!E155 -> 20463.01493 | F155: ='Proposed NW Proj Direct Costs'!F155 -> 19290.82884 | G155: ='Proposed NW Proj Direct Costs'!G155 -> 22776.11108 | H155: ='Proposed NW Proj Direct Costs'!H155 -> 20178.14313 | I155: ='Proposed NW Proj Direct Costs'!I155 -> 19749.96976 | J155: 102458.0677 | K155: C-4
B156: URDs | C156: Connections | D156: AP.7.1.01 | E156: ='Proposed NW Proj Direct Costs'!E156 -> -2447.220838 | F156: ='Proposed NW Proj Direct Costs'!F156 -> -1643.45171 | G156: ='Proposed NW Proj Direct Costs'!G156 -> -1107.605625 | H156: ='Proposed NW Proj Direct Costs'!H156 -> -1643.45171 | I156: ='Proposed NW Proj Direct Costs'!I156 -> -2545.741038 | J156: -9387.470923 | K156: C-4
B157: PLEC | C157: Augex | D157: AP.7.1.01 | E157: ='Proposed NW Proj Direct Costs'!E157 -> 2234.21031 | F157: ='Proposed NW Proj Direct Costs'!F157 -> 2234.21031 | G157: ='Proposed NW Proj Direct Costs'!G157 -> 2234.21031 | H157: ='Proposed NW Proj Direct Costs'!H157 -> 2234.21031 | I157: ='Proposed NW Proj Direct Costs'!I157 -> 2234.21031 | J157: 11171.05155 | K157: C-4
B158: Gifting | C158: Connections | D158: NA | E158: ='Proposed NW Proj Direct Costs'!E158 -> 24738.08395 | F158: ='Proposed NW Proj Direct Costs'!F158 -> 24738.08395 | G158: ='Proposed NW Proj Direct Costs'!G158 -> 24738.08395 | H158: ='Proposed NW Proj Direct Costs'!H158 -> 24738.08395 | I158: ='Proposed NW Proj Direct Costs'!I158 -> 24738.08395 | J158: =SUM(E158:I158) -> 123690.4198 | K158: C-4
B159: Recoverable Works Contribution | C159: Repex | D159: NA | E159: ='Proposed NW Proj Direct Costs'!E159 -> 3244.343886 | F159: ='Proposed NW Proj Direct Costs'!F159 -> 3244.343886 | G159: ='Proposed NW Proj Direct Costs'!G159 -> 3244.343886 | H159: ='Proposed NW Proj Direct Costs'!H159 -> 3244.343886 | I159: ='Proposed NW Proj Direct Costs'!I159 -> 3244.343886 | J159: =SUM(E159:I159) -> 16221.71943 | K159: C-4
B160: Embedded Generation Contribution | C160: Connections | D160: NA | E160: ='Proposed NW Proj Direct Costs'!E160 -> 3467.581705 | F160: ='Proposed NW Proj Direct Costs'!F160 -> 3467.581705 | G160: ='Proposed NW Proj Direct Costs'!G160 -> 3467.581705 | H160: ='Proposed NW Proj Direct Costs'!H160 -> 3467.581705 | I160: ='Proposed NW Proj Direct Costs'!I160 -> 3467.581705 | J160: 17337.90853 | K160: C-4
B163: Customer Contributions (Total) | D163: Total | E163: =SUM(E153:E162) -> 63140.25447 | F163: 63662.38869 | G163: 67985.32875 | H163: 64475.22722 | I163: 62470.97497 | J163: 321734.1741 | K163: =K160 -> C-4
A164: Network
B165: Total (gross) - incl Gifting | E165: =SUM(E151,E147,E135,E131,E104,E98,E33,E25,E17) -> 288264.2491 | F165: 294827.5775 | G165: 298905.5105 | H165: 290126.3081 | I165: 280820.4264 | J165: 1452944.071
B166: Total (net) | E166: =E165-E163 -> 225123.9946 | F166: 231165.1888 | G166: =G165-G163 -> 230920.1817 | H166: 225651.0808 | I166: =I165-I163 -> 218349.4514 | J166: =SUM(E166:I166) -> 1131209.897

Sheet Non Network Base Capex
B2: Direct Costs (IT cost do not attract Overheads) | C2: $2017-18 ($'000) | D2: Revised Proposal | K2: AER Draft Decision
B3: SAPN Business Case | C3: CA RIN Capex By Purpose | D3: 2020/21 | E3: 2021/22 | F3: 2022/23 | G3: 2023/24 | H3: 2024/25 | I3: Total | K3: 2020/21 | L3: 2021/22 | M3: 2022/23 | N3: 2023/24 | O3: 2024/25 | P3: Total
B4: IT Recurrent
B5: Maintain current levels of service and risk: maintain service | D5: =SUM(D6:D12) -> 27299.00723 | E5: =SUM(E6:E12) -> 35266.68132 | F5: 25426.73032 | G5: 23150.17742 | H5: 25014.42571 | I5: 136157.022 | K5: =SUM(K6:K12) -> 27299.00723 | L5: =SUM(L6:L12) -> 35266.68132 | M5: 25426.73032 | N5: 23150.17742 | O5: 25014.42571 | P5: 136157.022
B6: IT Applications Refresh | C6: Asset Replacement | D6: 13522.20568 | E6: 14053.22608 | F6: 12074.54228 | G6: 10880.22003 | H6: 12837.65181 | I6: =SUM(D6:H6) -> 63367.84589 | K6: 13522.20568 | L6: 14053.22608 | M6: 12074.54228 | N6: 10880.22003 | O6: 12837.65181 | P6: =SUM(K6:O6) -> 63367.84589
B7: IT Applications Refresh | C7: Asset Remediation | D7: 786.8352223 | E7: 751.9616391 | F7: 479.5117698 | G7: 479.5117698 | H7: 479.5117698 | I7: 2977.332171 | K7: 786.8352223 | L7: 751.9616391 | M7: 479.5117698 | N7: 479.5117698 | O7: 479.5117698 | P7: 2977.332171
B8: IT Applications Refresh | C8: Asset Extension | D8: 697.4716652 | E8: 697.4716652 | F8: 697.4716652 | G8: 697.4716652 | H8: 697.4716652 | I8: 3487.358326 | K8: 697.4716652 | L8: 697.4716652 | M8: 697.4716652 | N8: 697.4716652 | O8: 697.4716652 | P8: 3487.358326
B9: Client Device Refresh | C9: Asset Replacement | D9: 4423.597129 | E9: 5512.249058 | F9: 5108.637838 | G9: 4102.917342 | H9: 4098.022798 | I9: 23245.42416 | K9: 4423.597129 | L9: 5512.249058 | M9: 5108.637838 | N9: 4102.917342 | O9: 4098.022798 | P9: 23245.42416
B10: Cyber Security | C10: Asset Extension | D10: 2089.155283 | E10: 2193.613047 | F10: 2303.293699 | G10: 2418.458384 | H10: 2539.381304 | I10: 11543.90172 | K10: 2089.155283 | L10: 2193.613047 | M10: 2303.293699 | N10: 2418.458384 | O10: 2539.381304 | P10: 11543.90172
B11: IT Infrastructure Refresh | C11: Asset Replacement | D11: 5179.266725 | E11: 11370.86044 | F11: 4153.258226 | G11: 4018.168313 | H11: 3745.635843 | I11: 28467.18955 | K11: 5179.266725 | L11: 11370.86044 | M11: 4153.258226 | N11: 4018.168313 | O11: 3745.635843 | P11: 28467.18955
B12: IT Management, Risk and Governance | C12: Asset Replacement | D12: 600.4755189 | E12: 687.2993889 | F12: 610.0148389 | G12: 553.4299189 | H12: 616.7505189 | I12: 3067.970184 | K12: 600.4755189 | L12: 687.2993889 | M12: 610.0148389 | N12: 553.4299189 | O12: 616.7505189 | P12: 3067.970184
B13: IT Recurrent Total | D13: =D5 -> 27299.00723 | E13: =E5 -> 35266.68132 | F13: 25426.73032 | G13: 23150.17742 | H13: 25014.42571 | I13: =I5 -> 136157.022 | K13: =K5 -> 27299.00723 | L13: =L5 -> 35266.68132 | M13: 25426.73032 | N13: 23150.17742 | O13: 25014.42571 | P13: =P5 -> 136157.022
B14: IT Non-recurrent
B15: Maintain current levels of service and manage risk: Major upgrades and replacements | D15: =SUM(D16:D18) -> 24216.1705 | E15: =SUM(E16:E18) -> 9584.820126 | F15: 13176.17132 | G15: 4397.641385 | H15: 1593.454219 | I15: 52968.25755 | K15: =SUM(K16:K18) -> 19532.51097 | L15: =SUM(L16:L18) -> 5960.470068 | M15: 2591.453277 | N15: 255.948462 | O15: 0 | P15: 28340.38278
B16: CRM & Billing Completion | C16: Asset Replacement | D16: 19532.51097 | E16: 5960.470068 | F16: 0 | G16: 0 | H16: 0 | I16: =SUM(D16:H16) -> 25492.98104 | K16: 19532.51097 | L16: 5960.470068 | M16: 0 | N16: 0 | O16: 0 | P16: =SUM(K16:O16) -> 25492.98104
B17: Network Protection Settings System Replacement | C17: Asset Replacement | D17: 0 | E17: 0 | F17: 2591.453277 | G17: 255.948462 | H17: 0 | I17: 2847.401739 | K17: 0 | L17: 0 | M17: 2591.453277 | N17: 255.948462 | O17: 0 | P17: 2847.401739
B18: SAP Upgrade | C18: Asset Replacement | D18: 4683.659536 | E18: 3624.350058 | F18: 10584.71804 | G18: 4141.692923 | H18: 1593.454219 | I18: 24627.87478 | K18: 0 | L18: 0 | M18: 0 | N18: 0 | O18: 0 | P18: 0
B19: Maintain compliance | D19: =SUM(D20:D22) -> 7243.695164 | E19: =SUM(E20:E22) -> 5948.663318 | F19: =SUM(F20:F22) -> 2367.360458 | G19: =SUM(G20:G22) -> 1057.664597 | H19: =SUM(H20:H22) -> 0 | I19: =SUM(I20:I22) -> 16617.38354 | K19: =SUM(K20:K22) -> 4756.508 | L19: =SUM(L20:L22) -> 2955.9686 | M19: 0 | N19: 0 | O19: 0 | P19: =SUM(P20:P22) -> 7712.4766
B20: Five Minute Settlement Rule | C20: Asset Extension | D20: 4756.508 | E20: 2955.9686 | F20: 0 | G20: 0 | H20: 0 | I20: =SUM(D20:H20) -> 7712.4766 | K20: 4756.508 | L20: 2955.9686 | M20: 0 | N20: 0 | O20: 0 | P20: =SUM(K20:O20) -> 7712.4766
B21: Ring-fencing Compliance: IT Solution | C21: Asset Extension | D21: 2487.187164 | E21: 1267.924056 | F21: 0 | G21: 0 | H21: 0 | I21: 3755.11122 | K21: 0 | L21: 0 | M21: 0 | N21: 0 | O21: 0 | P21: 0
B22: Utilities Cyber Uplift | C22: Asset Extension | D22: 0 | E22: 1724.770662 | F22: 2367.360458 | G22: 1057.664597 | H22: 0 | I22: 5149.795718 | K22: 0 | L22: 0 | M22: 0 | N22: 0 | O22: 0 | P22: =SUM(K22:O22) -> 0
B23: Manage business and network costs through efficient use of data and digital technology | D23: =SUM(D24:D27) -> 9018.249835 | E23: 15822.8664 | F23: 4282.5167 | G23: 11753.70301 | H23: 11656.4045 | I23: 52533.74044 | K23: =SUM(K24:K27) -> 2325.6107 | L23: 6277.9402 | M23: 4282.5167 | N23: 856.27549 | O23: 94.59459459 | P23: 13836.93768
B24: Assets and Work Program | C24: Asset Extension | D24: 6692.639135 | E24: 9544.926195 | F24: 0 | G24: 9739.508142 | H24: 10807.3857 | I24: =SUM(D24:H24) -> 36784.45918 | K24: 0 | L24: 0 | M24: 0 | N24: 0 | O24: 0 | P24: =SUM(K24:O24) -> 0
B25: Assets and Work Program | C25: Capability Growth | D25: 0 | E25: 0 | F25: 0 | G25: 1157.919378 | H25: 754.4242069 | I25: 1912.343585 | K25: 0 | L25: 0 | M25: 0 | N25: 0 | O25: 0 | P25: 0
B26: GIS Consolidation | C26: Asset Replacement | D26: 2325.6107 | E26: 6277.9402 | F26: 4282.5167 | G26: 856.27549 | H26: 94.59459459 | I26: 13836.93768 | K26: 2325.6107 | L26: 6277.9402 | M26: 4282.5167 | N26: 856.27549 | O26: 94.59459459 | P26: 13836.93768
B27: Worker safety: Fatigue Risk Management | C27: Capability Growth | D27: 0 | E27: 0 | F27: 0 | G27: 0 | H27: 0 | I27: 0 | K27: 0 | L27: 0 | M27: 0 | N27: 0 | O27: 0 | P27: 0
B28: IT Non-recurrent Total | D28: =SUM(D15,D19,D23) -> 40478.1155 | E28: 31356.34984 | F28: 19826.04848 | G28: 17209.00899 | H28: 13249.85872 | I28: 122119.3815 | K28: =SUM(K15,K19,K23) -> 26614.62967 | L28: 15194.37887 | M28: 6873.969977 | N28: 1112.223952 | O28: 94.59459459 | P28: 49889.79706
B29: Grand Total | D29: =SUM(D13,D28) -> 67777.12273 | E29: 66623.03116 | F29: 45252.7788 | G29: 40359.18641 | H29: 38264.28443 | I29: 258276.4035 | K29: =SUM(K13,K28) -> 53913.6369 | L29: 50461.06019 | M29: 32300.7003 | N29: 24262.40137 | O29: 25109.0203 | P29: 186046.8191
C32: Consolidated (As Per RIN Workbook 1)
C33: Asset Replacement | D33: =SUMIFS(D$6:D$27,$C$6:$C$27,$C33) -> 50267.32626 | E33: 47486.3953 | F33: 39405.14121 | G33: 24808.65248 | H33: 22986.10978 | I33: 184953.625 | K33: =SUMIFS(K$6:K$27,$C$6:$C$27,$C33) -> 45583.66673 | L33: 43862.04524 | M33: 28820.42316 | N33: 20666.95956 | O33: 21392.65556 | P33: 160325.7502
C34: Asset Remediation | D34: 786.8352223 | E34: 751.9616391 | F34: 479.5117698 | G34: 479.5117698 | H34: 479.5117698 | I34: 2977.332171 | K34: 786.8352223 | L34: 751.9616391 | M34: 479.5117698 | N34: 479.5117698 | O34: 479.5117698 | P34: 2977.332171
C35: Asset Extension | D35: 16722.96125 | E35: 18384.67423 | F35: 5368.125823 | G35: 13913.10279 | H35: 14044.23867 | I35: 68433.10276 | K35: 7543.134948 | L35: 5847.053312 | M35: 3000.765365 | N35: 3115.93005 | O35: 3236.852969 | P35: 22743.73664
C36: Capability Growth | D36: 0 | E36: 0 | F36: 0 | G36: 1157.919378 | H36: 754.4242069 | I36: 1912.343585 | K36: 0 | L36: 0 | M36: 0 | N36: 0 | O36: 0 | P36: 0
D37: =SUM(D33:D36) -> 67777.12273 | E37: =SUM(E33:E36) -> 66623.03116 | F37: 45252.7788 | G37: 40359.18641 | H37: 38264.28443 | I37: 258276.4035 | K37: =SUM(K33:K36) -> 53913.6369 | L37: =SUM(L33:L36) -> 50461.06019 | M37: 32300.7003 | N37: 24262.40137 | O37: 25109.0203 | P37: 186046.8191
B39: Direct Costs (Non-network cost do not attract Overheads) | C39: $2017-18 ($'000) | D39: Revised Proposal | K39: AER Draft Decision
B40: Baseline Direct Expenditure : $2017-18 ($'000) | D40: 2020/21 | E40: 2021/22 | F40: 2022/23 | G40: 2023/24 | H40: 2024/25 | I40: Total | K40: 2020/21 | L40: 2021/22 | M40: 2022/23 | N40: 2023/24 | O40: 2024/25 | P40: Total
B41: Heavy Vehicle Fleet - 15yrs | C41: C-19 | D41: 3355 | E41: 7690 | F41: 5840 | G41: 4675 | H41: 5445 | I41: =SUM(D41:H41) -> 27005 | K41: 4818.998257 | L41: 8900.721913 | M41: 7074.771475 | N41: 7772.883119 | O41: 5621.661631 | P41: =SUM(K41:O41) -> 34189.0364
B42: Heavy Vehicle Fleet - 10yrs | C42: C-20 | D42: 3601.445 | E42: 2973.14 | F42: 4695.525 | G42: 10586.825 | H42: 7906.107 | I42: 29763.042 | K42: 1633.766855 | L42: 1336.718336 | M42: 1782.291115 | N42: 4158.679268 | O42: 2376.388153 | P42: =SUM(K42:O42) -> 11287.84373
B43: Light Vehicle Fleet | C43: C-21 | D43: 5074.901 | E43: 6264.500433 | F43: 11163.25047 | G43: 8187.592389 | H43: 5324.231193 | I43: 36014.47549 | K43: 4872.130697 | L43: 5689.262349 | M43: 9201.959549 | N43: 7156.861682 | O43: 3632.513759 | P43: 30552.72804
B44: Plant and Tools | C44: C-22 | D44: 5096.733333 | E44: 4245.733333 | F44: 3485.233333 | G44: 3220.4 | H44: 3712.4 | I44: 19760.5 | K44: 5096.733333 | L44: 4245.733333 | M44: 3485.233333 | N44: 3220.4 | O44: 3712.4 | P44: 19760.5
B45: Property | C45: C-24 | D45: 8788.433471 | E45: 9225.358232 | F45: 9662.282994 | G45: 10099.20775 | H45: 10536.13252 | I45: 48311.41497 | P45: 0
B46: Superannuation | C46: C-28 | D46: =K88 -> -6141.256585 | E46: =L88 -> -6141.256585 | F46: -6141.256585 | G46: -6141.256585 | H46: -6141.256585 | I46: -30706.28293 | K46: -6939.995 | L46: -6939.995 | M46: -6939.995 | N46: -6939.995 | O46: -6939.995 | P46: -34699.975
B47: Operational Information Technology | C47: C-29 | D47: =D56 -> 4446.144727 | E47: =E56 -> 2193.056374 | F47: 2402.9584 | G47: 4598.533599 | H47: 6003.197961 | I47: 19643.89106 | K47: =K56 -> 1490.469652 | L47: =L56 -> 2183.223919 | M47: 2393.150118 | N47: 1490.469962 | O47: 1343.521257 | P47: =SUM(K47:O47) -> 8900.834907
B48: Total Non-Network | D48: =SUM(D29,D41:D47) -> 91998.52368 | E48: =SUM(E29,E41:E47) -> 93073.56295 | F48: 76360.77241 | G48: 75585.48857 | H48: 71050.09651 | I48: =SUM(D48:H48) -> 408068.4441 | K48: =SUM(K29,K41:K47) -> 64885.74069 | L48: =SUM(L29,L41:L47) -> 65876.72504 | M48: 49298.11089 | N48: 41121.70041 | O48: 34855.5101 | P48: =SUM(K48:O48) -> 256037.7871
B50: =B47 -> Operational Information Technology | C50: =C47 -> C-29 | D50: Revised Proposal | K50: AER Draft Decision
B51: Project ($2017-2018) | D51: 2020-21 | E51: 2021-22 | F51: 2022-23 | G51: 2023-24 | H51: 2024-25 | I51: Total | K51: 2020-21 | L51: 2021-22 | M51: 2022-23 | N51: 2023-24 | O51: 2024-25 | P51: Total
B52: TNC Management | D52: ='Proposed NW Proj Direct Costs'!E93 -> 293.8628372 | E52: ='Proposed NW Proj Direct Costs'!F93 -> 713.6668904 | F52: ='Proposed NW Proj Direct Costs'!G93 -> 776.6374984 | G52: ='Proposed NW Proj Direct Costs'!H93 -> 356.8334452 | H52: ='Proposed NW Proj Direct Costs'!I93 -> 356.8334452 | I52: =SUM(D52:H52) -> 2497.834117 | K52: 293.8954622 | L52: 713.7464534 | M52: 776.7242001 | N52: 356.8729272 | O52: 356.8727787 | P52: =SUM(K52:O52) -> 2498.111822
B53: UPAX/Business telephone network | D53: ='Proposed NW Proj Direct Costs'!E84 -> 692.6766878 | E53: ='Proposed NW Proj Direct Costs'!F84 -> 125.941216 | F53: ='Proposed NW Proj Direct Costs'!G84 -> 230.8922293 | G53: ='Proposed NW Proj Direct Costs'!H84 -> 503.7648638 | H53: ='Proposed NW Proj Direct Costs'!I84 -> 398.8138505 | I53: =SUM(D53:H53) -> 1952.088847 | K53: 692.7535254 | L53: 125.9545721 | M53: 230.917861 | N53: 503.8207074 | O53: 398.8577076 | P53: =SUM(K53:O53) -> 1952.304373
B54: OT security | D54: ='Proposed NW Proj Direct Costs'!E94 -> 503.7648638 | E54: ='Proposed NW Proj Direct Costs'!F94 -> 1343.37297 | F54: ='Proposed NW Proj Direct Costs'!G94 -> 1385.353376 | G54: ='Proposed NW Proj Direct Costs'!H94 -> 629.7060798 | H54: ='Proposed NW Proj Direct Costs'!I94 -> 587.7256745 | I54: 4449.922964 | K54: 503.820664 | L54: 1343.522894 | M54: 1385.508057 | N54: 629.7763274 | O54: 587.7907706 | P54: 4450.418712
B55: ADMS/OMS upgrade | D55: =SUM('Proposed NW Proj Direct Costs'!E142:E144) -> 2955.840339 | E55: =SUM('Proposed NW Proj Direct Costs'!F142:F144) -> 10.07529728 | F55: =SUM('Proposed NW Proj Direct Costs'!G142:G144) -> 10.07529728 | G55: =SUM('Proposed NW Proj Direct Costs'!H142:H144) -> 3108.22921 | H55: =SUM('Proposed NW Proj Direct Costs'!I142:I144) -> 4659.82499 | I55: 10744.04513 | P55: 0
B56: Total | D56: =SUM(D52:D55) -> 4446.144727 | E56: =SUM(E52:E55) -> 2193.056374 | F56: 2402.9584 | G56: 4598.533599 | H56: 6003.197961 | I56: =SUM(I52:I55) -> 19643.89106 | K56: =SUM(K52:K55) -> 1490.469652 | L56: =SUM(L52:L55) -> 2183.223919 | M56: 2393.150118 | N56: 1490.469962 | O56: 1343.521257 | P56: =SUM(P52:P55) -> 8900.834907
K58: CPI | L58: 0.0561399729
K59: OHDs Rate | L59: 0.04391107826
J61: Dollar Impact of General Escalations (C29)
J62: Summary by Cost Category ($m 2017-18) (SEM capex model) | K62: 2020/21 | L62: 2021/22 | M62: 2022/23 | N62: 2023/24 | O62: 2024/25 | P62: Total
J63: Labour | K63: 0.03138697184 | L63: 0.02223187837 | M63: 0.03335086391 | N63: 0.07950285138 | O63: 0.1220589626 | P63: =SUM(K63:O63) -> 0.2885315281
J64: Materials | K64: 0 | L64: 0 | M64: 0 | N64: 0 | O64: 0 | P64: =SUM(K64:O64) -> 0
J65: Contracts | K65: 0.001472860884 | L65: 0.001650730362 | M65: 0.003062856564 | N65: 0.007764673975 | O65: 0.01186734881 | P65: 0.0258184706
J66: Services Other | K66: 0 | L66: 0 | M66: 0 | N66: 0 | O66: 0 | P66: 0
J67: Business Overheads | K67: 0.009672745684 | L67: 0.006851355609 | M67: 0.01027797223 | N67: 0.02450095748 | O67: 0.03761577605 | P67: 0.08891880705
J68: Other | K68: 0 | L68: 0 | M68: 0 | N68: 0 | O68: 0 | P68: 0
J69: Impact of General Escalations ($m 2017-18) (SEM capex model) | K69: =SUM(K63:K68) -> 0.04253257841 | L69: =SUM(L63:L68) -> 0.03073396434 | M69: 0.0466916927 | N69: 0.1117684828 | O69: 0.1715420874 | P69: 0.4032688057
J70: Dollar Impact of General Escalations ($m 2019-20) | K70: =K69*(1+$L$58) -> 0.0449203562 | L70: =L69*(1+$L$58) -> 0.03245936827 | M70: =M69*(1+$L$58) -> 0.04931296306 | N70: =N69*(1+$L$58) -> 0.1180431624 | O70: =O69*(1+$L$58) -> 0.1811724556 | P70: =SUM(K70:O70) -> 0.4259083055
J71: Average General Escalation % | K71: =K79/(K79-K70*10^6)-1 -> 0.008926752092 | L71: =L79/(L79-L70*10^6)-1 -> 0.01342321892 | M71: 0.01861149466 | N71: 0.02328026275 | O71: 0.02737007022
F73: Proposal Source: SAPN, Response to AER Information Request 012 - Question 2, 28 March 2019.
J74: Project ($2019-2020) | K74: 2020-21 | L74: 2021-22 | M74: 2022-23 | N74: 2023-24 | O74: 2024-25 | P74: Total
J75: TNC Management | K75: 326917 | L75: 797480 | M75: 872289 | N75: 402618 | O75: 404227 | P75: =SUM(K75:O75) -> 2803531
J76: UPAX/Business telephone network | K76: 770590 | L76: 140731 | M76: 259329 | N76: 568402 | O76: 451783 | P76: =SUM(K76:O76) -> 2190835
J77: OT security | K77: 560429 | L77: 1501139 | M77: 1555975 | N77: 710503 | O77: 665786 | P77: 4993832
J78: ADMS/OMS upgrade | K78: =3419087+K82 -> 3419089.621 | L78: =11258+L82 -> 11260.21967 | M78: =11316+M82 -> 11317.10575 | N78: =3507044+N82 -> 3507045.512 | O78: =5278739+O82 -> 5278740.386 | P78: 12227452.85
J79: Total | K79: =SUM(K75:K78) -> 5077025.621 | L79: =SUM(L75:L78) -> 2450610.22 | M79: 2698910.106 | N79: 5188568.512 | O79: =SUM(O75:O78) -> 6800536.386 | P79: 22215650.85
J81: SEM capex model reco | K81: =K79-K83 -> 0 | L81: 0 | M81: 0 | N81: 0 | O81: 0 | P81: 0
J82: SEM capex model reco amount | K82: 2.621439273 | L82: 2.219667299 | M82: 1.105754306 | N82: 1.512022089 | O82: 1.386478218 | P82: =SUM(K82:O82) -> 8.845361186
J83: SEM capex model $ 2019-20 | K83: =K84*(1+$L$58)*10^6 -> 5077025.621 | L83: =L84*(1+$L$58)*10^6 -> 2450610.22 | M83: =M84*(1+$L$58)*10^6 -> 2698910.106 | N83: =N84*(1+$L$58)*10^6 -> 5188568.512 | O83: =O84*(1+$L$58)*10^6 -> 6800536.386 | P83: =SUM(K83:O83) -> 22215650.85
J84: SEM capex model $m 2017-18 | K84: 4.807152226 | L84: 2.320346055 | M84: 2.55544736 | N84: 4.912765964 | O84: 6.439048385 | P84: =SUM(K84:O84) -> 21.03475999
K86: 2020/21 | L86: 2021/22 | M86: 2022/23 | N86: 2023/24 | O86: 2024/25 | P86: Total
B87: Superannuation | C87: $2018/19 | K87: -6271.56 | L87: -6271.56 | M87: -6271.56 | N87: -6271.56 | O87: -6271.56 | P87: =SUM(K87:O87) -> -31357.8
C88: $2017/18 | K88: =K87*(1-(113/110.7-1)) -> -6141.256585 | L88: =L87*(1-(113/110.7-1)) -> -6141.256585 | M88: -6141.256585 | N88: -6141.256585 | O88: -6141.256585 | P88: =SUM(K88:O88) -> -30706.28293

Sheet Direct Capex Plus Ohds
C2: $2017-18 ($'000) | D2: Baseline Direct Expenditure | K2: Network Business Overheads - Fixed | R2: Network Business Overheads - Variable | Y2: Network Business Overheads - Total | AF2: Base Capex Including Overheads | AR2: Base Capex Including Overheads
D6: 2020/21 | E6: 2021/22 | F6: 2022/23 | G6: 2023/24 | H6: 2024/25 | I6: TOTAL | K6: =D6 -> 2020/21 | L6: =E6 -> 2021/22 | M6: 2022/23 | N6: 2023/24 | O6: 2024/25 | P6: TOTAL | R6: =D6 -> 2020/21 | S6: 2021/22 | T6: 2022/23 | U6: 2023/24 | V6: 2024/25 | W6: TOTAL | Y6: 2020/21 | Z6: 2021/22 | AA6: 2022/23 | AB6: 2023/24 | AC6: 2024/25 | AD6: TOTAL | AF6: 2020/21 | AG6: 2021/22 | AH6: 2022/23 | AI6: 2023/24 | AJ6: 2024/25 | AK6: TOTAL | AR6: 2020/21 | AS6: 2021/22 | AT6: 2022/23 | AU6: 2023/24 | AV6: 2024/25
A7: C-1 | B7: Repex | C7: Asset Replacement and Refurbishment | D7: ='Network Projects Direct Costs'!E98 -> 110356.8571 | E7: ='Network Projects Direct Costs'!F98 -> 112384.0748 | F7: ='Network Projects Direct Costs'!G98 -> 113905.1252 | G7: ='Network Projects Direct Costs'!H98 -> 110349.2665 | H7: ='Network Projects Direct Costs'!I98 -> 106613.2939 | I7: =SUM(D7:H7) -> 553608.6174 | K7: =K$35*D7/D$30 -> 3309.495309 | L7: =L$35*E7/E$30 -> 3312.263594 | M7: =M$35*F7/F$30 -> 3356.991143 | N7: =N$35*G7/G$30 -> 3299.389228 | O7: =O$35*H7/H$30 -> 3275.107782 | P7: =SUM(K7:O7) -> 16553.24706 | R7: =D7*R$35 -> 2310.368326 | S7: =E7*S$35 -> 2392.555965 | T7: =F7*T$35 -> 2311.148168 | U7: =G7*U$35 -> 2213.338851 | V7: =H7*V$35 -> 2097.923013 | W7: =SUM(R7:V7) -> 11325.33432 | Y7: =SUM(K7,R7) -> 5619.863635 | Z7: =SUM(L7,S7) -> 5704.819559 | AA7: =SUM(M7,T7) -> 5668.139311 | AB7: =SUM(N7,U7) -> 5512.728078 | AC7: =SUM(O7,V7) -> 5373.030795 | AD7: =SUM(Y7:AC7) -> 27878.58138 | AF7: =SUM(D7,Y7) -> 115976.7208 | AG7: =SUM(E7,Z7) -> 118088.8943 | AH7: =SUM(F7,AA7) -> 119573.2645 | AI7: =SUM(G7,AB7) -> 115861.9946 | AJ7: =SUM(H7,AC7) -> 111986.3247 | AK7: =SUM(AF7:AJ7) -> 581487.1988 | AQ7: =A7 -> C-1 | AR7: =AF7 -> 115976.7208 | AS7: =AG7 -> 118088.8943 | AT7: =AH7 -> 119573.2645 | AU7: =AI7 -> 115861.9946 | AV7: =AJ7 -> 111986.3247
A8: C-2 | B8: Augex | C8: Augmentation/Capacity | D8: ='Network Projects Direct Costs'!E17 -> 22553.10837 | E8: ='Network Projects Direct Costs'!F17 -> 22103.88562 | F8: ='Network Projects Direct Costs'!G17 -> 20028.0941 | G8: ='Network Projects Direct Costs'!H17 -> 21139.88678 | H8: ='Network Projects Direct Costs'!I17 -> 21267.13194 | I8: =SUM(D8:H8) -> 107092.1068 | K8: =K$35*D8/D$30 -> 676.3458864 | L8: 651.4614796 | M8: 590.2643485 | N8: 632.0723003 | O8: 653.3157995 | P8: =SUM(K8:O8) -> 3203.459814 | R8: =D8*R$35 -> 472.1590356 | S8: 470.5718625 | T8: 406.3723463 | U8: 424.0148955 | V8: 418.4919526 | W8: =SUM(R8:V8) -> 2191.610093 | Y8: =SUM(K8,R8) -> 1148.504922 | Z8: 1122.033342 | AA8: 996.6366949 | AB8: 1056.087196 | AC8: 1071.807752 | AD8: =SUM(Y8:AC8) -> 5395.069907 | AF8: =SUM(D8,Y8) -> 23701.6133 | AG8: 23225.91896 | AH8: 21024.73079 | AI8: 22195.97397 | AJ8: 22338.93969 | AK8: =SUM(AF8:AJ8) -> 112487.1767 | AQ8: =A8 -> C-2 | AR8: =AF8 -> 23701.6133 | AS8: 23225.91896 | AT8: 21024.73079 | AU8: 22195.97397 | AV8: 22338.93969
A9: C-3 | B9: Connections | C9: Connections | D9: ='Network Projects Direct Costs'!E25 -> 107937.504 | E9: ='Network Projects Direct Costs'!F25 -> 110119.0848 | F9: ='Network Projects Direct Costs'!G25 -> 117196.0092 | G9: ='Network Projects Direct Costs'!H25 -> 111222.7782 | H9: ='Network Projects Direct Costs'!I25 -> 107274.4273 | I9: 553749.8035 | K9: 3236.941249 | L9: 3245.508195 | M9: 3453.979478 | N9: 3325.506802 | O9: 3295.417476 | P9: 16557.3532 | R9: 2259.718125 | S9: 2344.336363 | T9: 2377.920585 | U9: 2230.859379 | V9: 2110.932715 | W9: 11323.76717 | Y9: 5496.659374 | Z9: 5589.844558 | AA9: 5831.900063 | AB9: 5556.366181 | AC9: 5406.350191 | AD9: 27881.12037 | AF9: 113434.1633 | AG9: 115708.9294 | AH9: 123027.9092 | AI9: 116779.1444 | AJ9: 112680.7775 | AK9: 581630.9239 | AQ9: C-3 | AR9: 113434.1633 | AS9: 115708.9294 | AT9: 123027.9092 | AU9: 116779.1444 | AV9: 112680.7775
A10: C-4 | B10: Connections | C10: Contributions | D10: =-'Network Projects Direct Costs'!E163 -> -63140.25447 | E10: =-'Network Projects Direct Costs'!F163 -> -63662.38869 | F10: =-'Network Projects Direct Costs'!G163 -> -67985.32875 | G10: =-'Network Projects Direct Costs'!H163 -> -64475.22722 | H10: =-'Network Projects Direct Costs'!I163 -> -62470.97497 | I10: -321734.1741 | K10: -1893.515105 | L10: -1876.303318 | M10: -2003.651251 | N10: -1927.777836 | O10: -1919.077526 | P10: -9620.325036 | R10: -1321.868417 | S10: -1355.315049 | T10: -1379.430186 | U10: -1293.2168 | V10: -1229.296003 | W10: -6579.126454 | Y10: -3215.383522 | Z10: -3231.618367 | AA10: -3383.081436 | AB10: -3220.994636 | AC10: -3148.373529 | AD10: -16199.45149 | AF10: -66355.63799 | AG10: -66894.00706 | AH10: -71368.41018 | AI10: -67696.22185 | AJ10: -65619.3485 | AK10: -337933.6256 | AQ10: C-4
A11: C-5 | B11: Augex | C11: Reliability | D11: ='Network Projects Direct Costs'!E33 -> 11045.88489 | E11: ='Network Projects Direct Costs'!F33 -> 11045.88489 | F11: ='Network Projects Direct Costs'!G33 -> 11045.88489 | G11: ='Network Projects Direct Costs'!H33 -> 11045.88489 | H11: ='Network Projects Direct Costs'!I33 -> 11045.88489 | I11: 55229.42443 | K11: 331.2553942 | L11: 325.5521964 | M11: 325.5423115 | N11: 330.2665688 | O11: 339.3241334 | P11: 1651.940604 | R11: 231.2503567 | S11: 235.1569635 | T11: 224.1222823 | U11: 221.5536808 | V11: 217.3595362 | W11: 1129.442819 | Y11: 562.5057509 | Z11: 560.7091598 | AA11: 549.6645938 | AB11: 551.8202495 | AC11: 556.6836696 | AD11: 2781.383424 | AF11: 11608.39064 | AG11: 11606.59405 | AH11: 11595.54948 | AI11: 11597.70514 | AJ11: 11602.56856 | AK11: 58010.80786 | AQ11: C-5 | AR11: 11608.39064 | AS11: 11606.59405 | AT11: 11595.54948 | AU11: 11597.70514 | AV11: 11602.56856
A12: C-6 | B12: Augex | C12: Environmental | D12: ='Network Projects Direct Costs'!E104 -> 1727.740399 | E12: ='Network Projects Direct Costs'!F104 -> 1727.740399 | F12: ='Network Projects Direct Costs'!G104 -> 1727.740399 | G12: ='Network Projects Direct Costs'!H104 -> 1727.740399 | H12: ='Network Projects Direct Costs'!I104 -> 1727.740399 | I12: 8638.701996 | K12: 51.81326194 | L12: 50.92119712 | M12: 50.91965098 | N12: 51.65859496 | O12: 53.07533255 | P12: 258.3880375 | R12: 36.17098925 | S12: 36.78204056 | T12: 35.05605259 | U12: 34.65428517 | V12: 33.99825869 | W12: 176.6616263 | Y12: 87.98425119 | Z12: 87.70323768 | AA12: 85.97570357 | AB12: 86.31288013 | AC12: 87.07359123 | AD12: 435.0496638 | AF12: 1815.72465 | AG12: 1815.443637 | AH12: 1813.716103 | AI12: 1814.053279 | AJ12: 1814.81399 | AK12: 9073.75166 | AQ12: C-6 | AR12: 1815.72465 | AS12: 1815.443637 | AT12: 1813.716103 | AU12: 1814.053279 | AV12: 1814.81399
A13: C-7 | B13: Augex | C13: Safety Augex | D13: ='Network Projects Direct Costs'!E129 -> 5617.566429 | E13: ='Network Projects Direct Costs'!F129 -> 5911.093423 | F13: ='Network Projects Direct Costs'!G129 -> 5911.093423 | G13: ='Network Projects Direct Costs'!H129 -> 5904.796362 | H13: ='Network Projects Direct Costs'!I129 -> 5617.566429 | I13: 28962.11607 | K13: 168.4653788 | L13: 174.2159606 | M13: 174.2106708 | N13: 176.5505302 | O13: 172.5688688 | P13: 866.0114094 | R13: 117.6061722 | S13: 125.8418673 | T13: 119.9367694 | U13: 118.4359045 | V13: 110.541767 | W13: 592.3624805 | Y13: 286.071551 | Z13: 300.0578279 | AA13: 294.1474403 | AB13: 294.9864348 | AC13: 283.1106358 | AD13: 1458.37389 | AF13: 5903.63798 | AG13: 6211.151251 | AH13: 6205.240863 | AI13: 6199.782797 | AJ13: 5900.677065 | AK13: 30420.48996 | AQ13: C-7 | AR13: 5903.63798 | AS13: 6211.151251 | AT13: 6205.240863 | AU13: 6199.782797 | AV13: 5900.677065
A14: C-8 | B14: Repex | C14: Safety Repex | D14: ='Network Projects Direct Costs'!E128 -> 10609.73563 | E14: ='Network Projects Direct Costs'!F128 -> 10294.65201 | F14: ='Network Projects Direct Costs'!G128 -> 9918.477045 | G14: ='Network Projects Direct Costs'!H128 -> 10321.12116 | H14: ='Network Projects Direct Costs'!I128 -> 10746.06686 | I14: 51890.05271 | K14: 318.1757002 | L14: 303.4113253 | M14: 292.3155525 | N14: 308.5964871 | O14: 330.1138715 | P14: 1552.612937 | R14: 222.1193842 | S14: 219.1638906 | T14: 201.2470468 | U14: 207.016677 | V14: 211.4597547 | W14: 1061.006753 | Y14: 540.2950844 | Z14: 522.5752159 | AA14: 493.5625993 | AB14: 515.613164 | AC14: 541.5736261 | AD14: 2613.61969 | AF14: 11150.03072 | AG14: 10817.22723 | AH14: 10412.03964 | AI14: 10836.73433 | AJ14: 11287.64048 | AK14: 54503.6724 | AQ14: C-8 | AR14: 11150.03072 | AS14: 10817.22723 | AT14: 10412.03964 | AU14: 10836.73433 | AV14: 11287.64048
A15: C-10 | B15: Augex | C15: PLEC (Undergrounding) | D15: ='Network Projects Direct Costs'!E151 -> 9593.923028 | E15: ='Network Projects Direct Costs'!F151 -> 9593.923028 | F15: ='Network Projects Direct Costs'!G151 -> 9593.923028 | G15: ='Network Projects Direct Costs'!H151 -> 9593.923028 | H15: ='Network Projects Direct Costs'!I151 -> 9593.923028 | I15: 47969.61514 | K15: 287.7124637 | L15: 282.758941 | M15: 282.7503555 | N15: 286.8536176 | O15: 294.7205815 | P15: 1434.795959 | R15: 200.8529099 | S15: 204.2460002 | T15: 194.6618082 | U15: 192.4308447 | V15: 188.788013 | W15: 980.979576 | Y15: 488.5653736 | Z15: 487.0049413 | AA15: 477.4121637 | AB15: 479.2844623 | AC15: 483.5085945 | AD15: 2415.775535 | AF15: 10082.4884 | AG15: 10080.92797 | AH15: 10071.33519 | AI15: 10073.20749 | AJ15: 10077.43162 | AK15: 50385.39067 | AQ15: C-10 | AR15: 10082.4884 | AS15: 10080.92797 | AT15: 10071.33519 | AU15: 10073.20749 | AV15: 10077.43162
A16: C-15 | B16: Augex | C16: Strategic - Network Security | D16: ='Network Projects Direct Costs'!E135+'Network Projects Direct Costs'!E147 -> 6790.520305 | E16: ='Network Projects Direct Costs'!F135+'Network Projects Direct Costs'!F147 -> 9647.114123 | F16: ='Network Projects Direct Costs'!G135+'Network Projects Direct Costs'!G147 -> 7560.268175 | G16: ='Network Projects Direct Costs'!H135+'Network Projects Direct Costs'!H147 -> 6827.043258 | H16: ='Network Projects Direct Costs'!I135+'Network Projects Direct Costs'!I147 -> 4953.037964 | I16: 35777.98383 | K16: 203.64113 | L16: 284.3266269 | M16: 222.8148493 | N16: 204.1252625 | O16: 152.1548823 | P16: 1067.062751 | R16: 142.1624667 | S16: 205.3783909 | T16: 153.3987159 | U16: 136.9339422 | V16: 97.4652593 | W16: 735.338775 | Y16: 345.8035967 | Z16: 489.7050178 | AA16: 376.2135653 | AB16: 341.0592046 | AC16: 249.6201416 | AD16: 1802.401526 | AF16: 7136.323902 | AG16: 10136.81914 | AH16: 7936.48174 | AI16: 7168.102463 | AJ16: 5202.658106 | AK16: 37580.38535 | AQ16: C-15 | AR16: 7136.323902 | AS16: 10136.81914 | AT16: 7936.48174 | AU16: 7168.102463 | AV16: 5202.658106
A17: C-18 | B17: Augex | C17: Safety (Bushfire) | D17: ='Network Projects Direct Costs'!E126 -> 2031.408919 | E17: ='Network Projects Direct Costs'!F126 -> 2000.124388 | F17: ='Network Projects Direct Costs'!G126 -> 2018.895107 | G17: ='Network Projects Direct Costs'!H126 -> 1993.867481 | H17: ='Network Projects Direct Costs'!I126 -> 1981.353669 | I17: 10025.64956 | K17: 60.91998688 | L17: 58.94909227 | M17: 59.50050959 | N17: 59.61566487 | O17: 60.86620705 | P17: 299.8514607 | R17: 42.52842049 | S17: 42.58085092 | T17: 40.96361529 | U17: 39.99214947 | V17: 38.98882877 | W17: 205.0538649 | Y17: 103.4484074 | Z17: 101.5299432 | AA17: 100.4641249 | AB17: 99.60781435 | AC17: 99.85503582 | AD17: 504.9053256 | AF17: 2134.857327 | AG17: 2101.654331 | AH17: 2119.359232 | AI17: 2093.475296 | AJ17: 2081.208705 | AK17: 10530.55489 | AQ17: C-18 | AR17: 2134.857327 | AS17: 2101.654331 | AT17: 2119.359232 | AU17: 2093.475296 | AV17: 2081.208705
A18: C-19 | B18: Non-network | C18: Heavy Vehicle Fleet - 15yrs | D18: ='Non Network Base Capex'!D41 -> 3355 | E18: ='Non Network Base Capex'!E41 -> 7690 | F18: ='Non Network Base Capex'!F41 -> 5840 | G18: ='Non Network Base Capex'!G41 -> 4675 | H18: ='Non Network Base Capex'!H41 -> 5445 | I18: 27005 | P18: 0 | W18: 0 | Y18: 0 | Z18: 0 | AA18: 0 | AB18: 0 | AC18: 0 | AD18: 0 | AF18: 3355 | AG18: 7690 | AH18: 5840 | AI18: 4675 | AJ18: 5445 | AK18: 27005 | AQ18: C-19 | AR18: 3355 | AS18: 7690 | AT18: 5840 | AU18: 4675 | AV18: 5445
A19: C-20 | B19: Non-network | C19: Heavy Vehicle Fleet - 10yrs | D19: ='Non Network Base Capex'!D42 -> 3601.445 | E19: ='Non Network Base Capex'!E42 -> 2973.14 | F19: ='Non Network Base Capex'!F42 -> 4695.525 | G19: ='Non Network Base Capex'!G42 -> 10586.825 | H19: ='Non Network Base Capex'!H42 -> 7906.107 | I19: 29763.042 | P19: 0 | W19: 0 | Y19: 0 | Z19: 0 | AA19: 0 | AB19: 0 | AC19: 0 | AD19: 0 | AF19: 3601.445 | AG19: 2973.14 | AH19: 4695.525 | AI19: 10586.825 | AJ19: 7906.107 | AK19: 29763.042 | AQ19: C-20 | AR19: 3601.445 | AS19: 2973.14 | AT19: 4695.525 | AU19: 10586.825 | AV19: 7906.107
A20: C-21 | B20: Non-network | C20: Light Vehicle Fleet | D20: ='Non Network Base Capex'!D43 -> 5074.901 | E20: ='Non Network Base Capex'!E43 -> 6264.500433 | F20: ='Non Network Base Capex'!F43 -> 11163.25047 | G20: ='Non Network Base Capex'!G43 -> 8187.592389 | H20: ='Non Network Base Capex'!H43 -> 5324.231193 | I20: 36014.47549 | P20: 0 | W20: 0 | Y20: 0 | Z20: 0 | AA20: 0 | AB20: 0 | AC20: 0 | AD20: 0 | AF20: 5074.901 | AG20: 6264.500433 | AH20: 11163.25047 | AI20: 8187.592389 | AJ20: 5324.231193 | AK20: 36014.47549 | AQ20: C-21 | AR20: 5074.901 | AS20: 6264.500433 | AT20: 11163.25047 | AU20: 8187.592389 | AV20: 5324.231193
A21: C-22 | B21: Non-network | C21: Plant and Tools | D21: ='Non Network Base Capex'!D44 -> 5096.733333 | E21: ='Non Network Base Capex'!E44 -> 4245.733333 | F21: ='Non Network Base Capex'!F44 -> 3485.233333 | G21: ='Non Network Base Capex'!G44 -> 3220.4 | H21: ='Non Network Base Capex'!H44 -> 3712.4 | I21: 19760.5 | P21: 0 | W21: 0 | Y21: 0 | Z21: 0 | AA21: 0 | AB21: 0 | AC21: 0 | AD21: 0 | AF21: 5096.733333 | AG21: 4245.733333 | AH21: 3485.233333 | AI21: 3220.4 | AJ21: 3712.4 | AK21: 19760.5 | AQ21: C-22 | AR21: 5096.733333 | AS21: 4245.733333 | AT21: 3485.233333 | AU21: 3220.4 | AV21: 3712.4
A22: C-24 | B22: Non-network | C22: Property | D22: ='Non Network Base Capex'!D45 -> 8788.433471 | E22: ='Non Network Base Capex'!E45 -> 9225.358232 | F22: ='Non Network Base Capex'!F45 -> 9662.282994 | G22: ='Non Network Base Capex'!G45 -> 10099.20775 | H22: ='Non Network Base Capex'!H45 -> 10536.13252 | I22: 48311.41497 | P22: 0 | W22: 0 | Y22: 0 | Z22: 0 | AA22: 0 | AB22: 0 | AC22: 0 | AD22: 0 | AF22: 8788.433471 | AG22: 9225.358232 | AH22: 9662.282994 | AI22: 10099.20775 | AJ22: 10536.13252 | AK22: 48311.41497 | AQ22: C-24 | AR22: 8788.433471 | AS22: 9225.358232 | AT22: 9662.282994 | AU22: 10099.20775 | AV22: 10536.13252
A23: C-25 | B23: Non-network | C23: Information Technology | D23: ='Non Network Base Capex'!D29 -> 67777.12273 | E23: ='Non Network Base Capex'!E29 -> 66623.03116 | F23: ='Non Network Base Capex'!F29 -> 45252.7788 | G23: ='Non Network Base Capex'!G29 -> 40359.18641 | H23: ='Non Network Base Capex'!H29 -> 38264.28443 | I23: 258276.4035 | P23: 0 | W23: 0 | Y23: 0 | Z23: 0 | AA23: 0 | AB23: 0 | AC23: 0 | AD23: 0 | AF23: 67777.12273 | AG23: 66623.03116 | AH23: 45252.7788 | AI23: 40359.18641 | AJ23: 38264.28443 | AK23: 258276.4035 | AQ23: C-25 | AR23: 67777.12273 | AS23: 66623.03116 | AT23: 45252.7788 | AU23: 40359.18641 | AV23: 38264.28443
A24: C-28 | B24: Non-network | C24: Superannuation | D24: ='Non Network Base Capex'!D46 -> -6141.256585 | E24: ='Non Network Base Capex'!E46 -> -6141.256585 | F24: ='Non Network Base Capex'!F46 -> -6141.256585 | G24: ='Non Network Base Capex'!G46 -> -6141.256585 | H24: ='Non Network Base Capex'!H46 -> -6141.256585 | I24: -30706.28293 | P24: 0 | W24: 0 | Y24: 0 | Z24: 0 | AA24: 0 | AB24: 0 | AC24: 0 | AD24: 0 | AF24: -6141.256585 | AG24: -6141.256585 | AH24: -6141.256585 | AI24: -6141.256585 | AJ24: -6141.256585 | AK24: -30706.28293 | AQ24: C-28 | AR24: -6141.256585 | AS24: -6141.256585 | AT24: -6141.256585 | AU24: -6141.256585 | AV24: -6141.256585
A25: C-29 | B25: Non-network | C25: Operational Information Technology | D25: ='Non Network Base Capex'!D47 -> 4446.144727 | E25: ='Non Network Base Capex'!E47 -> 2193.056374 | F25: ='Non Network Base Capex'!F47 -> 2402.9584 | G25: ='Non Network Base Capex'!G47 -> 4598.533599 | H25: ='Non Network Base Capex'!H47 -> 6003.197961 | I25: 19643.89106 | K25: =K36 -> 117.7062884 | L25: =L36 -> 55.89165298 | M25: 63.31932343 | N25: 122.0997227 | O25: 161.3695351 | P25: 520.3865226 | R25: =D25*R$36 -> 80.57326853 | S25: =E25*S$36 -> 40.41407231 | T25: 42.20425746 | U25: 79.8405111 | V25: 102.2554204 | W25: 345.2875298 | Y25: 198.2795569 | Z25: 96.3057253 | AA25: 105.5235809 | AB25: 201.9402338 | AC25: 263.6249555 | AD25: 865.6740524 | AF25: 4644.424284 | AG25: 2289.362099 | AH25: 2508.481981 | AI25: 4800.473832 | AJ25: 6266.822916 | AK25: 20509.56511 | AQ25: C-29 | AR25: 4644.424284 | AS25: 2289.362099 | AT25: 2508.481981 | AU25: 4800.473832 | AV25: 6266.822916
A26: Total Gross Capex | D26: =SUM(D7:D9,D11:D25) -> 380262.7728 | E26: =SUM(E7:E9,E11:E25) -> 387901.1404 | F26: 375266.2829 | G26: 365711.7966 | H26: 351870.5229 | I26: 1861012.516 | K26: =SUM(K7:K9,K11:K25) -> 8762.472048 | L26: =SUM(L7:L9,L11:L25) -> 8745.260261 | M26: 8872.608194 | N26: 8796.734779 | O26: 8788.03447 | P26: 43965.10975 | R26: =SUM(R7:R9,R11:R25) -> 6115.509455 | S26: =SUM(S7:S9,S11:S25) -> 6317.028267 | T26: 6107.031647 | U26: 5899.07112 | V26: 5628.204519 | W26: 30066.84501 | Y26: 14877.9815 | Z26: 15062.28853 | AA26: 14979.63984 | AB26: 14695.8059 | AC26: 14416.23899 | AD26: =SUM(AD7:AD9,AD11:AD25) -> 74031.95476 | AF26: =SUM(AF7:AF9,AF11:AF25) -> 395140.7543 | AG26: =SUM(AG7:AG9,AG11:AG25) -> 402963.4289 | AH26: 390245.9227 | AI26: 380407.6025 | AJ26: 366286.7619 | AK26: 1935044.47 | AQ26: Total Gross Capex | AR26: =SUM(AR7:AR9,AR11:AR25) -> 395140.7543 | AS26: =SUM(AS7:AS9,AS11:AS25) -> 402963.4289 | AT26: 390245.9227 | AU26: 380407.6025 | AV26: 366286.7619
A27: Total Net Capex | D27: =SUM(D26,D10) -> 317122.5183 | E27: 324238.7517 | F27: 307280.9542 | G27: 301236.5694 | H27: 289399.5479 | I27: 1539278.342 | K27: =SUM(K26,K10) -> 6868.956943 | L27: 6868.956943 | M27: 6868.956943 | N27: 6868.956943 | O27: 6868.956943 | P27: 34344.78472 | R27: =SUM(R26,R10) -> 4793.641038 | S27: 4961.713218 | T27: 4727.601461 | U27: 4605.85432 | V27: 4398.908516 | W27: 23487.71855 | Y27: =SUM(Y26,Y10) -> 11662.59798 | Z27: 11830.67016 | AA27: 11596.5584 | AB27: 11474.81126 | AC27: 11267.86546 | AD27: 57832.50327 | AF27: =SUM(AF26,AF10) -> 328785.1163 | AG27: 336069.4219 | AH27: 318877.5126 | AI27: 312711.3807 | AJ27: 300667.4134 | AK27: 1597110.845
A29: Gross Network Capex | D29: =SUM(D7:D9,D11:D17) -> 288264.2491 | E29: =SUM(E7:E9,E11:E17) -> 294827.5775 | F29: 298905.5105 | G29: 290126.3081 | H29: 280820.4264 | I29: =SUM(I7:I9,I11:I17) -> 1452944.071 | K29: =SUM(K7:K9,K11:K17) -> 8644.76576 | L29: 8689.368608 | M29: 8809.28887 | N29: 8674.635057 | O29: 8626.664934 | P29: 43444.72323 | R29: =SUM(R7:R9,R11:R17) -> 6034.936186 | S29: 6276.614194 | T29: 6064.827389 | U29: 5819.230609 | V29: 5525.949098 | W29: 29721.55748 | Y29: =SUM(Y7:Y9,Y11:Y17) -> 14679.70195 | Z29: 14965.9828 | AA29: 14874.11626 | AB29: 14493.86567 | AC29: 14152.61403 | AD29: 73166.28071 | AF29: =SUM(AF7:AF9,AF11:AF17) -> 302943.951 | AG29: 309793.5603 | AH29: 313779.6267 | AI29: 304620.1737 | AJ29: 294973.0404 | AK29: 1526110.352 | AM29: =(AK29-'Network Projects Direct Costs'!J165)/'Network Projects Direct Costs'!J165 -> 0.05035725885
A30: Net Network Capex | D30: =D29+D10 -> 225123.9946 | E30: =E29+E10 -> 231165.1888 | F30: 230920.1817 | G30: 225651.0808 | H30: 218349.4514 | I30: 1131209.897 | K30: =K29+K10 -> 6751.250655 | L30: 6813.06529 | M30: 6805.63762 | N30: 6746.857221 | O30: 6707.587408 | P30: 33824.39819 | R30: =R29+R10 -> 4713.067769 | S30: 4921.299146 | T30: 4685.397203 | U30: 4526.013809 | V30: 4296.653095 | W30: 23142.43102 | Y30: =Y29+Y10 -> 11464.31842 | Z30: 11734.36444 | AA30: 11491.03482 | AB30: 11272.87103 | AC30: 11004.2405 | AD30: 56966.82922 | AF30: =AF29+AF10 -> 236588.313 | AG30: 242899.5532 | AH30: 242411.2166 | AI30: 236923.9519 | AJ30: 229353.6919 | AK30: 1188176.727 | AM30: =(AK30-'Network Projects Direct Costs'!J166)/'Network Projects Direct Costs'!J166 -> 0.05035920332
AM31: Recalculated Overhead rate
A32: Gross Network Capex | C32: Check | D32: ='Network Projects Direct Costs'!E165-D29 -> 0 | E32: ='Network Projects Direct Costs'!F165-E29 -> 0 | F32: ='Network Projects Direct Costs'!G165-F29 -> 0 | G32: ='Network Projects Direct Costs'!H165-G29 -> 0 | H32: ='Network Projects Direct Costs'!I165-H29 -> 0 | I32: ='Network Projects Direct Costs'!J165-I29 -> 0
A33: Net Network Capex | C33: Check | D33: ='Network Projects Direct Costs'!E166-D30 -> 0 | E33: ='Network Projects Direct Costs'!F166-E30 -> 0 | F33: ='Network Projects Direct Costs'!G166-F30 -> 0 | G33: ='Network Projects Direct Costs'!H166-G30 -> 0 | H33: ='Network Projects Direct Costs'!I166-H30 -> 0 | I33: ='Network Projects Direct Costs'!J166-I30 -> 0
J35: ='General Inputs'!A17 -> Network Capex | K35: ='General Inputs'!B17 -> 6751.250655 | L35: ='General Inputs'!C17 -> 6813.06529 | M35: ='General Inputs'!D17 -> 6805.63762 | N35: ='General Inputs'!E17 -> 6746.857221 | O35: ='General Inputs'!F17 -> 6707.587408 | P35: =SUM(K35:O35) -> 33824.39819 | R35: ='General Inputs'!B26 -> 0.02093543062 | S35: ='General Inputs'!C26 -> 0.02128910141 | T35: ='General Inputs'!D26 -> 0.02029011569 | U35: ='General Inputs'!E26 -> 0.02005757647 | V35: ='General Inputs'!F26 -> 0.01967787447
J36: ='General Inputs'!A18 -> Non-network - Operational Information Technology | K36: ='General Inputs'!B18 -> 117.7062884 | L36: ='General Inputs'!C18 -> 55.89165298 | M36: ='General Inputs'!D18 -> 63.31932343 | N36: ='General Inputs'!E18 -> 122.0997227 | O36: ='General Inputs'!F18 -> 161.3695351 | P36: =SUM(K36:O36) -> 520.3865226 | R36: ='General Inputs'!B27 -> 0.01812205258 | S36: ='General Inputs'!C27 -> 0.01842819583 | T36: ='General Inputs'!D27 -> 0.01756345738 | U36: ='General Inputs'!E27 -> 0.01736216761 | V36: ='General Inputs'!F27 -> 0.01703349132
K37: =SUM(K35:K36) -> 6868.956943 | L37: =SUM(L35:L36) -> 6868.956943 | M37: 6868.956943 | N37: 6868.956943 | O37: 6868.956943 | P37: 34344.78472

Sheet Base Capex Incl Real Price Esc
C2: $2017-18 ($'000) | D2: ='Direct Capex Plus Ohds'!AF2 -> Base Capex Including Overheads | K2: Real Price Escalation | R2: Capex Including Overheads & Real Price Escalation
D6: 2020/21 | E6: 2021/22 | F6: 2022/23 | G6: 2023/24 | H6: 2024/25 | I6: TOTAL | K6: =D6 -> 2020/21 | L6: 2021/22 | M6: 2022/23 | N6: 2023/24 | O6: 2024/25 | P6: TOTAL | R6: =K6 -> 2020/21 | S6: 2021/22 | T6: 2022/23 | U6: 2023/24 | V6: 2024/25 | W6: TOTAL
A7: C-1 | B7: Repex | C7: Asset Replacement and Refurbishment | D7: ='Direct Capex Plus Ohds'!AF7 -> 115976.7208 | E7: ='Direct Capex Plus Ohds'!AG7 -> 118088.8943 | F7: ='Direct Capex Plus Ohds'!AH7 -> 119573.2645 | G7: ='Direct Capex Plus Ohds'!AI7 -> 115861.9946 | H7: ='Direct Capex Plus Ohds'!AJ7 -> 111986.3247 | I7: =SUM(D7:H7) -> 581487.1988 | K7: =D7*('Misc Data'!$D6*'General Inputs'!N$34+'Misc Data'!$E6*'General Inputs'!N$35+'Misc Data'!$F6*'General Inputs'!N$36+'Misc Data'!$G6*'General Inputs'!N$38+'Misc Data'!$I6*'General Inputs'!N$39+'Misc Data'!$H6*'General Inputs'!N$40) -> 1351.958371 | L7: =E7*('Misc Data'!$D6*'General Inputs'!O$34+'Misc Data'!$E6*'General Inputs'!O$35+'Misc Data'!$F6*'General Inputs'!O$36+'Misc Data'!$G6*'General Inputs'!O$38+'Misc Data'!$I6*'General Inputs'!O$39+'Misc Data'!$H6*'General Inputs'!O$40) -> 1933.234689 | M7: =F7*('Misc Data'!$D6*'General Inputs'!P$34+'Misc Data'!$E6*'General Inputs'!P$35+'Misc Data'!$F6*'General Inputs'!P$36+'Misc Data'!$G6*'General Inputs'!P$38+'Misc Data'!$I6*'General Inputs'!P$39+'Misc Data'!$H6*'General Inputs'!P$40) -> 2647.806797 | N7: =G7*('Misc Data'!$D6*'General Inputs'!Q$34+'Misc Data'!$E6*'General Inputs'!Q$35+'Misc Data'!$F6*'General Inputs'!Q$36+'Misc Data'!$G6*'General Inputs'!Q$38+'Misc Data'!$I6*'General Inputs'!Q$39+'Misc Data'!$H6*'General Inputs'!Q$40) -> 3330.119796 | O7: =H7*('Misc Data'!$D6*'General Inputs'!R$34+'Misc Data'!$E6*'General Inputs'!R$35+'Misc Data'!$F6*'General Inputs'!R$36+'Misc Data'!$G6*'General Inputs'!R$38+'Misc Data'!$I6*'General Inputs'!R$39+'Misc Data'!$H6*'General Inputs'!R$40) -> 3804.553659 | P7: =SUM(K7:O7) -> 13067.67331 | R7: =SUM(D7,K7) -> 117328.6792 | S7: =SUM(E7,L7) -> 120022.129 | T7: =SUM(F7,M7) -> 122221.0713 | U7: =SUM(G7,N7) -> 119192.1144 | V7: =SUM(H7,O7) -> 115790.8783 | W7: =SUM(R7:V7) -> 594554.8721
A8: C-2 | B8: Augex | C8: Augmentation/Capacity | D8: ='Direct Capex Plus Ohds'!AF8 -> 23701.6133 | E8: ='Direct Capex Plus Ohds'!AG8 -> 23225.91896 | F8: ='Direct Capex Plus Ohds'!AH8 -> 21024.73079 | G8: ='Direct Capex Plus Ohds'!AI8 -> 22195.97397 | H8: ='Direct Capex Plus Ohds'!AJ8 -> 22338.93969 | I8: =SUM(D8:H8) -> 112487.1767 | K8: =D8*('Misc Data'!$D7*'General Inputs'!N$34+'Misc Data'!$E7*'General Inputs'!N$35+'Misc Data'!$F7*'General Inputs'!N$36+'Misc Data'!$G7*'General Inputs'!N$38+'Misc Data'!$I7*'General Inputs'!N$39+'Misc Data'!$H7*'General Inputs'!N$40) -> 245.4106634 | L8: =E8*('Misc Data'!$D7*'General Inputs'!O$34+'Misc Data'!$E7*'General Inputs'!O$35+'Misc Data'!$F7*'General Inputs'!O$36+'Misc Data'!$G7*'General Inputs'!O$38+'Misc Data'!$I7*'General Inputs'!O$39+'Misc Data'!$H7*'General Inputs'!O$40) -> 329.7670254 | M8: =F8*('Misc Data'!$D7*'General Inputs'!P$34+'Misc Data'!$E7*'General Inputs'!P$35+'Misc Data'!$F7*'General Inputs'!P$36+'Misc Data'!$G7*'General Inputs'!P$38+'Misc Data'!$I7*'General Inputs'!P$39+'Misc Data'!$H7*'General Inputs'!P$40) -> 389.8468356 | N8: =G8*('Misc Data'!$D7*'General Inputs'!Q$34+'Misc Data'!$E7*'General Inputs'!Q$35+'Misc Data'!$F7*'General Inputs'!Q$36+'Misc Data'!$G7*'General Inputs'!Q$38+'Misc Data'!$I7*'General Inputs'!Q$39+'Misc Data'!$H7*'General Inputs'!Q$40) -> 522.8000278 | O8: =H8*('Misc Data'!$D7*'General Inputs'!R$34+'Misc Data'!$E7*'General Inputs'!R$35+'Misc Data'!$F7*'General Inputs'!R$36+'Misc Data'!$G7*'General Inputs'!R$38+'Misc Data'!$I7*'General Inputs'!R$39+'Misc Data'!$H7*'General Inputs'!R$40) -> 621.0305043 | P8: =SUM(K8:O8) -> 2108.855056 | R8: =SUM(D8,K8) -> 23947.02396 | S8: 23555.68599 | T8: 21414.57763 | U8: 22718.774 | V8: 22959.9702 | W8: =SUM(R8:V8) -> 114596.0318
A9: C-3 | B9: Connections | C9: Connections | D9: ='Direct Capex Plus Ohds'!AF9 -> 113434.1633 | E9: ='Direct Capex Plus Ohds'!AG9 -> 115708.9294 | F9: ='Direct Capex Plus Ohds'!AH9 -> 123027.9092 | G9: ='Direct Capex Plus Ohds'!AI9 -> 116779.1444 | H9: ='Direct Capex Plus Ohds'!AJ9 -> 112680.7775 | I9: 581630.9239 | K9: =D9*('Misc Data'!$D8*'General Inputs'!N$34+'Misc Data'!$E8*'General Inputs'!N$35+'Misc Data'!$F8*'General Inputs'!N$36+'Misc Data'!$G8*'General Inputs'!N$38+'Misc Data'!$I8*'General Inputs'!N$39+'Misc Data'!$H8*'General Inputs'!N$40) -> 1415.642201 | L9: =E9*('Misc Data'!$D8*'General Inputs'!O$34+'Misc Data'!$E8*'General Inputs'!O$35+'Misc Data'!$F8*'General Inputs'!O$36+'Misc Data'!$G8*'General Inputs'!O$38+'Misc Data'!$I8*'General Inputs'!O$39+'Misc Data'!$H8*'General Inputs'!O$40) -> 1976.946522 | M9: =F9*('Misc Data'!$D8*'General Inputs'!P$34+'Misc Data'!$E8*'General Inputs'!P$35+'Misc Data'!$F8*'General Inputs'!P$36+'Misc Data'!$G8*'General Inputs'!P$38+'Misc Data'!$I8*'General Inputs'!P$39+'Misc Data'!$H8*'General Inputs'!P$40) -> 2738.404163 | N9: =G9*('Misc Data'!$D8*'General Inputs'!Q$34+'Misc Data'!$E8*'General Inputs'!Q$35+'Misc Data'!$F8*'General Inputs'!Q$36+'Misc Data'!$G8*'General Inputs'!Q$38+'Misc Data'!$I8*'General Inputs'!Q$39+'Misc Data'!$H8*'General Inputs'!Q$40) -> 3296.730954 | O9: =H9*('Misc Data'!$D8*'General Inputs'!R$34+'Misc Data'!$E8*'General Inputs'!R$35+'Misc Data'!$F8*'General Inputs'!R$36+'Misc Data'!$G8*'General Inputs'!R$38+'Misc Data'!$I8*'General Inputs'!R$39+'Misc Data'!$H8*'General Inputs'!R$40) -> 3754.145652 | P9: 13181.86949 | R9: 114849.8055 | S9: 117685.8759 | T9: 125766.3134 | U9: 120075.8754 | V9: 116434.9232 | W9: 594812.7934
A10: C-4 | B10: Connections | C10: Contributions | D10: ='Direct Capex Plus Ohds'!AF10 -> -66355.63799 | E10: ='Direct Capex Plus Ohds'!AG10 -> -66894.00706 | F10: ='Direct Capex Plus Ohds'!AH10 -> -71368.41018 | G10: ='Direct Capex Plus Ohds'!AI10 -> -67696.22185 | H10: ='Direct Capex Plus Ohds'!AJ10 -> -65619.3485 | I10: -337933.6256 | K10: =D10*('Misc Data'!$D9*'General Inputs'!N$34+'Misc Data'!$E9*'General Inputs'!N$35+'Misc Data'!$F9*'General Inputs'!N$36+'Misc Data'!$G9*'General Inputs'!N$38+'Misc Data'!$I9*'General Inputs'!N$39+'Misc Data'!$H9*'General Inputs'!N$40) -> -796.7642458 | L10: =E10*('Misc Data'!$D9*'General Inputs'!O$34+'Misc Data'!$E9*'General Inputs'!O$35+'Misc Data'!$F9*'General Inputs'!O$36+'Misc Data'!$G9*'General Inputs'!O$38+'Misc Data'!$I9*'General Inputs'!O$39+'Misc Data'!$H9*'General Inputs'!O$40) -> -1099.998101 | M10: =F10*('Misc Data'!$D9*'General Inputs'!P$34+'Misc Data'!$E9*'General Inputs'!P$35+'Misc Data'!$F9*'General Inputs'!P$36+'Misc Data'!$G9*'General Inputs'!P$38+'Misc Data'!$I9*'General Inputs'!P$39+'Misc Data'!$H9*'General Inputs'!P$40) -> -1529.610452 | N10: =G10*('Misc Data'!$D9*'General Inputs'!Q$34+'Misc Data'!$E9*'General Inputs'!Q$35+'Misc Data'!$F9*'General Inputs'!Q$36+'Misc Data'!$G9*'General Inputs'!Q$38+'Misc Data'!$I9*'General Inputs'!Q$39+'Misc Data'!$H9*'General Inputs'!Q$40) -> -1840.742891 | O10: =H10*('Misc Data'!$D9*'General Inputs'!R$34+'Misc Data'!$E9*'General Inputs'!R$35+'Misc Data'!$F9*'General Inputs'!R$36+'Misc Data'!$G9*'General Inputs'!R$38+'Misc Data'!$I9*'General Inputs'!R$39+'Misc Data'!$H9*'General Inputs'!R$40) -> -2105.777689 | P10: -7372.893379 | R10: -67152.40223 | S10: -67994.00516 | T10: -72898.02063 | U10: -69536.96474 | V10: -67725.12619 | W10: -345306.519
A11: C-5 | B11: Augex | C11: Reliability | D11: ='Direct Capex Plus Ohds'!AF11 -> 11608.39064 | E11: ='Direct Capex Plus Ohds'!AG11 -> 11606.59405 | F11: ='Direct Capex Plus Ohds'!AH11 -> 11595.54948 | G11: ='Direct Capex Plus Ohds'!AI11 -> 11597.70514 | H11: ='Direct Capex Plus Ohds'!AJ11 -> 11602.56856 | I11: 58010.80786 | K11: =D11*('Misc Data'!$D10*'General Inputs'!N$34+'Misc Data'!$E10*'General Inputs'!N$35+'Misc Data'!$F10*'General Inputs'!N$36+'Misc Data'!$G10*'General Inputs'!N$38+'Misc Data'!$I10*'General Inputs'!N$39+'Misc Data'!$H10*'General Inputs'!N$40) -> 216.0398952 | L11: =E11*('Misc Data'!$D10*'General Inputs'!O$34+'Misc Data'!$E10*'General Inputs'!O$35+'Misc Data'!$F10*'General Inputs'!O$36+'Misc Data'!$G10*'General Inputs'!O$38+'Misc Data'!$I10*'General Inputs'!O$39+'Misc Data'!$H10*'General Inputs'!O$40) -> 298.5948625 | M11: =F11*('Misc Data'!$D10*'General Inputs'!P$34+'Misc Data'!$E10*'General Inputs'!P$35+'Misc Data'!$F10*'General Inputs'!P$36+'Misc Data'!$G10*'General Inputs'!P$38+'Misc Data'!$I10*'General Inputs'!P$39+'Misc Data'!$H10*'General Inputs'!P$40) -> 394.3151614 | N11: =G11*('Misc Data'!$D10*'General Inputs'!Q$34+'Misc Data'!$E10*'General Inputs'!Q$35+'Misc Data'!$F10*'General Inputs'!Q$36+'Misc Data'!$G10*'General Inputs'!Q$38+'Misc Data'!$I10*'General Inputs'!Q$39+'Misc Data'!$H10*'General Inputs'!Q$40) -> 504.7835722 | O11: =H11*('Misc Data'!$D10*'General Inputs'!R$34+'Misc Data'!$E10*'General Inputs'!R$35+'Misc Data'!$F10*'General Inputs'!R$36+'Misc Data'!$G10*'General Inputs'!R$38+'Misc Data'!$I10*'General Inputs'!R$39+'Misc Data'!$H10*'General Inputs'!R$40) -> 596.3469676 | P11: 2010.080459 | R11: 11824.43053 | S11: 11905.18891 | T11: 11989.86464 | U11: 12102.48871 | V11: 12198.91552 | W11: 60020.88832
A12: C-6 | B12: Augex | C12: Environmental | D12: ='Direct Capex Plus Ohds'!AF12 -> 1815.72465 | E12: ='Direct Capex Plus Ohds'!AG12 -> 1815.443637 | F12: ='Direct Capex Plus Ohds'!AH12 -> 1813.716103 | G12: ='Direct Capex Plus Ohds'!AI12 -> 1814.053279 | H12: ='Direct Capex Plus Ohds'!AJ12 -> 1814.81399 | I12: 9073.75166 | K12: =D12*('Misc Data'!$D11*'General Inputs'!N$34+'Misc Data'!$E11*'General Inputs'!N$35+'Misc Data'!$F11*'General Inputs'!N$36+'Misc Data'!$G11*'General Inputs'!N$38+'Misc Data'!$I11*'General Inputs'!N$39+'Misc Data'!$H11*'General Inputs'!N$40) -> 16.29631409 | L12: =E12*('Misc Data'!$D11*'General Inputs'!O$34+'Misc Data'!$E11*'General Inputs'!O$35+'Misc Data'!$F11*'General Inputs'!O$36+'Misc Data'!$G11*'General Inputs'!O$38+'Misc Data'!$I11*'General Inputs'!O$39+'Misc Data'!$H11*'General Inputs'!O$40) -> 22.13159894 | M12: =F12*('Misc Data'!$D11*'General Inputs'!P$34+'Misc Data'!$E11*'General Inputs'!P$35+'Misc Data'!$F11*'General Inputs'!P$36+'Misc Data'!$G11*'General Inputs'!P$38+'Misc Data'!$I11*'General Inputs'!P$39+'Misc Data'!$H11*'General Inputs'!P$40) -> 28.45756369 | N12: =G12*('Misc Data'!$D11*'General Inputs'!Q$34+'Misc Data'!$E11*'General Inputs'!Q$35+'Misc Data'!$F11*'General Inputs'!Q$36+'Misc Data'!$G11*'General Inputs'!Q$38+'Misc Data'!$I11*'General Inputs'!Q$39+'Misc Data'!$H11*'General Inputs'!Q$40) -> 35.82006989 | O12: =H12*('Misc Data'!$D11*'General Inputs'!R$34+'Misc Data'!$E11*'General Inputs'!R$35+'Misc Data'!$F11*'General Inputs'!R$36+'Misc Data'!$G11*'General Inputs'!R$38+'Misc Data'!$I11*'General Inputs'!R$39+'Misc Data'!$H11*'General Inputs'!R$40) -> 42.26883217 | P12: 144.9743788 | R12: 1832.020964 | S12: 1837.575236 | T12: 1842.173666 | U12: 1849.873349 | V12: 1857.082823 | W12: 9218.726038
A13: C-7 | B13: Augex | C13: Safety Augex | D13: ='Direct Capex Plus Ohds'!AF13 -> 5903.63798 | E13: ='Direct Capex Plus Ohds'!AG13 -> 6211.151251 | F13: ='Direct Capex Plus Ohds'!AH13 -> 6205.240863 | G13: ='Direct Capex Plus Ohds'!AI13 -> 6199.782797 | H13: ='Direct Capex Plus Ohds'!AJ13 -> 5900.677065 | I13: 30420.48996 | K13: =D13*('Misc Data'!$D12*'General Inputs'!N$34+'Misc Data'!$E12*'General Inputs'!N$35+'Misc Data'!$F12*'General Inputs'!N$36+'Misc Data'!$G12*'General Inputs'!N$38+'Misc Data'!$I12*'General Inputs'!N$39+'Misc Data'!$H12*'General Inputs'!N$40) -> 85.6112835 | L13: =E13*('Misc Data'!$D12*'General Inputs'!O$34+'Misc Data'!$E12*'General Inputs'!O$35+'Misc Data'!$F12*'General Inputs'!O$36+'Misc Data'!$G12*'General Inputs'!O$38+'Misc Data'!$I12*'General Inputs'!O$39+'Misc Data'!$H12*'General Inputs'!O$40) -> 123.7320471 | M13: =F13*('Misc Data'!$D12*'General Inputs'!P$34+'Misc Data'!$E12*'General Inputs'!P$35+'Misc Data'!$F12*'General Inputs'!P$36+'Misc Data'!$G12*'General Inputs'!P$38+'Misc Data'!$I12*'General Inputs'!P$39+'Misc Data'!$H12*'General Inputs'!P$40) -> 161.8740401 | N13: =G13*('Misc Data'!$D12*'General Inputs'!Q$34+'Misc Data'!$E12*'General Inputs'!Q$35+'Misc Data'!$F12*'General Inputs'!Q$36+'Misc Data'!$G12*'General Inputs'!Q$38+'Misc Data'!$I12*'General Inputs'!Q$39+'Misc Data'!$H12*'General Inputs'!Q$40) -> 205.7958409 | O13: =H13*('Misc Data'!$D12*'General Inputs'!R$34+'Misc Data'!$E12*'General Inputs'!R$35+'Misc Data'!$F12*'General Inputs'!R$36+'Misc Data'!$G12*'General Inputs'!R$38+'Misc Data'!$I12*'General Inputs'!R$39+'Misc Data'!$H12*'General Inputs'!R$40) -> 231.2073106 | P13: 808.2205222 | R13: 5989.249263 | S13: 6334.883298 | T13: 6367.114903 | U13: 6405.578638 | V13: 6131.884375 | W13: 31228.71048
A14: C-8 | B14: Repex | C14: Safety Repex | D14: ='Direct Capex Plus Ohds'!AF14 -> 11150.03072 | E14: ='Direct Capex Plus Ohds'!AG14 -> 10817.22723 | F14: ='Direct Capex Plus Ohds'!AH14 -> 10412.03964 | G14: ='Direct Capex Plus Ohds'!AI14 -> 10836.73433 | H14: ='Direct Capex Plus Ohds'!AJ14 -> 11287.64048 | I14: 54503.6724 | K14: =D14*('Misc Data'!$D13*'General Inputs'!N$34+'Misc Data'!$E13*'General Inputs'!N$35+'Misc Data'!$F13*'General Inputs'!N$36+'Misc Data'!$G13*'General Inputs'!N$38+'Misc Data'!$I13*'General Inputs'!N$39+'Misc Data'!$H13*'General Inputs'!N$40) -> 161.691561 | L14: =E14*('Misc Data'!$D13*'General Inputs'!O$34+'Misc Data'!$E13*'General Inputs'!O$35+'Misc Data'!$F13*'General Inputs'!O$36+'Misc Data'!$G13*'General Inputs'!O$38+'Misc Data'!$I13*'General Inputs'!O$39+'Misc Data'!$H13*'General Inputs'!O$40) -> 215.4894664 | M14: =F14*('Misc Data'!$D13*'General Inputs'!P$34+'Misc Data'!$E13*'General Inputs'!P$35+'Misc Data'!$F13*'General Inputs'!P$36+'Misc Data'!$G13*'General Inputs'!P$38+'Misc Data'!$I13*'General Inputs'!P$39+'Misc Data'!$H13*'General Inputs'!P$40) -> 271.6153909 | N14: =G14*('Misc Data'!$D13*'General Inputs'!Q$34+'Misc Data'!$E13*'General Inputs'!Q$35+'Misc Data'!$F13*'General Inputs'!Q$36+'Misc Data'!$G13*'General Inputs'!Q$38+'Misc Data'!$I13*'General Inputs'!Q$39+'Misc Data'!$H13*'General Inputs'!Q$40) -> 359.7149975 | O14: =H14*('Misc Data'!$D13*'General Inputs'!R$34+'Misc Data'!$E13*'General Inputs'!R$35+'Misc Data'!$F13*'General Inputs'!R$36+'Misc Data'!$G13*'General Inputs'!R$38+'Misc Data'!$I13*'General Inputs'!R$39+'Misc Data'!$H13*'General Inputs'!R$40) -> 442.2856854 | P14: 1450.797101 | R14: 11311.72228 | S14: 11032.71669 | T14: 10683.65504 | U14: 11196.44933 | V14: 11729.92617 | W14: 55954.4695
A15: C-10 | B15: Augex | C15: PLEC (Undergrounding) | D15: ='Direct Capex Plus Ohds'!AF15 -> 10082.4884 | E15: ='Direct Capex Plus Ohds'!AG15 -> 10080.92797 | F15: ='Direct Capex Plus Ohds'!AH15 -> 10071.33519 | G15: ='Direct Capex Plus Ohds'!AI15 -> 10073.20749 | H15: ='Direct Capex Plus Ohds'!AJ15 -> 10077.43162 | I15: 50385.39067 | K15: =D15*('Misc Data'!$D14*'General Inputs'!N$34+'Misc Data'!$E14*'General Inputs'!N$35+'Misc Data'!$F14*'General Inputs'!N$36+'Misc Data'!$G14*'General Inputs'!N$38+'Misc Data'!$I14*'General Inputs'!N$39+'Misc Data'!$H14*'General Inputs'!N$40) -> 87.37904887 | L15: =E15*('Misc Data'!$D14*'General Inputs'!O$34+'Misc Data'!$E14*'General Inputs'!O$35+'Misc Data'!$F14*'General Inputs'!O$36+'Misc Data'!$G14*'General Inputs'!O$38+'Misc Data'!$I14*'General Inputs'!O$39+'Misc Data'!$H14*'General Inputs'!O$40) -> 152.0679849 | M15: =F15*('Misc Data'!$D14*'General Inputs'!P$34+'Misc Data'!$E14*'General Inputs'!P$35+'Misc Data'!$F14*'General Inputs'!P$36+'Misc Data'!$G14*'General Inputs'!P$38+'Misc Data'!$I14*'General Inputs'!P$39+'Misc Data'!$H14*'General Inputs'!P$40) -> 262.1961598 | N15: =G15*('Misc Data'!$D14*'General Inputs'!Q$34+'Misc Data'!$E14*'General Inputs'!Q$35+'Misc Data'!$F14*'General Inputs'!Q$36+'Misc Data'!$G14*'General Inputs'!Q$38+'Misc Data'!$I14*'General Inputs'!Q$39+'Misc Data'!$H14*'General Inputs'!Q$40) -> 384.3525246 | O15: =H15*('Misc Data'!$D14*'General Inputs'!R$34+'Misc Data'!$E14*'General Inputs'!R$35+'Misc Data'!$F14*'General Inputs'!R$36+'Misc Data'!$G14*'General Inputs'!R$38+'Misc Data'!$I14*'General Inputs'!R$39+'Misc Data'!$H14*'General Inputs'!R$40) -> 457.9584003 | P15: 1343.954118 | R15: 10169.86745 | S15: 10232.99595 | T15: 10333.53135 | U15: 10457.56001 | V15: 10535.39002 | W15: 51729.34479
A16: C-15 | B16: Augex | C16: Strategic - Network Security | D16: ='Direct Capex Plus Ohds'!AF16 -> 7136.323902 | E16: ='Direct Capex Plus Ohds'!AG16 -> 10136.81914 | F16: ='Direct Capex Plus Ohds'!AH16 -> 7936.48174 | G16: ='Direct Capex Plus Ohds'!AI16 -> 7168.102463 | H16: ='Direct Capex Plus Ohds'!AJ16 -> 5202.658106 | I16: 37580.38535 | K16: =D16*('Misc Data'!$D15*'General Inputs'!N$34+'Misc Data'!$E15*'General Inputs'!N$35+'Misc Data'!$F15*'General Inputs'!N$36+'Misc Data'!$G15*'General Inputs'!N$38+'Misc Data'!$I15*'General Inputs'!N$39+'Misc Data'!$H15*'General Inputs'!N$40) -> 101.3148294 | L16: =E16*('Misc Data'!$D15*'General Inputs'!O$34+'Misc Data'!$E15*'General Inputs'!O$35+'Misc Data'!$F15*'General Inputs'!O$36+'Misc Data'!$G15*'General Inputs'!O$38+'Misc Data'!$I15*'General Inputs'!O$39+'Misc Data'!$H15*'General Inputs'!O$40) -> 208.6368698 | M16: =F16*('Misc Data'!$D15*'General Inputs'!P$34+'Misc Data'!$E15*'General Inputs'!P$35+'Misc Data'!$F15*'General Inputs'!P$36+'Misc Data'!$G15*'General Inputs'!P$38+'Misc Data'!$I15*'General Inputs'!P$39+'Misc Data'!$H15*'General Inputs'!P$40) -> 230.8268384 | N16: =G16*('Misc Data'!$D15*'General Inputs'!Q$34+'Misc Data'!$E15*'General Inputs'!Q$35+'Misc Data'!$F15*'General Inputs'!Q$36+'Misc Data'!$G15*'General Inputs'!Q$38+'Misc Data'!$I15*'General Inputs'!Q$39+'Misc Data'!$H15*'General Inputs'!Q$40) -> 277.516372 | O16: =H16*('Misc Data'!$D15*'General Inputs'!R$34+'Misc Data'!$E15*'General Inputs'!R$35+'Misc Data'!$F15*'General Inputs'!R$36+'Misc Data'!$G15*'General Inputs'!R$38+'Misc Data'!$I15*'General Inputs'!R$39+'Misc Data'!$H15*'General Inputs'!R$40) -> 238.4785747 | P16: 1056.773484 | R16: 7237.638731 | S16: 10345.45601 | T16: 8167.308578 | U16: 7445.618835 | V16: 5441.136681 | W16: 38637.15884
